Workbook

Sheet TitlePage
A1: Title page | B1: This is a custom workbook that is not produced by WorksheetMaker. See Chemical Notes for details. Corrected July, 2016. See Revisions worksheet.
C6: 3,5,6-Trichloro-2-pyridinol (TCP) from Terrestrial Applications of Triclopyr
E17: Worksheet Version | F17: 6.00.01
A51: 2011-02-20
A52: July 10, 2016 (minor modification)

Sheet General Notes
A1: General Notes
B2: Prepared by: | C2: Patrick R Durkin
B3: Program Version: | C3: 6.00.01
B4: Database Used: | C4: FS WsMkr V5-01a.mdb
B5: Template Workbook: | C5: FS WsMkr V5-01a.mdb
B6: Base Workbook: | C6: FS WSMkr Blank V05-01a.xlsm
A8: Color Codes in WorksheetMaker Version 5
A13: Color Codes used in Workbook for Front Matter, Data and Calculation Worksheets
B14: Green shading | C14: This is a default value or a user specified a value. You can change these values as you see fit but you should have a reason for doing so.
B15: Yellow shading | C15: This is a source for a link in other parts of the workbook. If you have good reason to change the value, you should note the change (with your reason) in the “Revisions” page.
B16: Blue shading | C16: This cell is linked to another cell in the workbook. Do not change this value. If you change any of these values, the workbook may not update correctly.
B17: Blue shading blue border | C17: This cell is linked to a Program parameter in Worksheet A01. Do not change this value. If you want the value to change, go to Worksheet A01 and change the value in that worksheet.
B18: Purple Shading | C18: Indicates (for information only) that the typical of order of Lower and Upper values is intentionally reversed. This is only used in the second (label) column.
B19: Italics, no shading | C19: The value in this cell is generated by a formula (the number that you see is the result of an equation). This cell is linked only to other cells in the worksheet. Do not change this value.
A25: Color Codes used in Workbook for Risk Characterization Worksheets
B26: HQ ≥ 2 | C26: For hazard quotient greater than 2, the number is in bold font with a red background and rounded to the nearest integer.
B27: HQ > 1 but < 2 | C27: For hazard quotient greater than 1 but less than two, the number is in bold font with a white background and rounded to one significant place after the decimal.
B28: HQ ≥ 0.1 but <1 | C28: For hazard quotient greater than 0.1 but less than one, the number is in regular font with a white background and rounded to one significant place after the decimal.
B29: HQ < 0.1 | C29: For hazard quotient less than 0.1, the number is in regular font with a white background. The number is expressed in scientific notation and rounded to one significant place -- e.g., 2E-02 rather than 0.02.
B55: Prepared by: | C55: Patrick R Durkin
B56: Program Version: | C56: 6.00.01
B57: Database Used: | C57: FS WsMkr V5-01a.mdb
B58: Template Workbook: | C58: FS WsMkr V5-01a.mdb
B59: Base Workbook: | C59: FS WSMkr Blank V05-01a.xlsm

Sheet Chemical Notes
A1: Chemical specific notes
A2: Risk Assessment: | D2: SERA TR-052-25-01b
A3: Report Date: | D3: February, 2011
A6: The area below is an embedded MS Word Document. Add chemical-specific notes as appropriate.

Sheet Revisions
A1: Revision Histroy
A8: The area below is an embedded MS Word Document. Add revision notes as appropriate.

Sheet Contents
B1: Table of Contents | C1: Toc
A2: Work-sheet No. | B2: Worksheet Title
A3: TitlePage | B3: Title page
A4: General Notes | B4: General Notes
A5: Chemical Notes | B5: Chemical specific notes
A6: Revisions | B6: Revision Histroy
A7: Contents
A8: A01 | B8: Program Data: Application rates, application volumns, and concentrations in field solutions
A9: A02 | B9: General reference values and exposure factors used in worksheets.
A10: A03 | B10: Consumption values used in worksheets
A11: B01 | B11: Chemical and Physical Properties for TCP-Triclop
A12: B02 | B12: Toxicity values for TCP-Triclop
A13: B03a | B13: Calculation of Zero-Order Dermal Permeability Rate (Kp) in cm/hour
A14: B03b | B14: Calculation of First-Order Dermal Absorption Rate
A15: B04Rt | B15: Estimates of Water Contamination Rates -- i.e., the concentration in ambient water per pound applied per acre
A16: B04a | B16: Estimates of Water Contamination Rates -- i.e., the concentration in ambient water per pound applied per acre
A17: B04b | B17: Pond: Concentration of pesticide (liquid formulation) in pond water after an accidental spill
A18: B04c | B18: Concentration in pond water after direct spray or after drift from Backpack Directed Foliar application at distances downwind in feet from the application site
A19: B04d | B19: Concentration in stream water after direct spray or after drift from Backpack Directed Foliar application at distances downwind in feet from the application site
A20: B05a | B20: Concentration of Pesticide in Contaminated Fruit
A21: B05aMet | B21: Fruit: Calculation of Peak and 90-Day Time-Weighted Average of Residues for Metabolite
A22: B05b | B22: Concentration of Pesticide in Contaminated Broadleaf Vegetation
A23: B05bMet | B23: Broadleaf Vegetation: Calculation of Peak and 90-Day Time-Weighted Average of Residues for Metabolite
A24: B05c | B24: Concentration of Pesticide in Contaminated Short Grass
A25: B05cMet | B25: Short Grass: Calculation of Peak and 90-Day Time-Weighted Average of Residues for Metabolite
A26: B05d | B26: Concentration of Pesticide in Contaminated Insects
A27: B05dMet | B27: Food: Calculation of Peak and 90-Day Time-Weighted Average of Residues for Metabolite
A28: D01a | B28: Accidental Dermal Exposure Assessment Using First-Order Absorption, Child, Surface Area, Whole body, for 60 minute(s)
A29: D01b | B29: Accidental Dermal Exposure Assessment Using First-Order Absorption, Adult Female, Surface Area, Feet and lower Legs, for 60 minute(s)
A30: D02 | B30: Dermal Contact with Contaminated Vegetation, Adult Female, Surface Area, Wearing shorts and T-shirt, for 1 minute(s)
A31: D03a | B31: Consumption of Fruit by a Adult Female, after Acute exposure.
A32: D03b | B32: Consumption of Vegetation by a Adult Female, after Acute exposure.
A33: D04a | B33: Consumption of Fruit by a Adult Female, after Chronic exposure.
A34: D04b | B34: Consumption of Vegetation by a Adult Female, after Chronic exposure.
A35: D05 | B35: Acute exposure of Child after an accidental spill of the pesticide into a pond
A36: D06 | B36: Consumption of contaminated water, Child, acute exposure
A37: D07 | B37: Consumption of contaminated water, Child, chronic exposure
A38: D08a | B38: Acute scenario for the consumption of contaminated fish by Adult Male after an accidental spill of the pesticide into a pond
A39: D08b | B39: Acute scenario for the consumption of contaminated fish by Subsistence Populations after an accidental spill of the pesticide into a pond
A40: D09a | B40: Consumption of contaminated fish, Adult Male, chronic exposure
A41: D09b | B41: Consumption of contaminated fish, Subsistence Populations, chronic exposure
A42: D09c | B42: Consumption of contaminated fish, Adult Male, acute exposure
A43: D09d | B43: Consumption of contaminated fish, Subsistence Populations, acute exposure
A44: D10a | B44: Concentration in pond water after direct spray or after drift at distances downwind in feet from the application site
A45: D10b | B45: Concentration in stream water after direct spray or after drift from Backpack Directed Foliar application at distances downwind in feet from the application site
A46: D11 | B46: Swimming Exposure Assessment Using Zero-Order Absorption, Adult Female, Surface Area, Whole body, for 60 minute(s)
A47: E03 | B47: Worksheet E03: Summary of Exposure Assessments for the General Public
A48: E04 | B48: Worksheet E03: Summary of Hazard Quotients (Toxicity) for the General Public
A49: F01a | B49: Direct spray of Small Mammal assuming first-order absorption kinetics with spray of 0.5 of the body surface
A50: F01b | B50: Direct spray of Small Mammal assuming 100% absorption with spray of 0.5 of the body surface
A51: F02a | B51: Acute exposure of Small Mammal after an accidental spill of the pesticide into a pond
A52: F02b | B52: Acute exposure of 400 gram mammal (e.g., squirrel) after an accidental spill of the pesticide into a pond
A53: F02c | B53: Acute exposure of Carnivorous mammal after an accidental spill of the pesticide into a pond
A54: F02d | B54: Acute exposure of Large Mammal after an accidental spill of the pesticide into a pond
A55: F02e | B55: Acute exposure of Small Bird after an accidental spill of the pesticide into a pond
A56: F02f | B56: Acute exposure of Large Bird after an accidental spill of the pesticide into a pond
A57: F03a | B57: Acute scenario for the consumption of contaminated Fish by Large Carnivorous Mammal after an accidental spill of the pesticide into a pond
A58: F03b | B58: Acute scenario for the consumption of contaminated Fish by Carnivorous mammal after an accidental spill of the pesticide into a pond
A59: F03c | B59: Acute scenario for the consumption of contaminated Fish by Bird (piscivorous) after an accidental spill of the pesticide into a pond
A60: F04a | B60: Consumption of Fruit by a Small Mammal after Acute exposure.
A61: F04b | B61: Consumption of Fruit by a 400 gram mammal (e.g., squirrel) after Acute exposure.
A62: F04c | B62: Consumption of Fruit by a Large Mammal after Acute exposure.
A63: F04d | B63: Consumption of Fruit by a Small Bird after Acute exposure.
A64: F04e | B64: Consumption of Fruit by a Large Bird after Acute exposure.
A65: F05a | B65: Consumption of Short grass by a Small Mammal after Acute exposure.
A66: F05b | B66: Consumption of Short grass by a 400 gram mammal (e.g., squirrel) after Acute exposure.
A67: F05c | B67: Consumption of Short grass by a Large Mammal after Acute exposure.
A68: F05d | B68: Consumption of Short grass by a Small Bird after Acute exposure.
A69: F05e | B69: Consumption of Short grass by a Large Bird after Acute exposure.
A70: F06a | B70: Consumption of contaminated water, Small Mammal, acute exposure
A71: F06b | B71: Consumption of contaminated water, 400 gram mammal (e.g., squirrel), acute exposure
A72: F06c | B72: Consumption of contaminated water, Carnivorous mammal, acute exposure
A73: F06d | B73: Consumption of contaminated water, Large Mammal, acute exposure
A74: F06e | B74: Consumption of contaminated water, Small Bird, acute exposure
A75: F06f | B75: Consumption of contaminated water, Large Bird, acute exposure
A76: F07a | B76: Consumption of Insects by a Small Mammal after Acute exposure.
A77: F07b | B77: Consumption of Insects by a 400 gram mammal (e.g., squirrel) after Acute exposure.
A78: F07c | B78: Consumption of Insects by a Small Bird after Acute exposure.
A79: F08a | B79: Consumption of Small Mammal by Carnivorous mammal, acute exposure scenario
A80: F08b | B80: Consumption of Small Mammal by Carnivorous bird, acute exposure scenario
A81: F09a | B81: acute scenario for the consumption of contaminated Fish by Large Carnivorous Mammal after an accidental spill of the pesticide into a pond
A82: F09b | B82: acute scenario for the consumption of contaminated Fish by Carnivorous mammal after an accidental spill of the pesticide into a pond
A83: F09c | B83: acute scenario for the consumption of contaminated Fish by Bird (piscivorous) after an accidental spill of the pesticide into a pond
A84: F10a | B84: Consumption of Fruit by a Small Mammal after Chronic exposure.
A85: F10b | B85: Consumption of Fruit by a 400 gram mammal (e.g., squirrel) after Chronic exposure.
A86: F10c | B86: Consumption of Fruit by a Large Mammal after Chronic exposure.
A87: F10d | B87: Consumption of Fruit by a Small Bird after Chronic exposure.
A88: F10e | B88: Consumption of Fruit by a Large Bird after Chronic exposure.
A89: F11a | B89: Consumption of Short grass by a Small Mammal after Chronic exposure.
A90: F11b | B90: Consumption of Short grass by a 400 gram mammal (e.g., squirrel) after Chronic exposure.
A91: F11c | B91: Consumption of Short grass by a Large Mammal after Chronic exposure.
A92: F11d | B92: Consumption of Short grass by a Small Bird after Chronic exposure.
A93: F11e | B93: Consumption of Short grass by a Large Bird after Chronic exposure.
A94: F12a | B94: Consumption of contaminated water, Small Mammal, chronic exposure
A95: F12b | B95: Consumption of contaminated water, 400 gram mammal (e.g., squirrel), chronic exposure
A96: F12c | B96: Consumption of contaminated water, Carnivorous mammal, chronic exposure
A97: F12d | B97: Consumption of contaminated water, Large Mammal, chronic exposure
A98: F12e | B98: Consumption of contaminated water, Small Bird, chronic exposure
A99: F12f | B99: Consumption of contaminated water, Large Bird, chronic exposure
A100: F13a | B100: chronic scenario for the consumption of contaminated Fish by Large Carnivorous Mammal after an accidental spill of the pesticide into a pond
A101: F13b | B101: chronic scenario for the consumption of contaminated Fish by Carnivorous mammal after an accidental spill of the pesticide into a pond
A102: F13c | B102: chronic scenario for the consumption of contaminated Fish by Bird (piscivorous) after an accidental spill of the pesticide into a pond
A103: G01 | B103: Summary of Exposure Assessments for the Terrestrial Animals
A104: G02 | B104: Summary of Hazard Quotients (Toxicity) for the Terrestrial Animals
A105: G03 | B105: Worksheet G03: Summary of Hazard Quotients for Aquatic Species
A106: References | B106: References cited in workbook

Sheet A01
A1: Program Data: Application rates, application volumns, and concentrations in field solutions
A2: Parameter/Assumption | B2: Code / Range | C2: Equation/ Value | D2: Units | E2: Reference/ Equation
A3: Application Rate | B3: ApRt | C3: 1 | D3: lb/acre | E3: Program Input
A4: Application Volume | B4: ApVol
B5: Central | C5: 25 | D5: gal/acre | E5: Program Input
B6: Upper | C6: 40 | E6: Program Input
B7: Lower | C7: 5 | E7: Program Input
A8: Concentration in field solution (lb/gal) | B8: Concppg | C8: ApRt (lb/acre) / ApVol (gal/acre) | E8: Note 1
B9: Central | C9: =IF(C5>0, C$3/C5, "N/A") -> 0.04 | D9: lb/gal | E9: Eq
B10: Lower | C10: =IF(C6>0, C$3/C6, "N/A") -> 0.025 | E10: Eq
B11: Upper | C11: =IF(C7>0, C$3/C7, "N/A") -> 0.2 | E11: Eq
A12: Conversion Factor for lbs/gal to mg/mL | B12: CnvF | C12: 119.8 | D12: mg/mL per lb/gal
A13: Concentration in field solution (mg/mL) | B13: FldConc | C13: Concppg * CnvF | E13: Note 2
B14: Central | C14: =IF(C5>0, DigitRound( C9*C$12, C$17), "NA") -> 4.8 | D14: mg/mL | E14: Eq
B15: Lower | C15: =IF(C6>0, DigitRound( C10*C$12, C$17), "NA") -> 3 | E15: Eq
B16: Upper | C16: =IF(C7>0, DigitRound( C11*C$12, C$17), "NA") -> 24 | E16: Eq
A17: Number of significant figures used for FldConc. | B17: NSig | C17: 2
A20: Number of Applications | B20: nApps | C20: 1 | D20: Unitless | E20: Program Input
A21: Application Interval | B21: ApIntv | C21: 1 | D21: Days | E21: Program Input
A22: Standard Values/Options for Scenarios
A23: Surface area of pond for spill | B23: PondSA_M | C23: 1000 | D23: Sq. Meters | E23: Risk assessment.
A24: Pond depth | B24: PondDepthM | C24: 1 | D24: Meters | E24: Risk assessment.
A25: Stream flow rate for drift scenario | B25: StreamFlowLD | C25: 710000 | D25: Liters/day | E25: Risk assessment.
A26: Stream length for drift scenario | B26: StreamLengthFt | C26: 1038 | D26: Feet | E26: Risk assessment.
A27: Stream width for drift scenario | B27: StreamWidthFt | C27: 6 | D27: Feet | E27: Risk assessment.
A28: Duration for longer-term exposures | B28: SubChDays | C28: 90 | D28: Days | E28: Risk assessment.
A29: Duration for swimming scenarios | B29: SwimMin | C29: 60 | D29: Minutes | E29: Risk assessment.
A30: Protection factor for workers based on PPE. | B30: WrkProtectFact
B31: Central | C31: 0 | E31: Risk assessment.
B32: Lower | C32: 0
B33: Upper | C33: 0
A34: Toxic Equivalency Factor for formulation | B34: TEF
B35: Central | C35: 1 | E35: Risk assessment.
B36: Lower | C36: 1
B37: Upper | C37: 1
A38: Used in food commody worksheets | B38: DriftToFood
B39: Central | C39: 1 | E39: Risk assessment.
B40: Lower | C40: 1
B41: Upper | C41: 1
A42: Amount spilled into ponds | B42: PondSpillVolGal
B43: Central | C43: 100 | D43: Gal | E43: Risk assessment.
B44: Lower | C44: 20
B45: Upper | C45: 200
A46: Dislodgeable residue, as a proportion of the application rate. | B46: DislogRes
B47: Central | C47: 0.1 | E47: Risk assessment.
B48: Lower | C48: 0.1
B49: Upper | C49: 0.1
A50: Residue rates for short grass | B50: VegRRSGT
B51: Central | C51: 85 | D51: ppm per lb/ac | E51: Risk assessment.
B52: Lower | C52: 30
B53: Upper | C53: 240
A54: Residue rates for long grass | B54: VegRRTGT
B55: Central | C55: 36 | D55: ppm per lb/ac | E55: Risk assessment.
B56: Lower | C56: 12
B57: Upper | C57: 110
A58: Residue rates for broadleaf/forage plants and small insects | B58: VegRRBLT
B59: Central | C59: 45 | D59: ppm per lb/ac | E59: Risk assessment.
B60: Lower | C60: 15
B61: Upper | C61: 135
A62: Residue rates for fruit | B62: VegRRFRT
B63: Central | C63: 7 | D63: ppm per lb/ac | E63: Risk assessment.
B64: Lower | C64: 3.2
B65: Upper | C65: 15
A66: Worker Exposure Rate | B66: WrkExpRate
B67: Central | C67: 0.003 | D67: Mg/kg bw per lb | E67: Risk assessment.
B68: Lower | C68: 0.0003
B69: Upper | C69: 0.01
A70: Number of acres that the worker will treat per hour. | B70: WrkAcPerHr
B71: Central | C71: 0.625 | D71: Acres/hr | E71: Risk assessment.
B72: Lower | C72: 0.25
B73: Upper | C73: 1
A74: Number of hours of worker exposure per day. | B74: WrkHsPerDy
B75: Central | C75: 7 | D75: Hrs/day | E75: Risk assessment.
B76: Lower | C76: 6
B77: Upper | C77: 8

Sheet A02
A1: General reference values and exposure factors used in worksheets.
A2: Receptor | B2: Factor | C2: Value | D2: Units | E2: Reference | F2: Reference Note
A3: Adult Female | B3: Body weight | C3: 64 | D3: kg | E3: U.S. EPA/ORD 1985 | F3: page 5, Table 2-2
A4: Adult Female | B4: Surface Area, Feet and lower Legs | C4: 2915 | D4: cm2 | E4: U.S. EPA/ORD 1992 | F4: p. 8-11, Table 8-3, total for feet and lower legs
A5: Adult Female | B5: Surface Area, Wearing shorts and T-shirt | C5: 5300 | D5: cm2 | E5: U.S. EPA/ORD 1992 | F5: p. 8-11, Table 8-3, total for arms, hands, lower legs, and feet.
A6: Adult Female | B6: Surface Area, Whole body | C6: 16900 | D6: cm2 | E6: U.S. EPA/ORD 1997 | F6: p. 6-13, Table 6-3, whole body, 50th percentile
A7: Adult Male | B7: Body weight | C7: 70 | D7: kg | E7: ICRP 1975 | F7: p. 13.
A8: Subsistence Populations | B8: Body weight | C8: 70 | D8: kg | E8: ICRP 1975 | F8: p. 13
A9: Amphibian | B9: Kilocalories, alpha parameter for allometric equation | C9: 0.054 | D9: BW(g),Kcal (kcal/day) | E9: U.S. EPA/ORD 1993 | F9: p. 3-7, equation 3-14
A10: Amphibian | B10: Kilocalories, beta parameter for allometric equation | C10: 0.799 | D10: BW(g),Kcal (kcal/day) | E10: U.S. EPA/ORD 1993 | F10: p. 3-7, equation 3-14
A11: AmphBullFrog | B11: Food consumption, alpha parameter for allometric equation | C11: 1.09 | D11: BW(g),FC(g) | E11: SERA 2010 | F11: Figure 15
A12: AmphBullFrog | B12: Food consumption, beta parameter for allometric equation | C12: 0.1723 | D12: BW(g),FC(g) | E12: SERA 2010 | F12: Figure 15
A13: Aerial Spray Worker | B13: Absorbed dose rate, central estimate | C13: 3e-05 | D13: (mg/kg bw)/(lbs handled per day) | E13: SERA 2007 | F13: Acres treated per hour
A14: Aerial Spray Worker | B14: Absorbed dose rate, lower range | C14: 1e-06 | D14: (mg/kg bw)/(lbs handled per day) | E14: SERA 2007 | F14: Acres treated per hour
A15: Aerial Spray Worker | B15: Absorbed dose rate, upper range | C15: 0.0001 | D15: (mg/kg bw)/(lbs handled per day) | E15: SERA 2007 | F15: Acres treated per hour
A16: Aerial Spray Worker | B16: Hours of application per day, central estimate | C16: 7 | D16: Hours per day | E16: USDA 1989a | F16: N/A
A17: Aerial Spray Worker | B17: Hours of application per day, lower range | C17: 6 | D17: Hours per day | E17: USDA 1989a | F17: N/A
A18: Aerial Spray Worker | B18: Hours of application per day, upper range | C18: 8 | D18: Hours per day | E18: USDA 1989a | F18: N/A
A19: Aerial Spray Worker | B19: Acres treated per hour, central estimate | C19: 70 | D19: acres/hour | E19: USDA 1989a | F19: Acres treated per hour
A20: Aerial Spray Worker | B20: Acres treated per hour, lower range | C20: 40 | D20: acres/hour | E20: USDA 1989a | F20: Acres treated per hour
A21: Aerial Spray Worker | B21: Acres treated per hour, upper range | C21: 100 | D21: acres/hour | E21: USDA 1989a | F21: Acres treated per hour
A22: Backpack Worker | B22: Absorbed dose rate, central estimate | C22: 0.003 | D22: (mg/kg bw)/(lbs handled per day) | E22: SERA 2007 | F22: Acres treated per hour
A23: Backpack Worker | B23: Absorbed dose rate, lower range | C23: 0.0003 | D23: (mg/kg bw)/(lbs handled per day) | E23: SERA 2007 | F23: Acres treated per hour
A24: Backpack Worker | B24: Absorbed dose rate, upper range | C24: 0.01 | D24: (mg/kg bw)/(lbs handled per day) | E24: SERA 2007 | F24: Acres treated per hour
A25: Backpack Worker | B25: Hours of application per day, central estimate | C25: 7 | D25: Hours per day | E25: USDA 1989a | F25: N/A
A26: Backpack Worker | B26: Hours of application per day, lower range | C26: 6 | D26: Hours per day | E26: USDA 1989a | F26: N/A
A27: Backpack Worker | B27: Hours of application per day, upper range | C27: 8 | D27: Hours per day | E27: USDA 1989a | F27: N/A
A28: Backpack Worker | B28: Acres treated per hour, central estimate | C28: 0.625 | D28: acres/hour | E28: USDA 1989a | F28: Acres treated per hour
A29: Backpack Worker | B29: Acres treated per hour, lower range | C29: 0.25 | D29: acres/hour | E29: USDA 1989a | F29: Acres treated per hour
A30: Backpack Worker | B30: Acres treated per hour, upper range | C30: 1 | D30: acres/hour | E30: USDA 1989a | F30: Acres treated per hour
A31: Birds | B31: Food consumption, alpha parameter for allometric equation | C31: 0.648 | D31: BW(g),FC(g) | E31: U.S. EPA/ORD 1993 | F31: Eq. 3-3, p. 3-4, all birds
A32: Birds | B32: Food consumption, beta parameter for allometric equation | C32: 0.651 | D32: BW(g),FC(g) | E32: U.S. EPA/ORD 1993 | F32: Eq. 3-3, p. 3-4, all birds
A33: Carnivorous bird | B33: Body weight | C33: 0.64 | D33: kg | E33: Dunning 1993 | F33: p. 97. Female Spotted Owl (Strix occidentalis). Range of 548 to 760 g.
A34: Carnivorous bird | B34: Kilocalories, alpha parameter for allometric equation | C34: 1.146 | D34: BW(g),KCal(kcal/day) | E34: U.S. EPA/ORD 1993 | F34: Eq. 3-37, nonpasserines
A35: Carnivorous bird | B35: Kilocalories, beta parameter for allometric equation | C35: 0.749 | D35: BW(g),KCal(kcal/day) | E35: U.S. EPA/ORD 1993 | F35: Eq. 3-37, nonpasserines
A36: Carnivorous bird | B36: Water consumption, alpha parameter for allometric equation | C36: 0.059 | D36: BW(kg), WC(L) | E36: U.S. EPA/ORD 1993 | F36: Eq. 3-15, p. 3-8
A37: Carnivorous bird | B37: Water consumption, beta parameter for allometric equation | C37: 0.67 | D37: BW(kg), WC(L) | E37: U.S. EPA/ORD 1993 | F37: Eq. 3-15, p. 3-8
A38: Large Bird | B38: Body weight | C38: 4 | D38: kg | E38: Default | F38: Canada goose
A39: Large Bird | B39: Kilocalories, alpha parameter for allometric equation | C39: 1.146 | D39: BW(g),KCal(kcal/day) | E39: U.S. EPA/ORD 1993 | F39: Eq. 3-37, non-passerines
A40: Large Bird | B40: Kilocalories, beta parameter for allometric equation | C40: 0.749 | D40: BW(g),KCal(kcal/day) | E40: U.S. EPA/ORD 1993 | F40: Eq. 3-37, non-passerines
A41: Large Bird | B41: Water consumption, alpha parameter for allometric equation | C41: 0.059 | D41: BW(kg), WC(L) | E41: U.S. EPA/ORD 1993 | F41: Eq. 3-15, p. 3-8
A42: Large Bird | B42: Water consumption, beta parameter for allometric equation | C42: 0.67 | D42: BW(kg), WC(L) | E42: U.S. EPA/ORD 1993 | F42: Eq. 3-15, p. 3-8
A43: Bird, non-Passerine | B43: Food consumption, alpha parameter for allometric equation | C43: 0.301 | D43: BW(g),FC(g) | E43: U.S. EPA/ORD 1993 | F43: Eq. 3-5, p. 3-5, non-passerines
A44: Bird, non-Passerine | B44: Food consumption, beta parameter for allometric equation | C44: 0.751 | D44: BW(g),FC(g) | E44: U.S. EPA/ORD 1993 | F44: Eq. 3-5, p. 3-5, non-passerines
A45: Bird, Passerine | B45: Food consumption, alpha parameter for allometric equation | C45: 0.398 | D45: BW(g),FC(g) | E45: U.S. EPA/ORD 1993 | F45: Eq. 3-4, p. 3-4, passerines
A46: Bird, Passerine | B46: Food consumption, beta parameter for allometric equation | C46: 0.85 | D46: BW(g),FC(g) | E46: U.S. EPA/ORD 1993 | F46: Eq. 3-4, p. 3-4, passerines
A47: Bird (piscivorous) | B47: Body weight | C47: 2.4 | D47: kg | E47: Sibley 2000 | F47: p. 60. Great Blue Heron
A48: Bird (piscivorous) | B48: Food consumption, alpha parameter for allometric equation | C48: 0.495 | D48: BW(g), FC(g) | E48: U.S. EPA/ORD 1993 | F48: Eq. 3-6, p. 3-5, seabird
A49: Bird (piscivorous) | B49: Food consumption, beta parameter for allometric equation | C49: 0.704 | D49: BW(g), FC(g) | E49: U.S. EPA/ORD 1993 | F49: Eq. 3-6, p. 3-5, seabird
A50: Bird (piscivorous) | B50: Kilocalories, alpha parameter for allometric equation | C50: 1.916 | D50: BW(g),KCal(kcal/day) | E50: U.S. EPA/ORD 1993 | F50: Eq. 3-38, p. 3-23, seabird
A51: Bird (piscivorous) | B51: Kilocalories, beta parameter for allometric equation | C51: 0.704 | D51: BW(g),KCal(kcal/day) | E51: U.S. EPA/ORD 1993 | F51: Eq. 3-38, p. 3-23, seabird
A52: Bird (piscivorous) | B52: Water consumption, alpha parameter for allometric equation | C52: 0.059 | D52: BW(kg), WC(L) | E52: U.S. EPA/ORD 1993 | F52: Eq. 3-15, p. 3-8
A53: Bird (piscivorous) | B53: Water consumption, beta parameter for allometric equation | C53: 0.67 | D53: BW(kg), WC(L) | E53: U.S. EPA/ORD 1993 | F53: Eq. 3-15, p. 3-8
A54: Small Bird | B54: Body weight | C54: 0.01 | D54: kg | E54: Default | F54: N/A
A55: Small Bird | B55: Kilocalories, alpha parameter for allometric equation | C55: 3.12 | D55: BW(g),KCal(kcal/day) | E55: U.S. EPA/ORD 1993 | F55: Equation 3-36, passerines
A56: Small Bird | B56: Kilocalories, beta parameter for allometric equation | C56: 0.605 | D56: BW(g),KCal(kcal/day) | E56: U.S. EPA/ORD 1993 | F56: Equation 3-36, passerines
A57: Small Bird | B57: Water consumption, alpha parameter for allometric equation | C57: 0.059 | D57: BW(kg), WC(L) | E57: U.S. EPA/ORD 1993 | F57: Eq. 3-15, p. 3-8
A58: Small Bird | B58: Water consumption, beta parameter for allometric equation | C58: 0.67 | D58: BW(kg), WC(L) | E58: U.S. EPA/ORD 1993 | F58: Eq. 3-15, p. 3-8
A59: Child | B59: Body weight | C59: 13.3 | D59: kg | E59: U.S. EPA/ORD 1996 | F59: p. 7-1, Table 7-2
A60: Child | B60: Surface Area, Whole body | C60: 6030 | D60: cm2 | E60: U.S. EPA/ORD 1996 | F60: p. 6-15, Table 6-6, 50th percentile.
A61: Conversion Factors | B61: acrefoot2gal | C61: 325900 | D61: gal/acre-foot | E61: Budavari 1989 | F61: N/A
A62: Conversion Factors | B62: liters per gal | C62: 3.785 | D62: L/gal | E62: Budavari 1989 | F62: N/A
A63: Conversion Factors | B63: pound per milligram | C63: 453600 | D63: mg/lb | E63: Budavari 1989 | F63: N/A
A64: Conversion Factors | B64: lbac2mgcm2 | C64: 0.01121 | D64: mg/cm2 per lb/acre | E64: Budavari 1989 | F64: N/A
A65: Conversion Factors | B65: lbac2ugcm2 | C65: 11.21 | D65: ug/cm2 per lb/acre | E65: Budavari 1989 | F65: N/A
A66: Conversion Factors | B66: conversion for milligrams to pounds | C66: 2.204e-06 | D66: lb/mg | E66: Budavari 1989 | F66: N/A
A67: Conversion Factors | B67: conversion for milliliters to gallons | C67: 3785 | D67: ml/gal | E67: Budavari 1989 | F67: N/A
A68: Small Insects | B68: Caloric content (wet weight) | C68: 1.5 | D68: kcal/g (wet weight) | E68: U.S. EPA/ORD 1993 | F68: Table 4-1, p. 4-13. Value for beetles. Wet weight
A69: Fish | B69: Caloric content (wet weight) | C69: 1.2 | D69: kcal/g (wet weight) | E69: U.S. EPA/ORD 1993 | F69: Table 4-1, p. 4-13. Value for bony fish. Wet weight
A70: Vegetation | B70: Caloric content (dry weight) | C70: 2.26 | D70: kcal/g | E70: U.S. EPA/ORD 1993 | F70: p. 3-5, Table 3-1
A71: Vegetation | B71: Water content (proportion) | C71: 0.85 | D71: unitless | E71: U.S. EPA/ORD 1993 | F71: p. 4-14
A72: Ground Spray Worker | B72: Absorbed dose rate, central estimate | C72: 0.0002 | D72: (mg/kg bw)/(lbs handled per day) | E72: SERA 2007 | F72: Acres treated per hour
A73: Ground Spray Worker | B73: Absorbed dose rate, lower range | C73: 1e-05 | D73: (mg/kg bw)/(lbs handled per day) | E73: SERA 2007 | F73: Acres treated per hour
A74: Ground Spray Worker | B74: Absorbed dose rate, upper range | C74: 0.0009 | D74: (mg/kg bw)/(lbs handled per day) | E74: SERA 2007 | F74: Acres treated per hour
A75: Ground Spray Worker | B75: Hours of application per day, central estimate | C75: 7 | D75: Hours per day | E75: USDA 1989a | F75: N/A
A76: Ground Spray Worker | B76: Hours of application per day, lower range | C76: 6 | D76: Hours per day | E76: USDA 1989a | F76: N/A
A77: Ground Spray Worker | B77: Hours of application per day, upper range | C77: 8 | D77: Hours per day | E77: USDA 1989a | F77: N/A
A78: Ground Spray Worker | B78: Acres treated per hour, central estimate | C78: 16 | D78: acres/hour | E78: USDA 1989a | F78: Acres treated per hour
A79: Ground Spray Worker | B79: Acres treated per hour, lower range | C79: 11 | D79: acres/hour | E79: USDA 1989a | F79: Acres treated per hour
A80: Ground Spray Worker | B80: Acres treated per hour, upper range | C80: 21 | D80: acres/hour | E80: USDA 1989a | F80: Acres treated per hour
A81: Honeybee | B81: Body weight | C81: 0.000116 | D81: kg | E81: Winston 1987 | F81: p. 54. Arithmetic average of range: 81 to 151 mg/bee.
A82: Honeybee | B82: Surface Area, Whole body | C82: 1.42 | D82: cm2 | E82: Humphery and Dykes 2008 | F82: Based on a bee with a body length of 1.44 cm.
A83: Mammals | B83: Food consumption, alpha parameter for allometric equation | C83: 0.235 | D83: BW(g),FC(g) | E83: U.S. EPA/ORD 1993 | F83: Eq. 3-7 ,p. 3-6, all mammals
A84: Mammals | B84: Food consumption, beta parameter for allometric equation | C84: 0.822 | D84: BW(g),FC(g) | E84: U.S. EPA/ORD 1993 | F84: Eq. 3-7 ,p. 3-6, all mammals
A85: 400 gram mammal (e.g., squirrel) | B85: Body weight | C85: 0.4 | D85: kg | E85: Default | F85: N/A
A86: 400 gram mammal (e.g., squirrel) | B86: Food consumption, alpha parameter for allometric equation | C86: 0.621 | D86: BW(g),FC(g) | E86: U.S. EPA/ORD 1993 | F86: Eq. 3-8, p. 3-6, equation for rodents
A87: 400 gram mammal (e.g., squirrel) | B87: Food consumption, beta parameter for allometric equation | C87: 0.564 | D87: BW(g),FC(g) | E87: U.S. EPA/ORD 1993 | F87: Eq. 3-8, p. 3-6, equation for rodents
A88: 400 gram mammal (e.g., squirrel) | B88: Kilocalories, alpha parameter for allometric equation | C88: 2.514 | D88: BW(g),KCal(kcal/day) | E88: U.S. EPA/ORD 1993 | F88: Equation 3-48, rodent
A89: 400 gram mammal (e.g., squirrel) | B89: Kilocalories, beta parameter for allometric equation | C89: 0.507 | D89: BW(g),KCal(kcal/day) | E89: U.S. EPA/ORD 1993 | F89: Equation 3-48, rodent
A90: 400 gram mammal (e.g., squirrel) | B90: Water consumption, alpha parameter for allometric equation | C90: 0.099 | D90: BW(kg),WC(L) | E90: U.S. EPA/ORD 1993 | F90: Eq. 3-17, p. 3-10, all mammals
A91: 400 gram mammal (e.g., squirrel) | B91: Water consumption, beta parameter for allometric equation | C91: 0.9 | D91: BW(kg),WC(L) | E91: U.S. EPA/ORD 1993 | F91: Eq. 3-17, p. 3-10, all mammals
A92: Carnivorous mammal | B92: Body weight | C92: 5 | D92: kg | E92: U.S. EPA/ORD 1993 | F92: p. 2-221. Central value for red fox with a range of 3 to 7 kg.
A93: Carnivorous mammal | B93: Kilocalories, alpha parameter for allometric equation | C93: 0.6167 | D93: BW(g),KCal(kcal/day) | E93: U.S. EPA/ORD 1993 | F93: Equation 3-47, non-herbivore
A94: Carnivorous mammal | B94: Kilocalories, beta parameter for allometric equation | C94: 0.862 | D94: BW(g),KCal(kcal/day) | E94: U.S. EPA/ORD 1993 | F94: Equation 3-47, non-herbivore
A95: Carnivorous mammal | B95: Water consumption, alpha parameter for allometric equation | C95: 0.099 | D95: BW(kg),WC(L) | E95: U.S. EPA/ORD 1993 | F95: Eq. 3-17, p. 3-10, all mammals
A96: Carnivorous mammal | B96: Water consumption, beta parameter for allometric equation | C96: 0.9 | D96: BW(kg), WC(L) | E96: U.S. EPA/ORD 1993 | F96: Eq. 3-17, p. 3-10, all mammals
A97: Large Carnivorous Mammal | B97: Body weight | C97: 70 | D97: kg | E97: Reid 2006 | F97: pp. 451-453. Black bear or small grizzly.
A98: Large Carnivorous Mammal | B98: Kilocalories, alpha parameter for allometric equation | C98: 0.6167 | D98: BW(g),KCal(kcal/day) | E98: U.S. EPA/ORD 1993 | F98: Equation 3-47, non-herbivore
A99: Large Carnivorous Mammal | B99: Kilocalories, beta parameter for allometric equation | C99: 0.862 | D99: BW(g),KCal(kcal/day) | E99: U.S. EPA/ORD 1993 | F99: Equation 3-47, non-herbivore
A100: Large Carnivorous Mammal | B100: Water consumption, alpha parameter for allometric equation | C100: 0.099 | D100: BW(kg),WC(L) | E100: U.S. EPA/ORD 1993 | F100: Eq. 3-17, p. 3-10, all mammals
A101: Large Carnivorous Mammal | B101: Water consumption, beta parameter for allometric equation | C101: 0.9 | D101: BW(kg), WC(L) | E101: U.S. EPA/ORD 1993 | F101: Eq. 3-17, p. 3-10, all mammals
A102: Herbivorous/Omnivorous mammal | B102: Food consumption, alpha parameter for allometric equation | C102: 0.577 | D102: BW(g),FC(g) | E102: U.S. EPA/ORD 1993 | F102: Eq. 3-9, p. 3-6, equation for herbivores
A103: Herbivorous/Omnivorous mammal | B103: Food consumption, beta parameter for allometric equation | C103: 0.727 | D103: BW(g),FC(g) | E103: U.S. EPA/ORD 1993 | F103: Eq. 3-9, p. 3-6, equation for herbivores
A104: Herbivorous/Omnivorous mammal | B104: Kilocalories, alpha parameter for allometric equation | C104: 1.518 | D104: BW(g),KCal(kcal/day) | E104: U.S. EPA/ORD 1993 | F104: Equation 3-46, herbivores
A105: Herbivorous/Omnivorous mammal | B105: Kilocalories, beta parameter for allometric equation | C105: 0.73 | D105: BW(g),KCal(kcal/day) | E105: U.S. EPA/ORD 1993 | F105: Equation 3-46, herbivores
A106: Large Mammal | B106: Body weight | C106: 70 | D106: kg | E106: Default | F106: N/A
A107: Large Mammal | B107: Kilocalories, alpha parameter for allometric equation | C107: 1.518 | D107: BW(g),KCal(kcal/day) | E107: U.S. EPA/ORD 1993 | F107: p. 3-6, Eq. 3-10, herbivores
A108: Large Mammal | B108: Kilocalories, beta parameter for allometric equation | C108: 0.73 | D108: BW(g),KCal(kcal/day) | E108: U.S. EPA/ORD 1993 | F108: p. 3-6, Eq. 3-10, herbivores
A109: Large Mammal | B109: Water consumption, alpha parameter for allometric equation | C109: 0.099 | D109: BW(kg),WC(L) | E109: U.S. EPA/ORD 1993 | F109: Eq. 3-17, p. 3-10, all mammals
A110: Large Mammal | B110: Water consumption, beta parameter for allometric equation | C110: 0.9 | D110: BW(kg), WC(L) | E110: U.S. EPA/ORD 1993 | F110: Eq. 3-17, p. 3-10, all mammals
A111: Rabbit | B111: Body weight | C111: 1.3 | D111: kg | E111: Default | F111: N/A
A112: Rabbit | B112: Surface Area, alpha parameter for allometric equation | C112: 0.11 | D112: BW(kg),SA(m2) | E112: U.S. EPA/ORD 1993 | F112: p. 3-14, Eq. 3-22, for all mammals
A113: Rabbit | B113: Surface Area, beta parameter for allometric equation | C113: 0.65 | D113: BW(kg),SA(m2) | E113: U.S. EPA/ORD 1993 | F113: p. 3-14, Eq. 3-22, for all mammals
A114: Rodent | B114: Food consumption, alpha parameter for allometric equation | C114: 0.621 | D114: BW(g),FC(g) | E114: U.S. EPA/ORD 1993 | F114: Eq. 3-8, p. 3-6, equation for rodents
A115: Rodent | B115: Food consumption, beta parameter for allometric equation | C115: 0.584 | D115: BW(g),FC(g) | E115: U.S. EPA/ORD 1993 | F115: Eq. 3-8,p. 3-6, equation for rodents
A116: Small Mammal | B116: Body weight | C116: 0.02 | D116: kg | E116: Default | F116: N/A
A117: Small Mammal | B117: Caloric content (wet weight) | C117: 1.7 | D117: kcal/g (wet weight) | E117: U.S. EPA/ORD 1993 | F117: Table 4-1, p. 4-13. Value for small mammals. Wet weight.
A118: Small Mammal | B118: Food consumption, alpha parameter for allometric equation | C118: 0.621 | D118: BW(g),FC(g) | E118: U.S. EPA/ORD 1993 | F118: Eq. 3-8, p. 3-6, equation for rodents
A119: Small Mammal | B119: Food consumption, beta parameter for allometric equation | C119: 0.564 | D119: BW(g),FC(g) | E119: U.S. EPA/ORD 1993 | F119: Eq. 3-8, p. 3-6, equation for rodents
A120: Small Mammal | B120: Kilocalories, alpha parameter for allometric equation | C120: 2.514 | D120: BW(g),KCal(kcal/day) | E120: U.S. EPA/ORD 1993 | F120: Equation 3-48, rodent
A121: Small Mammal | B121: Kilocalories, beta parameter for allometric equation | C121: 0.507 | D121: BW(g),KCal(kcal/day) | E121: U.S. EPA/ORD 1993 | F121: Equation 3-48, rodent
A122: Small Mammal | B122: Surface Area, alpha parameter for allometric equation | C122: 0.11 | D122: BW(kg),SA(m2) | E122: U.S. EPA/ORD 1993 | F122: p. 3-14, Eq. 3-22, for all mammals
A123: Small Mammal | B123: Surface Area, beta parameter for allometric equation | C123: 0.65 | D123: BW(kg),SA(m2) | E123: U.S. EPA/ORD 1993 | F123: p. 3-14, Eq. 3-22, for all mammals
A124: Small Mammal | B124: Water consumption, alpha parameter for allometric equation | C124: 0.099 | D124: BW(kg),WC(L) | E124: U.S. EPA/ORD 1993 | F124: Eq. 3-17, p. 3-10, all mammals
A125: Small Mammal | B125: Water consumption, beta parameter for allometric equation | C125: 0.9 | D125: BW(kg),WC(L) | E125: U.S. EPA/ORD 1993 | F125: Eq. 3-17, p. 3-10, all mammals
A126: Misc | B126: Liquid adhering to skin | C126: 0.008 | D126: mL/cm2 | E126: Mason and Johnson 1987 | F126: Weight of liquid adhering to surface of skin after a spill
A127: Misc | B127: Dislodgeable residue as proportion | C127: 0.1 | D127: none | E127: Harris and Solomon 1992 | F127: Estimate of dislodgeable residue as a proportion of application rate shortly after application based on 2,4-D.
A128: Standard Pond | B128: Depth | C128: 1 | D128: m | E128: Default | F128: Depth of pond
A129: Standard Pond | B129: Surface Area | C129: 1000 | D129: m^2 | E129: Default | F129: Surface Area
A130: Standard Pond | B130: Volume of Spill | C130: 200 | D130: gallons | E130: Default | F130: Volume of spill
A131: VegRR | B131: Broadleaf/forage plants and small insects, central estimate | C131: 45 | D131: mg chem/kg veg | E131: Fletcher et al. 1994 | F131: Broadleaf/forage plants and small insects
A132: VegRR | B132: Broadleaf/forage plants and small insects, lower range | C132: 15 | D132: mg chem/kg veg | E132: SERA 2007 | F132: Broadleaf/forage plants and small insects
A133: VegRR | B133: Broadleaf/forage plants and small insects, upper range | C133: 135 | D133: mg chem/kg veg | E133: Fletcher et al. 1994 | F133: Broadleaf/forage plants and small insects
A134: VegRR | B134: Fruits, pods, seeds, and large insects, central estimate | C134: 7 | D134: mg chem/kg veg | E134: Fletcher et al. 1994 | F134: Fruits, pods, seeds, and large insects
A135: VegRR | B135: Fruits, pods, seeds, and large insects, lower range | C135: 3.2 | D135: mg chem/kg veg | E135: SERA 2007 | F135: Fruits, pods, seeds, and large insects
A136: VegRR | B136: Fruits, pods, seeds, and large insects, upper range | C136: 15 | D136: mg chem/kg veg | E136: Fletcher et al. 1994 | F136: Fruits, pods, seeds, and large insects
A137: VegRR | B137: GranBLT, central estimate | C137: 1.8 | D137: mg chem/kg veg | E137: SERA 2005 | F137: Broadleaf forage plants and contaminated insects after granular application
A138: VegRR | B138: GranBLT, lower range | C138: 0.6 | D138: mg chem/kg veg | E138: SERA 2007 | F138: Broadleaf/forage plants after granular application
A139: VegRR | B139: GranBLT, upper range | C139: 5.4 | D139: mg chem/kg veg | E139: SERA 2005 | F139: Broadleaf forage plants and contaminated insects after granular application
A140: VegRR | B140: GranFRT, central estimate | C140: 0.28 | D140: mg chem/kg veg | E140: SERA 2005 | F140: Fruit after granular application
A141: VegRR | B141: GranFRT, lower range | C141: 0.13 | D141: mg chem/kg veg | E141: SERA 2007 | F141: Fruit after granular application
A142: VegRR | B142: GranFRT, upper range | C142: 0.6 | D142: mg chem/kg veg | E142: SERA 2005 | F142: Fruit after granular application
A143: VegRR | B143: GranSGT, central estimate | C143: 3.4 | D143: mg chem/kg veg | E143: SERA 2005 | F143: Short grass after granular application
A144: VegRR | B144: GranSGT, lower range | C144: 1.2 | D144: mg chem/kg veg | E144: SERA 2005 | F144: Short grass after granular application
A145: VegRR | B145: GranSGT, upper range | C145: 9.6 | D145: mg chem/kg veg | E145: SERA 2005 | F145: Short grass after granular application
A146: VegRR | B146: GranTGT, central estimate | C146: 1.44 | D146: mg chem/kg veg | E146: SERA 2005 | F146: Tall grass after granular application
A147: VegRR | B147: GranTGT, lower range | C147: 0.48 | D147: mg chem/kg veg | E147: SERA 2007 | F147: Tall grass after granular application
A148: VegRR | B148: GranTGT, upper range | C148: 4.4 | D148: mg chem/kg veg | E148: SERA 2005 | F148: Tall grass after granular application
A149: VegRR | B149: Short grass, central estimate | C149: 85 | D149: mg chem/kg veg | E149: Fletcher et al. 1994 | F149: Short grass
A150: VegRR | B150: Short grass, lower range | C150: 30 | D150: mg chem/kg veg | E150: Fletcher et al. 1994 | F150: Short grass
A151: VegRR | B151: Short grass, upper range | C151: 240 | D151: mg chem/kg veg | E151: Fletcher et al. 1994 | F151: Short grass
A152: VegRR | B152: Tall grass, central estimate | C152: 36 | D152: mg chem/kg veg | E152: Fletcher et al. 1994 | F152: Tall grass
A153: VegRR | B153: Tall grass, lower range | C153: 12 | D153: mg chem/kg veg | E153: SERA 2007 | F153: Tall grass
A154: VegRR | B154: Tall grass, upper range | C154: 110 | D154: mg chem/kg veg | E154: Fletcher et al. 1994 | F154: Tall grass
A155: VerRR | B155: GranSGT, lower range | C155: 1.2 | D155: mg chem/kg veg | E155: SERA 2007 | F155: Short grass after granular application
A156: VerRR | B156: Short grass, lower range | C156: 30 | D156: mg chem/kg veg | E156: SERA 2007 | F156: Short grass
A157: Worker | B157: Body weight | C157: 70 | D157: kg | E157: ICRP 1975 | F157: p. 13
A158: Worker | B158: Surface Area, Hands | C158: 840 | D158: cm2 | E158: U.S. EPA/ORD 1992 | F158: p. 8-11
A159: Worker | B159: Surface Area, Lower legs | C159: 2070 | D159: cm2 | E159: U.S. EPA/ORD 1992 | F159: p. 8-11

Sheet A03
A1: Consumption values used in worksheets
A2: Receptor | B2: Item | C2: Qualifier | D2: Modifier | E2: Value | F2: Units | G2: Reference | H2: Reference Note
A3: Adult Female | B3: Fish | C3: Amount | D3: central estimate | E3: 0.01 | F3: kg/day | G3: U.S. EPA/ORD 1996 | H3: p. 10-51, average of means from four studies rounded to one significant place.
A4: Adult Female | B4: Fish | C4: Amount | D4: upper range | E4: 0.158 | F4: kg/day | G4: Ruffle et al. 1994 | H4: N/A
A5: Adult Female | B5: Fruit | C5: Proportion of body weight | D5: central estimate | E5: 0.00168 | F5: kg fruit/kg bw/day | G5: U.S. EPA/ORD 1996 | H5: Table 9-3, p. 9-11, mean value.
A6: Adult Female | B6: Fruit | C6: Proportion of body weight | D6: lower range | E6: 0.00168 | F6: kg fruit/kg bw/day | G6: U.S. EPA/ORD 1996 | H6: Table 9-3, p. 9-11. The 5th percentile is given as zero. For these worksheets, the central estimate is used for the lower bound.
A7: Adult Female | B7: Fruit | C7: Proportion of body weight | D7: upper range | E7: 0.01244 | F7: kg fruit/kg bw/day | G7: U.S. EPA/ORD 1996 | H7: Table 9-3, p. 9-11, 95th percentile value.
A8: Adult Female | B8: Vegetation, home grown | C8: Proportion of body weight | D8: central estimate | E8: 0.00076 | F8: kg veg/kg bw/day | G8: U.S. EPA/ORD 1996 | H8: Table 12-15, p. 9-14, mean for individuals between 20 and 39 years old.
A9: Adult Female | B9: Vegetation, home grown | C9: Proportion of body weight | D9: lower range | E9: 8e-05 | F9: kg veg/kg bw/day | G9: U.S. EPA/ORD 1996 | H9: Table 12-15, p. 9-14, 5th percentile for individuals between 20 and 39 years old.
A10: Adult Female | B10: Vegetation, home grown | C10: Proportion of body weight | D10: upper range | E10: 0.00492 | F10: kg veg/kg bw/day | G10: U.S. EPA/ORD 1996 | H10: Table 12-15, p. 9-14, 95th percentile for individuals between 20 and 39 years old.
A11: Adult Female | B11: Vegetation | C11: Amount | D11: Extreme | E11: 0.454 | F11: kg food | G11: U.S. EPA/ORD 1996 | H11: 1 lb. The approximate mid range of the above typical and upper limits based on the 64 kg body weight.
A12: Adult Female | B12: Vegetation | C12: Proportion of body weight | D12: central estimate | E12: 0.0036 | F12: kg veg/kg bw/day | G12: U.S. EPA/ORD 1996 | H12: Table 9-12, p. 9-12, mean.
A13: Adult Female | B13: Vegetation | C13: Proportion of body weight | D13: lower range | E13: 0.00075 | F13: kg veg/kg bw/day | G13: U.S. EPA/ORD 1996 | H13: Table 9-12, p. 9-12, 5th percentile.
A14: Adult Female | B14: Vegetation | C14: Proportion of body weight | D14: upper range | E14: 0.01 | F14: kg veg/kg bw/day | G14: U.S. EPA/ORD 1996 | H14: Table 9-12, p. 9-12, 95th percentile.
A15: Adult Female | B15: Water | C15: Amount | D15: central estimate | E15: 2 | F15: L/day | G15: U.S. EPA/ORD 1996 | H15: p. 3-28, Table 3-30, midpoint of mean (1.4 L/day) and 90th percentile (2.4 L/day) rounded to one significant place.
A16: Adult Female | B16: Water | C16: Amount | D16: lower range | E16: 1.4 | F16: L/day | G16: U.S. EPA/ORD 1996 | H16: p. 3-28, Table 3-30, mean
A17: Adult Female | B17: Water | C17: Amount | D17: upper range | E17: 2.4 | F17: L/day | G17: U.S. EPA/ORD 1996 | H17: p. 3-28, Table 3-30, 90th percentile
A18: Adult Male | B18: Fish | C18: Amount | D18: central estimate | E18: 0.01 | F18: kg/day | G18: U.S. EPA/ORD 1996 | H18: p. 10-51, average of means from four studies rounded to one significant place.
A19: Adult Male | B19: Fish | C19: Amount | D19: upper range | E19: 0.158 | F19: kg/day | G19: Ruffle et al. 1994 | H19: N/A
A20: Adult Male | B20: Fruit | C20: Proportion of body weight | D20: central estimate | E20: 0.00168 | F20: unitless | G20: U.S. EPA/ORD 1996 | H20: Table 9-3, p. 9-11, mean value.
A21: Adult Male | B21: Fruit | C21: Proportion of body weight | D21: lower range | E21: 0.00168 | F21: unitless | G21: U.S. EPA/ORD 1996 | H21: Table 9-3, p. 9-11. The 5th percentile is given as zero. For these worksheets, the central estimate is used for the lower bound.
A22: Adult Male | B22: Fruit | C22: Proportion of body weight | D22: upper range | E22: 0.01244 | F22: unitless | G22: U.S. EPA/ORD 1996 | H22: Table 9-3, p. 9-11, 95th percentile value.
A23: Adult Male | B23: Vegetation, home grown | C23: Proportion of body weight | D23: central estimate | E23: 0.00076 | F23: unitless | G23: U.S. EPA/ORD 1996 | H23: Table 12-15, p. 9-14, mean for individuals between 20 and 39 years old.
A24: Adult Male | B24: Vegetation, home grown | C24: Proportion of body weight | D24: lower range | E24: 8e-05 | F24: unitless | G24: U.S. EPA/ORD 1996 | H24: Table 12-15, p. 9-14, 5th percentile for individuals between 20 and 39 years old.
A25: Adult Male | B25: Vegetation, home grown | C25: Proportion of body weight | D25: upper range | E25: 0.00492 | F25: unitless | G25: U.S. EPA/ORD 1996 | H25: Table 12-15, p. 9-14, 95th percentile for individuals between 20 and 39 years old.
A26: Adult Male | B26: Vegetation | C26: Amount | D26: Extreme | E26: 0.454 | F26: kg/day | G26: U.S. EPA/ORD 1996 | H26: 1 lb. The approximate mid range of the above typical and upper limits based on the 64 kg body weight.
A27: Adult Male | B27: Vegetation | C27: Proportion of body weight | D27: central estimate | E27: 0.0036 | F27: unitless | G27: U.S. EPA/ORD 1996 | H27: Table 9-12, p. 9-12, mean.
A28: Adult Male | B28: Vegetation | C28: Proportion of body weight | D28: lower range | E28: 0.00075 | F28: unitless | G28: U.S. EPA/ORD 1996 | H28: Table 9-12, p. 9-12, 5th percentile.
A29: Adult Male | B29: Vegetation | C29: Proportion of body weight | D29: upper range | E29: 0.01 | F29: unitless | G29: U.S. EPA/ORD 1996 | H29: Table 9-12, p. 9-12, 95th percentile.
A30: Adult Male | B30: Water | C30: Amount | D30: central estimate | E30: 2 | F30: L/day | G30: U.S. EPA/ORD 1996 | H30: p. 3-28, Table 3-30, midpoint of mean (1.4 L/day) and 90th percentile (2.4 L/day) rounded to one significant place.
A31: Adult Male | B31: Water | C31: Amount | D31: lower range | E31: 1.4 | F31: L/day | G31: U.S. EPA/ORD 1996 | H31: p. 3-28, Table 3-30, mean
A32: Adult Male | B32: Water | C32: Amount | D32: upper range | E32: 2.4 | F32: L/day | G32: U.S. EPA/ORD 1996 | H32: p. 3-28, Table 3-30, 90th percentile
A33: Subsistence Populations | B33: Fish | C33: Amount | D33: central estimate | E33: 0.081 | F33: kg/day | G33: U.S. EPA/ORD 1996 | H33: p. 10-51, median value of 94 individuals
A34: Subsistence Populations | B34: Fish | C34: Amount | D34: upper range | E34: 0.77 | F34: kg/day | G34: U.S. EPA/ORD 1996 | H34: p. 10-51, highest value of 94 individuals
A35: Fish-eating bird | B35: Fish | C35: Proportion of body weight | D35: central estimate | E35: 0.1 | F35: unitless | G35: U.S. EPA/ORD 1993 | H35: various species.
A36: Fish-eating bird | B36: Fish | C36: Proportion of body weight | D36: lower range | E36: 0.05 | F36: unitless | G36: U.S. EPA/ORD 1993 | H36: various species.
A37: Fish-eating bird | B37: Fish | C37: Proportion of body weight | D37: upper range | E37: 0.15 | F37: unitless | G37: U.S. EPA/ORD 1993 | H37: various species.
A38: Child | B38: Water | C38: Amount | D38: central estimate | E38: 1 | F38: L/day | G38: U.S. EPA/ORD 1996 | H38: p. 3-28, Table 3-30, midpoint of mean (0.61L/day) and 90th percentile (1.5 L/day) rounded to one significant place.
A39: Child | B39: Water | C39: Amount | D39: lower range | E39: 0.61 | F39: L/day | G39: U.S. EPA/ORD 1996 | H39: p. 3-28, Table 3-30, mean
A40: Child | B40: Water | C40: Amount | D40: upper range | E40: 1.5 | F40: L/day | G40: U.S. EPA/ORD 1996 | H40: p. 3-28, Table 3-30, 90th percentile
A41: Herbivorous Insect | B41: Broadleaf/Small Insects | C41: Proportion of body weight | D41: central estimate | E41: 1.3 | F41: kg food/kg bw/day | G41: Waldbauer 1968 | H41: N/A
A42: Herbivorous Insect | B42: Broadleaf/Small Insects | C42: Proportion of body weight | D42: lower range | E42: 0.6 | F42: kg food/kg bw/day | G42: Reichle et al. 1973 | H42: N/A
A43: Herbivorous Insect | B43: Broadleaf/Small Insects | C43: Proportion of body weight | D43: upper range | E43: 2.2 | F43: kg food/kg bw/day | G43: Waldbauer 1968 | H43: N/A
A44: Herbivorous Insect | B44: Fruit/Large Insects | C44: Proportion of body weight | D44: central estimate | E44: 1.3 | F44: kg food/kg bw/day | G44: Waldbauer 1968 | H44: N/A
A45: Herbivorous Insect | B45: Fruit/Large Insects | C45: Proportion of body weight | D45: lower range | E45: 0.6 | F45: kg food/kg bw/day | G45: Reichle et al. 1973 | H45: N/A
A46: Herbivorous Insect | B46: Fruit/Large Insects | C46: Proportion of body weight | D46: upper range | E46: 2.2 | F46: kg food/kg bw/day | G46: Waldbauer 1968 | H46: N/A
A47: Herbivorous Insect | B47: Short grass | C47: Proportion of body weight | D47: central estimate | E47: 1.3 | F47: kg food/kg bw/day | G47: Waldbauer 1968 | H47: N/A
A48: Herbivorous Insect | B48: Short grass | C48: Proportion of body weight | D48: lower range | E48: 0.6 | F48: kg food/kg bw/day | G48: Reichle et al. 1973 | H48: N/A
A49: Herbivorous Insect | B49: Short grass | C49: Proportion of body weight | D49: upper range | E49: 2.2 | F49: kg food/kg bw/day | G49: Waldbauer 1968 | H49: N/A
A50: Herbivorous Insect | B50: Tall Grass | C50: Proportion of body weight | D50: central estimate | E50: 1.3 | F50: kg food/kg bw/day | G50: Waldbauer 1968 | H50: N/A
A51: Herbivorous Insect | B51: Tall Grass | C51: Proportion of body weight | D51: lower range | E51: 0.6 | F51: kg food/kg bw/day | G51: Reichle et al. 1973 | H51: N/A
A52: Herbivorous Insect | B52: Tall Grass | C52: Proportion of body weight | D52: upper range | E52: 2.2 | F52: kg food/kg bw/day | G52: Waldbauer 1968 | H52: N/A

Sheet B01
A1: Chemical and Physical Properties for TCP-Triclop
A2: Property | B2: Receptor | C2: Value | D2: Units | E2: Document Reference
A3: Bioconcentration Factor (BCF), edible, acute | B3: N/A | C3: 0.06 | D3: L/kg fish | E3: Section 3.2.3.5.
A4: Bioconcentration Factor (BCF), edible, chronic | B4: N/A | C4: 0.06 | D4: L/kg fish | E4: Section 3.2.3.5.
A5: Bioconcentration Factor (BCF), whole fish, acute | B5: N/A | C5: 0.83 | D5: L/kg fish | E5: Section 3.2.3.5.
A6: Bioconcentration Factor (BCF), whole fish, chronic | B6: N/A | C6: 0.83 | D6: L/kg fish | E6: Section 3.2.3.5.
A7: Kow (Octanol-water partition coefficient) | B7: N/A | C7: 1000 | D7: unitless | E7: Table 2-1
A8: Molecular weight | B8: N/A | C8: 198.43 | D8: grams/mole | E8: Table 2-1
A9: Water Solubility | B9: N/A | C9: 100 | D9: mg/L | E9: Table 2-1
A10: First order dermal absorption rate (ka), central estimate | B10: N/A | C10: 0.012 | D10: per hour | E10: Section 3.2.2.2
A11: First order dermal absorption rate (ka), lower range | B11: N/A | C11: 0.0041 | D11: per hour | E11: Section 3.2.2.2
A12: First order dermal absorption rate (ka), upper range | B12: N/A | C12: 0.036 | D12: per hour | E12: Section 3.2.2.2
A13: Dermal permeability (Kp), central estimate | B13: N/A | C13: 0.015 | D13: cm/hour | E13: Section 3.2.2.2
A14: Dermal permeability (Kp), lower range | B14: N/A | C14: 0.0094 | D14: cm/hour | E14: Section 3.2.2.2
A15: Dermal permeability (Kp), upper range | B15: N/A | C15: 0.024 | D15: cm/hour | E15: Section 3.2.2.2
A16: Halftime, central estimate | B16: Fruit | C16: 26.9 | D16: days | E16: Section 3.2.3.6
A17: Halftime, lower range | B17: Fruit | C17: 16.5 | D17: days | E17: Section 3.2.3.6
A18: Halftime, upper range | B18: Fruit | C18: 73.1 | D18: days | E18: Section 3.2.3.6
A19: Halftime, central estimate | B19: Vegetation | C19: 6.2 | D19: days | E19: Section 3.2.3.6
A20: Halftime, lower range | B20: Vegetation | C20: 2.6 | D20: days | E20: Section 3.2.3.6
A21: Halftime, upper range | B21: Vegetation | C21: 15 | D21: days | E21: Section 3.2.3.6

Sheet B02
A1: Toxicity values for TCP-Triclop
A2: Receptor | B2: Receptor | C2: Qualifier | D2: Endpoint | E2: Value | F2: Units | G2: Document Reference
A3: Human | B3: chronic | C3: N/A | D3: Reference Dose (RfD) | E3: 0.012 | F3: mg/kg bw/day | G3: Table 29
A4: Human | B4: acute | C4: N/A | D4: Reference Dose (RfD) | E4: 0.025 | F4: mg/kg bw/day | G4: Table 29
A5: Mammals | B5: acute | C5: N/A | D5: NOAEL | E5: 25 | F5: mg/kg bw/day | G5: Table 40
A6: Mammals | B6: chronic | C6: N/A | D6: NOAEL | E6: 12 | F6: mg/kg bw/day | G6: Table 40
A7: Fish | B7: acute | C7: sensitive species | D7: NOAEC* | E7: 0.18 | F7: mg/L | G7: Table 43
A8: Fish | B8: acute | C8: tolerant species | D8: NOAEC* | E8: 0.63 | F8: mg/L | G8: Table 43
A9: Aquatic invertebrate | B9: acute | C9: sensitive species | D9: NOAEC* | E9: 0.55 | F9: mg/L | G9: Table 43
A10: Aquatic invertebrate | B10: acute | C10: tolerant species | D10: NOAEC* | E10: 0.55 | F10: mg/L | G10: Table 43
A11: Fish | B11: chronic | C11: sensitive species | D11: NOAEC | E11: 0.18 | F11: mg/L | G11: Table 43
A12: Fish | B12: chronic | C12: tolerant species | D12: NOAEC | E12: 0.18 | F12: mg/L | G12: Table 43
A13: Aquatic invertebrate | B13: chronic | C13: sensitive species | D13: NOAEC | E13: 0.36 | F13: mg/L | G13: Table 43
A14: Aquatic invertebrate | B14: chronic | C14: tolerant species | D14: NOAEC | E14: 0.65 | F14: mg/L | G14: Table 43
A15: Birds | B15: acute | C15: N/A | D15: LOAEL | E15: 116 | F15: mg/kg bw | G15: Table 40

Sheet B03a
A1: Calculation of Zero-Order Dermal Permeability Rate (Kp) in cm/hour
A2: Short Title | B2: Calculation of Kp | E2: ChemDrmKp
A3: Parameter/Assumption | B3: Code / Range | C3: Equation/ Value | D3: Units | E3: Reference/Designation
A4: Molecular weight | B4: MW | C4: ='B01'!$C$8 -> 198.43 | D4: g/mole | E4: Table 2-1
A5: Ko/w | B5: Kow | C5: ='B01'!$C$7 -> 1000 | D5: unitless | E5: Table 2-1
A6: Vector a[] | B6: a[1] | C6: 1
B7: a[2] | C7: =C4 -> 198.43
B8: a[3] | C8: =LOG10(C5) -> 3
A9: Transpose of a[] (a') | B9: =$C$6 -> 1 | C9: =$C$7 -> 198.43 | D9: =$C$8 -> 3
A10: X'X Cross Product Matrix | B10: X'X
B11: 0.055931 | C11: -9.41546e-05 | D11: -0.0103443
B12: -9.41546e-05 | C12: 5.978e-07 | D12: -2.22508e-05
B13: -0.0103443 | C13: -2.22508e-05 | D13: 0.00740677
A14: a'X'X a | B14: a'X'X a | C14: =MMULT(B9:D9,MMULT(B11:D13, C6:C8)) -> 0.0202066331
A15: Coefficients for model
A16: Intercept | B16: K0 | C16: -2.72576
A17: Coeff for Log10(Kow) | B17: K1 | C17: 0.706648
A18: Coeff for MW | B18: K2 | C18: -0.006151
A19: Standard deviation of model | B19: s | C19: 0.727129
A20: Critical value at 0.025 with 87 d.f. | B20: t0.025 | C20: 1.96
A21: Log10 of Estimated dermal permeability rate (Kp) | B21: Log(Kp) = | C21: K1 MW × K2 Log10(Kow) + K0
B22: Central | C22: =($C$18*$C$4) + ($C$17*LOG10($C$5)) + $C$16 -> -1.82635893 | E22: Eq
B23: Lower 95% CI | C23: =$C$22 - ($C$20 * $C$19 * ($C$14^0.5)) -> -2.028947302 | E23: Eq
B24: Upper 95% CI | C24: =$C$22 + ($C$20 * $C$19 * ($C$14^0.5)) -> -1.623770558 | E24: Eq
A25: Estimated dermal permeability rate (Kp) | B25: Kp = | C25: 10Log(Kp)
B26: Central | C26: =10^C22 -> 0.01491561174 | D26: cm/hour | E26: Eq
B27: Lower 95% CI | C27: =10^C23 -> 0.00935519184 | E27: Eq
B28: Upper 95% CI | C28: =10^C24 -> 0.02378096328 | E28: Eq

Sheet B03b
A1: Calculation of First-Order Dermal Absorption Rate
A2: Short Title | B2: Calculation of ka | E2: ChemDrmKa
A3: Parameter/Assumption | B3: Code / Range | C3: Equation/ Value | D3: Units | E3: Reference/Designation
A4: Molecular weight | B4: MW | C4: ='B01'!$C$8 -> 198.43 | D4: g/mole | E4: Table 2-1
A5: Ko/w | B5: Kow | C5: ='B01'!$C$7 -> 1000 | D5: unitless | E5: Table 2-1
A6: Vector a[] | B6: a[1] | C6: 1
B7: a[2] | C7: =C4 -> 198.43
B8: a[3] | C8: =LOG10(C5) -> 3
A9: Transpose of a[] (a') | B9: =$C$6 -> 1 | C9: =$C$7 -> 198.43 | D9: =$C$8 -> 3
A10: X'X Cross Product Matrix | B10: X'X
B11: 0.307537 | C11: -0.00103089 | D11: 0.00822769
B12: -0.00103089 | C12: 4.377e-06 | D12: -9.44359e-05
B13: 0.00822769 | C13: -9.44359e-05 | D13: 0.0085286
A14: a'X'X a | B14: a'X'X a | C14: =MMULT(B9:D9,MMULT(B11:D13, C6:C8)) -> 0.08445007365
A15: Coefficients for model
A16: Intercept | B16: K0 | C16: -1.49615
A17: Coeff for Log10(Kow) | B17: K1 | C17: 0.233255
A18: Coeff for MW | B18: K2 | C18: -0.005657
A19: Standard deviation of model | B19: s | C19: 0.787218
A20: Critical value at 0.025 with 26 d.f. | B20: t0.025 | C20: 2.056
A21: Log10 of Estimated first-order absorption rate | B21: Log(ka) = | C21: K1 MW × K2 Log10(Kow) + K0
B22: Central | C22: =($C$18*$C$4) + ($C$17*LOG10($C$5)) + $C$16 -> -1.91890351 | E22: Eq
B23: Lower 95% CI | C23: =$C$22 - ($C$20 * $C$19 * ($C$14^0.5)) -> -2.389250255 | E23: Eq
B24: Upper 95% CI | C24: =$C$22 + ($C$20 * $C$19 * ($C$14^0.5)) -> -1.448556765 | E24: Eq
A25: Estimated first-order absorption rate | B25: ka = | C25: 10Log(ka)
B26: Central | C26: =10^C22 -> 0.01205303701 | D26: hour-1 | E26: Eq
B27: Lower 95% CI | C27: =10^C23 -> 0.004080841672 | E27: Eq
B28: Upper 95% CI | C28: =10^C24 -> 0.03559944559 | E28: Eq

Sheet B04Rt
A1: Estimates of Water Contamination Rates -- i.e., the concentration in ambient water per pound applied per acre
A2: Parameter/Assumption | B2: Code / Range | C2: Equation/ Value | D2: Units | E2: WCRV6
A3: Short-term peak concentrations | B3: Peak | E3: WCRV6
B4: Central | C4: 0.0009 | D4: mg/L | E4: Table 26
B5: Lower | C5: 1e-08 | E5: Table 26
B6: Upper | C6: 0.028 | E6: Table 26
A7: Longer-term average concentrations | B7: Average
B8: Central | C8: 5e-05 | D8: mg/L | E8: Table 26
B9: Lower | C9: 3e-12 | E9: Table 26
B10: Upper | C10: 0.002 | E10: Table 26
A11: User Specified Gleams-Driver File: | B11: None

Sheet B04a
A1: Estimates of Water Contamination Rates -- i.e., the concentration in ambient water per pound applied per acre | E1: EECRtV6
A2: Parameter/Assumption | B2: Code / Range | C2: Equation/ Value | D2: Units | E2: EECRtV6
A3: Application Rate | B3: ApRt | C3: ='A01'!ApRt_C -> 1 | D3: lb/acre | E3: Worksheet A01
A4: Water Contamination Rates
A5: Short-term peak water contamination rates (WCR) | B5: Peak
B6: Central | C6: =B04Rt!$C$4 -> 0.0009 | D6: mg/L | E6: Table 26
B7: Lower | C7: =B04Rt!$C$5 -> 1e-08 | E7: Table 26
B8: Upper | C8: =B04Rt!$C$6 -> 0.028 | E8: Table 26
A9: Longer-term average water contamination rates (WCR) | B9: Average
B10: Central | C10: =B04Rt!$C$8 -> 5e-05 | D10: mg/L | E10: Table 26
B11: Lower | C11: =B04Rt!$C$9 -> 3e-12 | E11: Table 26
B12: Upper | C12: =B04Rt!$C$10 -> 0.002 | E12: Table 26
A13: EECs in Surface Water
A14: Short-term peak concentrations | B14: Peak
B15: Central | C15: =$C$3*C6 -> 0.0009 | D15: mg/L | E15: Eq
B16: Lower | C16: =$C$3*C7 -> 1e-08 | E16: Eq
B17: Upper | C17: 0.028 | E17: Eq
A18: Longer-term average concentrations | B18: Average
B19: Central | C19: =$C$3*C10 -> 5e-05 | D19: mg/L | E19: Eq
B20: Lower | C20: =$C$3*C11 -> 3e-12 | E20: Eq
B21: Upper | C21: 0.002 | E21: Eq

Sheet B04b
A1: Pond: Concentration of pesticide (liquid formulation) in pond water after an accidental spill
A2: Short Title | B2: Pond Spill | E2: PondSpillLiqV6
A3: Receptor | B3: Pond
A4: Duration | B4: Acute
A5: Parameter/Assumption | B5: Code / Range | C5: Equation/ Value | D5: Units | E5: Reference/Designation
A6: Surface Area of Pond | B6: SA | C6: ='A01'!C$23 -> 1000 | D6: m2 | E6: Worksheet A01
A7: Depth of Pond | B7: Depth | C7: ='A01'!C$24 -> 1 | D7: meter | E7: Worksheet A01
A8: Volume of Pond | B8: VPM | C8: =C6*C7 -> 1000 | D8: m3 | E8: Eq
B9: VPL | C9: =1000*C8 -> 1000000 | D9: liters | E9: Eq
A10: Concentration in solution | B10: Conc
B11: Central | C11: ='A01'!FldConc_C -> 4.8 | D11: mg/mL | E11: Worksheet A01
B12: Lower | C12: ='A01'!FldConc_L -> 3 | E12: Worksheet A01
B13: Upper | C13: ='A01'!FldConc_U -> 24 | E13: Worksheet A01
A14: Volume of Spill (gallons) | B14: VSGal
B15: Central | C15: ='A01'!C$43 -> 100 | D15: gallons | E15: Worksheet A01
B16: Lower | C16: ='A01'!C$44 -> 20 | E16: Worksheet A01
B17: Upper | C17: ='A01'!C$45 -> 200 | E17: Worksheet A01
A18: Conversion factor for gallons to liters | B18: Conv | C18: 3.785 | D18: liters/gal
A19: Volume of Spill (liters) | B19: VSLit | C19: VSGal x Conv
B20: Central | C20: =C15*C$18 -> 378.5 | D20: liters | E20: Eq
B21: Lower | C21: =C16*C$18 -> 75.7 | D21: liters | E21: Eq
B22: Upper | C22: =C17*C$18 -> 757 | D22: liters | E22: Eq
A23: Concentration of triclopyr in pond water immediately after spill | B23: ConcWat
B24: Central | C24: =C11*1000*C20/C$9 -> 1.8168 | D24: mg/L | E24: Eq
B25: Lower | C25: =C12*1000*C21/C$9 -> 0.2271 | E25: Eq
B26: Upper | C26: 18.168 | E26: Eq
A27: Adjustment factors for metabolite formulation based on monitoring data | B27: Factor
B28: Central | C28: 235 | E28: See Section 3.2.3.4.1.2 of Risk Assessment
B29: Upper | C29: 586
B30: Lower | C30: 137
A31: Concentration of metabolite in pond water | B31: ConcWat | C31: ConcWat ÷ Factor
B32: Central | C32: =C24/C28 -> 0.00773106383 | D32: mg/L
B33: Lower | C33: =C25/C29 -> 0.0003875426621
B34: Upper | C34: 0.1326131387

Sheet B04c
A1: Concentration in pond water after direct spray or after drift from Backpack Directed Foliar application at distances downwind in feet from the application site
A2: Short Title | B2: Pond, Drift | E2: PondDrift
A3: Receptor | B3: Pond
A4: Duration | B4: Acute
A5: Parameter/Assumption | B5: Code / Range | C5: Equation/ Value | D5: Units | E5: Reference/Designation
A6: Application rate | B6: ApRt | C6: ='A01'!ApRt_C -> 1 | D6: lb/acre | E6: Worksheet A01
A7: Surface Area of Water Column | B7: SA | C7: 1 | D7: m2
A8: Depth of Pond | B8: Depth | C8: ='A01'!C$24 -> 1 | D8: meter | E8: Worksheet A01
A9: Volume of Water Column | B9: V | C9: = SA × Depth
B10: VPM | C10: =C7*C8 -> 1 | D10: m3 | E10: Eq
B11: VPL | C11: =1000*C10 -> 1000 | D11: liters | E11: Eq
A12: Proportion of Drift at distances downwind in feet [0 feet = direct spray] | B12: Prop
A13: 0 | C13: 1 | D13: unitless
A14: 25 | C14: 0.00832
A15: 50 | C15: 0.00433
A16: 100 | C16: 0.00241
A17: 300 | C17: 0.000941
A18: 500 | C18: 0.000579
A19: 900 | C19: 0.000312
A20: Converstion Factor | B20: Conv | C20: 112.1 | D20: mg/m2 per lb/acre
A21: Concentration in water at distances downwind in feet | B21: Conc | C21: SA × Prop × ApR × Conv / VPL
A22: =A13 -> 0 | C22: =C$7*C13*C$6*C$20/C$11 -> 0.1121 | D22: mg/L
A23: 25 | C23: 0.000932672
A24: 50 | C24: 0.000485393
A25: 100 | C25: 0.000270161
A26: 300 | C26: 0.0001054861
A27: 500 | C27: 6.49059e-05
A28: 900 | C28: 3.49752e-05

Sheet B04d
A1: Concentration in stream water after direct spray or after drift from Backpack Directed Foliar application at distances downwind in feet from the application site
A2: Short Title | B2: Stream, Drift | E2: StreamDrift
A3: Receptor | B3: Stream
A4: Duration | B4: Acute
A5: Parameter/Assumption | B5: Code / Range | C5: Equation/ Value | D5: Units | E5: Reference/Designation
A6: Application rate, lbs/acre | B6: ApRt | C6: ='A01'!ApRt_C -> 1 | D6: lb/acre | E6: Worksheet A01
A7: Flow rate of stream | B7: Flow | C7: ='A01'!C$25 -> 710000 | D7: L/day | E7: Worksheet A01
A8: Converstion Factor, lb/acre to mg/m2 | B8: Conv1 | C8: 112.1 | D8: mg/m2 per lb/acre
A9: Deposition rate, nominal | C9: Dep = ApR × Conv1
B10: Dep | C10: =C6*C8 -> 112.1 | D10: mg/m2 | E10: Eq
A11: Length of steam segment | B11: L | C11: ='A01'!C$26 -> 1038 | D11: feet | E11: Worksheet A01
A12: Width of steam segment | B12: W | C12: ='A01'!C$27 -> 6 | D12: feet | E12: Worksheet A01
A13: Surface Area of Stream Sprayed, square feet | B13: SA_ft | C13: =C11*C12 -> 6228 | D13: ft2 | E13: Eq
A14: Converstion Factor, square feet to square meters | B14: Conv2 | C14: 0.0929 | D14: m2/ft2
A15: Surface Area of Stream Sprayed, square meters | B15: SA_msq | C15: =C13*C14 -> 578.5812 | E15: Eq
A16: Amount deposited on stream surface on spray day | B16: Amnt | C16: =C10*C15 -> 64858.95252 | D16: mg/day | E16: Eq
A17: Proportion of Drift at distances downwind in feet [0 feet = direct spray] | B17: Prop
A18: 0 | C18: 1 | D18: unitless
A19: 25 | C19: 0.00832
A20: 50 | C20: 0.00433
A21: 100 | C21: 0.00241
A22: 300 | C22: 0.000941
A23: 500 | C23: 0.000579
A24: 900 | C24: 0.000312
A25: Concentration in water at distances downwind in feet | B25: Conc | C25: Amnt × Prop / Flow
A26: =A18 -> 0 | C26: =C$16 * C18 /C$7 -> 0.09135063735 | D26: mg/L
A27: 25 | C27: 0.0007600373028
A28: 50 | C28: 0.0003955482597
A29: 100 | C29: 0.000220155036
A30: 300 | C30: 8.596094975e-05
A31: 500 | C31: 5.289201903e-05
A32: 900 | C32: 2.850139885e-05

Sheet B05a
A1: Concentration of Pesticide in Contaminated Fruit
A2: Short Title | B2: Concentration in food item | E2: FoodConcV6
A3: Material consumed
A4: Parameter/Assumption | B4: Code / Range | C4: Equation/ Value | D4: Units | E4: Reference/Designation
A5: Acute Concentrations
A6: Concentration on commodity immediately after last application. | B6: Cn | C6: Cn = C0 × (1- pn) ÷ (1- p)
B7: Central | C7: =B05aMet!C27 -> 1.992365664 | D7: mg/kg food item | E7: Worksheet B05aMet
B8: Lower | C8: =B05aMet!C28 -> 0.9107762257
B9: Upper | C9: =B05aMet!C29 -> 4.269406511
A10: Longer-term Concentrations
B11: Central | C11: =B05aMet!C31 -> 1.631799302 | D11: mg/kg food item | E11: Worksheet B05aMet
B12: Lower | C12: =B05aMet!C32 -> 0.5837218751
B13: Upper | C13: =B05aMet!C33 -> 4.142691359

Sheet B05aMet
A1: Fruit: Calculation of Peak and 90-Day Time-Weighted Average of Residues for Metabolite | G1: Note: This worksheet implements the special case where the parent and metabolite kinetics are identical.
A2: Short Title | B2: Metabolite Concentrations | E2: FoodMetabEqual_ks
A3: Receptor | B3: Consumable
A4: Duration | B4: All
A5: Material consumed | B5: Fruit | E5: Abrev(Param->Food)
A6: Parameter/Assumption | B6: Code / Range | C6: Equation/ Value | D6: Units | E6: Reference/Designation
A7: Residue Rates for Parent Compound | B7: rr
B8: Central | C8: 7 | D8: mg/kg food | E8: Attachment 1, Worksheets B05a
B9: Lower | C9: 3.2
B10: Upper | C10: 15
A11: Molecular Weight, Parent | B11: MWP | C11: 256.47
A12: Molecular Weight, Metabolite | B12: MWM | C12: 198.43
A13: Relative Mass, Metabolite | B13: RMM | C13: =C12/C11 -> 0.7736967287 | E13: Eq
A14: Half-life of parent on commodity | B14: T50Par
B15: Central | C15: 26.9 | D15: Days | E15: Attachment 1, Worksheets B05a
B16: Lower | C16: 16.5
B17: Upper | C17: 73.1
A18: Degradation Rate of Parent | B18: ka
B19: Central | C19: =LN(2)/$C15 -> 0.02576755318 | D19: Days-1 | E19: Eq
B20: Lower | C20: =LN(2)/$C$16 -> 0.04200892003 | E20: Eq
B21: Upper | C21: =LN(2)/$C$17 -> 0.009482177573 | E21: Eq
A22: Expected Time to Peak Concentation of Metabolite | B22: TMax
B23: Central | C23: =1/C19 -> 38.8084966 | D23: Days | E23: Eq
B24: Lower | C24: =1/C20 -> 23.80446817 | E24: Eq
B25: Upper | C25: 105.4610075 | E25: Eq
A26: Peak Residue | B26: Peak | G26: Results for Metabolite
B27: Central | C27: =$I$27 -> 1.992365664 | D27: mg/kg food | E27: Eq | G27: Max | I27: =MAX(M48:M778) -> 1.992365664 | J27: =MAX(N47:N777) -> 0.9107762257 | K27: =MAX(O47:O777) -> 4.269406511
B28: Lower | C28: =$J$27 -> 0.9107762257 | E28: Eq | G28: Max 90 Day TWA | I28: =MAX(P227:P777) -> 1.631799302 | J28: =MAX(Q227:Q777) -> 0.5837218751 | K28: =MAX(R227:R777) -> 4.142691359
B29: Upper | C29: =$K$27 -> 4.269406511 | E29: Eq | G29: These results are linked to the green cells to the left.
A30: Maximum 90-Day TWA | B30: 90-Day TWA
B31: Central | C31: =$I$28 -> 1.631799302 | D31: mg/kg food | E31: Eq | G31: Ratio of Maximum Metabolite to Maximum Parent Parent
B32: Lower | C32: =$J$28 -> 0.5837218751 | E32: Eq | J32: Modeled Max of Metab/Max Parent: | K32: =I27/C8 -> 0.2846236662 | L32: =J27/C9 -> 0.2846175705 | M32: =K27/C10 -> 0.2846271007
B33: Upper | C33: =$K$28 -> 4.142691359 | E33: Eq | J33: Expected Max Metab/Max Parent: | K33: =EXP(-1)*$C$13 -> 0.2846271202 | L33: =EXP(-1)*$C$13 -> 0.2846271202 | M33: =EXP(-1)*$C$13 -> 0.2846271202
G45: METABOLITE | T45: PARENT (used only to plot)
G46: Conc (No MW Adjustment) | L46: Conc (Adjustment for MW) | P46: TWA | T46: Conc (No MW Adjustment)
G47: t | H47: Central | I47: Lower | J47: Upper | L47: t | M47: Central | N47: Lower | O47: Upper | P47: Central | Q47: Lower | R47: Upper | T47: t | U47: Central | V47: Lower | W47: Upper
G48: 0 | H48: =C$19* C$8 * $G48* EXP(-C$19 *$G48) -> 0 | I48: =C$20* C$9 * $G48* EXP(-C$20 *$G48) -> 0 | J48: =C$21* C$10 * $G48* EXP(-C$21 *$G48) -> 0 | L48: =G48 -> 0 | M48: =H48*$C$13 -> 0 | N48: 0 | O48: 0 | P48: Starts at Day 90 Below | T48: =G48 -> 0 | U48: =$C$8*EXP(-$C$19*T48) -> 7 | V48: =$C$9*EXP(-C$20*T48) -> 3.2 | W48: =$C$10*EXP(-$C$21*T48) -> 15
G49: 0.5 | H49: 0.0890319473 | I49: 0.06581719634 | J49: 0.07077996096 | L49: 0.5 | M49: 0.06888372637 | N49: 0.0509225495 | O49: 0.05476222425 | T49: 0.5 | U49: 6.910392048 | V49: 3.133486711 | W49: 14.92905199
G50: 1 | H50: 0.1757844745 | I50: 0.1288983188 | J50: 0.1408903622 | L50: 1 | M50: 0.1360038728 | N50: 0.09972820759 | O50: 0.1090064124 | T50: 1 | U50: 6.821931179 | V50: 3.068355928 | W50: 14.85843955
G51: 1.5 | H51: 0.2603013502 | I51: 0.189328673 | J51: 0.2103359542 | L51: 1.5 | M51: 0.2013943031 | N51: 0.1464829749 | O51: 0.1627362397 | T51: 1.5 | U51: 6.73460271 | V51: 3.004578914 | W51: 14.7881611
G52: 2 | H52: 0.3426255963 | I52: 0.2471912004 | J52: 0.2791214574 | L52: 2 | M52: 0.265088303 | N52: 0.1912510231 | O52: 0.2159553585 | T52: 2 | U52: 6.648392145 | V52: 2.942127531 | W52: 14.71821505
G53: 2.5 | H53: 0.4227994993 | I53: 0.3025665397 | J53: 0.3472515623 | L53: 2.5 | M53: 0.3271185895 | N53: 0.2340947419 | O53: 0.2686673978 | T53: 2.5 | U53: 6.563285173 | V53: 2.880974226 | W53: 14.64859984
G54: 3 | H54: 0.5008646225 | I54: 0.3555330867 | J54: 0.4147309301 | L54: 3 | M54: 0.3875173199 | N54: 0.2750747861 | O54: 0.3208759639 | T54: 3 | U54: 6.479267666 | V54: 2.821092016 | W54: 14.57931391
G55: 3.5 | H55: 0.5768618174 | I55: 0.406167053 | J55: 0.4815641923 | L55: 3.5 | M55: 0.446316101 | N55: 0.3142501202 | O55: 0.3725846402 | T55: 3.5 | U55: 6.39632568 | V55: 2.762454482 | W55: 14.51035568
G56: 4 | H56: 0.6508312352 | I56: 0.4545425226 | J56: 0.5477559514 | L56: 4 | M56: 0.5035459976 | N56: 0.3516780628 | O56: 0.4237969877 | T56: 4 | U56: 6.314445444 | V56: 2.705035753 | W56: 14.44172362
G57: 4.5 | H57: 0.722812338 | I57: 0.5007315073 | J57: 0.6133107806 | L57: 4.5 | M57: 0.5592375414 | N57: 0.3874143292 | O57: 0.4745165446 | T57: 4.5 | U57: 6.233613369 | V57: 2.648810496 | W57: 14.37341618
G58: 5 | H58: 0.7928439099 | I58: 0.5448040014 | J58: 0.6782332242 | L58: 5 | M58: 0.6134207395 | N58: 0.4215130737 | O58: 0.5247468269 | T58: 5 | U58: 6.153816037 | V58: 2.593753903 | W58: 14.30543183
G59: 5.5 | H59: 0.8609640679 | I59: 0.5868280339 | J59: 0.742527798 | L59: 5.5 | M59: 0.6661250828 | N59: 0.4540269301 | O59: 0.5744913282 | T59: 5.5 | U59: 6.0750402 | V59: 2.539841683 | W59: 14.23776903
G60: 6 | H60: 0.9272102725 | I60: 0.6268697202 | J60: 0.8061989889 | L60: 6 | M60: 0.7173795546 | N60: 0.4850070518 | O60: 0.6237535204 | T60: 6 | U60: 5.997272784 | V60: 2.487050051 | W60: 14.17042627
G61: 6.5 | H61: 0.9916193383 | I61: 0.6649933123 | J61: 0.8692512557 | L61: 6.5 | M61: 0.7672126381 | N61: 0.5145031503 | O61: 0.6725368529 | T61: 6.5 | U61: 5.92050088 | V61: 2.435355714 | W61: 14.10340203
G62: 7 | H62: 1.054227445 | I62: 0.7012612476 | J62: 0.9316890287 | L62: 7 | M62: 0.8156523251 | N62: 0.5425635332 | O62: 0.7208447536 | T62: 7 | U62: 5.844711743 | V62: 2.384735864 | W62: 14.0366948
G63: 7.5 | H63: 1.115070145 | I63: 0.7357341966 | J63: 0.9935167103 | L63: 7.5 | M63: 0.8627261237 | N63: 0.5692351411 | O63: 0.7686806286 | T63: 7.5 | U63: 5.769892793 | V63: 2.335168169 | W63: 13.9703031
G64: 8 | H64: 1.174182379 | I64: 0.7684711093 | J64: 1.054738675 | L64: 8 | M64: 0.9084610658 | N64: 0.5945635834 | O64: 0.8160478625 | T64: 8 | U64: 5.69603161 | V64: 2.286630758 | W64: 13.90422541
G65: 8.5 | H65: 1.231598481 | I65: 0.7995292608 | J65: 1.11535927 | L65: 8.5 | M65: 0.9528837154 | N65: 0.6185931736 | O65: 0.8629498182 | T65: 8.5 | U65: 5.623115935 | V65: 2.239102217 | W65: 13.83846027
G66: 9 | H66: 1.287352187 | I66: 0.8289642951 | J66: 1.175382813 | L66: 9 | M66: 0.9960201755 | N66: 0.6413669633 | O66: 0.9093898374 | T66: 9 | U66: 5.551133663 | V66: 2.192561576 | W66: 13.77300618
G67: 9.5 | H67: 1.341476651 | I67: 0.8568302682 | J67: 1.234813597 | L67: 9.5 | M67: 1.037896096 | N67: 0.6629267756 | O67: 0.9553712408 | T67: 9.5 | U67: 5.480072845 | V67: 2.1469883 | W67: 13.70786169
G68: 10 | H68: 1.394004448 | I68: 0.8831796905 | J68: 1.293655887 | L68: 10 | M68: 1.078536681 | N68: 0.6833132374 | O68: 1.000897328 | T68: 10 | U68: 5.409921688 | V68: 2.102362284 | W68: 13.64302532
G69: 10.5 | H69: 1.444967588 | I69: 0.9080635672 | J69: 1.351913919 | L69: 10.5 | M69: 1.117966696 | N69: 0.7025658114 | O69: 1.045971377 | T69: 10.5 | U69: 5.340668544 | V69: 2.058663837 | W69: 13.57849562
G70: 11 | H70: 1.494397521 | I70: 0.9315314384 | J70: 1.409591905 | L70: 11 | M70: 1.156210473 | N70: 0.7207228265 | O70: 1.090596645 | T70: 11 | U70: 5.27230192 | V70: 2.01587368 | W70: 13.51427113
G71: 11.5 | H71: 1.54232515 | I71: 0.9536314178 | J71: 1.466694027 | L71: 11.5 | M71: 1.193291923 | N71: 0.7378215083 | O71: 1.134776371 | T71: 11.5 | U71: 5.204810466 | V71: 1.973972933 | W71: 13.45035042
G72: 12 | H72: 1.588780838 | I72: 0.974410231 | J72: 1.523224444 | L72: 12 | M72: 1.229234537 | N72: 0.7538980081 | O72: 1.178513769 | T72: 12 | U72: 5.138182979 | V72: 1.932943111 | W72: 13.38673204
G73: 12.5 | H73: 1.633794415 | I73: 0.993913252 | J73: 1.579187285 | L73: 12.5 | M73: 1.264061394 | N73: 0.7689874316 | O73: 1.221812037 | T73: 12.5 | U73: 5.072408399 | V73: 1.89276611 | W73: 13.32341457
G74: 13 | H74: 1.67739519 | I74: 1.012184539 | J74: 1.634586656 | L74: 13 | M74: 1.297795171 | N74: 0.7831238669 | O74: 1.264674349 | T74: 13 | U74: 5.00747581 | V74: 1.853424204 | W74: 13.26039658
G75: 13.5 | H75: 1.719611958 | I75: 1.029266871 | J75: 1.689426635 | L75: 13.5 | M75: 1.330458146 | N75: 0.7963404112 | O75: 1.307103861 | T75: 13.5 | U75: 4.943374431 | V75: 1.814900036 | W75: 13.19767666
G76: 14 | H76: 1.760473007 | I76: 1.04520178 | J76: 1.743711273 | L76: 14 | M76: 1.362072206 | N76: 0.8086691978 | O76: 1.349103708 | T76: 14 | U76: 4.880093622 | V76: 1.777176607 | W76: 13.1352534
G77: 14.5 | H77: 1.800006129 | I77: 1.060029584 | J77: 1.797444598 | L77: 14.5 | M77: 1.392658854 | N77: 0.8201414215 | O77: 1.390677005 | T77: 14.5 | U77: 4.81762288 | V77: 1.740237276 | W77: 13.07312539
G78: 15 | H78: 1.838238627 | I78: 1.073789423 | J78: 1.85063061 | L78: 15 | M78: 1.422239212 | N78: 0.8307873639 | O78: 1.431826849 | T78: 15 | U78: 4.755951834 | V78: 1.704065743 | W78: 13.01129124
G79: 15.5 | H79: 1.875197321 | I79: 1.086519287 | J79: 1.903273285 | L79: 15.5 | M79: 1.450834032 | N79: 0.8406364177 | O79: 1.472556314 | T79: 15.5 | U79: 4.695070248 | V79: 1.66864605 | W79: 12.94974956
G80: 16 | H80: 1.910908557 | I80: 1.098256047 | J80: 1.955376572 | L80: 16 | M80: 1.478463699 | N80: 0.8497171109 | O80: 1.512868457 | T80: 16 | U80: 4.634968015 | V80: 1.63396257 | W80: 12.88849896
G81: 16.5 | H81: 1.945398218 | I81: 1.109035489 | J81: 2.006944397 | L81: 16.5 | M81: 1.505148237 | N81: 0.8580571297 | O81: 1.552766314 | T81: 16.5 | U81: 4.575635159 | V81: 1.6 | W81: 12.82753806
G82: 17 | H82: 1.978691726 | I82: 1.118892338 | J82: 2.057980658 | L82: 17 | M82: 1.530907315 | N82: 0.8656833415 | O82: 1.592252903 | T82: 17 | U82: 4.517061831 | V82: 1.566743356 | W82: 12.76686551
G83: 17.5 | H83: 2.010814054 | I83: 1.12786029 | J83: 2.108489232 | L83: 17.5 | M83: 1.555760256 | N83: 0.8726218164 | O83: 1.631331221 | T83: 17.5 | U83: 4.459238308 | V83: 1.534177964 | W83: 12.70647992
G84: 18 | H84: 2.041789731 | I84: 1.135972038 | J84: 2.158473967 | L84: 18 | M84: 1.579726036 | N84: 0.8788978497 | O84: 1.670004247 | T84: 18 | U84: 4.402154991 | V84: 1.502289457 | W84: 12.64637996
G85: 18.5 | H85: 2.071642851 | I85: 1.143259302 | J85: 2.20793869 | L85: 18.5 | M85: 1.602823296 | N85: 0.8845359818 | O85: 1.708274941 | T85: 18.5 | U85: 4.345802407 | V85: 1.471063766 | W85: 12.58656425
G86: 19 | H86: 2.100397076 | I86: 1.149752851 | J86: 2.256887201 | L86: 19 | M86: 1.625070346 | N86: 0.8895600194 | O86: 1.746146244 | T86: 19 | U86: 4.290171199 | V86: 1.440487113 | W86: 12.52703147
G87: 19.5 | H87: 2.128075649 | I87: 1.155482532 | J87: 2.305323276 | L87: 19.5 | M87: 1.646485168 | N87: 0.8939930549 | O87: 1.783621077 | T87: 19.5 | U87: 4.235252134 | V87: 1.410546008 | W87: 12.46778027
G88: 20 | H88: 2.154701399 | I88: 1.160477294 | J88: 2.353250669 | L88: 20 | M88: 1.667085423 | N88: 0.8978574864 | O88: 1.820702345 | T88: 20 | U88: 4.181036095 | V88: 1.381227241 | W88: 12.40880932
G89: 20.5 | H89: 2.180296742 | I89: 1.164765214 | J89: 2.400673108 | L89: 20.5 | M89: 1.686888457 | N89: 0.9011750358 | O89: 1.85739293 | T89: 20.5 | U89: 4.127514083 | V89: 1.352517877 | W89: 12.3501173
G90: 21 | H90: 2.204883698 | I90: 1.168373517 | J90: 2.447594297 | L90: 21 | M90: 1.705911304 | N90: 0.903966768 | O90: 1.8936957 | T90: 21 | U90: 4.074677214 | V90: 1.324405248 | W90: 12.29170288
G91: 21.5 | H91: 2.228483888 | I91: 1.171328603 | J91: 2.494017917 | L91: 21.5 | M91: 1.724170694 | N91: 0.9062531084 | O91: 1.929613503 | T91: 21.5 | U91: 4.022516717 | V91: 1.296876951 | W91: 12.23356475
G92: 22 | H92: 2.251118548 | I92: 1.173656068 | J92: 2.539947624 | L92: 22 | M92: 1.741683057 | N92: 0.9080538603 | O92: 1.965149168 | T92: 22 | U92: 3.971023933 | V92: 1.269920842 | W92: 12.17570161
G93: 22.5 | H93: 2.27280853 | I93: 1.175380725 | J93: 2.585387054 | L93: 22.5 | M93: 1.758464524 | N93: 0.9093882222 | O93: 2.000305506 | T93: 22.5 | U93: 3.920190315 | V93: 1.243525025 | W93: 12.11811215
G94: 23 | H94: 2.29357431 | I94: 1.17652663 | J94: 2.630339816 | L94: 23 | M94: 1.77453094 | N94: 0.9102748045 | O94: 2.035085311 | T94: 23 | U94: 3.870007426 | V94: 1.217677857 | W94: 12.06079509
G95: 23.5 | H95: 2.313435995 | I95: 1.177117094 | J95: 2.674809498 | L95: 23.5 | M95: 1.789897862 | N95: 0.9107316451 | O95: 2.069491358 | T95: 23.5 | U95: 3.820466934 | V95: 1.192367932 | W95: 12.00374913
G96: 24 | H96: 2.332413331 | I96: 1.177174715 | J96: 2.718799663 | L96: 24 | M96: 1.804580564 | N96: 0.9107762257 | O96: 2.103526405 | T96: 24 | U96: 3.771560618 | V96: 1.167584085 | W96: 11.94697298
G97: 24.5 | H97: 2.350525703 | I97: 1.176721386 | J97: 2.762313852 | L97: 24.5 | M97: 1.818594047 | N97: 0.910425487 | O97: 2.137193191 | T97: 24.5 | U97: 3.723280357 | V97: 1.143315379 | W97: 11.89046538
G98: 25 | H98: 2.367792147 | I98: 1.175778325 | J98: 2.805355585 | L98: 25 | M98: 1.831953038 | N98: 0.9096958435 | O98: 2.170494439 | T98: 25 | U98: 3.675618139 | V98: 1.119551108 | W98: 11.83422506
G99: 25.5 | H99: 2.384231352 | I99: 1.174366085 | J99: 2.847928357 | L99: 25.5 | M99: 1.844671997 | N99: 0.908603198 | O99: 2.203432854 | T99: 25.5 | U99: 3.628566051 | V99: 1.096280788 | W99: 11.77825074
G100: 26 | H100: 2.399861668 | I100: 1.172504578 | J100: 2.890035642 | L100: 26 | M100: 1.856765121 | N100: 0.907162956 | O100: 2.236011122 | T100: 26 | U100: 3.582116283 | V100: 1.07349415 | W100: 11.72254117
G101: 26.5 | H101: 2.41470111 | I101: 1.17021309 | J101: 2.93168089 | L101: 26.5 | M101: 1.86824635 | N101: 0.9053900396 | O101: 2.268231914 | T101: 26.5 | U101: 3.536261126 | V101: 1.051181142 | W101: 11.6670951
G102: 27 | H102: 2.428767366 | I102: 1.167510301 | J102: 2.97286753 | L102: 27 | M102: 1.879129366 | N102: 0.9032989003 | O102: 2.300097883 | T102: 27 | U102: 3.490992966 | V102: 1.029331918 | W102: 11.61191129
G103: 27.5 | H103: 2.442077799 | I103: 1.164414298 | J103: 3.013598969 | L103: 27.5 | M103: 1.889427605 | N103: 0.9009035331 | O103: 2.331611664 | T103: 27.5 | U103: 3.44630429 | V103: 1.00793684 | W103: 11.55698849
G104: 28 | H104: 2.454649455 | I104: 1.160942596 | J104: 3.053878591 | L104: 28 | M104: 1.899154254 | N104: 0.8982174884 | O104: 2.362775876 | T104: 28 | U104: 3.40218768 | V104: 0.9869864667 | W104: 11.50232546
G105: 28.5 | H105: 2.466499067 | I105: 1.157112149 | J105: 3.093709759 | L105: 28.5 | M105: 1.90832226 | N105: 0.8952538846 | O105: 2.39359312 | T105: 28.5 | U105: 3.358635813 | V105: 0.9664715555 | W105: 11.44792099
G106: 29 | H106: 2.477643061 | I106: 1.152939372 | J106: 3.133095815 | L106: 29 | M106: 1.916944331 | N106: 0.8920254207 | O106: 2.424065983 | T106: 29 | U106: 3.315641459 | V106: 0.946383055 | W106: 11.39377384
G107: 29.5 | H107: 2.48809756 | I107: 1.14844015 | J107: 3.172040078 | L107: 29.5 | M107: 1.925032943 | N107: 0.8885443874 | O107: 2.454197032 | T107: 29.5 | U107: 3.273197481 | V107: 0.926712102 | W107: 11.3398828
G108: 30 | H108: 2.497878391 | I108: 1.143629857 | J108: 3.210545846 | L108: 30 | M108: 1.93260034 | N108: 0.8848226791 | O108: 2.483988818 | T108: 30 | U108: 3.231296835 | V108: 0.9074500178 | W108: 11.28624665
G109: 30.5 | H109: 2.507001089 | I109: 1.138523367 | J109: 3.248616396 | L109: 30.5 | M109: 1.939658541 | N109: 0.8808718047 | O109: 2.513443878 | T109: 30.5 | U109: 3.189932565 | V109: 0.8885883037 | W109: 11.2328642
G110: 31 | H110: 2.515480899 | I110: 1.133135073 | J110: 3.286254983 | L110: 31 | M110: 1.946219343 | N110: 0.8767028988 | O110: 2.54256473 | T110: 31 | U110: 3.149097804 | V110: 0.8701186379 | W110: 11.17973424
G111: 31.5 | H111: 2.523332788 | I111: 1.127478894 | J111: 3.323464843 | L111: 31.5 | M111: 1.952294323 | N111: 0.8723267321 | O111: 2.571353877 | T111: 31.5 | U111: 3.108785775 | V111: 0.8520328716 | W111: 11.12685558
G112: 32 | H112: =C$19* C$8 * $G112* EXP(-C$19 *$G112) -> 2.53057144 | I112: =C$20* C$9 * $G112* EXP(-C$20 *$G112) -> 1.121568296 | J112: =C$21* C$10 * $G112* EXP(-C$21 *$G112) -> 3.360249188 | L112: =G112 -> 32 | M112: =H112*$C$13 -> 1.957894845 | N112: 0.8677537215 | O112: 2.599813804 | T112: =G112 -> 32 | U112: =$C$8*EXP(-$C$19*T112) -> 3.068989785 | V112: =$C$9*EXP(-C$20*T112) -> 0.8343230252 | W112: =$C$10*EXP(-$C$21*T112) -> 11.07422702
G113: 32.5 | H113: 2.53721127 | I113: 1.115416298 | J113: 3.396611211 | L113: 32.5 | M113: 1.96303206 | N113: 0.8629939408 | O113: 2.627946983 | T113: 32.5 | U113: 3.02970323 | V113: 0.8169812851 | W113: 11.0218474
G114: 33 | H114: 2.543266424 | I114: 1.109035489 | J114: 3.432554085 | L114: 33 | M114: 1.967716912 | N114: 0.8580571297 | O114: 2.655755867 | T114: 33 | U114: 2.990919586 | V114: 0.8 | W114: 10.96971552
G115: 33.5 | H115: 2.548750781 | I115: 1.102438039 | J115: 3.468080961 | L115: 33.5 | M115: 1.971960141 | N115: 0.8529527041 | O115: 2.683242895 | T115: 33.5 | U115: 2.952632418 | V115: 0.7833716778 | W115: 10.91783022
G116: 34 | H116: 2.553677963 | I116: 1.09563571 | J116: 3.503194971 | L116: 34 | M116: 1.975772286 | N116: 0.8476897645 | O116: 2.710410489 | T116: 34 | U116: 2.914835369 | V116: 0.767088982 | W116: 10.86619033
G117: 34.5 | H117: 2.558061336 | I117: 1.08863987 | J117: 3.537899224 | L117: 34.5 | M117: 1.979163688 | N117: 0.842277106 | O117: 2.737261056 | T117: 34.5 | U117: 2.877522165 | V117: 0.7511447285 | W117: 10.81479468
G118: 35 | H118: 2.561914017 | I118: 1.081461502 | J118: 3.572196813 | L118: 35 | M118: 1.982144494 | N118: 0.836723226 | O118: 2.763796988 | T118: 35 | U118: 2.840686612 | V118: 0.7355318828 | W118: 10.76364214
G119: 35.5 | H119: 2.565248873 | I119: 1.074111216 | J119: 3.606090806 | L119: 35.5 | M119: 1.984724661 | N119: 0.8310363339 | O119: 2.79002066 | T119: 35.5 | U119: 2.804322596 | V119: 0.7202435564 | W119: 10.71273154
G120: 36 | H120: 2.568078531 | I120: 1.06659926 | J120: 3.639584256 | L120: 36 | M120: 1.986913958 | N120: 0.8252243584 | O120: 2.815934432 | T120: 36 | U120: 2.768424081 | V120: 0.705273004 | W120: 10.66206173
G121: 36.5 | H121: 2.570415378 | I121: 1.058935531 | J121: 3.672680192 | L121: 36.5 | M121: 1.988721969 | N121: 0.8192949563 | O121: 2.84154065 | T121: 36.5 | U121: 2.732985108 | V121: 0.6906136206 | W121: 10.61163159
G122: 37 | H122: 2.572271567 | I122: 1.051129583 | J122: 3.705381625 | L122: 37 | M122: 1.990158097 | N122: 0.8132555201 | O122: 2.866841642 | T122: 37 | U122: 2.697999794 | V122: 0.6762589383 | W122: 10.56143998
G123: 37.5 | H123: 2.573659023 | I123: 1.04319064 | J123: 3.737691548 | L123: 37.5 | M123: 1.991231567 | N123: 0.8071131858 | O123: 2.891839724 | T123: 37.5 | U123: 2.663462331 | V123: 0.6622026239 | W123: 10.51148577
G124: 38 | H124: 2.57458944 | I124: 1.035127603 | J124: 3.769612932 | L124: 38 | M124: 1.991951428 | N124: 0.80087484 | O124: 2.916537194 | T124: 38 | U124: 2.629366988 | V124: 0.6484384757 | W124: 10.46176783
G125: 38.5 | H125: 2.575074294 | I125: 1.026949059 | J125: 3.80114873 | L125: 38.5 | M125: 1.992326557 | N125: 0.7945471277 | O125: 2.940936338 | T125: 38.5 | U125: 2.595708103 | V125: 0.6349604208 | W125: 10.41228506
G126: 39 | H126: 2.575124839 | I126: 1.018663295 | J126: 3.832301876 | L126: 39 | M126: 1.992365664 | N126: 0.7881364592 | O126: 2.965039424 | T126: 39 | U126: 2.562480091 | V126: 0.6217625127 | W126: 10.36303633
G127: 39.5 | H127: 2.574752114 | I127: 1.010278301 | J127: 3.863075282 | L127: 39.5 | M127: 1.992077288 | N127: 0.7816490169 | O127: 2.988848709 | T127: 39.5 | U127: 2.529677435 | V127: 0.6088389285 | W127: 10.31402054
G128: 40 | H128: 2.573966949 | I128: 1.001801782 | J128: 3.893471846 | L128: 40 | M128: 1.991469808 | N128: 0.7750907618 | O128: 3.01236643 | T128: 40 | U128: 2.49729469 | V128: 0.5961839661 | W128: 10.26523659
G129: 40.5 | H129: 2.572779964 | I129: 0.9932411654 | J129: 3.923494443 | L129: 40.5 | M129: 1.990551441 | N129: 0.7684674405 | O129: 3.035594815 | T129: 40.5 | U129: 2.465326481 | V129: 0.5837920423 | W129: 10.21668338
G130: 41 | H130: 2.571201574 | I130: 0.9846036088 | J130: 3.95314593 | L130: 41 | M130: 1.989330247 | N130: 0.7617845912 | O130: 3.058536074 | T130: 41 | U130: 2.433767501 | V130: 0.5716576895 | W130: 10.16835982
G131: 41.5 | H131: 2.569241996 | I131: 0.9758960095 | J131: 3.982429148 | L131: 41.5 | M131: 1.987814127 | N131: 0.7550475501 | O131: 3.081192404 | T131: 41.5 | U131: 2.402612512 | V131: 0.5597755542 | W131: 10.12026482
G132: 42 | H132: 2.566911247 | I132: 0.9671250109 | J132: 4.011346915 | L132: 42 | M132: 1.986010834 | N132: 0.7482614572 | O132: 3.103565986 | T132: 42 | U132: 2.371856343 | V132: 0.5481403939 | W132: 10.07239731
G133: 42.5 | H133: 2.564219151 | I133: 0.9582970105 | J133: 4.039902035 | L133: 42.5 | M133: 1.983927969 | N133: 0.7414312621 | O133: 3.125658988 | T133: 42.5 | U133: 2.341493887 | V133: 0.536747075 | W133: 10.02475621
G134: 43 | H134: 2.561175341 | I134: 0.9494181673 | J134: 4.06809729 | L134: 43 | M134: 1.981572983 | N134: 0.7345617302 | O134: 3.147473565 | T134: 43 | U134: 2.311520105 | V134: 0.5255905709 | W134: 9.977340436
G135: 43.5 | H135: 2.557789264 | I135: 0.9404944089 | J135: 4.095935446 | L135: 43.5 | M135: 1.978953186 | N135: 0.7276574475 | O135: 3.169011856 | T135: 43.5 | U135: 2.281930022 | V135: 0.5146659592 | W135: 9.930148938
G136: 44 | H136: 2.55407018 | I136: 0.9315314384 | J136: 4.123419251 | L136: 44 | M136: 1.976075743 | N136: 0.7207228265 | O136: 3.190275985 | T136: 44 | U136: 2.252718725 | V136: 0.50396842 | W136: 9.883180648
G137: 44.5 | H137: 2.550027171 | I137: 0.9225347411 | J137: 4.150551433 | L137: 44.5 | M137: 1.97294768 | N137: 0.7137621113 | O137: 3.211268066 | T137: 44.5 | U137: 2.223881366 | V137: 0.4934932334 | W137: 9.836434513
G138: 45 | H138: 2.545669139 | I138: 0.9135095915 | J138: 4.177334705 | L138: 45 | M138: 1.969575885 | N138: 0.7067793826 | O138: 3.231990196 | T138: 45 | U138: 2.195413159 | V138: 0.4832357778 | W138: 9.78990948
G139: 45.5 | H139: 2.541004812 | I139: 0.9044610593 | J139: 4.203771759 | L139: 45.5 | M139: 1.965967111 | N139: 0.6997785628 | O139: 3.252444458 | T139: 45.5 | U139: 2.167309376 | V139: 0.4731915275 | W139: 9.743604505
G140: 46 | H140: 2.536042746 | I140: 0.8953940155 | J140: 4.229865272 | L140: 46 | M140: 1.962127976 | N140: 0.6927634207 | O140: 3.272632923 | T140: 46 | U140: 2.139565354 | V140: 0.463356051 | W140: 9.697518546
G141: 46.5 | H141: 2.530791328 | I141: 0.8863131391 | J141: 4.255617902 | L141: 46.5 | M141: 1.958064971 | N141: 0.6857375763 | O141: 3.292557649 | T141: 46.5 | U141: 2.112176487 | V141: 0.4537250089 | W141: 9.651650567
G142: 47 | H142: 2.525258779 | I142: 0.8772229223 | J142: 4.281032289 | L142: 47 | M142: 1.953784456 | N142: 0.6787045053 | O142: 3.312220677 | T142: 47 | U142: 2.085138228 | V142: 0.4442941518 | W142: 9.605999538
G143: 47.5 | H143: 2.519453157 | I143: 0.8681276766 | J143: 4.306111058 | L143: 47.5 | M143: 1.949292666 | N143: 0.6716675435 | O143: 3.331624039 | T143: 47.5 | U143: 2.05844609 | V143: 0.4350593189 | W143: 9.560564433
G144: 48 | H144: 2.513382361 | I144: 0.8590315384 | J144: 4.330856815 | L144: 48 | M144: 1.94459571 | N144: 0.6646298911 | O144: 3.35076975 | T144: 48 | U144: 2.032095642 | V144: 0.4260164358 | W144: 9.515344229
G145: 48.5 | H145: 2.50705413 | I145: 0.8499384742 | J145: 4.355272149 | L145: 48.5 | M145: 1.939699579 | N145: 0.6575946171 | O145: 3.369659814 | T145: 48.5 | U145: 2.006082509 | V145: 0.4171615126 | W145: 9.470337911
G146: 49 | H146: 2.500476051 | I146: 0.8408522861 | J146: 4.379359631 | L146: 49 | M146: 1.934610141 | N146: 0.650564663 | O146: 3.38829622 | T146: 49 | U146: 1.980402374 | V146: 0.4084906425 | W146: 9.425544467
G147: 49.5 | H147: 2.493655557 | I147: 0.8317766167 | J147: 4.403121818 | L147: 49.5 | M147: 1.929333147 | N147: 0.6435428473 | O147: 3.406680947 | T147: 49.5 | U147: 1.955050974 | V147: 0.4 | W147: 9.38096289
G148: 50 | H148: 2.486599932 | I148: 0.8227149542 | J148: 4.426561248 | L148: 50 | M148: 1.923874233 | N148: 0.6365318687 | O148: 3.424815957 | T148: 50 | U148: 1.9300241 | V148: 0.3916858389 | W148: 9.336592178
G149: 50.5 | H149: 2.479316314 | I149: 0.8136706375 | J149: 4.449680441 | L149: 50.5 | M149: 1.918238922 | N149: 0.6295343104 | O149: 3.442703201 | T149: 50.5 | U149: 1.905317599 | V149: 0.383544491 | W149: 9.292431333
G150: 51 | H150: 2.471811697 | I150: 0.8046468603 | J150: 4.472481904 | L150: 51 | M150: 1.912432624 | N150: 0.6225526435 | O150: 3.460344618 | T150: 51 | U150: 1.880927369 | V150: 0.3755723643 | W150: 9.248479364
G151: 51.5 | H151: 2.464092932 | I151: 0.7956466762 | J151: 4.494968124 | L151: 51.5 | M151: 1.90646064 | N151: 0.6155892306 | O151: 3.477742133 | T151: 51.5 | U151: 1.856849362 | V151: 0.3677659414 | W151: 9.204735281
G152: 52 | H152: 2.456166731 | I152: 0.7866730031 | J152: 4.517141574 | L152: 52 | M152: 1.900328165 | N152: 0.608646329 | O152: 3.494897658 | T152: 52 | U152: 1.833079581 | V152: 0.3601217782 | W152: 9.161198102
G153: 52.5 | H153: 2.44803967 | I153: 0.7777286272 | J153: 4.539004708 | L153: 52.5 | M153: 1.894040284 | N153: 0.6017260947 | O153: 3.511813094 | T153: 52.5 | U153: 1.80961408 | V153: 0.352636502 | W153: 9.117866849
G154: 53 | H154: 2.43971819 | I154: 0.7688162075 | J154: 4.560559968 | L154: 53 | M154: 1.887601983 | N154: 0.5948305847 | O154: 3.528490328 | T154: 53 | U154: 1.786448964 | V154: 0.3453068103 | W154: 9.074740546
G155: 53.5 | H155: 2.431208602 | I155: 0.7599382799 | J155: 4.581809775 | L155: 53.5 | M155: 1.881018142 | N155: 0.5879617612 | O155: 3.544931235 | T155: 53.5 | U155: 1.763580388 | V155: 0.3381294692 | W155: 9.031818225
G156: 54 | H156: 2.422517083 | I156: 0.751097261 | J156: 4.602756538 | L156: 54 | M156: 1.874293542 | N156: 0.5811214937 | O156: 3.561137676 | T156: 54 | U156: 1.741004555 | V156: 0.331101312 | W156: 8.989098921
G157: 54.5 | H157: 2.413649688 | I157: 0.7422954519 | J157: 4.623402647 | L157: 54.5 | M157: 1.867432867 | N157: 0.5743115629 | O157: 3.577111503 | T157: 54.5 | U157: 1.718717719 | V157: 0.3242192378 | W157: 8.946581673
G158: 55 | H158: 2.404612342 | I158: 0.7335350424 | J158: 4.643750478 | L158: 55 | M158: 1.860440703 | N158: 0.5675336627 | O158: 3.592854554 | T158: 55 | U158: 1.69671618 | V158: 0.3174802104 | W158: 8.904265527
G159: 55.5 | H159: 2.39541085 | I159: 0.724818114 | J159: 4.663802391 | L159: 55.5 | M159: 1.853321539 | N159: 0.5607894037 | O159: 3.608368653 | T159: 55.5 | U159: 1.674996285 | V159: 0.3108812564 | W159: 8.86214953
G160: 56 | H160: 2.386050896 | I160: 0.7161466441 | J160: 4.68356073 | L160: 56 | M160: 1.846079773 | N160: 0.5540803158 | O160: 3.623655615 | T160: 56 | U160: 1.65355443 | V160: 0.3044194642 | W160: 8.820232737
G161: 56.5 | H161: 2.376538044 | I161: 0.7075225088 | J161: 4.703027824 | L161: 56.5 | M161: 1.83871971 | N161: 0.5474078505 | O161: 3.638717242 | T161: 56.5 | U161: 1.632387055 | V161: 0.2980919831 | W161: 8.778514204
G162: 57 | H162: 2.366877743 | I162: 0.6989474868 | J162: 4.722205984 | L162: 57 | M162: 1.831245567 | N162: 0.540773384 | O162: 3.653555322 | T162: 57 | U162: 1.611490646 | V162: 0.2918960211 | W162: 8.736992994
G163: 57.5 | H163: 2.357075326 | I163: 0.6904232623 | J163: 4.74109751 | L163: 57.5 | M163: 1.823661469 | N163: 0.5341782194 | O163: 3.668171634 | T163: 57.5 | U163: 1.590861735 | V163: 0.2858288448 | W163: 8.695668174
G164: 58 | H164: 2.347136015 | I164: 0.6819514283 | J164: 4.759704684 | L164: 58 | M164: 1.815971457 | N164: 0.5276235892 | O164: 3.682567943 | T164: 58 | U164: 1.570496898 | V164: 0.2798877771 | W164: 8.654538816
G165: 58.5 | H165: 2.337064922 | I165: 0.6735334897 | J165: 4.778029772 | L165: 58.5 | M165: 1.808179484 | N165: 0.5211106577 | O165: 3.696746004 | T165: 58.5 | U165: 1.550392753 | V165: 0.2740701969 | W165: 8.613603993
G166: 59 | H166: 2.326867048 | I166: 0.6651708661 | J166: 4.796075028 | L166: 59 | M166: 1.800289423 | N166: 0.5146405231 | O166: 3.710707559 | T166: 59 | U166: 1.530545965 | V166: 0.2683735375 | W166: 8.572862787
G167: 59.5 | H167: 2.31654729 | I167: 0.6568648948 | J167: 4.813842688 | L167: 59.5 | M167: 1.79230506 | N167: 0.5082142203 | O167: 3.72445434 | T167: 59.5 | U167: 1.510953238 | V167: 0.2627952855 | W167: 8.532314281
G168: 60 | H168: 2.30611044 | I168: 0.6486168337 | J168: 4.831334974 | L168: 60 | M168: 1.784230104 | N168: 0.5018327224 | O168: 3.737988065 | T168: 60 | U168: 1.49161132 | V168: 0.2573329796 | W168: 8.491957565
G169: 60.5 | H169: 2.295561187 | I169: 0.6404278639 | J169: 4.848554095 | L169: 60.5 | M169: 1.776068181 | N169: 0.4954969432 | O169: 3.751310442 | T169: 60.5 | U169: 1.472517 | V169: 0.25198421 | W169: 8.45179173
G170: 61 | H170: 2.284904118 | I170: 0.6322990922 | J170: 4.865502242 | L170: 61 | M170: 1.767822841 | N170: 0.4892077392 | O170: 3.764423168 | T170: 61 | U170: 1.45366711 | V170: 0.2467466167 | W170: 8.411815875
G171: 61.5 | H171: 2.274143723 | I171: 0.6242315542 | J171: 4.882181594 | L171: 61.5 | M171: 1.759497559 | N171: 0.4829659114 | O171: 3.777327928 | T171: 61.5 | U171: 1.435058519 | V171: 0.2416178889 | W171: 8.372029099
G172: 62 | H172: 2.263284393 | I172: 0.6162262162 | J172: 4.898594314 | L172: 62 | M172: 1.751095731 | N172: 0.4767722076 | O172: 3.790026396 | T172: 62 | U172: 1.41668814 | V172: 0.2365957637 | W172: 8.332430511
G173: 62.5 | H173: 2.252330425 | I173: 0.608283978 | J173: 4.914742552 | L173: 62.5 | M173: 1.742620682 | N173: 0.4706273238 | O173: 3.802520235 | T173: 62.5 | U173: 1.398552922 | V173: 0.2316780255 | W173: 8.293019218
G174: 63 | H174: 2.241286022 | I174: 0.6004056749 | J174: 4.930628443 | L174: 63 | M174: 1.734075663 | N174: 0.4645319065 | O174: 3.814811096 | T174: 63 | U174: 1.380649856 | V174: 0.2268625044 | W174: 8.253794335
G175: 63.5 | H175: 2.230155292 | I175: 0.5925920805 | J175: 4.946254106 | L175: 63.5 | M175: 1.725463854 | N175: 0.4584865541 | O175: 3.826900621 | T175: 63.5 | U175: 1.36297597 | V175: 0.2221470759 | W175: 8.214754981
G176: 64 | H176: =C$19* C$8 * $G176* EXP(-C$19 *$G176) -> 2.218942257 | I176: =C$20* C$9 * $G176* EXP(-C$20 *$G176) -> 0.5848439085 | J176: =C$21* C$10 * $G176* EXP(-C$21 *$G176) -> 4.961621648 | L176: =G176 -> 64 | M176: =H176*$C$13 -> 1.716788366 | N176: 0.4524918188 | O176: 3.838790438 | T176: =G176 -> 64 | U176: =$C$8*EXP(-$C$19*T176) -> 1.345528329 | V176: =$C$9*EXP(-C$20*T176) -> 0.2175296595 | W176: =$C$10*EXP(-$C$21*T176) -> 8.175900278
G177: 64.5 | H177: 2.207650848 | I177: 0.5771618149 | J177: 4.976733162 | L177: 64.5 | M177: 1.708052239 | N177: 0.4465482081 | O177: 3.850482167 | T177: 64.5 | U177: 1.328304038 | V177: 0.2130082179 | W177: 8.137229352
G178: 65 | H178: 2.196284909 | I178: 0.5695464003 | J178: 4.991590725 | L178: 65 | M178: 1.699258449 | N178: 0.4406561867 | O178: 3.861977414 | T178: 65 | U178: 1.311300237 | V178: 0.2085807563 | W178: 8.098741335
G179: 65.5 | H179: 2.184848197 | I179: 0.5619982116 | J179: 5.006196401 | L179: 65.5 | M179: 1.690409903 | N179: 0.4348161778 | O179: 3.873277779 | T179: 65.5 | U179: 1.294514104 | V179: 0.2042453213 | W179: 8.060435361
G180: 66 | H180: 2.173344388 | I180: 0.5545177444 | J180: 5.020552242 | L180: 66 | M180: 1.681509444 | N180: 0.4290285649 | O180: 3.884384846 | T180: 66 | U180: 1.277942853 | V180: 0.2 | W180: 8.022310569
G181: 66.5 | H181: 2.161777074 | I181: 0.5471054446 | J181: 5.034660283 | L181: 66.5 | M181: 1.67255985 | N181: 0.4232936927 | O181: 3.895300191 | T181: 66.5 | U181: 1.261583733 | V181: 0.1958429194 | W181: 7.984366103
G182: 67 | H182: 2.150149766 | I182: 0.53976171 | J182: 5.048522548 | L182: 67 | M182: 1.66356384 | N182: 0.4176118693 | O182: 3.90602538 | T182: 67 | U182: 1.245434028 | V182: 0.1917722455 | W182: 7.946601109
G183: 67.5 | H183: 2.138465894 | I183: 0.5324868928 | J183: 5.062141046 | L183: 67.5 | M183: 1.654524067 | N183: 0.411983367 | O183: 3.916561968 | T183: 67.5 | U183: 1.229491057 | V183: 0.1877861821 | W183: 7.909014738
G184: 68 | H184: 2.126728813 | I184: 0.5252813008 | J184: 5.075517773 | L184: 68 | M184: 1.645443126 | N184: 0.4064084241 | O184: 3.926911497 | T184: 68 | U184: 1.213752175 | V184: 0.1838829707 | W184: 7.871606145
G185: 68.5 | H185: 2.1149418 | I185: 0.5181451992 | J185: 5.088654711 | L185: 68.5 | M185: 1.636323552 | N185: 0.4008872456 | O185: 3.937075503 | T185: 68.5 | U185: 1.198214769 | V185: 0.1800608891 | W185: 7.834374491
G186: 69 | H186: 2.103108055 | I186: 0.5110788122 | J186: 5.10155383 | L186: 69 | M186: 1.627167823 | N186: 0.3954200051 | O186: 3.947055509 | T186: 69 | U186: 1.182876258 | V186: 0.176318251 | W186: 7.797318937
G187: 69.5 | H187: 2.091230708 | I187: 0.5040823248 | J187: 5.114217085 | L187: 69.5 | M187: 1.617978358 | N187: 0.3900068456 | O187: 3.956853028 | T187: 69.5 | U187: 1.167734098 | V187: 0.1726534051 | W187: 7.760438651
G188: 70 | H188: 2.079312814 | I188: 0.4971558841 | J188: 5.126646418 | L188: 70 | M188: 1.608757522 | N188: 0.3846478811 | O188: 3.966469563 | T188: 70 | U188: 1.152785775 | V188: 0.1690647346 | W188: 7.723732804
G189: 70.5 | H189: 2.067357357 | I189: 0.4902996009 | J189: 5.13884376 | L189: 70.5 | M189: 1.599507624 | N189: 0.3793431973 | O189: 3.975906606 | T189: 70.5 | U189: 1.138028808 | V189: 0.165550656 | W189: 7.687200571
G190: 71 | H190: 2.055367251 | I190: 0.4835135513 | J190: 5.150811026 | L190: 71 | M190: 1.590230919 | N190: 0.3740928529 | O190: 3.985165641 | T190: 71 | U190: 1.123460746 | V190: 0.1621096189 | W190: 7.65084113
G191: 71.5 | H191: 2.043345344 | I191: 0.4767977776 | J191: 5.162550122 | L191: 71.5 | M191: 1.580929608 | N191: 0.3688968807 | O191: 3.994248141 | T191: 71.5 | U191: 1.109079172 | V191: 0.1587401052 | W191: 7.614653665
G192: 72 | H192: 2.031294413 | I192: 0.4701522902 | J192: 5.174062936 | L192: 72 | M192: 1.571605843 | N192: 0.3637552889 | O192: 4.003155567 | T192: 72 | U192: 1.094881699 | V192: 0.1554406282 | W192: 7.578637361
G193: 72.5 | H193: 2.019217173 | I193: 0.4635770687 | J193: 5.185351347 | L193: 72.5 | M193: 1.562261721 | N193: 0.3586680615 | O193: 4.011889374 | T193: 72.5 | U193: 1.080865969 | V193: 0.1522097321 | W193: 7.54279141
G194: 73 | H194: 2.007116271 | I194: 0.4570720632 | J194: 5.196417221 | L194: 73 | M194: 1.552899293 | N194: 0.3536351601 | O194: 4.020451004 | T194: 73 | U194: 1.067029657 | V194: 0.1490459915 | W194: 7.507115006
G195: 73.5 | H195: 1.994994292 | I195: 0.4506371954 | J195: 5.207262409 | L195: 73.5 | M195: 1.543520558 | N195: 0.3486565239 | O195: 4.028841891 | T195: 73.5 | U195: 1.053370465 | V195: 0.1459480106 | W195: 7.471607346
G196: 74 | H196: 1.982853759 | I196: 0.4442723601 | J196: 5.217888753 | L196: 74 | M196: 1.534127467 | N196: 0.3437320716 | O196: 4.037063459 | T196: 74 | U196: 1.039886127 | V196: 0.1429144224 | W196: 7.436267633
G197: 74.5 | H197: 1.970697134 | I197: 0.437977426 | J197: 5.228298079 | L197: 74.5 | M197: 1.524721926 | N197: 0.3388617017 | O197: 4.04511712 | T197: 74.5 | U197: 1.026574403 | V197: 0.1399438886 | W197: 7.401095072
G198: 75 | H198: 1.958526817 | I198: 0.431752237 | J198: 5.238492203 | L198: 75 | M198: 1.515305792 | N198: 0.3340452934 | O198: 4.05300428 | T198: 75 | U198: 1.013433084 | V198: 0.1370350985 | W198: 7.366088872
G199: 75.5 | H199: 1.946345152 | I199: 0.4255966135 | J199: 5.248472927 | L199: 75.5 | M199: 1.505880877 | N199: 0.3292827076 | O199: 4.060726334 | T199: 75.5 | U199: 1.00045999 | V199: 0.1341867688 | W199: 7.331248247
G200: 76 | H200: 1.934154423 | I200: 0.419510353 | J200: 5.258242043 | L200: 76 | M200: 1.49644895 | N200: 0.3245737878 | O200: 4.068284667 | T200: 76 | U200: 0.9876529653 | V200: 0.1313976427 | W200: 7.296572414
G201: 76.5 | H201: 1.921956859 | I201: 0.4134932315 | J201: 5.267801329 | L201: 76.5 | M201: 1.487011734 | N201: 0.3199183605 | O201: 4.075680655 | T201: 76.5 | U201: 0.9750098853 | V201: 0.1286664898 | W201: 7.262060593
G202: 77 | H202: 1.909754632 | I202: 0.4075450043 | J202: 5.27715255 | L202: 77 | M202: 1.477570911 | N202: 0.3153162366 | O202: 4.082915665 | T202: 77 | U202: 0.9625286511 | V202: 0.125992105 | W202: 7.227712008
G203: 77.5 | H203: 1.89754986 | I203: 0.401665407 | J203: 5.286297462 | L203: 77.5 | M203: 1.468128119 | N203: 0.3107672114 | O203: 4.089991053 | T203: 77.5 | U203: 0.9502071909 | V203: 0.1233733083 | W203: 7.193525887
G204: 78 | H204: 1.885344609 | I204: 0.3958541563 | J204: 5.295237808 | L204: 78 | M204: 1.458684956 | N204: 0.3062710658 | O204: 4.096908169 | T204: 78 | U204: 0.9380434594 | V204: 0.1208089444 | W204: 7.159501463
G205: 78.5 | H205: 1.87314089 | I205: 0.3901109514 | J205: 5.303975316 | L205: 78.5 | M205: 1.449242979 | N205: 0.3018275669 | O205: 4.103668351 | T205: 78.5 | U205: 0.9260354375 | V205: 0.1182978819 | W205: 7.125637969
G206: 79 | H206: 1.860940664 | I206: 0.3844354741 | J206: 5.312511707 | L206: 79 | M206: 1.439803704 | N206: 0.2974364687 | O206: 4.110272929 | T206: 79 | U206: 0.9141811319 | V206: 0.1158390128 | W206: 7.091934645
G207: 79.5 | H207: 1.848745841 | I207: 0.3788273901 | J207: 5.320848688 | L207: 79.5 | M207: 1.43036861 | N207: 0.2930975125 | O207: 4.116723223 | T207: 79.5 | U207: 0.9024785749 | V207: 0.1134312522 | W207: 7.058390733
G208: 80 | H208: 1.836558284 | I208: 0.3732863499 | J208: 5.328987953 | L208: 80 | M208: 1.420939136 | N208: 0.2888104278 | O208: 4.123020546 | T208: 80 | U208: 0.8909258239 | V208: 0.111073538 | W208: 7.02500548
G209: 80.5 | H209: 1.824379803 | I209: 0.3678119893 | J209: 5.336931186 | L209: 80.5 | M209: 1.411516685 | N209: 0.2845749329 | O209: 4.1291662 | T209: 80.5 | U209: 0.8795209612 | V209: 0.1087648297 | W209: 6.991778134
G210: 81 | H210: 1.812212164 | I210: 0.3624039303 | J210: 5.344680061 | L210: 81 | M210: 1.402102623 | N210: 0.2803907353 | O210: 4.135161479 | T210: 81 | U210: 0.8682620937 | V210: 0.1065041089 | W210: 6.95870795
G211: 81.5 | H211: 1.800057084 | I211: 0.3570617817 | J211: 5.352236237 | L211: 81.5 | M211: 1.392698278 | N211: 0.2762575324 | O211: 4.141007668 | T211: 81.5 | U211: 0.8571473526 | V211: 0.1042903781 | W211: 6.925794183
... 568 more rows

Sheet B05b
A1: Concentration of Pesticide in Contaminated Broadleaf Vegetation
A2: Short Title | B2: Concentration in food item | E2: FoodConcV6
A3: Material consumed
A4: Parameter/Assumption | B4: Code / Range | C4: Equation/ Value | D4: Units | E4: Reference/Designation
A5: Concentration on commodity immediately after last application. | B5: Cn
B6: Central | C6: =B05bMet!C27 -> 12.80797672 | D6: mg/kg food item | E6: Worksheet B05bMet
B7: Lower | C7: =B05bMet!C28 -> 4.260406649
B8: Upper | C8: =B05bMet!C29 -> 38.42384873
A9: Longer-term Concentrations
A10: Time-weighted average concentration on commodity over time, T, after the last application. | B10: ConcTWA
B11: Central | C11: =B05bMet!C31 -> 3.438727798 | D11: mg/kg food item | E11: Worksheet B05bMet
B12: Lower | C12: =B05bMet!C32 -> 0.4803063943
B13: Upper | C13: =B05bMet!C33 -> 23.05040019

Sheet B05bMet
A1: Broadleaf Vegetation: Calculation of Peak and 90-Day Time-Weighted Average of Residues for Metabolite | G1: Note: This worksheet implements the special case where the parent and metabolite kinetics are identical.
A2: Short Title | B2: Metabolite Concentrations | E2: FoodMetabEqual_ks
A3: Receptor | B3: Consumable
A4: Duration | B4: All
A5: Material consumed | B5: Broadleaf Vegetation | E5: Abrev(Param->Food)
A6: Parameter/Assumption | B6: Code / Range | C6: Equation/ Value | D6: Units | E6: Reference/Designation
A7: Residue Rates for Parent Compound | B7: rr
B8: Central | C8: 45 | D8: mg/kg food per lb/acre | E8: Attachment 1, Worksheets B05b
B9: Lower | C9: 15
B10: Upper | C10: 135
A11: Molecular Weight, Parent | B11: MWP | C11: 256.47
A12: Molecular Weight, Metabolite | B12: MWM | C12: 198.43
A13: Relative Mass, Metabolite | B13: RMM | C13: =C12/C11 -> 0.7736967287 | E13: Eq
A14: Half-life of parent on commodity | B14: T50Par
B15: Central | C15: 6.2 | D15: Days | E15: Attachment 1, Worksheets B05b
B16: Lower | C16: 2.6
B17: Upper | C17: 15
A18: Degradation Rate of Parent | B18: ka
B19: Central | C19: =LN(2)/$C15 -> 0.1117979323 | D19: Days-1 | E19: Eq
B20: Lower | C20: =LN(2)/$C$16 -> 0.2665950694 | E20: Eq
B21: Upper | C21: =LN(2)/$C$17 -> 0.04620981204 | E21: Eq
A22: Expected Time to Peak Concentation of Metabolite | B22: TMax
B23: Central | C23: =1/C19 -> 8.944709254 | D23: Days | E23: Eq
B24: Lower | C24: =1/C20 -> 3.751007106 | E24: Eq
B25: Upper | C25: 21.64042561 | E25: Eq
A26: Peak Residue | B26: Peak | G26: Results for Metabolite
B27: Central | C27: =$I$27 -> 12.80797672 | D27: mg/kg food | E27: Eq | G27: Max | I27: =MAX(M48:M778) -> 12.80797672 | J27: =MAX(N47:N777) -> 4.260406649 | K27: =MAX(O47:O777) -> 38.42384873
B28: Lower | C28: =$J$27 -> 4.260406649 | E28: Eq | G28: Max 90 Day TWA | I28: =MAX(P227:P777) -> 3.438727798 | J28: =MAX(Q227:Q777) -> 0.4803063943 | K28: =MAX(R227:R777) -> 23.05040019
B29: Upper | C29: =$K$27 -> 38.42384873 | E29: Eq | G29: These results are linked to the green cells to the left.
A30: Maximum 90-Day TWA | B30: 90-Day TWA
B31: Central | C31: =$I$28 -> 3.438727798 | D31: mg/kg food | E31: Eq | G31: Ratio of Maximum Metabolite to Maximum Parent Parent
B32: Lower | C32: =$J$28 -> 0.4803063943 | E32: Eq | J32: Modeled Max of Metab/Max Parent: | K32: =I27/C8 -> 0.2846217048 | L32: =J27/C9 -> 0.2840271099 | M32: =K27/C10 -> 0.2846211017
B33: Upper | C33: =$K$28 -> 23.05040019 | E33: Eq | J33: Expected Max Metab/Max Parent: | K33: =EXP(-1)*$C$13 -> 0.2846271202 | L33: =EXP(-1)*$C$13 -> 0.2846271202 | M33: =EXP(-1)*$C$13 -> 0.2846271202
G45: METABOLITE | T45: PARENT (used only to plot)
G46: Conc (No MW Adjustment) | L46: Conc (Adjustment for MW) | P46: TWA | T46: Conc (No MW Adjustment)
G47: t | H47: Central | I47: Lower | J47: Upper | L47: t | M47: Central | N47: Lower | O47: Upper | P47: Central | Q47: Lower | R47: Upper | T47: t | U47: Central | V47: Lower | W47: Upper
G48: 0 | H48: =C$19* C$8 * $G48* EXP(-C$19 *$G48) -> 0 | I48: =C$20* C$9 * $G48* EXP(-C$20 *$G48) -> 0 | J48: =C$21* C$10 * $G48* EXP(-C$21 *$G48) -> 0 | L48: =G48 -> 0 | M48: =H48*$C$13 -> 0 | N48: 0 | O48: 0 | P48: Starts at Day 90 Below | T48: =G48 -> 0 | U48: =$C$8*EXP(-$C$19*T48) -> 45 | V48: =$C$9*EXP(-C$20*T48) -> 15 | W48: =$C$10*EXP(-$C$21*T48) -> 135
G49: 0.5 | H49: 2.378700025 | I49: 1.749939333 | J49: 3.047920547 | L49: 0.5 | M49: 1.840392428 | N49: 1.353922337 | O49: 2.358166156 | T49: 0.5 | U49: 42.55356025 | V49: 13.12806974 | W49: 131.9165957
G50: 1 | H50: 4.498762436 | I50: 3.063110081 | J50: 5.956611891 | L50: 1 | M50: 3.48067778 | N50: 2.369918249 | O50: 4.608611134 | T50: 1 | U50: 40.24012199 | V50: 11.48974768 | W50: 128.9036165
G51: 1.5 | H51: 6.381278612 | I51: 4.021272277 | J51: 8.730844031 | L51: 1.5 | M51: 4.937174387 | N51: 3.111245206 | O51: 6.755025465 | T51: 1.5 | U51: 38.05245457 | V51: 10.05588059 | W51: 125.9594539
G52: 2 | H52: 8.045811078 | I52: 4.692581592 | J52: 11.3752417 | L52: 2 | M52: 6.22501771 | N52: 3.630635027 | O52: 8.800987293 | T52: 2 | U52: 35.9837204 | V52: 8.80095345 | W52: 123.082536
G53: 2.5 | H53: 9.510497401 | I53: 5.133711535 | J53: 13.89428853 | L53: 2.5 | M53: 7.358240727 | N53: 3.971935821 | O53: 10.74996558 | T53: 2.5 | U53: 34.02745364 | V53: 7.70263538 | W53: 120.2713269
G54: 3 | H54: 10.79214731 | I54: 5.391657846 | J54: 16.29233105 | L54: 3 | M54: 8.349849069 | N54: 4.171508038 | O54: 12.60532323 | T54: 3 | U54: 32.17753997 | V54: 6.741382299 | W54: 117.524326
G55: 3.5 | H55: 11.90633346 | I55: 5.505271352 | J55: 18.57358264 | L55: 3.5 | M55: 9.211891252 | N55: 4.259410436 | O55: 14.37032013 | T55: 3.5 | U55: 30.42819746 | V55: 5.900089133 | W55: 114.8400667
G56: 4 | H56: 12.86747628 | I56: 5.506558954 | J56: 20.74212735 | L56: 4 | M56: 9.955524301 | N56: 4.260406649 | O56: 16.04811607 | T56: 4 | U56: 28.77395853 | V56: 5.163785442 | W56: 112.217116
G57: 4.5 | H57: 13.68892317 | I57: 5.42178675 | J57: 22.80192357 | L57: 4.5 | M57: 10.59107508 | N57: 4.194818672 | O57: 17.64177367 | T57: 4.5 | U57: 27.20965284 | V57: 4.519369028 | W57: 109.6540735
G58: 5 | H58: 14.38302264 | I58: 5.272414414 | J58: 24.75680768 | L58: 5 | M58: 11.12809757 | N58: 4.079249784 | O58: 19.15426111 | T58: 5 | U58: 25.73039114 | V58: 3.955372787 | W58: 107.149571
G59: 5.5 | H59: 14.96119339 | I59: 5.075885771 | J59: 26.61049755 | L59: 5.5 | M59: 11.57542638 | N59: 3.927196216 | O59: 20.5884549 | T59: 5.5 | U59: 24.33154999 | V59: 3.461760654 | W59: 104.7022714
G60: 6 | H60: 15.43398895 | I60: 4.846296902 | J60: 28.36659594 | L60: 6 | M60: 11.94122676 | N60: 3.74956406 | O60: 21.94714249 | T60: 6 | U60: 23.0087573 | V60: 3.02974902 | W60: 102.3108682
G61: 6.5 | H61: 15.81115801 | I61: 4.594960048 | J61: 30.02859383 | L61: 6.5 | M61: 12.23304123 | N61: 3.555105557 | O61: 23.23302481 | T61: 6.5 | U61: 21.75787867 | V61: 2.651650429 | W61: 99.97408478
G62: 7 | H62: 16.1017007 | I62: 4.33087889 | J62: 31.59987363 | L62: 7 | M62: 12.45783316 | N62: 3.35078683 | O62: 24.44871885 | T62: 7 | U62: 20.57500446 | V62: 2.320736785 | W62: 97.69067353
G63: 7.5 | H63: 16.31392121 | I63: 4.06114858 | J63: 33.08371234 | L63: 7.5 | M63: 12.62202747 | N63: 3.142097371 | O63: 25.59676001 | T63: 7.5 | U63: 19.4564376 | V63: 2.031119625 | W63: 95.45941546
G64: 8 | H64: 16.45547683 | I64: 3.791291862 | J64: 34.4832846 | L64: 8 | M64: 12.73154859 | N64: 2.933310111 | O64: 26.67960448 | T64: 8 | U64: 18.39868199 | V64: 1.777645339 | W64: 93.2791194
G65: 8.5 | H65: 16.53342378 | I65: 3.525541032 | J65: 35.80166562 | L65: 8.5 | M65: 12.79185589 | N65: 2.727699563 | O65: 27.69963157 | T65: 8.5 | U65: 17.39843161 | V65: 1.555803466 | W65: 91.14862137
G66: 9 | H66: 16.55425988 | I66: 3.267074015 | J66: 37.04183412 | L66: 9 | M66: 12.80797672 | N66: 2.527724478 | O66: 28.65914588 | T66: 9 | U66: 16.45256017 | V66: 1.361646428 | W66: 89.06678398
G67: 9.5 | H67: 16.52396446 | I67: 3.018211612 | J67: 38.20667509 | L67: 9.5 | M67: 12.78453724 | N67: 2.33518045 | O67: 29.56037953 | T67: 9.5 | U67: 15.55811134 | V67: 1.191719285 | W67: 87.03249582
G68: 10 | H68: 16.44803548 | I68: 2.780581932 | J68: 39.29898256 | L68: 10 | M68: 12.72579125 | N68: 2.151327145 | O68: 30.40549424 | T68: 10 | U68: 14.71228952 | V68: 1.042998259 | W68: 85.04467087
G69: 10.5 | H69: 16.33152428 | I69: 2.555257148 | J69: 40.32146218 | L69: 10.5 | M69: 12.63564691 | N69: 1.976994096 | O69: 31.19658338 | T69: 10.5 | U69: 13.91245108 | V69: 0.9128369257 | W69: 83.1022479
G70: 11 | H70: 16.17906778 | I70: 2.342866886 | J70: 41.27673389 | L70: 11 | M70: 12.51769181 | N70: 1.812668445 | O70: 31.93567398 | T70: 11 | U70: 13.15609611 | V70: 0.7989191217 | W70: 81.20418994
G71: 11.5 | H71: 15.9949187 | I71: 2.143691992 | J71: 42.16733435 | L71: 11.5 | M71: 12.37521627 | N71: 1.658567481 | O71: 32.62472864 | T71: 11.5 | U71: 12.44086063 | V71: 0.6992177299 | W71: 79.34948367
G72: 12 | H72: 15.7829736 | I72: 1.957741772 | J72: 42.99571941 | L72: 12 | M72: 12.21123504 | N72: 1.514698405 | O72: 33.26564745 | T72: 12 | U72: 11.76450917 | V72: 0.6119586083 | W72: 77.53713896
G73: 12.5 | H73: 15.54679903 | I73: 1.784817398 | J73: 43.76426648 | L73: 12.5 | M73: 12.02850755 | N73: 1.380907382 | O73: 33.86026981 | T73: 12.5 | U73: 11.12492777 | V73: 0.5355890193 | W73: 75.76618826
G74: 13 | H74: 15.28965589 | I74: 1.624563704 | J74: 44.47527682 | L74: 13 | M74: 11.82955674 | N74: 1.256919624 | O74: 34.41037618 | T74: 13 | U74: 10.52011742 | V74: 0.46875 | W74: 74.03568613
G75: 13.5 | H75: 15.01452215 | I75: 1.476511312 | J75: 45.13097779 | L75: 13.5 | M75: 11.61668667 | N75: 1.142371972 | O75: 34.91768988 | T75: 13.5 | U75: 9.948187791 | V75: 0.4102521795 | W75: 72.34470872
G76: 14 | H76: 14.72411394 | I76: 1.34011066 | J76: 45.73352501 | L76: 14 | M76: 11.39199879 | N76: 1.036839234 | O76: 35.38387869 | T76: 14 | U76: 9.407351301 | V76: 0.359054615 | W76: 70.69235329
G77: 14.5 | H77: 14.42090525 | I77: 1.214759334 | J77: 46.2850045 | L77: 14.5 | M77: 11.15740722 | N77: 0.9398553226 | O77: 35.81055656 | T77: 14.5 | U77: 8.895917563 | V77: 0.3142462685 | W77: 69.07773771
G78: 15 | H78: 14.10714622 | I78: 1.099823811 | J78: 46.78743469 | L78: 15 | M78: 10.91465288 | N78: 0.8509300845 | O78: 36.19928516 | T78: 15 | U78: 8.412288088 | V78: 0.2750297953 | W78: 67.5
G79: 15.5 | H79: 13.78488014 | I79: 0.99465661 | J79: 47.24276848 | L79: 15.5 | M79: 10.66531667 | N79: 0.7695625653 | O79: 36.55157542 | T79: 15.5 | U79: 7.954951288 | V79: 0.2407073556 | W79: 65.95829787
G80: 16 | H80: 13.45595934 | I80: 0.8986096411 | J80: 47.65289513 | L80: 16 | M80: 10.41083173 | N80: 0.6952513396 | O80: 36.86888907 | T80: 16 | U80: 7.522477754 | V80: 0.2106681968 | W80: 64.45180826
G81: 16.5 | H81: 13.12205988 | I81: 0.8110444403 | J81: 48.01964217 | L81: 16.5 | M81: 10.1524948 | N81: 0.6275024303 | O81: 37.15264006 | T81: 16.5 | U81: 7.113515784 | V81: 0.1843777854 | W81: 62.97972693
G82: 17 | H82: 12.78469524 | I82: 0.7313398611 | J82: 48.34477724 | L82: 17 | M82: 9.891476885 | N82: 0.5658352581 | O82: 37.404196 | T82: 17 | U82: 6.726787166 | V82: 0.1613682951 | W82: 61.54126798
G83: 17.5 | H83: 12.44522907 | I83: 0.6588976953 | J83: 48.63000985 | L83: 17.5 | M83: 9.628833016 | N83: 0.5097869914 | O83: 37.62487954 | T83: 17.5 | U83: 6.361083177 | V83: 0.1412302821 | W83: 60.13566347
G84: 18 | H84: 12.10488697 | I84: 0.5931466216 | J84: 48.87699315 | L84: 18 | M84: 9.365511448 | N84: 0.4589156007 | O84: 37.8159697 | T84: 18 | U84: 6.015260804 | V84: 0.1236053996 | W84: 58.76216302
G85: 18.5 | H85: 11.76476751 | I85: 0.5335448111 | J85: 49.08732556 | L85: 18.5 | M85: 9.102362135 | N85: 0.412801875 | O85: 37.9787032 | T85: 18.5 | U85: 5.688239179 | V85: 0.1081800204 | W85: 57.42003336
G86: 19 | H86: 11.42585239 | I86: 0.4795814643 | J86: 49.26255245 | L86: 19 | M86: 8.840144619 | N86: 0.3710506101 | O86: 38.11427568 | T86: 19 | U86: 5.378996191 | V86: 0.09467965688 | W86: 56.10855799
G87: 19.5 | H87: 11.08901592 | I87: 0.4307775045 | J87: 49.40416773 | L87: 19.5 | M87: 8.579535344 | N87: 0.333291146 | O87: 38.22384295 | T87: 19.5 | U87: 5.0865653 | V87: 0.08286407592 | W87: 54.82703675
G88: 20 | H88: 10.75503378 | I88: 0.3866856152 | J88: 49.51361536 | L88: 20 | M88: 8.321134453 | N88: 0.2991773955 | O88: 38.30852223 | T88: 20 | U88: 4.810032509 | V88: 0.07252302453 | W88: 53.5747855
G89: 20.5 | H89: 10.42459117 | I89: 0.3468897746 | J89: 49.59229089 | L89: 20.5 | M89: 8.065472082 | N89: 0.2683874838 | O89: 38.36939323 | T89: 20.5 | U89: 4.548533515 | V89: 0.06347248827 | W89: 52.35113571
G90: 21 | H90: 10.09829033 | I90: 0.3110044105 | J90: 49.6415429 | L90: 21 | M90: 7.813014196 | N90: 0.240623095 | O90: 38.40749935 | T90: 21 | U90: 4.301250999 | V90: 0.05555141686 | W90: 51.15543412
G91: 21.5 | H91: 9.776657598 | I91: 0.2786732801 | J91: 49.66267441 | L91: 21.5 | M91: 7.564168001 | N91: 0.2156086052 | O91: 38.42384873 | T91: 21.5 | U91: 4.067412079 | V91: 0.04861885832 | W91: 49.98704239
G92: 22 | H92: 9.460149808 | I92: 0.249568154 | J92: 49.65694428 | L92: 22 | M92: 7.319286959 | N92: 0.1930900643 | O92: 38.41941534 | T92: 22 | U92: 3.846285887 | V92: 0.04255145086 | W92: 48.84533676
G93: 22.5 | H93: 9.149160336 | I93: 0.2233873726 | J93: 49.62556851 | L93: 22.5 | M93: 7.078675422 | N93: 0.1728340794 | O93: 38.39514002 | T93: 22.5 | U93: 3.637181294 | V93: 0.03724122764 | W93: 47.72970773
G94: 23 | H94: 8.84402464 | I94: 0.1998543264 | J94: 49.56972161 | L94: 23 | M94: 6.842592932 | N94: 0.1546266385 | O94: 38.35193145 | T94: 23 | U94: 3.439444741 | V94: 0.03259369559 | W94: 46.6395597
G95: 23.5 | H95: 8.545025392 | I95: 0.1787159017 | J95: 49.49053776 | L95: 23.5 | M95: 6.611258192 | N95: 0.1382719085 | O95: 38.29066717 | T95: 23.5 | U95: 3.2524582 | V95: 0.02852615393 | W95: 45.57431068
G96: 24 | H96: 8.252397227 | I96: 0.159740924 | J96: 49.38911216 | L96: 24 | M96: 6.384852738 | N96: 0.1235910304 | O96: 38.21219451 | T96: 24 | U96: 3.075637243 | V96: 0.02496622255 | W96: 44.53339199
G97: 24.5 | H97: 7.966331133 | I97: 0.1427186244 | J97: 49.26650209 | L97: 24.5 | M97: 6.163524337 | N97: 0.1104209328 | O97: 38.1173315 | T97: 24.5 | U97: 2.908429216 | V97: 0.02185055406 | W97: 43.51624791
G98: 25 | H98: 7.686978499 | I98: 0.1274571466 | J98: 49.12372819 | L98: 25 | M98: 5.947390118 | N98: 0.09861317739 | O98: 38.0068678 | T98: 25 | U98: 2.750311508 | V98: 0.01912370651 | W98: 42.52233543
G99: 25.5 | H99: 7.414454861 | I99: 0.1137821091 | J99: 48.96177551 | L99: 25.5 | M99: 5.73653947 | N99: 0.08803284559 | O99: 37.88156554 | T99: 25.5 | U99: 2.600789922 | V99: 0.01673715685 | W99: 41.55112395
G100: 26 | H100: 7.148843348 | I100: 0.1015352315 | J100: 48.7815946 | L100: 26 | M100: 5.531036712 | N100: 0.07855747648 | O100: 37.74216016 | T100: 26 | U100: 2.459397125 | V100: 0.0146484375 | W100: 40.60209497
G101: 26.5 | H101: 6.890197869 | I101: 0.09057303186 | J101: 48.58410262 | L101: 26.5 | M101: 5.330923551 | N101: 0.07007605845 | O101: 37.58936126 | T101: 26.5 | U101: 2.325691194 | V101: 0.01282038061 | W101: 39.67474184
G102: 27 | H102: 6.638546041 | I102: 0.08076559783 | J102: 48.37018433 | L102: 27 | M102: 5.136221355 | N102: 0.06248807883 | O102: 37.42385338 | T102: 27 | U102: 2.19925423 | V102: 0.01122045672 | W102: 38.76856948
G103: 27.5 | H103: 6.393891889 | I103: 0.07199543465 | J103: 48.14069313 | L103: 27.5 | M103: 4.946933238 | N103: 0.05570263227 | O103: 37.24629679 | T103: 27.5 | U103: 2.079691052 | V103: 0.009820195891 | W103: 37.88309413
G104: 28 | H104: 6.15621833 | I104: 0.06415638896 | J104: 47.89645196 | L104: 28 | M104: 4.763045983 | N104: 0.04963758826 | O104: 37.0573282 | T104: 28 | U104: 1.966627967 | V104: 0.008594681104 | W104: 37.01784306
G105: 28.5 | H105: 5.925489458 | I105: 0.05715264795 | J105: 47.63825433 | L105: 28.5 | M105: 4.584531809 | N105: 0.04421881675 | O105: 36.85756154 | T105: 28.5 | U105: 1.859711592 | V105: 0.007522104864 | W105: 36.17235436
G106: 29 | H106: 5.701652636 | I106: 0.0508978117 | J106: 47.36686519 | L106: 29 | M106: 4.411349993 | N106: 0.03937947041 | O106: 36.64758865 | T106: 29 | U106: 1.758607762 | V106: 0.006583381151 | W106: 35.34617665
G107: 29.5 | H107: 5.484640429 | I107: 0.04531403596 | J107: 47.08302181 | L107: 29.5 | M107: 4.243448358 | N107: 0.03505932139 | O107: 36.42797995 | T107: 29.5 | U107: 1.663000474 | V107: 0.005761805794 | W107: 34.53886885
G108: 30 | H108: 5.27437236 | I108: 0.04033124234 | J108: 46.78743469 | L108: 30 | M108: 4.08076464 | N108: 0.03120415026 | O108: 36.19928516 | T108: 30 | U108: 1.572590908 | V108: 0.005042759221 | W108: 33.75
G109: 30.5 | H109: 5.070756534 | I109: 0.03588639233 | J109: 46.48078834 | L109: 30.5 | M109: 3.923227742 | N109: 0.02776518435 | O109: 35.96203388 | T109: 30.5 | U109: 1.487096488 | V109: 0.004413446317 | W109: 32.97914893
G110: 31 | H110: 4.873691113 | I110: 0.03192282165 | J110: 46.16374215 | L110: 31 | M110: 3.770758871 | N110: 0.02469858268 | O110: 35.71673629 | T110: 31 | U110: 1.40625 | V110: 0.003862668737 | W110: 32.22590413
G111: 31.5 | H111: 4.683065674 | I111: 0.028389631 | J111: 45.83693116 | L111: 31.5 | M111: 3.623272592 | N111: 0.02196496463 | O111: 35.46388369 | T111: 31.5 | U111: 1.329798758 | V111: 0.003380625639 | W111: 31.48986346
G112: 32 | H112: =C$19* C$8 * $G112* EXP(-C$19 *$G112) -> 4.498762436 | I112: =C$20* C$9 * $G112* EXP(-C$20 *$G112) -> 0.0252411297 | J112: =C$21* C$10 * $G112* EXP(-C$21 *$G112) -> 45.50096681 | L112: =G112 -> 32 | M112: =H112*$C$13 -> 3.48067778 | N112: 0.01952897948 | O112: 35.20394917 | T112: =G112 -> 32 | U112: =$C$8*EXP(-$C$19*T112) -> 1.257503812 | V112: =$C$9*EXP(-C$20*T112) -> 0.002958739277 | W112: =$C$10*EXP(-$C$21*T112) -> 30.77063399
G113: 32.5 | H113: 4.320657394 | I113: 0.02243632836 | J113: 45.15643772 | L113: 32.5 | M113: 3.342878491 | N113: 0.01735891385 | O113: 34.93738814 | T113: 32.5 | U113: 1.189139205 | V113: 0.002589502373 | W113: 30.06783174
G114: 33 | H114: 4.148621337 | I114: 0.01993847703 | J114: 44.80391038 | L114: 33 | M114: 3.209774757 | N114: 0.01542633446 | O114: 34.6646389 | T114: 33 | U114: 1.124491263 | V114: 0.002266344517 | W114: 29.38108151
G115: 33.5 | H115: 3.982520787 | I115: 0.0177146455 | J115: 44.44392989 | L115: 33.5 | M115: 3.081263304 | N115: 0.01370576327 | O115: 34.38612317 | T115: 33.5 | U115: 1.063357926 | V115: 0.001983515258 | W115: 28.71001668
G116: 34 | H116: 3.822218839 | I116: 0.0157353422 | J116: 44.07702061 | L116: 34 | M116: 2.957238212 | N116: 0.01217438278 | O116: 34.10224666 | T116: 34 | U116: 1.005548124 | V116: 0.001735981777 | W116: 28.05427899
G117: 34.5 | H117: 3.667575933 | I117: 0.01397416884 | J117: 43.70368684 | L117: 34.5 | M117: 2.837591502 | N117: 0.01081176872 | O117: 33.81339954 | T117: 34.5 | U117: 0.9508811706 | V117: 0.001519339323 | W117: 27.41351838
G118: 35 | H118: 3.518450544 | I118: 0.01240750765 | J118: 43.32441344 | L118: 35 | M118: 2.722213676 | N118: 0.009599648083 | O118: 33.51995695 | T118: 35 | U118: 0.8991862041 | V118: 0.001329732839 | W118: 26.78739275
G119: 35.5 | H119: 3.37469981 | I119: 0.01101423851 | J119: 42.93966651 | L119: 35.5 | M119: 2.610994203 | N119: 0.008521680303 | O119: 33.22227951 | T119: 35.5 | U119: 0.8503016513 | V119: 0.001163788364 | W119: 26.17556786
G120: 36 | H120: 3.236180094 | I120: 0.009775483356 | J120: 42.54989392 | L120: 36 | M120: 2.503821952 | N120: 0.007563259494 | O120: 32.92071373 | T120: 36 | U120: 0.8040747232 | V120: 0.001018552987 | W120: 25.57771706
G121: 36.5 | H121: 3.102747493 | I121: 0.008674375548 | J121: 42.15552595 | L121: 36.5 | M121: 2.400585585 | N121: 0.006711335985 | O121: 32.61559253 | T121: 36.5 | U121: 0.7603609373 | V121: 0.0008914423102 | W121: 24.99352119
G122: 37 | H122: 2.974258288 | I122: 0.007695851809 | J122: 41.75697587 | L122: 37 | M122: 2.301173907 | N122: 0.005954255369 | O122: 32.30723563 | T122: 37 | U122: 0.7190236657 | V122: 0.0007801944547 | W122: 24.42266838
G123: 37.5 | H123: 2.850569352 | I123: 0.006826464817 | J123: 41.35464043 | L123: 37.5 | M123: 2.205476183 | N123: 0.005281613497 | O123: 31.99595001 | T123: 37.5 | U123: 0.6799337083 | V123: 0.0006828298144 | W123: 23.86485387
G124: 38 | H124: 2.731538511 | I124: 0.006054214465 | J124: 40.94890046 | L124: 38 | M124: 2.11338241 | N124: 0.004684125926 | O124: 31.68203033 | T124: 38 | U124: 0.6429688894 | V124: 0.0005976158284 | W124: 23.31977985
G125: 38.5 | H125: 2.61702486 | I125: 0.005368396079 | J125: 40.54012136 | L125: 38.5 | M125: 2.024783573 | N125: 0.004153510484 | O125: 31.36575928 | T125: 38.5 | U125: 0.6080136749 | V125: 0.0005230361517 | W125: 22.78715534
G126: 39 | H126: 2.506889049 | I126: 0.004759463978 | J126: 40.12865363 | L126: 39 | M126: 1.939571856 | N126: 0.00368238171 | O126: 31.04740804 | T126: 39 | U126: 0.5749588121 | V126: 0.0004577636719 | W126: 22.26669599
G127: 39.5 | H127: 2.400993527 | I127: 0.004218908913 | J127: 39.71483332 | L127: 39.5 | M127: 1.857640837 | N127: 0.003264156025 | O127: 30.72723662 | T127: 39.5 | U127: 0.5437009878 | V127: 0.000400636894 | W127: 21.75812395
G128: 40 | H128: 2.299202761 | I128: 0.003739148048 | J128: 39.29898256 | L128: 40 | M128: 1.778885655 | N128: 0.002892966612 | O128: 30.40549424 | T128: 40 | U128: 0.5141425054 | V128: 0.0003506392725 | W128: 21.26116772
G129: 40.5 | H129: 2.201383422 | I129: 0.003313426254 | J129: 38.88140996 | L129: 40.5 | M129: 1.703203153 | N129: 0.002563587053 | O129: 30.08241969 | T129: 40.5 | U129: 0.4861909795 | V129: 0.0003068811216 | W129: 20.77556198
G130: 41 | H130: 2.107404546 | I130: 0.00293572762 | J130: 38.46241112 | L130: 41 | M130: 1.630492004 | N130: 0.002271362856 | O130: 29.75824166 | T130: 41 | U130: 0.4597590475 | V130: 0.0002685837845 | W130: 20.30104748
G131: 41.5 | H131: 2.017137671 | I131: 0.002600696151 | J131: 38.04226903 | L131: 41.5 | M131: 1.560652817 | N131: 0.002012150105 | O131: 29.4331791 | T131: 41.5 | U131: 0.4347640962 | V131: 0.000235065777 | W131: 19.83737092
G132: 42 | H132: 1.93045695 | I132: 0.002303564754 | J132: 37.62125448 | L132: 42 | M132: 1.493588227 | N132: 0.001782260514 | O132: 29.10744152 | T132: 42 | U132: 0.4111280035 | V132: 0.000205730661 | W132: 19.38428474
G133: 42.5 | H133: 1.847239252 | I133: 0.002040091661 | J133: 37.19962651 | L133: 42.5 | M133: 1.429202966 | N133: 0.001578412245 | O133: 28.78122934 | T133: 42.5 | U133: 0.3887768948 | V133: 0.0001800564311 | W133: 18.94154707
G134: 43 | H134: 1.767364231 | I134: 0.001806503563 | J134: 36.77763276 | L134: 43 | M134: 1.367403924 | N134: 0.001397685897 | O134: 28.45473415 | T134: 43 | U134: 0.3676409115 | V134: 0.0001575862256 | W134: 18.50892153
G135: 43.5 | H135: 1.690714394 | I135: 0.00159944474 | J135: 36.35550989 | L135: 43.5 | M135: 1.308100196 | N135: 0.001237485163 | O135: 28.12813907 | T135: 43.5 | U135: 0.3476539928 | V135: 0.0001379201974 | W135: 18.08617718
G136: 44 | H136: 1.617175142 | I136: 0.001415931605 | J136: 35.93348394 | L136: 44 | M136: 1.251203117 | N136: 0.001095501651 | O136: 27.80161897 | T136: 44 | U136: 0.3287536695 | V136: 0.000120708398 | W136: 17.67308832
G137: 44.5 | H137: 1.546634804 | I137: 0.001253312083 | J137: 35.51177069 | L137: 44.5 | M137: 1.196626289 | N137: 0.0009696834584 | O137: 27.47534081 | T137: 44.5 | U137: 0.3108808685 | V137: 0.0001056445512 | W137: 17.26943443
G138: 45 | H138: 1.478984659 | I138: 0.001109229333 | J138: 35.09057602 | L138: 45 | M138: 1.144285593 | N138: 0.0008582071059 | O138: 27.14946387 | T138: 45 | U138: 0.2939797281 | V138: 9.246060242e-05 | W138: 16.875
G139: 45.5 | H139: 1.414118942 | I139: 0.0009815893656 | J139: 34.67009622 | L139: 45.5 | M139: 1.094099199 | N139: 0.0007594524811 | O139: 26.82414003 | T139: 45.5 | U139: 0.2779974238 | V139: 8.092194914e-05 | W139: 16.48957447
G140: 46 | H140: 1.351934846 | I140: 0.0008685321436 | J140: 34.25051837 | L140: 46 | M140: 1.045987568 | N140: 0.0006719804782 | O140: 26.49951402 | T140: 46 | U140: 0.2628840028 | V140: 7.082326614e-05 | W140: 16.11295207
G141: 46.5 | H141: 1.292332513 | I141: 0.0007684057983 | J141: 33.83202062 | L141: 46.5 | M141: 0.9998734379 | N141: 0.0005945130524 | O141: 26.17572368 | T141: 46.5 | U141: 0.2485922278 | V141: 6.198485183e-05 | W141: 15.74493173
G142: 47 | H142: 1.235215018 | I142: 0.0006797436428 | J142: 33.4147725 | L142: 47 | M142: 0.9556818185 | N142: 0.0005259154328 | O142: 25.85290017 | T142: 47 | U142: 0.2350774298 | V142: 5.424943052e-05 | W142: 15.38531699
G143: 47.5 | H143: 1.180488342 | I143: 0.0006012436775 | J143: 32.99893526 | L143: 47.5 | M143: 0.9133399681 | N143: 0.0004651802664 | O143: 25.53116826 | T143: 47.5 | U143: 0.2222973683 | V143: 4.747935383e-05 | W143: 15.03391587
G144: 48 | H144: 1.128061345 | I144: 0.000531750328 | J144: 32.5846621 | L144: 48 | M144: 0.8727773722 | N144: 0.0004114134893 | O144: 25.21064647 | T144: 48 | U144: 0.210212099 | V144: 4.155415123e-05 | W144: 14.69054076
G145: 48.5 | H145: 1.077845732 | I145: 0.0004702381758 | J145: 32.17209851 | L145: 48.5 | M145: 0.8339257166 | N145: 0.0003638217383 | O145: 24.89144737 | T145: 48.5 | U145: 0.1987838493 | V145: 3.636838637e-05 | W145: 14.35500834
G146: 49 | H146: 1.029756009 | I146: 0.0004157974692 | J146: 31.7613825 | L146: 49 | M146: 0.7967188559 | N146: 0.0003217011417 | O146: 24.57367774 | T146: 49 | U146: 0.1879769001 | V146: 3.182978085e-05 | W146: 14.0271395
G147: 49.5 | H147: 0.9837094455 | I147: 0.000367621224 | J147: 31.3526449 | L147: 49.5 | M147: 0.7610927799 | N147: 0.0002844273384 | O147: 24.2574388 | T147: 49.5 | U147: 0.1777574743 | V147: 2.785757219e-05 | W147: 13.70675919
G148: 50 | H148: 0.9396260191 | I148: 0.0003249937419 | J148: 30.9460096 | L148: 50 | M148: 0.7269855772 | N148: 0.000251446595 | O148: 23.94282639 | T148: 50 | U148: 0.168093631 | V148: 2.438107671e-05 | W148: 13.39369638
G149: 50.5 | H149: 0.897428372 | I149: 0.0002872803944 | J149: 30.54159378 | L149: 50.5 | M149: 0.6943373956 | N149: 0.0002222679013 | O149: 23.6299312 | T149: 50.5 | U149: 0.1589551656 | V149: 2.13384317e-05 | W149: 13.08778393
G150: 51 | H150: 0.8570417545 | I150: 0.0002539185343 | J150: 30.13950819 | L150: 51 | M150: 0.6630904018 | N150: 0.0001964559393 | O150: 23.31883889 | T150: 51 | U150: 0.1503135159 | V150: 1.867549464e-05 | W150: 12.78885853
G151: 51.5 | H151: 0.818393971 | I151: 0.000224409414 | J151: 29.73985735 | L151: 51.5 | M151: 0.6331887382 | N151: 0.0001736248295 | O151: 23.00963034 | T151: 51.5 | U151: 0.1421416723 | V151: 1.634487974e-05 | W151: 12.4967606
G152: 52 | H152: 0.7814153234 | I152: 0.0001983109991 | J152: 29.3427398 | L152: 52 | M152: 0.6045784794 | N152: 0.0001534325712 | O152: 22.70238179 | T152: 52 | U152: 0.1344140937 | V152: 1.430511475e-05 | W152: 12.21133419
G153: 52.5 | H153: 0.7460385522 | I153: 0.0001752315807 | J153: 28.9482483 | L153: 52.5 | M153: 0.5772075873 | N153: 0.0001355761007 | O153: 22.39716501 | T153: 52.5 | U153: 0.1271066275 | V153: 1.251990294e-05 | W153: 11.93242693
G154: 53 | H154: 0.7121987781 | I154: 0.0001548240988 | J154: 28.55647006 | L154: 53 | M154: 0.5510258648 | N154: 0.0001197868988 | O154: 22.09404746 | T154: 53 | U154: 0.120196434 | V154: 1.095747726e-05 | W154: 11.65988992
G155: 53.5 | H155: 0.6798334416 | I155: 0.0001367810992 | J155: 28.16748692 | L155: 53.5 | M155: 0.5259849098 | N155: 0.000105827089 | O155: 21.79309248 | T155: 53.5 | U155: 0.1136619154 | V155: 9.59003505e-06 | W155: 11.39357767
G156: 54 | H156: 0.6488822426 | I156: 0.0001208302526 | J156: 27.78137559 | L156: 54 | M156: 0.5020380684 | N156: 9.348597119e-05 | O156: 21.49435941 | T156: 54 | U156: 0.1074826481 | V156: 8.393243265e-06 | W156: 11.133348
G157: 54.5 | H157: 0.6192870796 | I157: 0.0001067303767 | J157: 27.3982078 | L157: 54.5 | M157: 0.4791403876 | N157: 8.25769433e-05 | O157: 21.19790374 | T157: 54.5 | U157: 0.1016393187 | V157: 7.345805531e-06 | W157: 10.87906198
G158: 55 | H158: 0.5909919889 | I158: 9.426790287e-05 | J158: 27.01805051 | L158: 55 | M158: 0.4572485685 | N158: 7.293476807e-05 | O158: 20.90377729 | T158: 55 | U158: 0.09611366386 | V158: 6.429083156e-06 | W158: 10.63058386
G159: 55.5 | H159: 0.563943084 | I159: 8.32537406e-05 | J159: 26.64096608 | L159: 55.5 | M159: 0.4363209193 | N159: 6.441314675e-05 | O159: 20.61202831 | T159: 55.5 | U159: 0.09088841301 | V159: 5.62676347e-06 | W159: 10.38778099
G160: 56 | H160: 0.5380884949 | I160: 7.352049385e-05 | J160: 26.26701247 | L160: 56 | M160: 0.4163173083 | N160: 5.688256558e-05 | O160: 20.32270162 | T160: 56 | U160: 0.08594723464 | V160: 4.924569551e-06 | W160: 10.15052374
G161: 56.5 | H161: 0.5133783084 | I161: 6.491999125e-05 | J161: 25.89624338 | L161: 56.5 | M161: 0.3971991177 | N161: 5.022838486e-05 | O161: 20.03583878 | T161: 56.5 | U161: 0.08127468505 | V161: 4.310006169e-06 | W161: 9.918685459
G162: 57 | H162: 0.4897645082 | I162: 5.732109482e-05 | J162: 25.5287084 | L162: 57 | M162: 0.3789291978 | N162: 4.434914354e-05 | O162: 19.75147818 | T162: 57 | U162: 0.07685616015 | V162: 3.772137439e-06 | W162: 9.69214237
G163: 57.5 | H163: 0.4672009168 | I163: 5.060775615e-05 | J163: 25.16445323 | L163: 57.5 | M163: 0.361471821 | N163: 3.915505538e-05 | O163: 19.46965514 | T163: 57.5 | U163: 0.07267784981 | V163: 3.301392225e-06 | W163: 9.470773533
G164: 58 | H164: 0.445643137 | I164: 4.467729256e-05 | J164: 24.80351977 | L164: 58 | M164: 0.3447926372 | N164: 3.45666751e-05 | O164: 19.1904021 | T164: 58 | U164: 0.06872669468 | V164: 2.889393826e-06 | W164: 9.254460766
G165: 58.5 | H165: 0.4250484949 | I165: 3.943885844e-05 | J165: 24.4459463 | L165: 58.5 | M165: 0.32885863 | N165: 3.051371576e-05 | O165: 18.91374868 | T165: 58.5 | U165: 0.06499034539 | V165: 2.528810911e-06 | W165: 9.04308859
G166: 59 | H166: 0.4053759838 | I166: 3.481208999e-05 | J166: 24.09176764 | L166: 59 | M166: 0.3136380725 | N166: 2.693400015e-05 | O166: 18.63972181 | T166: 59 | U166: 0.06145712395 | V166: 2.213227067e-06 | W166: 8.836544161
G167: 59.5 | H167: 0.3865862091 | I167: 3.07259039e-05 | J167: 23.74101524 | L167: 59.5 | M167: 0.2991004853 | N167: 2.377253133e-05 | O167: 18.36834582 | T167: 59.5 | U167: 0.05811598726 | V167: 1.93702662e-06 | W167: 8.634717214
G168: 60 | H168: 0.3686413342 | I168: 2.711743256e-05 | J168: 23.39371734 | L168: 60 | M168: 0.2852165944 | N168: 2.098066886e-05 | O168: 18.09964258 | T168: 60 | U168: 0.05495649256 | V168: 1.695294704e-06 | W168: 8.4375
G169: 60.5 | H169: 0.3515050275 | I169: 2.393108059e-05 | J169: 23.04989914 | L169: 60.5 | M169: 0.2719582899 | N169: 1.851539876e-05 | O169: 17.83363156 | T169: 60.5 | U169: 0.05196876483 | V169: 1.483729807e-06 | W169: 8.244787234
G170: 61 | H170: 0.3351424104 | I170: 2.111768881e-05 | J170: 22.70958283 | L170: 61 | M170: 0.2592985865 | N170: 1.633868675e-05 | O170: 17.57032995 | T170: 61 | U170: 0.04914346589 | V170: 1.298567226e-06 | W170: 8.056476033
G171: 61.5 | H171: 0.319520007 | I171: 1.863379369e-05 | J171: 22.37278783 | L171: 61.5 | M171: 0.2472115841 | N171: 1.441690522e-05 | O171: 17.30975275 | T171: 61.5 | U171: 0.04647176525 | V171: 1.136512074e-06 | W171: 7.872465866
G172: 62 | H172: 0.3046056946 | I172: 1.644097136e-05 | J172: 22.0395308 | L172: 62 | M172: 0.2356724294 | N172: 1.272032575e-05 | O172: 17.05191288 | T172: 62 | U172: 0.0439453125 | V172: 9.946806515e-07 | W172: 7.692658497
G173: 62.5 | H173: 0.2903686554 | I173: 1.450525663e-05 | J173: 21.70982583 | L173: 62.5 | M173: 0.2246572788 | N173: 1.12226696e-05 | O173: 16.79682122 | T173: 62.5 | U173: 0.04155621118 | V173: 8.705491311e-07 | W173: 7.516957934
G174: 63 | H174: 0.2767793296 | I174: 1.279662859e-05 | J174: 21.3836845 | L174: 63 | M174: 0.2141432619 | N174: 9.900709677e-06 | O174: 16.54448675 | T174: 63 | U174: 0.03929699413 | V174: 7.619086472e-07 | W174: 7.345270378
G175: 63.5 | H175: 0.2638093697 | I175: 1.12885551e-05 | J175: 21.06111603 | L175: 63.5 | M175: 0.2041084463 | N175: 8.733918153e-06 | O175: 16.29491658 | T175: 63.5 | U175: 0.03716060016 | V175: 6.668259906e-07 | W175: 7.177504171
G176: 64 | H176: =C$19* C$8 * $G176* EXP(-C$19 *$G176) -> 0.2514315962 | I176: =C$20* C$9 * $G176* EXP(-C$20 *$G176) -> 9.95758958e-06 | J176: =C$21* C$10 * $G176* EXP(-C$21 *$G176) -> 20.74212735 | L176: =G176 -> 64 | M176: =H176*$C$13 -> 0.1945318035 | N176: 7.704154483e-06 | O176: 16.04811607 | T176: =G176 -> 64 | U176: =$C$8*EXP(-$C$19*T176) -> 0.03514035195 | V176: =$C$9*EXP(-C$20*T176) -> 5.836092074e-07 | W176: =$C$10*EXP(-$C$21*T176) -> 7.013569749
G177: 64.5 | H177: 0.2396199541 | I177: 8.78301408e-06 | J177: 20.4267232 | L177: 64.5 | M177: 0.1853931746 | N177: 6.795389261e-06 | O177: 15.80408891 | T177: 64.5 | U177: 0.0332299352 | V177: 5.107774919e-07 | W177: 6.853379594
G178: 65 | H178: 0.2283494711 | I178: 7.746523401e-06 | J178: 20.11490624 | L178: 65 | M178: 0.1766732388 | N178: 5.993459814e-06 | O178: 15.56283716 | T178: 65 | U178: 0.03142337888 | V178: 4.470348358e-07 | W178: 6.696848188
G179: 65.5 | H179: 0.217596217 | I179: 6.831945555e-06 | J179: 19.80667716 | L179: 65.5 | M179: 0.1683534813 | N179: 5.285853927e-06 | O179: 15.32436132 | T179: 65.5 | U179: 0.02971503658 | V179: 3.912469668e-07 | W179: 6.543891964
G180: 66 | H180: 0.2073372642 | I180: 6.024994413e-06 | J180: 19.50203471 | L180: 66 | M180: 0.1604161631 | N180: 4.661518467e-06 | O180: 15.08866046 | T180: 66 | U180: 0.02809956888 | V180: 3.424211645e-07 | W180: 6.394429265
G181: 66.5 | H181: 0.1975506491 | I181: 5.313050875e-06 | J181: 19.20097586 | L181: 66.5 | M181: 0.152844291 | N181: 4.110690081e-06 | O181: 14.85573221 | T181: 66.5 | U181: 0.0265719266 | V181: 2.996885953e-07 | W181: 6.248380299
G182: 67 | H182: 0.1882153354 | I182: 4.684969286e-06 | J182: 18.90349583 | L182: 67 | M182: 0.1456215892 | N182: 3.624745411e-06 | O182: 14.62557289 | T182: 67 | U182: 0.0251273351 | V182: 2.62288852e-07 | W182: 6.105667095
G183: 67.5 | H183: 0.1793111779 | I183: 4.130906208e-06 | J183: 18.60958819 | L183: 67.5 | M183: 0.1387324717 | N183: 3.19606862e-06 | O183: 14.39817751 | T183: 67.5 | U183: 0.02376127929 | V183: 2.295564228e-07 | W183: 5.966213466
G184: 68 | H184: 0.1708188882 | I184: 3.642168974e-06 | J184: 18.31924494 | L184: 68 | M184: 0.132162015 | N184: 2.817934221e-06 | O184: 14.17353988 | T184: 68 | U184: 0.02246948955 | V184: 2.009088486e-07 | W184: 5.829944962
G185: 68.5 | H185: 0.1627200005 | I185: 3.211081774e-06 | J185: 18.03245658 | L185: 68.5 | M185: 0.1258959321 | N185: 2.484403464e-06 | O185: 13.95165266 | T185: 68.5 | U185: 0.02124792839 | V185: 1.758363584e-07 | W185: 5.696788835
G186: 69 | H186: 0.1549968399 | I186: 2.83086723e-06 | J186: 17.74921218 | L186: 69 | M186: 0.1199205479 | N186: 2.190232715e-06 | O186: 13.7325074 | T186: 69 | U186: 0.02009277779 | V186: 1.538927985e-07 | W186: 5.566673999
G187: 69.5 | H187: 0.1476324901 | I187: 2.495541699e-06 | J187: 17.46949947 | L187: 69.5 | M187: 0.1142227746 | N187: 1.930792449e-06 | O187: 13.51609459 | T187: 69.5 | U187: 0.01900042734 | V187: 1.346876928e-07 | W187: 5.439530989
G188: 70 | H188: 0.140610764 | I188: 2.199822718e-06 | J188: 17.19330487 | L188: 70 | M188: 0.1087900881 | N188: 1.70199564e-06 | O188: 13.30240373 | T188: 70 | U188: 0.01796746288 | V188: 1.17879295e-07 | W188: 5.315291929
G189: 70.5 | H189: 0.1339161738 | I189: 1.939047179e-06 | J189: 16.92061359 | L189: 70.5 | M189: 0.1036105056 | N189: 1.500234459e-06 | O189: 13.09142338 | T189: 70.5 | U189: 0.01699065587 | V189: 1.03168507e-07 | W189: 5.193890494
G190: 71 | H190: 0.1275339032 | I190: 1.709099015e-06 | J190: 16.65140969 | L190: 71 | M190: 0.09867256367 | N190: 1.322324317e-06 | O190: 12.88314121 | T190: 71 | U190: 0.01606695329 | V190: 9.029355705e-08 | W190: 5.075261871
G191: 71.5 | H191: 0.1214497799 | I191: 1.506345288e-06 | J191: 16.38567612 | L191: 71.5 | M191: 0.09396529738 | N191: 1.165454421e-06 | O191: 12.67754401 | T191: 71.5 | U191: 0.01519346811 | V191: 7.902534096e-08 | W191: 4.95934273
G192: 72 | H192: 0.1156502495 | I192: 1.327579703e-06 | J192: 16.12339478 | L192: 72 | M192: 0.08947821971 | N192: 1.027144073e-06 | O192: 12.47461779 | T192: 72 | U192: 0.01436747023 | V192: 6.916334584e-08 | W192: 4.846071185
G193: 72.5 | H193: 0.1101223503 | I193: 1.169972706e-06 | J193: 15.8645466 | L193: 72.5 | M193: 0.08520130215 | N193: 9.052040554e-07 | O193: 12.27434781 | T193: 72.5 | U193: 0.013586378 | V193: 6.053208186e-08 | W193: 4.735386766
G194: 73 | H194: 0.1048536885 | I194: 1.031027384e-06 | J194: 15.60911158 | L194: 73 | M194: 0.0811249558 | N194: 7.97702514e-07 | O194: 12.07671856 | T194: 73 | U194: 0.01284775011 | V194: 5.29779595e-08 | W194: 4.627230383
G195: 73.5 | H195: 0.09983241545 | I195: 9.085405078e-07 | J195: 15.35706883 | L195: 73.5 | M195: 0.07724001325 | N195: 7.029348187e-07 | O195: 11.88171392 | T195: 73.5 | U195: 0.01214927796 | V195: 4.636655648e-08 | W195: 4.521544295
G196: 74 | H196: 0.0950472043 | I196: 8.005681208e-07 | J196: 15.10839666 | L196: 74 | M196: 0.07353771103 | N196: 6.193969361e-07 | O196: 11.68931707 | T196: 74 | U196: 0.01148877848 | V196: 4.058022581e-08 | W196: 4.418272081
G197: 74.5 | H197: 0.09048722871 | I197: 7.053951372e-07 | J197: 14.86307256 | L197: 74.5 | M197: 0.07000967284 | N197: 5.457619101e-07 | O197: 11.49951062 | T197: 74.5 | U197: 0.01086418728 | V197: 3.551600231e-08 | W197: 4.317358607
G198: 75 | H198: 0.0861421418 | I198: 6.215084938e-07 | J198: 14.62107334 | L198: 75 | M198: 0.06664789331 | N198: 4.808590885e-07 | O198: 11.31227661 | T198: 75 | U198: 0.01027355217 | V198: 3.108377036e-08 | W198: 4.21875
G199: 75.5 | H199: 0.082002056 | I199: 5.475734377e-07 | J199: 14.38237508 | L199: 75.5 | M199: 0.06344472247 | N199: 4.236557775e-07 | O199: 11.12759655 | T199: 75.5 | U199: 0.00971502714 | V199: 2.720466035e-08 | W199: 4.122393617
G200: 76 | H200: 0.07805752368 | I200: 4.824125857e-07 | J200: 14.14695324 | L200: 76 | M200: 0.06039285072 | N200: 3.732410394e-07 | O200: 10.94545144 | T200: 76 | U200: 0.009186866505 | V200: 2.380964523e-08 | W200: 4.028238016
G201: 76.5 | H201: 0.07429951858 | I201: 4.249874337e-07 | J201: 13.91478267 | L201: 76.5 | M201: 0.05748529447 | N201: 3.288113872e-07 | O201: 10.76582183 | T201: 76.5 | U201: 0.008687419495 | V201: 2.083831221e-08 | W201: 3.936232933
G202: 77 | H202: 0.07071941789 | I202: 3.743820301e-07 | J202: 13.68583767 | L202: 77 | M202: 0.05471538228 | N202: 2.89658152e-07 | O202: 10.58868784 | T202: 77 | U202: 0.008215125086 | V202: 1.823778773e-08 | W202: 3.846329249
G203: 77.5 | H203: 0.06730898507 | I203: 3.297885616e-07 | J203: 13.46009201 | L203: 77.5 | M203: 0.05207674156 | N203: 2.551563313e-07 | O203: 10.41402916 | T203: 77.5 | U203: 0.007768507118 | V203: 1.596179662e-08 | W203: 3.758478967
G204: 78 | H204: 0.06406035332 | I204: 2.904946276e-07 | J204: 13.23751898 | L204: 78 | M204: 0.0495632858 | N204: 2.24754743e-07 | O204: 10.24182513 | T204: 78 | U204: 0.007346169681 | V204: 1.396983862e-08 | W204: 3.672635189
G205: 78.5 | H205: 0.06096600974 | I205: 2.558720067e-07 | J205: 13.01809141 | L205: 78.5 | M205: 0.0471692023 | N205: 1.979673346e-07 | O205: 10.07205473 | T205: 78.5 | U205: 0.006946792758 | V205: 1.222646771e-08 | W205: 3.588752085
G206: 79 | H206: 0.05801878011 | I206: 2.253667418e-07 | J206: 12.80178172 | L206: 79 | M206: 0.04488894037 | N206: 1.743655109e-07 | O206: 9.904696639 | T206: 79 | U206: 0.006569128092 | V206: 1.070066139e-08 | W206: 3.506784874
G207: 79.5 | H207: 0.05521181422 | I207: 1.984903875e-07 | J207: 12.58856197 | L207: 79.5 | M207: 0.04271720004 | N207: 1.535713635e-07 | O207: 9.739729214 | T207: 79.5 | U207: 0.00621199529 | V207: 9.365268603e-09 | W207: 3.426689797
G208: 80 | H208: 0.05253857191 | I208: 1.748122868e-07 | J208: 12.37840384 | L208: 80 | M208: 0.04064892122 | N208: 1.352516944e-07 | O208: 9.577130557 | T208: 80 | U208: 0.005874278129 | V208: 8.196526626e-09 | W208: 3.348424094
G209: 80.5 | H209: 0.04999280957 | I209: 1.539527545e-07 | J209: 12.17127871 | L209: 80.5 | M209: 0.03867927322 | N209: 1.191127425e-07 | O209: 9.416878522 | T209: 80.5 | U209: 0.005554921073 | V209: 7.173638214e-09 | W209: 3.271945982
G210: 81 | H210: 0.04756856722 | I210: 1.35577062e-07 | J210: 11.96715766 | L210: 81 | M210: 0.03680364484 | N210: 1.048955294e-07 | O210: 9.258950736 | T210: 81 | U210: 0.005252925968 | V210: 6.278401519e-09 | W210: 3.197214632
G211: 81.5 | H211: 0.04526015614 | I211: 1.193901298e-07 | J211: 11.76601152 | L211: 81.5 | M211: 0.03501763474 | N211: 9.237175289e-08 | O211: 9.103324626 | T211: 81.5 | U211: 0.004967348925 | V211: 5.494886202e-09 | W211: 3.124190149
... 568 more rows

Sheet B05c
A1: Concentration of Pesticide in Contaminated Short Grass
A2: Short Title | B2: Concentration in food item | E2: FoodConcV6
A3: Material consumed
A4: Parameter/Assumption | B4: Code / Range | C4: Equation/ Value | D4: Units | E4: Reference/Designation
A5: Concentration on commodity immediately after last application. | B5: Cn
B6: Central | C6: =B05cMet!C27 -> 24.19284491 | D6: mg/kg food item | E6: Worksheet B05cMet
B7: Lower | C7: =B05cMet!C28 -> 8.520813298
B8: Upper | C8: =B05cMet!C29 -> 68.30906441
A9: Longer-term Concentrations
A10: Time-weighted average concentration on commodity over time, T, after the last application. | B10: ConcTWA
B11: Central | C11: =B05cMet!C31 -> 6.495374729 | D11: mg/kg food item | E11: Worksheet B05cMet
B12: Lower | C12: =B05cMet!C32 -> 0.9606127886
B13: Upper | C13: =B05cMet!C33 -> 40.97848922

Sheet B05cMet
A1: Short Grass: Calculation of Peak and 90-Day Time-Weighted Average of Residues for Metabolite | G1: Note: This worksheet implements the special case where the parent and metabolite kinetics are identical.
A2: Short Title | B2: Metabolite Concentrations | E2: FoodMetabEqual_ks
A3: Receptor | B3: Consumable
A4: Duration | B4: All
A5: Material consumed | B5: Short grass
A6: Parameter/Assumption | B6: Code / Range | C6: Equation/ Value | D6: Units | E6: Reference/Designation
A7: Residue Rates for Parent Compound | B7: rr
B8: Central | C8: 85 | D8: mg/kg food per lb/acre | E8: Attachment 1, Worksheets B05c
B9: Lower | C9: 30
B10: Upper | C10: 240
A11: Molecular Weight, Parent | B11: MWP | C11: 256.47
A12: Molecular Weight, Metabolite | B12: MWM | C12: 198.43
A13: Relative Mass, Metabolite | B13: RMM | C13: =C12/C11 -> 0.7736967287 | E13: Eq
A14: Half-life of parent on commodity | B14: T50Par
B15: Central | C15: 6.2 | D15: Days | E15: Attachment 1, Worksheets B05c
B16: Lower | C16: 2.6
B17: Upper | C17: 15
A18: Degradation Rate of Parent | B18: ka
B19: Central | C19: =LN(2)/$C15 -> 0.1117979323 | D19: Days-1 | E19: Eq
B20: Lower | C20: =LN(2)/$C$16 -> 0.2665950694 | E20: Eq
B21: Upper | C21: =LN(2)/$C$17 -> 0.04620981204 | E21: Eq
A22: Expected Time to Peak Concentation of Metabolite | B22: TMax
B23: Central | C23: =1/C19 -> 8.944709254 | D23: Days | E23: Eq
B24: Lower | C24: =1/C20 -> 3.751007106 | E24: Eq
B25: Upper | C25: 21.64042561 | E25: Eq
A26: Peak Residue | B26: Peak | G26: Results for Metabolite
B27: Central | C27: =$I$27 -> 24.19284491 | D27: mg/kg food | E27: Eq | G27: Max | I27: =MAX(M48:M778) -> 24.19284491 | J27: =MAX(N47:N777) -> 8.520813298 | K27: =MAX(O47:O777) -> 68.30906441
B28: Lower | C28: =$J$27 -> 8.520813298 | E28: Eq | G28: Max 90 Day TWA | I28: =MAX(P227:P777) -> 6.495374729 | J28: =MAX(Q227:Q777) -> 0.9606127886 | K28: =MAX(R227:R777) -> 40.97848922
B29: Upper | C29: =$K$27 -> 68.30906441 | E29: Eq | G29: These results are linked to the green cells to the left.
A30: Maximum 90-Day TWA | B30: 90-Day TWA
B31: Central | C31: =$I$28 -> 6.495374729 | D31: mg/kg food | E31: Eq | G31: Ratio of Maximum Metabolite to Maximum Parent Parent
B32: Lower | C32: =$J$28 -> 0.9606127886 | E32: Eq | J32: Modeled Max of Metab/Max Parent: | K32: =I27/C8 -> 0.2846217048 | L32: =J27/C9 -> 0.2840271099 | M32: =K27/C10 -> 0.2846211017
B33: Upper | C33: =$K$28 -> 40.97848922 | E33: Eq | J33: Expected Max Metab/Max Parent: | K33: =EXP(-1)*$C$13 -> 0.2846271202 | L33: =EXP(-1)*$C$13 -> 0.2846271202 | M33: =EXP(-1)*$C$13 -> 0.2846271202
G45: METABOLITE | T45: PARENT (used only to plot)
G46: Conc (No MW Adjustment) | L46: Conc (Adjustment for MW) | P46: TWA | T46: Conc (No MW Adjustment)
G47: t | H47: Central | I47: Lower | J47: Upper | L47: t | M47: Central | N47: Lower | O47: Upper | P47: Central | Q47: Lower | R47: Upper | T47: t | U47: Central | V47: Lower | W47: Upper
G48: 0 | H48: =C$19* C$8 * $G48* EXP(-C$19 *$G48) -> 0 | I48: =C$20* C$9 * $G48* EXP(-C$20 *$G48) -> 0 | J48: =C$21* C$10 * $G48* EXP(-C$21 *$G48) -> 0 | L48: =G48 -> 0 | M48: =H48*$C$13 -> 0 | N48: 0 | O48: 0 | P48: Starts at Day 90 Below | T48: =G48 -> 0 | U48: =$C$8*EXP(-$C$19*T48) -> 85 | V48: =$C$9*EXP(-C$20*T48) -> 30 | W48: =$C$10*EXP(-$C$21*T48) -> 240
G49: 0.5 | H49: 4.493100047 | I49: 3.499878665 | J49: 5.418525417 | L49: 0.5 | M49: 3.476296808 | N49: 2.707844674 | O49: 4.192295389 | T49: 0.5 | U49: 80.37894713 | V49: 26.25613949 | W49: 234.5183924
G50: 1 | H50: 8.49766238 | I50: 6.126220161 | J50: 10.58953225 | L50: 1 | M50: 6.574613584 | N50: 4.739836498 | O50: 8.19308646 | T50: 1 | U50: 76.00911932 | V50: 22.97949536 | W50: 229.1619849
G51: 1.5 | H51: 12.05352627 | I51: 8.042544554 | J51: 15.5215005 | L51: 1.5 | M51: 9.325773842 | N51: 6.222490412 | O51: 12.00893416 | T51: 1.5 | U51: 71.87685863 | V51: 20.11176118 | W51: 223.927918
G52: 2 | H52: 15.19764315 | I52: 9.385163185 | J52: 20.22265192 | L52: 2 | M52: 11.75836679 | N52: 7.261270054 | O52: 15.64619963 | T52: 2 | U52: 67.96924964 | V52: 17.6019069 | W52: 218.8133973
G53: 2.5 | H53: 17.96427287 | I53: 10.26742307 | J53: 24.70095739 | L53: 2.5 | M53: 13.89889915 | N53: 7.943871642 | O53: 19.11104992 | T53: 2.5 | U53: 64.2740791 | V53: 15.40527076 | W53: 213.8156924
G54: 3 | H54: 20.38516714 | I54: 10.78331569 | J54: 28.96414409 | L54: 3 | M54: 15.77193713 | N54: 8.343016076 | O54: 22.40946353 | T54: 3 | U54: 60.77979772 | V54: 13.4827646 | W54: 208.9321352
G55: 3.5 | H55: 22.48974099 | I55: 11.0105427 | J55: 33.01970248 | L55: 3.5 | M55: 17.40023903 | N55: 8.518820871 | O55: 25.54723579 | T55: 3.5 | U55: 57.47548409 | V55: 11.80017827 | W55: 204.1601186
G56: 4 | H56: 24.30523297 | I56: 11.01311791 | J56: 36.87489306 | L56: 4 | M56: 18.80487924 | N56: 8.520813298 | O56: 28.52998413 | T56: 4 | U56: 54.35081056 | V56: 10.32757088 | W56: 199.4970951
G57: 4.5 | H57: 25.85685488 | I57: 10.8435735 | J57: 40.53675301 | L57: 4.5 | M57: 20.00536404 | N57: 8.389637344 | O57: 31.36315319 | T57: 4.5 | U57: 51.39601092 | V57: 9.038738057 | W57: 194.9405751
G58: 5 | H58: 27.16793166 | I58: 10.54482883 | J58: 44.01210254 | L58: 5 | M58: 21.01973985 | N58: 8.158499568 | O58: 34.05201976 | T58: 5 | U58: 48.60184994 | V58: 7.910745574 | W58: 190.4881262
G59: 5.5 | H59: 28.26003196 | I59: 10.15177154 | J59: 47.30755121 | L59: 5.5 | M59: 21.86469428 | N59: 7.854392432 | O59: 36.60169761 | T59: 5.5 | U59: 45.95959443 | V59: 6.923521308 | W59: 186.1373714
G60: 6 | H60: 29.15309024 | I60: 9.692593805 | J60: 50.4295039 | L60: 6 | M60: 22.55565055 | N60: 7.499128119 | O60: 39.0171422 | T60: 6 | U60: 43.46098601 | V60: 6.05949804 | W60: 181.885988
G61: 6.5 | H61: 29.86552068 | I61: 9.189920095 | J61: 53.38416681 | L61: 6.5 | M61: 23.10685565 | N61: 7.110211114 | O61: 41.30315522 | T61: 6.5 | U61: 41.09821526 | V61: 5.303300859 | W61: 177.7317063
G62: 7 | H62: 30.41432354 | I62: 8.661757781 | J62: 56.17755312 | L62: 7 | M62: 23.53146263 | N62: 6.70157366 | O62: 43.46438907 | T62: 7 | U62: 38.86389731 | V62: 4.64147357 | W62: 173.6723085
G63: 7.5 | H63: 30.8151845 | I63: 8.122297161 | J63: 58.81548861 | L63: 7.5 | M63: 23.84160744 | N63: 6.284194743 | O63: 45.50535113 | T63: 7.5 | U63: 36.75104879 | V63: 4.062239249 | W63: 169.7056275
G64: 8 | H64: 31.08256735 | I64: 7.582583723 | J64: 61.30361706 | L64: 8 | M64: 24.04848068 | N64: 5.866620221 | O64: 47.43040797 | T64: 8 | U64: 34.75306598 | V64: 3.555290679 | W64: 165.8295456
G65: 8.5 | H65: 31.22980048 | I65: 7.051082064 | J65: 63.64740554 | L65: 8.5 | M65: 24.16239446 | N65: 5.455399126 | O65: 49.24378945 | T65: 8.5 | U65: 32.86370415 | V65: 3.111606933 | W65: 162.0419935
G66: 9 | H66: 31.26915755 | I66: 6.534148031 | J66: 65.85214954 | L66: 9 | M66: 24.19284491 | N66: 5.055448956 | O66: 50.94959268 | T66: 9 | U66: 31.0770581 | V66: 2.723292855 | W66: 158.3409493
G67: 9.5 | H67: 31.21193286 | I67: 6.036423223 | J67: 67.92297794 | L67: 9.5 | M67: 24.14857035 | N67: 4.6703609 | O67: 52.55178584 | T67: 9.5 | U67: 29.38754365 | V67: 2.383438569 | W67: 154.724437
G68: 10 | H68: 31.06851147 | I68: 5.561163865 | J68: 69.86485788 | L68: 10 | M68: 24.03760569 | N68: 4.30265429 | O68: 54.05421199 | T68: 10 | U68: 27.7898802 | V68: 2.085996518 | W68: 151.190526
G69: 10.5 | H69: 30.84843474 | I69: 5.110514295 | J69: 71.68259943 | L69: 10.5 | M69: 23.86733304 | N69: 3.953988192 | O69: 55.46059268 | T69: 10.5 | U69: 26.27907426 | V69: 1.825673851 | W69: 147.7373296
G70: 11 | H70: 30.56046135 | I70: 4.685733772 | J70: 73.38086025 | L70: 11 | M70: 23.64452898 | N70: 3.625336891 | O70: 56.77453152 | T70: 11 | U70: 24.85040377 | V70: 1.597838243 | W70: 144.3630043
G71: 11.5 | H71: 30.21262421 | I71: 4.287383983 | J71: 74.96414995 | L71: 11.5 | M71: 23.37540852 | N71: 3.317134962 | O71: 57.99951758 | T71: 11.5 | U71: 23.49940342 | V71: 1.39843546 | W71: 141.0657488
G72: 12 | H72: 29.81228347 | I72: 3.915483544 | J72: 76.4368345 | L72: 12 | M72: 23.06566619 | N72: 3.029396809 | O72: 59.1389288 | T72: 12 | U72: 22.22185065 | V72: 1.223917217 | W72: 137.8438026
G73: 12.5 | H73: 29.36617594 | I73: 3.569634795 | J73: 77.80314041 | L73: 12.5 | M73: 22.72051426 | N73: 2.761814764 | O73: 60.19603521 | T73: 12.5 | U73: 21.01375245 | V73: 1.071178039 | W73: 134.6954458
G74: 13 | H74: 28.88046112 | I74: 3.249127409 | J74: 79.06715879 | L74: 13 | M74: 22.34471829 | N74: 2.513839247 | O74: 61.1740021 | T74: 13 | U74: 19.87133291 | V74: 0.9375 | W74: 131.6189976
G75: 13.5 | H75: 28.36076406 | I75: 2.953022624 | J75: 80.23284941 | L75: 13.5 | M75: 21.94263037 | N75: 2.284743944 | O75: 62.07589312 | T75: 13.5 | U75: 18.79102138 | V75: 0.820504359 | W75: 128.6128155
G76: 14 | H76: 27.81221522 | I76: 2.680221321 | J76: 81.30404447 | L76: 14 | M76: 21.51821993 | N76: 2.073678468 | O76: 62.90467323 | T76: 14 | U76: 17.76944135 | V76: 0.71810923 | W76: 125.6752947
G77: 14.5 | H77: 27.2394877 | I77: 2.429518667 | J77: 82.28445244 | L77: 14.5 | M77: 21.07510252 | N77: 1.879710645 | O77: 63.66321167 | T77: 14.5 | U77: 16.80339984 | V77: 0.628492537 | W77: 122.804867
G78: 15 | H78: 26.64683175 | I78: 2.199647621 | J78: 83.17766167 | L78: 15 | M78: 20.61656655 | N78: 1.701860169 | O78: 64.35428473 | T78: 15 | U78: 15.8898775 | V78: 0.5500595906 | W78: 120
G79: 15.5 | H79: 26.03810694 | I79: 1.98931322 | J79: 83.98714396 | L79: 15.5 | M79: 20.14559816 | N79: 1.539125131 | O79: 64.98057853 | T79: 15.5 | U79: 15.0260191 | V79: 0.4814147113 | W79: 117.2591962
G80: 16 | H80: 25.41681209 | I80: 1.797219282 | J80: 84.716258 | L80: 16 | M80: 19.66490437 | N80: 1.390502679 | O80: 65.54469168 | T80: 16 | U80: 14.20912465 | V80: 0.4213363937 | W80: 114.5809925
G81: 16.5 | H81: 24.78611311 | I81: 1.622088881 | J81: 85.36825274 | L81: 16.5 | M81: 19.17693463 | N81: 1.255004861 | O81: 66.04913788 | T81: 16.5 | U81: 13.43664093 | V81: 0.3687555708 | W81: 111.963959
G82: 17 | H82: 24.14886879 | I82: 1.462679722 | J82: 85.94627065 | L82: 17 | M82: 18.68390078 | N82: 1.131670516 | O82: 66.49634844 | T82: 17 | U82: 12.70615354 | V82: 0.3227365901 | W82: 109.4066986
G83: 17.5 | H83: 23.5076549 | I83: 1.317795391 | J83: 86.45335085 | L83: 17.5 | M83: 18.1877957 | N83: 1.019573983 | O83: 66.88867473 | T83: 17.5 | U83: 12.01537933 | V83: 0.2824605643 | W83: 106.9078462
G84: 18 | H84: 22.8647865 | I84: 1.186293243 | J84: 86.89243226 | L84: 18 | M84: 17.69041051 | N84: 0.9178312014 | O84: 67.22839059 | T84: 18 | U84: 11.3621593 | V84: 0.2472107992 | W84: 104.4660676
G85: 18.5 | H85: 22.22233863 | I85: 1.067089622 | J85: 87.26635654 | L85: 18.5 | M85: 17.1933507 | N85: 0.8256037499 | O85: 67.51769458 | T85: 18.5 | U85: 10.74445178 | V85: 0.2163600409 | W85: 102.0800593
G86: 19 | H86: 21.58216563 | I86: 0.9591629286 | J86: 87.57787102 | L86: 19 | M86: 16.69805095 | N86: 0.7421012201 | O86: 67.75871231 | T86: 19 | U86: 10.16032614 | V86: 0.1893593138 | W86: 99.74854754
G87: 19.5 | H87: 20.94591897 | I87: 0.8615550089 | J87: 87.82963152 | L87: 19.5 | M87: 16.20578898 | N87: 0.666582292 | O87: 67.95349858 | T87: 19.5 | U87: 9.607956677 | V87: 0.1657281518 | W87: 97.47028756
G88: 20 | H88: 20.31506381 | I88: 0.7733712304 | J88: 88.02420509 | L88: 20 | M88: 15.71769841 | N88: 0.598354791 | O88: 68.10403952 | T88: 20 | U88: 9.085616962 | V88: 0.1450460491 | W88: 95.24406312
G89: 20.5 | H89: 19.69089442 | I89: 0.6937795492 | J89: 88.1640727 | L89: 20.5 | M89: 15.2347806 | N89: 0.5367749676 | O89: 68.21225463 | T89: 20.5 | U89: 8.591674417 | V89: 0.1269449765 | W89: 93.06868571
G90: 21 | H90: 19.07454841 | I90: 0.622008821 | J90: 88.25163183 | L90: 21 | M90: 14.7579157 | N90: 0.48124619 | O90: 68.27999884 | T90: 21 | U90: 8.124585221 | V90: 0.1111028337 | W90: 90.94299399
G91: 21.5 | H91: 18.46701991 | I91: 0.5573465602 | J91: 88.28919896 | L91: 21.5 | M91: 14.28787289 | N91: 0.4312172103 | O91: 68.30906441 | T91: 21.5 | U91: 7.682889482 | V91: 0.09723771665 | W91: 88.86585314
G92: 22 | H92: 17.86917186 | I92: 0.4991363079 | J92: 88.27901205 | L92: 22 | M92: 13.82531981 | N92: 0.3861801286 | O92: 68.30118283 | T92: 22 | U92: 7.265206676 | V92: 0.08510290173 | W92: 86.83615425
G93: 22.5 | H93: 17.2817473 | I93: 0.4467747451 | J93: 88.22323291 | L93: 22.5 | M93: 13.37083135 | N93: 0.3456681588 | O93: 68.2580267 | T93: 22.5 | U93: 6.870231333 | V93: 0.07448245528 | W93: 84.85281374
G94: 23 | H94: 16.70537988 | I94: 0.3997086528 | J94: 88.12394952 | L94: 23 | M94: 12.92489776 | N94: 0.3092532771 | O94: 68.18121146 | T94: 23 | U94: 6.496728955 | V94: 0.06518739118 | W94: 82.9147728
G95: 23.5 | H95: 16.14060352 | I95: 0.3574318034 | J95: 87.98317825 | L95: 23.5 | M95: 12.48793214 | N95: 0.276543817 | O95: 68.07229719 | T95: 23.5 | U95: 6.143532155 | V95: 0.05705230785 | W95: 81.02099677
G96: 24 | H96: 15.58786143 | I96: 0.3194818481 | J96: 87.80286606 | L96: 24 | M96: 12.06027739 | N96: 0.2471820607 | O96: 67.93279023 | T96: 24 | U96: 5.809537015 | V96: 0.0499324451 | W96: 79.17047465
G97: 24.5 | H97: 15.04751436 | I97: 0.2854372489 | J97: 87.58489261 | L97: 24.5 | M97: 11.64221264 | N97: 0.2208418657 | O97: 67.76414489 | T97: 24.5 | U97: 5.493699631 | V97: 0.04370110812 | W97: 77.36221851
G98: 25 | H98: 14.51984828 | I98: 0.2549142932 | J98: 87.33107235 | L98: 25 | M98: 11.23395911 | N98: 0.1972263548 | O98: 67.56776498 | T98: 25 | U98: 5.195032849 | V98: 0.03824741302 | W98: 75.59526299
G99: 25.5 | H99: 14.0050814 | I99: 0.2275642182 | J99: 87.04315646 | L99: 25.5 | M99: 10.83568567 | N99: 0.1760656912 | O99: 67.3450054 | T99: 25.5 | U99: 4.912603185 | V99: 0.03347431371 | W99: 73.8686648
G100: 26 | H100: 13.50337077 | I100: 0.2030704631 | J100: 86.72283484 | L100: 26 | M100: 10.44751379 | N100: 0.157114953 | O100: 67.09717361 | T100: 26 | U100: 4.645527903 | V100: 0.029296875 | W100: 72.18150216
G101: 26.5 | H101: 13.0148182 | I101: 0.1811460637 | J101: 86.37173799 | L101: 26.5 | M101: 10.06952226 | N101: 0.1401521169 | O101: 66.82553113 | T101: 26.5 | U101: 4.392972255 | V101: 0.02564076122 | W101: 70.53287438
G102: 27 | H102: 12.53947585 | I102: 0.1615311957 | J102: 85.99143882 | L102: 27 | M102: 9.701751448 | N102: 0.1249761577 | O102: 66.53129491 | T102: 27 | U102: 4.154146878 | V102: 0.02244091344 | W102: 68.9219013
G103: 27.5 | H103: 12.07735135 | I103: 0.1439908693 | J103: 85.58345445 | L103: 27.5 | M103: 9.344207227 | N103: 0.1114052645 | O103: 66.21563873 | T103: 27.5 | U103: 3.928305321 | V103: 0.01964039178 | W103: 67.3477229
G104: 28 | H104: 11.6284124 | I104: 0.1283127779 | J104: 85.14924793 | L104: 28 | M104: 8.996864634 | N104: 0.09927517652 | O104: 65.87969457 | T104: 28 | U104: 3.714741715 | V104: 0.01718936221 | W104: 65.80949878
G105: 28.5 | H105: 11.1925912 | I105: 0.1143052959 | J105: 84.69022993 | L105: 28.5 | M105: 8.659671195 | N105: 0.08843763351 | O105: 65.52455385 | T105: 28.5 | U105: 3.512788563 | V105: 0.01504420973 | W105: 64.30640775
G106: 29 | H106: 10.76978831 | I106: 0.1017956234 | J106: 84.20776034 | L106: 29 | M106: 8.332549986 | N106: 0.07875894082 | O106: 65.1512687 | T106: 29 | U106: 3.321814661 | V106: 0.0131667623 | W106: 62.83764737
G107: 29.5 | H107: 10.35987637 | I107: 0.09062807193 | J107: 83.70314989 | L107: 29.5 | M107: 8.015402453 | N107: 0.07011864277 | O107: 64.76085325 | T107: 29.5 | U107: 3.141223118 | V107: 0.01152361159 | W107: 61.40243352
G108: 30 | H108: 9.962703346 | I108: 0.08066248468 | J108: 83.17766167 | L108: 30 | M108: 7.708110988 | N108: 0.06240830052 | O108: 64.35428473 | T108: 30 | U108: 2.970449494 | V108: 0.01008551844 | W108: 60
G109: 30.5 | H109: 9.578095674 | I109: 0.07177278467 | J109: 82.6325126 | L109: 30.5 | M109: 7.41054129 | N109: 0.0555303687 | O109: 63.93250468 | T109: 30.5 | U109: 2.808960033 | V109: 0.008826892633 | W109: 58.62959811
G110: 31 | H110: 9.205860992 | I110: 0.06384564329 | J110: 82.06887494 | L110: 31 | M110: 7.122544534 | N110: 0.04939716536 | O110: 63.49642006 | T110: 31 | U110: 2.65625 | V110: 0.007725337474 | W110: 57.29049623
G111: 31.5 | H111: 8.845790717 | I111: 0.05677926199 | J111: 81.48787762 | L111: 31.5 | M111: 6.84395934 | N111: 0.04392992926 | O111: 63.04690434 | T111: 31.5 | U111: 2.511842098 | V111: 0.006761251277 | W111: 55.98197949
G112: 32 | H112: =C$19* C$8 * $G112* EXP(-C$19 *$G112) -> 8.49766238 | I112: =C$20* C$9 * $G112* EXP(-C$20 *$G112) -> 0.0504822594 | J112: =C$21* C$10 * $G112* EXP(-C$21 *$G112) -> 80.89060767 | L112: =G112 -> 32 | M112: =H112*$C$13 -> 6.574613584 | N112: 0.03905795895 | O112: 62.58479853 | T112: =G112 -> 32 | U112: =$C$8*EXP(-$C$19*T112) -> 2.375284979 | V112: =$C$9*EXP(-C$20*T112) -> 0.005917478555 | W112: =$C$10*EXP(-$C$21*T112) -> 54.70334931
G113: 32.5 | H113: 8.161241744 | I113: 0.04487265671 | J113: 80.2781115 | L113: 32.5 | M113: 6.314326039 | N113: 0.03471782771 | O113: 62.11091225 | T113: 32.5 | U113: 2.246151832 | V113: 0.005179004745 | W113: 53.45392309
G114: 33 | H114: 7.836284748 | I114: 0.03987695407 | J114: 79.65139624 | L114: 33 | M114: 6.062907874 | N114: 0.03085266891 | O114: 61.6260247 | T114: 33 | U114: 2.124039051 | V114: 0.004532689033 | W114: 52.2330338
G115: 33.5 | H115: 7.522539264 | I115: 0.035429291 | J115: 79.01143092 | L115: 33.5 | M115: 5.82016402 | N115: 0.02741152655 | O115: 61.13088563 | T115: 33.5 | U115: 2.008564972 | V115: 0.003967030517 | W115: 51.04002966
G116: 34 | H116: 7.219746696 | I116: 0.0314706844 | J116: 78.35914776 | L116: 34 | M116: 5.5858944 | N116: 0.02434876557 | O116: 60.62621628 | T116: 34 | U116: 1.899368679 | V116: 0.003471963553 | W116: 49.87427377
G117: 34.5 | H117: 6.927643429 | I117: 0.02794833768 | J117: 77.69544326 | L117: 34.5 | M117: 5.359895059 | N117: 0.02162353744 | O117: 60.11271029 | T117: 34.5 | U117: 1.796108878 | V117: 0.003038678645 | W117: 48.73514378
G118: 35 | H118: 6.645962139 | I118: 0.02481501531 | J118: 77.02117945 | L118: 35 | M118: 5.141959166 | N118: 0.01919929617 | O118: 59.59103458 | T118: 35 | U118: 1.69846283 | V118: 0.002659465679 | W118: 47.62203156
G119: 35.5 | H119: 6.374432975 | I119: 0.02202847702 | J119: 76.3371849 | L119: 35.5 | M119: 4.93187794 | N119: 0.01704336061 | O119: 59.06183023 | T119: 35.5 | U119: 1.606125341 | V119: 0.002327576728 | W119: 46.53434286
G120: 36 | H120: 6.112784623 | I120: 0.01955096671 | J120: 75.64425585 | L120: 36 | M120: 4.729441466 | N120: 0.01512651899 | O120: 58.52571329 | T120: 36 | U120: 1.518807811 | V120: 0.002037105974 | W120: 45.471497
G121: 36.5 | H121: 5.860745264 | I121: 0.0173487511 | J121: 74.94315725 | L121: 36.5 | M121: 4.534439439 | N121: 0.01342267197 | O121: 57.9832756 | T121: 36.5 | U121: 1.436237326 | V121: 0.00178288462 | W121: 44.43292657
G122: 37 | H122: 5.618043433 | I122: 0.01539170362 | J122: 74.23462377 | L122: 37 | M122: 4.346661825 | N122: 0.01190851074 | O122: 57.43508556 | T122: 37 | U122: 1.358155813 | V122: 0.001560388909 | W122: 43.41807712
G123: 37.5 | H123: 5.384408776 | I123: 0.01365292963 | J123: 73.51936076 | L123: 37.5 | M123: 4.165899456 | N123: 0.01056322699 | O123: 56.88168891 | T123: 37.5 | U123: 1.284319227 | V123: 0.001365659629 | W123: 42.42640687
G124: 38 | H124: 5.159572743 | I124: 0.01210842893 | J124: 72.79804526 | L124: 38 | M124: 3.991944553 | N124: 0.009368251852 | O124: 56.32360947 | T124: 38 | U124: 1.214496791 | V124: 0.001195231657 | W124: 41.4573864
G125: 38.5 | H125: 4.94326918 | I125: 0.01073679216 | J125: 72.07132686 | L125: 38.5 | M125: 3.824591194 | N125: 0.008307020968 | O125: 55.76134982 | T125: 38.5 | U125: 1.148470275 | V125: 0.001046072303 | W125: 40.51049839
G126: 39 | H126: 4.73523487 | I126: 0.009518927956 | J126: 71.33982867 | L126: 39 | M126: 3.663635728 | N126: 0.00736476342 | O126: 55.19539207 | T126: 39 | U126: 1.086033312 | V126: 0.0009155273438 | W126: 39.58523732
G127: 39.5 | H127: 4.535209995 | I127: 0.008437817827 | J127: 70.60414813 | L127: 39.5 | M127: 3.508877137 | N127: 0.006528312049 | O127: 54.62619843 | T127: 39.5 | U127: 1.026990755 | V127: 0.0008012737881 | W127: 38.68110925
G128: 40 | H128: 4.342938549 | I128: 0.007478296095 | J128: 69.86485788 | L128: 40 | M128: 3.360117348 | N128: 0.005785933225 | O128: 54.05421199 | T128: 40 | U128: 0.9711580657 | V128: 0.0007012785449 | W128: 37.7976315
G129: 40.5 | H129: 4.158168687 | I129: 0.006626852508 | J129: 69.1225066 | L129: 40.5 | M129: 3.21716151 | N129: 0.005127174106 | O129: 53.47985723 | T129: 40.5 | U129: 0.9183607391 | V129: 0.0006137622432 | W129: 36.9343324
G130: 41 | H130: 3.980653032 | I130: 0.00587145524 | J130: 68.37761978 | L130: 41 | M130: 3.079818229 | N130: 0.004542725711 | O130: 52.90354073 | T130: 41 | U130: 0.8684337564 | V130: 0.000537167569 | W130: 36.09075108
G131: 41.5 | H131: 3.810148934 | I131: 0.005201392303 | J131: 67.6307005 | L131: 41.5 | M131: 2.947899766 | N131: 0.004024300209 | O131: 52.32565173 | T131: 41.5 | U131: 0.8212210705 | V131: 0.000470131554 | W131: 35.26643719
G132: 42 | H132: 3.646418684 | I132: 0.004607129507 | J132: 66.88223019 | L132: 42 | M132: 2.821222207 | N132: 0.003564521028 | O132: 51.7465627 | T132: 42 | U132: 0.7765751178 | V132: 0.000411461322 | W132: 34.46095065
G133: 42.5 | H133: 3.489229698 | I133: 0.004080183323 | J133: 66.13266935 | L133: 42.5 | M133: 2.699605603 | N133: 0.003156824489 | O133: 51.16662993 | T133: 42.5 | U133: 0.7343563569 | V133: 0.0003601128621 | W133: 33.67386145
G134: 43 | H134: 3.338354659 | I134: 0.003613007126 | J134: 65.38245823 | L134: 43 | M134: 2.582874079 | N134: 0.002795371794 | O134: 50.58619405 | T134: 43 | U134: 0.6944328328 | V134: 0.0003151724513 | W134: 32.90474939
G135: 43.5 | H135: 3.193571633 | I135: 0.00319888948 | J135: 64.63201758 | L135: 43.5 | M135: 2.470855926 | N135: 0.002474970326 | O135: 50.00558057 | T135: 43.5 | U135: 0.6566797642 | V135: 0.0002758403948 | W135: 32.15320388
G136: 44 | H136: 3.054664157 | I136: 0.002831863211 | J136: 63.88174922 | L136: 44 | M136: 2.363383666 | N136: 0.002191003302 | O136: 49.4251004 | T136: 44 | U136: 0.6209791535 | V136: 0.0002414167961 | W136: 31.41882368
G137: 44.5 | H137: 2.921421297 | I137: 0.002506624165 | J137: 63.13203678 | L137: 44.5 | M137: 2.260294101 | N137: 0.001939366917 | O137: 48.84505033 | T137: 44.5 | U137: 0.5872194182 | V137: 0.0002112891024 | W137: 30.70121676
G138: 45 | H138: 2.79363769 | I138: 0.002218458665 | J138: 62.38324625 | L138: 45 | M138: 2.161428341 | N138: 0.001716414212 | O138: 48.26571355 | T138: 45 | U138: 0.5552950421 | V138: 0.0001849212048 | W138: 30
G139: 45.5 | H139: 2.671113557 | I139: 0.001963178731 | J139: 61.63572661 | L139: 45.5 | M139: 2.066631821 | N139: 0.001518904962 | O139: 47.68736005 | T139: 45.5 | U139: 0.525106245 | V139: 0.0001618438983 | W139: 29.31479905
G140: 46 | H140: 2.553654709 | I140: 0.001737064287 | J140: 60.88981044 | L140: 46 | M140: 1.975754295 | N140: 0.001343960956 | O140: 47.11024714 | T140: 46 | U140: 0.4965586719 | V140: 0.0001416465323 | W140: 28.64524812
G141: 46.5 | H141: 2.441072525 | I141: 0.001536811597 | J141: 60.14581443 | L141: 46.5 | M141: 1.888649827 | N141: 0.001189026105 | O141: 46.53461987 | T141: 46.5 | U141: 0.4695630969 | V141: 0.0001239697037 | W141: 27.99098975
G142: 47 | H142: 2.333183923 | I142: 0.001359487286 | J142: 59.40404001 | L142: 47 | M142: 1.805176768 | N142: 0.001051830866 | O142: 45.96071142 | T142: 47 | U142: 0.4440351452 | V142: 0.000108498861 | W142: 27.35167466
G143: 47.5 | H143: 2.229811312 | I143: 0.001202487355 | J143: 58.66477379 | L143: 47.5 | M143: 1.725197717 | N143: 0.0009303605329 | O143: 45.38874357 | T143: 47.5 | U143: 0.4198950289 | V143: 9.495870766e-05 | W143: 26.72696154
G144: 48 | H144: 2.13078254 | I144: 0.001063500656 | J144: 57.92828817 | L144: 48 | M144: 1.648579481 | N144: 0.0008228269785 | O144: 44.81892706 | T144: 48 | U144: 0.397067298 | V144: 8.310830247e-05 | W144: 26.1165169
G145: 48.5 | H145: 2.035930826 | I145: 0.0009404763515 | J145: 57.19484179 | L145: 48.5 | M145: 1.57519302 | N145: 0.0007276434765 | O145: 44.25146199 | T145: 48.5 | U145: 0.3754806042 | V145: 7.273677274e-05 | W145: 25.52001483
G146: 49 | H146: 1.945094685 | I146: 0.0008315949383 | J146: 56.46468 | L146: 49 | M146: 1.504913394 | N146: 0.0006434022833 | O146: 43.6865382 | T146: 49 | U146: 0.355067478 | V146: 6.36595617e-05 | W146: 24.93713688
G147: 49.5 | H147: 1.858117841 | I147: 0.000735242448 | J147: 55.73803539 | L147: 49.5 | M147: 1.437619695 | N147: 0.0005688546768 | O147: 43.12433564 | T147: 49.5 | U147: 0.3357641182 | V147: 5.571514439e-05 | W147: 24.36757189
G148: 50 | H148: 1.774849147 | I148: 0.0006499874839 | J148: 55.01512818 | L148: 50 | M148: 1.373194979 | N148: 0.00050289319 | O148: 42.5650247 | T148: 50 | U148: 0.3175101918 | V148: 4.876215342e-05 | W148: 23.81101578
G149: 50.5 | H149: 1.69514248 | I149: 0.0005745607888 | J149: 54.29616672 | L149: 50.5 | M149: 1.311526192 | N149: 0.0004445358027 | O149: 42.00876657 | T149: 50.5 | U149: 0.3002486462 | V149: 4.26768634e-05 | W149: 23.26717143
G150: 51 | H150: 1.618856647 | I150: 0.0005078370686 | J150: 53.58134789 | L150: 51 | M150: 1.252504092 | N150: 0.0003929118787 | O150: 41.45571358 | T150: 51 | U150: 0.2839255301 | V150: 3.735098928e-05 | W150: 22.7357485
G151: 51.5 | H151: 1.545855279 | I151: 0.000448818828 | J151: 52.87085751 | L151: 51.5 | M151: 1.196023172 | N151: 0.000347249659 | O151: 40.9060095 | T151: 51.5 | U151: 0.2684898255 | V151: 3.268975948e-05 | W151: 22.21646328
G152: 52 | H152: 1.476006722 | I152: 0.0003966219982 | J152: 52.16487076 | L152: 52 | M152: 1.141981572 | N152: 0.0003068651425 | O152: 40.35978985 | T152: 52 | U152: 0.2538932882 | V152: 2.861022949e-05 | W152: 21.70903856
G153: 52.5 | H153: 1.409183932 | I153: 0.0003504631613 | J153: 51.46355253 | L153: 52.5 | M153: 1.090280998 | N153: 0.0002711522014 | O153: 39.81718224 | T153: 52.5 | U153: 0.2400902963 | V153: 2.503980588e-05 | W153: 21.21320344
G154: 53 | H154: 1.345264359 | I154: 0.0003096481977 | J154: 50.76705788 | L154: 53 | M154: 1.040826633 | N154: 0.0002395737976 | O154: 39.2783066 | T154: 53 | U154: 0.2270377086 | V154: 2.191495453e-05 | W154: 20.7286932
G155: 53.5 | H155: 1.284129834 | I155: 0.0002735621984 | J155: 50.0755323 | L155: 53.5 | M155: 0.9935270519 | N155: 0.000211654178 | O155: 38.74327553 | T155: 53.5 | U155: 0.2146947292 | V155: 1.91800701e-05 | W155: 20.25524919
G156: 54 | H156: 1.225666458 | I156: 0.0002416605053 | J156: 49.38911216 | L156: 54 | M156: 0.9482941292 | N156: 0.0001869719424 | O156: 38.21219451 | T156: 54 | U156: 0.2030227798 | V156: 1.678648653e-05 | W156: 19.79261866
G157: 54.5 | H157: 1.169764484 | I157: 0.0002134607534 | J157: 48.70792497 | L157: 54.5 | M157: 0.9050429543 | N157: 0.0001651538866 | O157: 37.68516221 | T157: 54.5 | U157: 0.1919853798 | V157: 1.469161106e-05 | W157: 19.34055463
G158: 55 | H158: 1.116318201 | I158: 0.0001885358057 | J158: 48.03208979 | L158: 55 | M158: 0.8636917405 | N158: 0.0001458695361 | O158: 37.16227074 | T158: 55 | U158: 0.1815480317 | V158: 1.285816631e-05 | W158: 18.89881575
G159: 55.5 | H159: 1.065225825 | I159: 0.0001665074812 | J159: 47.36171748 | L159: 55.5 | M159: 0.8241617364 | N159: 0.0001288262935 | O159: 36.64360588 | T159: 55.5 | U159: 0.1716781135 | V159: 1.125352694e-05 | W159: 18.4671662
G160: 56 | H160: 1.016389379 | I160: 0.0001470409877 | J160: 46.69691107 | L160: 56 | M160: 0.7863771378 | N160: 0.0001137651312 | O160: 36.12924733 | T160: 56 | U160: 0.1623447765 | V160: 9.849139103e-06 | W160: 18.04537554
G161: 56.5 | H161: 0.9697145825 | I161: 0.0001298399825 | J161: 46.037766 | L161: 56.5 | M161: 0.7502650002 | N161: 0.0001004567697 | O161: 35.61926895 | T161: 56.5 | U161: 0.1535188495 | V161: 8.620012337e-06 | W161: 17.63321859
G162: 57 | H162: 0.9251107377 | I162: 0.0001146421896 | J162: 45.38437049 | L162: 57 | M162: 0.7157551514 | N162: 8.869828709e-05 | O162: 35.11373898 | T162: 57 | U162: 0.145172747 | V162: 7.544274877e-06 | W162: 17.23047532
G163: 57.5 | H163: 0.8824906207 | I163: 0.0001012155123 | J163: 44.73680573 | L163: 57.5 | M163: 0.6827801063 | N163: 7.831011075e-05 | O163: 34.61272025 | T163: 57.5 | U163: 0.137280383 | V163: 6.60278445e-06 | W163: 16.83693072
G164: 58 | H164: 0.8417703699 | I164: 8.935458512e-05 | J164: 44.09514625 | L164: 58 | M164: 0.6512749815 | N164: 6.91333502e-05 | O164: 34.1162704 | T164: 58 | U164: 0.1298170899 | V164: 5.778787651e-06 | W164: 16.4523747
G165: 58.5 | H165: 0.8028693792 | I165: 7.887771688e-05 | J165: 43.45946009 | L165: 58.5 | M165: 0.6211774122 | N165: 6.102743151e-05 | O165: 33.6244421 | T165: 58.5 | U165: 0.1227595413 | V165: 5.057621821e-06 | W165: 16.07660194
G166: 59 | H166: 0.7657101916 | I166: 6.962417999e-05 | J166: 42.82980914 | L166: 59 | M166: 0.5924274703 | N166: 5.386800029e-05 | O166: 33.13728322 | T166: 59 | U166: 0.1160856786 | V166: 4.426454134e-06 | W166: 15.70941184
G167: 59.5 | H167: 0.730218395 | I167: 6.145180779e-05 | J167: 42.20624931 | L167: 59.5 | M167: 0.5649675834 | N167: 4.754506266e-05 | O167: 32.65483702 | T167: 59.5 | U167: 0.1097746426 | V167: 3.874053239e-06 | W167: 15.35060838
G168: 60 | H168: 0.6963225202 | I168: 5.423486512e-05 | J168: 41.58883083 | L168: 60 | M168: 0.538742456 | N168: 4.196133772e-05 | O168: 32.17714236 | T168: 60 | U168: 0.1038067082 | V168: 3.390589408e-06 | W168: 15
G169: 60.5 | H169: 0.6639539408 | I169: 4.786216117e-05 | J169: 40.97759846 | L169: 60.5 | M169: 0.513698992 | N169: 3.703079752e-05 | O169: 31.70423388 | T169: 60.5 | U169: 0.09816322245 | V169: 2.967459614e-06 | W169: 14.65739953
G170: 61 | H170: 0.6330467751 | I170: 4.223537762e-05 | J170: 40.3725917 | L170: 61 | M170: 0.489786219 | N170: 3.26773735e-05 | O170: 31.23614213 | T170: 61 | U170: 0.09282654668 | V170: 2.597134452e-06 | W170: 14.32262406
G171: 61.5 | H171: 0.603537791 | I171: 3.726758738e-05 | J171: 39.77384503 | L171: 61.5 | M171: 0.4669552145 | N171: 2.883381044e-05 | O171: 30.77289378 | T171: 61.5 | U171: 0.08778000103 | V171: 2.273024148e-06 | W171: 13.99549487
G172: 62 | H172: 0.575366312 | I172: 3.288194271e-05 | J172: 39.18138809 | L172: 62 | M172: 0.4451590334 | N172: 2.544065151e-05 | O172: 30.31451179 | T172: 62 | U172: 0.0830078125 | V172: 1.989361303e-06 | W172: 13.67583733
G173: 62.5 | H173: 0.5484741268 | I173: 2.901051326e-05 | J173: 38.59524592 | L173: 62.5 | M173: 0.4243526377 | N173: 2.24453392e-05 | O173: 29.86101551 | T173: 62.5 | U173: 0.07849506556 | V173: 1.741098262e-06 | W173: 13.36348077
G174: 63 | H174: 0.5228054003 | I174: 2.559325718e-05 | J174: 38.01543911 | L174: 63 | M174: 0.4044928279 | N174: 1.980141935e-05 | O174: 29.41242088 | T174: 63 | U174: 0.07422765559 | V174: 1.523817294e-06 | W174: 13.05825845
G175: 63.5 | H175: 0.4983065872 | I175: 2.25771102e-05 | J175: 37.44198406 | L175: 63.5 | M175: 0.3855381764 | N175: 1.746783631e-05 | O175: 28.96874058 | T175: 63.5 | U175: 0.07019224475 | V175: 1.333651981e-06 | W175: 12.76000741
G176: 64 | H176: =C$19* C$8 * $G176* EXP(-C$19 *$G176) -> 0.4749263483 | I176: =C$20* C$9 * $G176* EXP(-C$20 *$G176) -> 1.991517916e-05 | J176: =C$21* C$10 * $G176* EXP(-C$21 *$G176) -> 36.87489306 | L176: =G176 -> 64 | M176: =H176*$C$13 -> 0.3674489621 | N176: 1.540830897e-05 | O176: 28.52998413 | T176: =G176 -> 64 | U176: =$C$8*EXP(-$C$19*T176) -> 0.06637622036 | V176: =$C$9*EXP(-C$20*T176) -> 1.167218415e-06 | W176: =$C$10*EXP(-$C$21*T176) -> 12.46856844
G177: 64.5 | H177: 0.4526154688 | I177: 1.756602816e-05 | J177: 36.31417457 | L177: 64.5 | M177: 0.3501871075 | N177: 1.359077852e-05 | O177: 28.09615807 | T177: 64.5 | U177: 0.06276765538 | V177: 1.021554984e-06 | W177: 12.18378595
G178: 65 | H178: 0.4313267787 | I178: 1.54930468e-05 | J178: 35.75983332 | L178: 65 | M178: 0.3337161177 | N178: 1.198691963e-05 | O178: 27.66726605 | T178: 65 | U178: 0.05935527121 | V178: 8.940696716e-07 | W178: 11.90550789
G179: 65.5 | H179: 0.4110150766 | I179: 1.366389111e-05 | J179: 35.2118705 | L179: 65.5 | M179: 0.3180010202 | N179: 1.057170785e-05 | O179: 27.24330902 | T179: 65.5 | U179: 0.05612840243 | V179: 7.824939337e-07 | W179: 11.63358571
G180: 66 | H180: 0.3916370546 | I180: 1.204998883e-05 | J180: 34.67028393 | L180: 66 | M180: 0.303008308 | N180: 9.323036935e-06 | O180: 26.82428526 | T180: 66 | U180: 0.05307696343 | V180: 6.84842329e-07 | W180: 11.36787425
G181: 66.5 | H181: 0.3731512261 | I181: 1.062610175e-05 | J181: 34.1350682 | L181: 66.5 | M181: 0.2887058829 | N181: 8.221380162e-06 | O181: 26.4101906 | T181: 66.5 | U181: 0.05019141692 | V181: 5.993771906e-07 | W181: 11.10823164
G182: 67 | H182: 0.3555178557 | I182: 9.369938573e-06 | J182: 33.60621481 | L182: 67 | M182: 0.2750630019 | N182: 7.249490822e-06 | O182: 26.00101846 | T182: 67 | U182: 0.04746274408 | V182: 5.245777041e-07 | W182: 10.85451928
G183: 67.5 | H183: 0.3386988916 | I183: 8.261812416e-06 | J183: 33.08371234 | L183: 67.5 | M183: 0.2620502244 | N183: 6.392137239e-06 | O183: 25.59676001 | T183: 67.5 | U183: 0.04488241644 | V183: 4.591128457e-07 | W183: 10.60660172
G184: 68 | H184: 0.3226578998 | I184: 7.284337949e-06 | J184: 32.56754656 | L184: 68 | M184: 0.2496393616 | N184: 5.635868442e-06 | O184: 25.19740424 | T184: 68 | U184: 0.04244236915 | V184: 4.018176972e-07 | W184: 10.3643466
G185: 68.5 | H185: 0.307360001 | I185: 6.422163548e-06 | J185: 32.05770058 | L185: 68.5 | M185: 0.2378034273 | N185: 4.968806928e-06 | O185: 24.80293807 | T185: 68.5 | U185: 0.04013497584 | V185: 3.516727169e-07 | W185: 10.1276246
G186: 69 | H186: 0.2927718086 | I186: 5.661734459e-06 | J186: 31.55415499 | L186: 69 | M186: 0.2265165906 | N186: 4.38046543e-06 | O186: 24.41334649 | T186: 69 | U186: 0.03795302472 | V186: 3.07785597e-07 | W186: 9.896309331
G187: 69.5 | H187: 0.2788613702 | I187: 4.991083398e-06 | J187: 31.05688794 | L187: 69.5 | M187: 0.2157541298 | N187: 3.861584898e-06 | O187: 24.0286126 | T187: 69.5 | U187: 0.03588969609 | V187: 2.693753855e-07 | W187: 9.670277313
G188: 70 | H188: 0.2655981097 | I188: 4.399645436e-06 | J188: 30.56587532 | L188: 70 | M188: 0.2054923886 | N188: 3.403991281e-06 | O188: 23.64871774 | T188: 70 | U188: 0.03393854099 | V188: 2.357585899e-07 | W188: 9.449407874
G189: 70.5 | H189: 0.2529527727 | I189: 3.878094357e-06 | J189: 30.08109083 | L189: 70.5 | M189: 0.1957087327 | N189: 3.000468917e-06 | O189: 23.27364157 | T189: 70.5 | U189: 0.03209346109 | V189: 2.063370141e-07 | W189: 9.2335831
G190: 71 | H190: 0.2408973726 | I190: 3.41819803e-06 | J190: 29.60250612 | L190: 71 | M190: 0.1863815092 | N190: 2.644648634e-06 | O190: 22.90336215 | T190: 71 | U190: 0.03034868955 | V190: 1.805871141e-07 | W190: 9.022687771
G191: 71.5 | H191: 0.2294051397 | I191: 3.012690575e-06 | J191: 29.13009088 | L191: 71.5 | M191: 0.1774900062 | N191: 2.330908843e-06 | O191: 22.53785602 | T191: 71.5 | U191: 0.0286987731 | V191: 1.580506819e-07 | W191: 8.816609297
G192: 72 | H192: 0.2184504713 | I192: 2.655159406e-06 | J192: 28.66381294 | L192: 72 | M192: 0.169014415 | N192: 2.054288147e-06 | O192: 22.1770983 | T192: 72 | U192: 0.02713855489 | V192: 1.383266917e-07 | W192: 8.615237662
G193: 72.5 | H193: 0.2080088838 | I193: 2.339945412e-06 | J193: 28.2036384 | L193: 72.5 | M193: 0.1609357929 | N193: 1.810408111e-06 | O193: 21.82106276 | T193: 72.5 | U193: 0.02566315845 | V193: 1.210641637e-07 | W193: 8.418465362
G194: 73 | H194: 0.1980569672 | I194: 2.062054767e-06 | J194: 27.74953169 | L194: 73 | M194: 0.1532360276 | N194: 1.595405028e-06 | O194: 21.46972189 | T194: 73 | U194: 0.02426797243 | V194: 1.05955919e-07 | W194: 8.226187348
G195: 73.5 | H195: 0.1885723403 | I195: 1.817081016e-06 | J195: 27.3014557 | L195: 73.5 | M195: 0.1458978028 | N195: 1.405869637e-06 | O195: 21.12304696 | T195: 73.5 | U195: 0.02294863615 | V195: 9.273311295e-08 | W195: 8.038300969
G196: 74 | H196: 0.1795336081 | I196: 1.601136242e-06 | J196: 26.85937183 | L196: 74 | M196: 0.1389045653 | N196: 1.238793872e-06 | O196: 20.78100812 | T196: 74 | U196: 0.02170102603 | V196: 8.116045163e-08 | W196: 7.854705921
G197: 74.5 | H197: 0.1709203209 | I197: 1.410790274e-06 | J197: 26.42324011 | L197: 74.5 | M197: 0.1322404931 | N197: 1.09152382e-06 | O197: 20.44357444 | T197: 74.5 | U197: 0.02052124263 | V197: 7.103200463e-08 | W197: 7.67530419
G198: 75 | H198: 0.1627129345 | I198: 1.243016988e-06 | J198: 25.99301927 | L198: 75 | M198: 0.1258904651 | N198: 9.61718177e-07 | O198: 20.11071398 | T198: 75 | U198: 0.01940559855 | V198: 6.216754072e-08 | W198: 7.5
G199: 75.5 | H199: 0.1548927724 | I199: 1.095146875e-06 | J199: 25.56866681 | L199: 75.5 | M199: 0.1198400313 | N199: 8.473115549e-07 | O199: 19.78239387 | T199: 75.5 | U199: 0.01835060682 | V199: 5.440932069e-08 | W199: 7.328699763
G200: 76 | H200: 0.1474419892 | I200: 9.648251714e-07 | J200: 25.15013909 | L200: 76 | M200: 0.1140753847 | N200: 7.464820788e-07 | O200: 19.45858034 | T200: 76 | U200: 0.01735297006 | V200: 4.761929045e-08 | W200: 7.161312029
G201: 76.5 | H201: 0.1403435351 | I201: 8.499748673e-07 | J201: 24.73739142 | L201: 76.5 | M201: 0.108583334 | N201: 6.576227743e-07 | O201: 19.13923882 | T201: 76.5 | U201: 0.01640957016 | V201: 4.167662441e-08 | W201: 6.997747437
G202: 77 | H202: 0.1335811227 | I202: 7.487640602e-07 | J202: 24.33037809 | L202: 77 | M202: 0.1033512776 | N202: 5.793163039e-07 | O202: 18.82433393 | T202: 77 | U202: 0.0155174585 | V202: 3.647557547e-08 | W202: 6.837918664
G203: 77.5 | H203: 0.127139194 | I203: 6.595771232e-07 | J203: 23.92905247 | L203: 77.5 | M203: 0.0983671785 | N203: 5.103126625e-07 | O203: 18.51382961 | T203: 77.5 | U203: 0.01467384678 | V203: 3.192359324e-08 | W203: 6.681740386
G204: 78 | H204: 0.1210028896 | I204: 5.809892551e-07 | J204: 23.53336707 | L204: 78 | M204: 0.09361953985 | N204: 4.495094861e-07 | O204: 18.20768912 | T204: 78 | U204: 0.01387609829 | V204: 2.793967724e-08 | W204: 6.529129225
G205: 78.5 | H205: 0.1151580184 | I205: 5.117440134e-07 | J205: 23.14327361 | L205: 78.5 | M205: 0.08909738212 | N205: 3.959346691e-07 | O205: 17.90587508 | T205: 78.5 | U205: 0.01312171965 | V205: 2.445293543e-08 | W205: 6.380003707
G206: 79 | H206: 0.1095910291 | I206: 4.507334835e-07 | J206: 22.75872306 | L206: 79 | M206: 0.0847902207 | N206: 3.487310217e-07 | O206: 17.60834958 | T206: 79 | U206: 0.01240835306 | V206: 2.140132278e-08 | W206: 6.234284221
G207: 79.5 | H207: 0.1042889824 | I207: 3.969807749e-07 | J207: 22.37966572 | L207: 79.5 | M207: 0.08068804453 | N207: 3.071427269e-07 | O207: 17.31507416 | T207: 79.5 | U207: 0.01173376888 | V207: 1.873053721e-08 | W207: 6.091892973
G208: 80 | H208: 0.09923952472 | I208: 3.496245736e-07 | J208: 22.00605127 | L208: 80 | M208: 0.07678129563 | N208: 2.705033889e-07 | O208: 17.02600988 | T208: 80 | U208: 0.01109585869 | V208: 1.639305325e-08 | W208: 5.952753945
G209: 80.5 | H209: 0.09443086252 | I209: 3.07905509e-07 | J209: 21.63782882 | L209: 80.5 | M209: 0.07306084942 | N209: 2.382254851e-07 | O209: 16.74111737 | T209: 80.5 | U209: 0.01049262869 | V209: 1.434727643e-08 | W209: 5.816792857
G210: 81 | H210: 0.08985173808 | I210: 2.71154124e-07 | J210: 21.27494696 | L210: 81 | M210: 0.06951799582 | N210: 2.097910587e-07 | O210: 16.46035686 | T210: 81 | U210: 0.009922193495 | V210: 1.255680304e-08 | W210: 5.683937124
G211: 81.5 | H211: 0.08549140604 | I211: 2.387802597e-07 | J211: 20.91735382 | L211: 81.5 | M211: 0.06614442118 | N211: 1.847435058e-07 | O211: 16.18368822 | T211: 81.5 | U211: 0.009382770192 | V211: 1.09897724e-08 | W211: 5.554115821
... 568 more rows

Sheet B05d
A1: Concentration of Pesticide in Contaminated Insects
A2: Short Title | B2: Concentration in food item | E2: FoodConcV6
A3: Material consumed
A4: Parameter/Assumption | B4: Code / Range | C4: Equation/ Value | D4: Units | E4: Reference/Designation
A5: Concentration on commodity immediately after last application. | B5: Cn | C5: Cn = C0 × (1- pn) ÷ (1- p)
B6: Central | C6: =B05dMet!C27 -> 12.80797672 | D6: mg/kg food item | E6: Worksheet B05dMet
B7: Lower | C7: =B05dMet!C28 -> 4.260406649
B8: Upper | C8: =B05dMet!C29 -> 38.42384873
A9: Longer-term Concentrations
A10: Time-weighted average concentration on commodity over time, T, after the last application. | B10: ConcTWA
B11: Central | C11: =B05dMet!C31 -> 3.438727798 | D11: mg/kg food item | E11: Worksheet B05dMet
B12: Lower | C12: =B05dMet!C32 -> 0.4803063943
B13: Upper | C13: =B05dMet!C33 -> 23.05040019

Sheet B05dMet
A1: Food: Calculation of Peak and 90-Day Time-Weighted Average of Residues for Metabolite | G1: Note: This worksheet implements the special case where the parent and metabolite kinetics are identical.
A2: Short Title | B2: Metabolite Concentrations | E2: FoodMetabEqual_ks
A3: Receptor | B3: Consumable
A4: Duration | B4: All
A5: Material consumed | B5: Fruit | E5: Abrev(Param->Food)
A6: Parameter/Assumption | B6: Code / Range | C6: Equation/ Value | D6: Units | E6: Reference/Designation
A7: Residue Rates for Parent Compound | B7: rr
B8: Central | C8: 45 | D8: mg/kg food per lb/acre | E8: Attachment 1, Worksheets B05d
B9: Lower | C9: 15
B10: Upper | C10: 135
A11: Molecular Weight, Parent | B11: MWP | C11: 256.47
A12: Molecular Weight, Metabolite | B12: MWM | C12: 198.43
A13: Relative Mass, Metabolite | B13: RMM | C13: =C12/C11 -> 0.7736967287 | E13: Eq
A14: Half-life of parent on commodity | B14: T50Par
B15: Central | C15: 6.2 | D15: Days | E15: Attachment 1, Worksheets B05d
B16: Lower | C16: 2.6
B17: Upper | C17: 15
A18: Degradation Rate of Parent | B18: ka
B19: Central | C19: =LN(2)/$C15 -> 0.1117979323 | D19: Days-1 | E19: Eq
B20: Lower | C20: =LN(2)/$C$16 -> 0.2665950694 | E20: Eq
B21: Upper | C21: =LN(2)/$C$17 -> 0.04620981204 | E21: Eq
A22: Expected Time to Peak Concentation of Metabolite | B22: TMax
B23: Central | C23: =1/C19 -> 8.944709254 | D23: Days | E23: Eq
B24: Lower | C24: =1/C20 -> 3.751007106 | E24: Eq
B25: Upper | C25: =1/C21 -> 21.64042561 | E25: Eq
A26: Peak Residue | B26: Peak | G26: Results for Metabolite
B27: Central | C27: =$I$27 -> 12.80797672 | D27: mg/kg food | E27: Eq | G27: Max | I27: =MAX(M48:M778) -> 12.80797672 | J27: =MAX(N47:N777) -> 4.260406649 | K27: =MAX(O47:O777) -> 38.42384873
B28: Lower | C28: =$J$27 -> 4.260406649 | E28: Eq | G28: Max 90 Day TWA | I28: =MAX(P227:P777) -> 3.438727798 | J28: =MAX(Q227:Q777) -> 0.4803063943 | K28: =MAX(R227:R777) -> 23.05040019
B29: Upper | C29: =$K$27 -> 38.42384873 | E29: Eq | G29: These results are linked to the green cells to the left.
A30: Maximum 90-Day TWA | B30: 90-Day TWA
B31: Central | C31: =$I$28 -> 3.438727798 | D31: mg/kg food | E31: Eq | G31: Ratio of Maximum Metabolite to Maximum Parent Parent
B32: Lower | C32: =$J$28 -> 0.4803063943 | E32: Eq | J32: Modeled Max of Metab/Max Parent: | K32: =I27/C8 -> 0.2846217048 | L32: =J27/C9 -> 0.2840271099 | M32: =K27/C10 -> 0.2846211017
B33: Upper | C33: =$K$28 -> 23.05040019 | E33: Eq | J33: Expected Max Metab/Max Parent: | K33: =EXP(-1)*$C$13 -> 0.2846271202 | L33: =EXP(-1)*$C$13 -> 0.2846271202 | M33: =EXP(-1)*$C$13 -> 0.2846271202
G45: METABOLITE | T45: PARENT (used only to plot)
G46: Conc (No MW Adjustment) | L46: Conc (Adjustment for MW) | P46: TWA | T46: Conc (No MW Adjustment)
G47: t | H47: Central | I47: Lower | J47: Upper | L47: t | M47: Central | N47: Lower | O47: Upper | P47: Central | Q47: Lower | R47: Upper | T47: t | U47: Central | V47: Lower | W47: Upper
G48: 0 | H48: =C$19* C$8 * $G48* EXP(-C$19 *$G48) -> 0 | I48: =C$20* C$9 * $G48* EXP(-C$20 *$G48) -> 0 | J48: =C$21* C$10 * $G48* EXP(-C$21 *$G48) -> 0 | L48: =G48 -> 0 | M48: =H48*$C$13 -> 0 | N48: =I48*$C$13 -> 0 | O48: =J48*$C$13 -> 0 | P48: Starts at Day 90 Below | T48: =G48 -> 0 | U48: =$C$8*EXP(-$C$19*T48) -> 45 | V48: =$C$9*EXP(-C$20*T48) -> 15 | W48: =$C$10*EXP(-$C$21*T48) -> 135
G49: 0.5 | H49: 2.378700025 | I49: 1.749939333 | J49: 3.047920547 | L49: 0.5 | M49: 1.840392428 | N49: 1.353922337 | O49: 2.358166156 | T49: 0.5 | U49: 42.55356025 | V49: 13.12806974 | W49: 131.9165957
G50: 1 | H50: 4.498762436 | I50: 3.063110081 | J50: 5.956611891 | L50: 1 | M50: 3.48067778 | N50: 2.369918249 | O50: 4.608611134 | T50: 1 | U50: 40.24012199 | V50: 11.48974768 | W50: 128.9036165
G51: 1.5 | H51: 6.381278612 | I51: 4.021272277 | J51: 8.730844031 | L51: 1.5 | M51: 4.937174387 | N51: 3.111245206 | O51: 6.755025465 | T51: 1.5 | U51: 38.05245457 | V51: 10.05588059 | W51: 125.9594539
G52: 2 | H52: 8.045811078 | I52: 4.692581592 | J52: 11.3752417 | L52: 2 | M52: 6.22501771 | N52: 3.630635027 | O52: 8.800987293 | T52: 2 | U52: 35.9837204 | V52: 8.80095345 | W52: 123.082536
G53: 2.5 | H53: 9.510497401 | I53: 5.133711535 | J53: 13.89428853 | L53: 2.5 | M53: 7.358240727 | N53: 3.971935821 | O53: 10.74996558 | T53: 2.5 | U53: 34.02745364 | V53: 7.70263538 | W53: 120.2713269
G54: 3 | H54: 10.79214731 | I54: 5.391657846 | J54: 16.29233105 | L54: 3 | M54: 8.349849069 | N54: 4.171508038 | O54: 12.60532323 | T54: 3 | U54: 32.17753997 | V54: 6.741382299 | W54: 117.524326
G55: 3.5 | H55: 11.90633346 | I55: 5.505271352 | J55: 18.57358264 | L55: 3.5 | M55: 9.211891252 | N55: 4.259410436 | O55: 14.37032013 | T55: 3.5 | U55: 30.42819746 | V55: 5.900089133 | W55: 114.8400667
G56: 4 | H56: 12.86747628 | I56: 5.506558954 | J56: 20.74212735 | L56: 4 | M56: 9.955524301 | N56: 4.260406649 | O56: 16.04811607 | T56: 4 | U56: 28.77395853 | V56: 5.163785442 | W56: 112.217116
G57: 4.5 | H57: 13.68892317 | I57: 5.42178675 | J57: 22.80192357 | L57: 4.5 | M57: 10.59107508 | N57: 4.194818672 | O57: 17.64177367 | T57: 4.5 | U57: 27.20965284 | V57: 4.519369028 | W57: 109.6540735
G58: 5 | H58: 14.38302264 | I58: 5.272414414 | J58: 24.75680768 | L58: 5 | M58: 11.12809757 | N58: 4.079249784 | O58: 19.15426111 | T58: 5 | U58: 25.73039114 | V58: 3.955372787 | W58: 107.149571
G59: 5.5 | H59: 14.96119339 | I59: 5.075885771 | J59: 26.61049755 | L59: 5.5 | M59: 11.57542638 | N59: 3.927196216 | O59: 20.5884549 | T59: 5.5 | U59: 24.33154999 | V59: 3.461760654 | W59: 104.7022714
G60: 6 | H60: 15.43398895 | I60: 4.846296902 | J60: 28.36659594 | L60: 6 | M60: 11.94122676 | N60: 3.74956406 | O60: 21.94714249 | T60: 6 | U60: 23.0087573 | V60: 3.02974902 | W60: 102.3108682
G61: 6.5 | H61: 15.81115801 | I61: 4.594960048 | J61: 30.02859383 | L61: 6.5 | M61: 12.23304123 | N61: 3.555105557 | O61: 23.23302481 | T61: 6.5 | U61: 21.75787867 | V61: 2.651650429 | W61: 99.97408478
G62: 7 | H62: 16.1017007 | I62: 4.33087889 | J62: 31.59987363 | L62: 7 | M62: 12.45783316 | N62: 3.35078683 | O62: 24.44871885 | T62: 7 | U62: 20.57500446 | V62: 2.320736785 | W62: 97.69067353
G63: 7.5 | H63: 16.31392121 | I63: 4.06114858 | J63: 33.08371234 | L63: 7.5 | M63: 12.62202747 | N63: 3.142097371 | O63: 25.59676001 | T63: 7.5 | U63: 19.4564376 | V63: 2.031119625 | W63: 95.45941546
G64: 8 | H64: 16.45547683 | I64: 3.791291862 | J64: 34.4832846 | L64: 8 | M64: 12.73154859 | N64: 2.933310111 | O64: 26.67960448 | T64: 8 | U64: 18.39868199 | V64: 1.777645339 | W64: 93.2791194
G65: 8.5 | H65: 16.53342378 | I65: 3.525541032 | J65: 35.80166562 | L65: 8.5 | M65: 12.79185589 | N65: 2.727699563 | O65: 27.69963157 | T65: 8.5 | U65: 17.39843161 | V65: 1.555803466 | W65: 91.14862137
G66: 9 | H66: 16.55425988 | I66: 3.267074015 | J66: 37.04183412 | L66: 9 | M66: 12.80797672 | N66: 2.527724478 | O66: 28.65914588 | T66: 9 | U66: 16.45256017 | V66: 1.361646428 | W66: 89.06678398
G67: 9.5 | H67: 16.52396446 | I67: 3.018211612 | J67: 38.20667509 | L67: 9.5 | M67: 12.78453724 | N67: 2.33518045 | O67: 29.56037953 | T67: 9.5 | U67: 15.55811134 | V67: 1.191719285 | W67: 87.03249582
G68: 10 | H68: 16.44803548 | I68: 2.780581932 | J68: 39.29898256 | L68: 10 | M68: 12.72579125 | N68: 2.151327145 | O68: 30.40549424 | T68: 10 | U68: 14.71228952 | V68: 1.042998259 | W68: 85.04467087
G69: 10.5 | H69: 16.33152428 | I69: 2.555257148 | J69: 40.32146218 | L69: 10.5 | M69: 12.63564691 | N69: 1.976994096 | O69: 31.19658338 | T69: 10.5 | U69: 13.91245108 | V69: 0.9128369257 | W69: 83.1022479
G70: 11 | H70: 16.17906778 | I70: 2.342866886 | J70: 41.27673389 | L70: 11 | M70: 12.51769181 | N70: 1.812668445 | O70: 31.93567398 | T70: 11 | U70: 13.15609611 | V70: 0.7989191217 | W70: 81.20418994
G71: 11.5 | H71: 15.9949187 | I71: 2.143691992 | J71: 42.16733435 | L71: 11.5 | M71: 12.37521627 | N71: 1.658567481 | O71: 32.62472864 | T71: 11.5 | U71: 12.44086063 | V71: 0.6992177299 | W71: 79.34948367
G72: 12 | H72: 15.7829736 | I72: 1.957741772 | J72: 42.99571941 | L72: 12 | M72: 12.21123504 | N72: 1.514698405 | O72: 33.26564745 | T72: 12 | U72: 11.76450917 | V72: 0.6119586083 | W72: 77.53713896
G73: 12.5 | H73: 15.54679903 | I73: 1.784817398 | J73: 43.76426648 | L73: 12.5 | M73: 12.02850755 | N73: 1.380907382 | O73: 33.86026981 | T73: 12.5 | U73: 11.12492777 | V73: 0.5355890193 | W73: 75.76618826
G74: 13 | H74: 15.28965589 | I74: 1.624563704 | J74: 44.47527682 | L74: 13 | M74: 11.82955674 | N74: 1.256919624 | O74: 34.41037618 | T74: 13 | U74: 10.52011742 | V74: 0.46875 | W74: 74.03568613
G75: 13.5 | H75: 15.01452215 | I75: 1.476511312 | J75: 45.13097779 | L75: 13.5 | M75: 11.61668667 | N75: 1.142371972 | O75: 34.91768988 | T75: 13.5 | U75: 9.948187791 | V75: 0.4102521795 | W75: 72.34470872
G76: 14 | H76: 14.72411394 | I76: 1.34011066 | J76: 45.73352501 | L76: 14 | M76: 11.39199879 | N76: 1.036839234 | O76: 35.38387869 | T76: 14 | U76: 9.407351301 | V76: 0.359054615 | W76: 70.69235329
G77: 14.5 | H77: 14.42090525 | I77: 1.214759334 | J77: 46.2850045 | L77: 14.5 | M77: 11.15740722 | N77: 0.9398553226 | O77: 35.81055656 | T77: 14.5 | U77: 8.895917563 | V77: 0.3142462685 | W77: 69.07773771
G78: 15 | H78: 14.10714622 | I78: 1.099823811 | J78: 46.78743469 | L78: 15 | M78: 10.91465288 | N78: 0.8509300845 | O78: 36.19928516 | T78: 15 | U78: 8.412288088 | V78: 0.2750297953 | W78: 67.5
G79: 15.5 | H79: 13.78488014 | I79: 0.99465661 | J79: 47.24276848 | L79: 15.5 | M79: 10.66531667 | N79: 0.7695625653 | O79: 36.55157542 | T79: 15.5 | U79: 7.954951288 | V79: 0.2407073556 | W79: 65.95829787
G80: 16 | H80: 13.45595934 | I80: 0.8986096411 | J80: 47.65289513 | L80: 16 | M80: 10.41083173 | N80: 0.6952513396 | O80: 36.86888907 | T80: 16 | U80: 7.522477754 | V80: 0.2106681968 | W80: 64.45180826
G81: 16.5 | H81: 13.12205988 | I81: 0.8110444403 | J81: 48.01964217 | L81: 16.5 | M81: 10.1524948 | N81: 0.6275024303 | O81: 37.15264006 | T81: 16.5 | U81: 7.113515784 | V81: 0.1843777854 | W81: 62.97972693
G82: 17 | H82: 12.78469524 | I82: 0.7313398611 | J82: 48.34477724 | L82: 17 | M82: 9.891476885 | N82: 0.5658352581 | O82: 37.404196 | T82: 17 | U82: 6.726787166 | V82: 0.1613682951 | W82: 61.54126798
G83: 17.5 | H83: 12.44522907 | I83: 0.6588976953 | J83: 48.63000985 | L83: 17.5 | M83: 9.628833016 | N83: 0.5097869914 | O83: 37.62487954 | T83: 17.5 | U83: 6.361083177 | V83: 0.1412302821 | W83: 60.13566347
G84: 18 | H84: 12.10488697 | I84: 0.5931466216 | J84: 48.87699315 | L84: 18 | M84: 9.365511448 | N84: 0.4589156007 | O84: 37.8159697 | T84: 18 | U84: 6.015260804 | V84: 0.1236053996 | W84: 58.76216302
G85: 18.5 | H85: 11.76476751 | I85: 0.5335448111 | J85: 49.08732556 | L85: 18.5 | M85: 9.102362135 | N85: 0.412801875 | O85: 37.9787032 | T85: 18.5 | U85: 5.688239179 | V85: 0.1081800204 | W85: 57.42003336
G86: 19 | H86: 11.42585239 | I86: 0.4795814643 | J86: 49.26255245 | L86: 19 | M86: 8.840144619 | N86: 0.3710506101 | O86: 38.11427568 | T86: 19 | U86: 5.378996191 | V86: 0.09467965688 | W86: 56.10855799
G87: 19.5 | H87: 11.08901592 | I87: 0.4307775045 | J87: 49.40416773 | L87: 19.5 | M87: 8.579535344 | N87: 0.333291146 | O87: 38.22384295 | T87: 19.5 | U87: 5.0865653 | V87: 0.08286407592 | W87: 54.82703675
G88: 20 | H88: 10.75503378 | I88: 0.3866856152 | J88: 49.51361536 | L88: 20 | M88: 8.321134453 | N88: 0.2991773955 | O88: 38.30852223 | T88: 20 | U88: 4.810032509 | V88: 0.07252302453 | W88: 53.5747855
G89: 20.5 | H89: 10.42459117 | I89: 0.3468897746 | J89: 49.59229089 | L89: 20.5 | M89: 8.065472082 | N89: 0.2683874838 | O89: 38.36939323 | T89: 20.5 | U89: 4.548533515 | V89: 0.06347248827 | W89: 52.35113571
G90: 21 | H90: 10.09829033 | I90: 0.3110044105 | J90: 49.6415429 | L90: 21 | M90: 7.813014196 | N90: 0.240623095 | O90: 38.40749935 | T90: 21 | U90: 4.301250999 | V90: 0.05555141686 | W90: 51.15543412
G91: 21.5 | H91: 9.776657598 | I91: 0.2786732801 | J91: 49.66267441 | L91: 21.5 | M91: 7.564168001 | N91: 0.2156086052 | O91: 38.42384873 | T91: 21.5 | U91: 4.067412079 | V91: 0.04861885832 | W91: 49.98704239
G92: 22 | H92: 9.460149808 | I92: 0.249568154 | J92: 49.65694428 | L92: 22 | M92: 7.319286959 | N92: 0.1930900643 | O92: 38.41941534 | T92: 22 | U92: 3.846285887 | V92: 0.04255145086 | W92: 48.84533676
G93: 22.5 | H93: 9.149160336 | I93: 0.2233873726 | J93: 49.62556851 | L93: 22.5 | M93: 7.078675422 | N93: 0.1728340794 | O93: 38.39514002 | T93: 22.5 | U93: 3.637181294 | V93: 0.03724122764 | W93: 47.72970773
G94: 23 | H94: 8.84402464 | I94: 0.1998543264 | J94: 49.56972161 | L94: 23 | M94: 6.842592932 | N94: 0.1546266385 | O94: 38.35193145 | T94: 23 | U94: 3.439444741 | V94: 0.03259369559 | W94: 46.6395597
G95: 23.5 | H95: 8.545025392 | I95: 0.1787159017 | J95: 49.49053776 | L95: 23.5 | M95: 6.611258192 | N95: 0.1382719085 | O95: 38.29066717 | T95: 23.5 | U95: 3.2524582 | V95: 0.02852615393 | W95: 45.57431068
G96: 24 | H96: 8.252397227 | I96: 0.159740924 | J96: 49.38911216 | L96: 24 | M96: 6.384852738 | N96: 0.1235910304 | O96: 38.21219451 | T96: 24 | U96: 3.075637243 | V96: 0.02496622255 | W96: 44.53339199
G97: 24.5 | H97: 7.966331133 | I97: 0.1427186244 | J97: 49.26650209 | L97: 24.5 | M97: 6.163524337 | N97: 0.1104209328 | O97: 38.1173315 | T97: 24.5 | U97: 2.908429216 | V97: 0.02185055406 | W97: 43.51624791
G98: 25 | H98: 7.686978499 | I98: 0.1274571466 | J98: 49.12372819 | L98: 25 | M98: 5.947390118 | N98: 0.09861317739 | O98: 38.0068678 | T98: 25 | U98: 2.750311508 | V98: 0.01912370651 | W98: 42.52233543
G99: 25.5 | H99: 7.414454861 | I99: 0.1137821091 | J99: 48.96177551 | L99: 25.5 | M99: 5.73653947 | N99: 0.08803284559 | O99: 37.88156554 | T99: 25.5 | U99: 2.600789922 | V99: 0.01673715685 | W99: 41.55112395
G100: 26 | H100: 7.148843348 | I100: 0.1015352315 | J100: 48.7815946 | L100: 26 | M100: 5.531036712 | N100: 0.07855747648 | O100: 37.74216016 | T100: 26 | U100: 2.459397125 | V100: 0.0146484375 | W100: 40.60209497
G101: 26.5 | H101: 6.890197869 | I101: 0.09057303186 | J101: 48.58410262 | L101: 26.5 | M101: 5.330923551 | N101: 0.07007605845 | O101: 37.58936126 | T101: 26.5 | U101: 2.325691194 | V101: 0.01282038061 | W101: 39.67474184
G102: 27 | H102: 6.638546041 | I102: 0.08076559783 | J102: 48.37018433 | L102: 27 | M102: 5.136221355 | N102: 0.06248807883 | O102: 37.42385338 | T102: 27 | U102: 2.19925423 | V102: 0.01122045672 | W102: 38.76856948
G103: 27.5 | H103: 6.393891889 | I103: 0.07199543465 | J103: 48.14069313 | L103: 27.5 | M103: 4.946933238 | N103: 0.05570263227 | O103: 37.24629679 | T103: 27.5 | U103: 2.079691052 | V103: 0.009820195891 | W103: 37.88309413
G104: 28 | H104: 6.15621833 | I104: 0.06415638896 | J104: 47.89645196 | L104: 28 | M104: 4.763045983 | N104: 0.04963758826 | O104: 37.0573282 | T104: 28 | U104: 1.966627967 | V104: 0.008594681104 | W104: 37.01784306
G105: 28.5 | H105: 5.925489458 | I105: 0.05715264795 | J105: 47.63825433 | L105: 28.5 | M105: 4.584531809 | N105: 0.04421881675 | O105: 36.85756154 | T105: 28.5 | U105: 1.859711592 | V105: 0.007522104864 | W105: 36.17235436
G106: 29 | H106: 5.701652636 | I106: 0.0508978117 | J106: 47.36686519 | L106: 29 | M106: 4.411349993 | N106: 0.03937947041 | O106: 36.64758865 | T106: 29 | U106: 1.758607762 | V106: 0.006583381151 | W106: 35.34617665
G107: 29.5 | H107: 5.484640429 | I107: 0.04531403596 | J107: 47.08302181 | L107: 29.5 | M107: 4.243448358 | N107: 0.03505932139 | O107: 36.42797995 | T107: 29.5 | U107: 1.663000474 | V107: 0.005761805794 | W107: 34.53886885
G108: 30 | H108: 5.27437236 | I108: 0.04033124234 | J108: 46.78743469 | L108: 30 | M108: 4.08076464 | N108: 0.03120415026 | O108: 36.19928516 | T108: 30 | U108: 1.572590908 | V108: 0.005042759221 | W108: 33.75
G109: 30.5 | H109: 5.070756534 | I109: 0.03588639233 | J109: 46.48078834 | L109: 30.5 | M109: 3.923227742 | N109: 0.02776518435 | O109: 35.96203388 | T109: 30.5 | U109: 1.487096488 | V109: 0.004413446317 | W109: 32.97914893
G110: 31 | H110: 4.873691113 | I110: 0.03192282165 | J110: 46.16374215 | L110: 31 | M110: 3.770758871 | N110: 0.02469858268 | O110: 35.71673629 | T110: 31 | U110: 1.40625 | V110: 0.003862668737 | W110: 32.22590413
G111: 31.5 | H111: 4.683065674 | I111: 0.028389631 | J111: 45.83693116 | L111: 31.5 | M111: 3.623272592 | N111: 0.02196496463 | O111: 35.46388369 | T111: 31.5 | U111: 1.329798758 | V111: 0.003380625639 | W111: 31.48986346
G112: 32 | H112: =C$19* C$8 * $G112* EXP(-C$19 *$G112) -> 4.498762436 | I112: =C$20* C$9 * $G112* EXP(-C$20 *$G112) -> 0.0252411297 | J112: =C$21* C$10 * $G112* EXP(-C$21 *$G112) -> 45.50096681 | L112: =G112 -> 32 | M112: =H112*$C$13 -> 3.48067778 | N112: =I112*$C$13 -> 0.01952897948 | O112: =J112*$C$13 -> 35.20394917 | T112: =G112 -> 32 | U112: =$C$8*EXP(-$C$19*T112) -> 1.257503812 | V112: =$C$9*EXP(-C$20*T112) -> 0.002958739277 | W112: =$C$10*EXP(-$C$21*T112) -> 30.77063399
G113: 32.5 | H113: 4.320657394 | I113: 0.02243632836 | J113: 45.15643772 | L113: 32.5 | M113: 3.342878491 | N113: 0.01735891385 | O113: 34.93738814 | T113: 32.5 | U113: 1.189139205 | V113: 0.002589502373 | W113: 30.06783174
G114: 33 | H114: 4.148621337 | I114: 0.01993847703 | J114: 44.80391038 | L114: 33 | M114: 3.209774757 | N114: 0.01542633446 | O114: 34.6646389 | T114: 33 | U114: 1.124491263 | V114: 0.002266344517 | W114: 29.38108151
G115: 33.5 | H115: 3.982520787 | I115: 0.0177146455 | J115: 44.44392989 | L115: 33.5 | M115: 3.081263304 | N115: 0.01370576327 | O115: 34.38612317 | T115: 33.5 | U115: 1.063357926 | V115: 0.001983515258 | W115: 28.71001668
G116: 34 | H116: 3.822218839 | I116: 0.0157353422 | J116: 44.07702061 | L116: 34 | M116: 2.957238212 | N116: 0.01217438278 | O116: 34.10224666 | T116: 34 | U116: 1.005548124 | V116: 0.001735981777 | W116: 28.05427899
G117: 34.5 | H117: 3.667575933 | I117: 0.01397416884 | J117: 43.70368684 | L117: 34.5 | M117: 2.837591502 | N117: 0.01081176872 | O117: 33.81339954 | T117: 34.5 | U117: 0.9508811706 | V117: 0.001519339323 | W117: 27.41351838
G118: 35 | H118: 3.518450544 | I118: 0.01240750765 | J118: 43.32441344 | L118: 35 | M118: 2.722213676 | N118: 0.009599648083 | O118: 33.51995695 | T118: 35 | U118: 0.8991862041 | V118: 0.001329732839 | W118: 26.78739275
G119: 35.5 | H119: 3.37469981 | I119: 0.01101423851 | J119: 42.93966651 | L119: 35.5 | M119: 2.610994203 | N119: 0.008521680303 | O119: 33.22227951 | T119: 35.5 | U119: 0.8503016513 | V119: 0.001163788364 | W119: 26.17556786
G120: 36 | H120: 3.236180094 | I120: 0.009775483356 | J120: 42.54989392 | L120: 36 | M120: 2.503821952 | N120: 0.007563259494 | O120: 32.92071373 | T120: 36 | U120: 0.8040747232 | V120: 0.001018552987 | W120: 25.57771706
G121: 36.5 | H121: 3.102747493 | I121: 0.008674375548 | J121: 42.15552595 | L121: 36.5 | M121: 2.400585585 | N121: 0.006711335985 | O121: 32.61559253 | T121: 36.5 | U121: 0.7603609373 | V121: 0.0008914423102 | W121: 24.99352119
G122: 37 | H122: 2.974258288 | I122: 0.007695851809 | J122: 41.75697587 | L122: 37 | M122: 2.301173907 | N122: 0.005954255369 | O122: 32.30723563 | T122: 37 | U122: 0.7190236657 | V122: 0.0007801944547 | W122: 24.42266838
G123: 37.5 | H123: 2.850569352 | I123: 0.006826464817 | J123: 41.35464043 | L123: 37.5 | M123: 2.205476183 | N123: 0.005281613497 | O123: 31.99595001 | T123: 37.5 | U123: 0.6799337083 | V123: 0.0006828298144 | W123: 23.86485387
G124: 38 | H124: 2.731538511 | I124: 0.006054214465 | J124: 40.94890046 | L124: 38 | M124: 2.11338241 | N124: 0.004684125926 | O124: 31.68203033 | T124: 38 | U124: 0.6429688894 | V124: 0.0005976158284 | W124: 23.31977985
G125: 38.5 | H125: 2.61702486 | I125: 0.005368396079 | J125: 40.54012136 | L125: 38.5 | M125: 2.024783573 | N125: 0.004153510484 | O125: 31.36575928 | T125: 38.5 | U125: 0.6080136749 | V125: 0.0005230361517 | W125: 22.78715534
G126: 39 | H126: 2.506889049 | I126: 0.004759463978 | J126: 40.12865363 | L126: 39 | M126: 1.939571856 | N126: 0.00368238171 | O126: 31.04740804 | T126: 39 | U126: 0.5749588121 | V126: 0.0004577636719 | W126: 22.26669599
G127: 39.5 | H127: 2.400993527 | I127: 0.004218908913 | J127: 39.71483332 | L127: 39.5 | M127: 1.857640837 | N127: 0.003264156025 | O127: 30.72723662 | T127: 39.5 | U127: 0.5437009878 | V127: 0.000400636894 | W127: 21.75812395
G128: 40 | H128: 2.299202761 | I128: 0.003739148048 | J128: 39.29898256 | L128: 40 | M128: 1.778885655 | N128: 0.002892966612 | O128: 30.40549424 | T128: 40 | U128: 0.5141425054 | V128: 0.0003506392725 | W128: 21.26116772
G129: 40.5 | H129: 2.201383422 | I129: 0.003313426254 | J129: 38.88140996 | L129: 40.5 | M129: 1.703203153 | N129: 0.002563587053 | O129: 30.08241969 | T129: 40.5 | U129: 0.4861909795 | V129: 0.0003068811216 | W129: 20.77556198
G130: 41 | H130: 2.107404546 | I130: 0.00293572762 | J130: 38.46241112 | L130: 41 | M130: 1.630492004 | N130: 0.002271362856 | O130: 29.75824166 | T130: 41 | U130: 0.4597590475 | V130: 0.0002685837845 | W130: 20.30104748
G131: 41.5 | H131: 2.017137671 | I131: 0.002600696151 | J131: 38.04226903 | L131: 41.5 | M131: 1.560652817 | N131: 0.002012150105 | O131: 29.4331791 | T131: 41.5 | U131: 0.4347640962 | V131: 0.000235065777 | W131: 19.83737092
G132: 42 | H132: 1.93045695 | I132: 0.002303564754 | J132: 37.62125448 | L132: 42 | M132: 1.493588227 | N132: 0.001782260514 | O132: 29.10744152 | T132: 42 | U132: 0.4111280035 | V132: 0.000205730661 | W132: 19.38428474
G133: 42.5 | H133: 1.847239252 | I133: 0.002040091661 | J133: 37.19962651 | L133: 42.5 | M133: 1.429202966 | N133: 0.001578412245 | O133: 28.78122934 | T133: 42.5 | U133: 0.3887768948 | V133: 0.0001800564311 | W133: 18.94154707
G134: 43 | H134: 1.767364231 | I134: 0.001806503563 | J134: 36.77763276 | L134: 43 | M134: 1.367403924 | N134: 0.001397685897 | O134: 28.45473415 | T134: 43 | U134: 0.3676409115 | V134: 0.0001575862256 | W134: 18.50892153
G135: 43.5 | H135: 1.690714394 | I135: 0.00159944474 | J135: 36.35550989 | L135: 43.5 | M135: 1.308100196 | N135: 0.001237485163 | O135: 28.12813907 | T135: 43.5 | U135: 0.3476539928 | V135: 0.0001379201974 | W135: 18.08617718
G136: 44 | H136: 1.617175142 | I136: 0.001415931605 | J136: 35.93348394 | L136: 44 | M136: 1.251203117 | N136: 0.001095501651 | O136: 27.80161897 | T136: 44 | U136: 0.3287536695 | V136: 0.000120708398 | W136: 17.67308832
G137: 44.5 | H137: 1.546634804 | I137: 0.001253312083 | J137: 35.51177069 | L137: 44.5 | M137: 1.196626289 | N137: 0.0009696834584 | O137: 27.47534081 | T137: 44.5 | U137: 0.3108808685 | V137: 0.0001056445512 | W137: 17.26943443
G138: 45 | H138: 1.478984659 | I138: 0.001109229333 | J138: 35.09057602 | L138: 45 | M138: 1.144285593 | N138: 0.0008582071059 | O138: 27.14946387 | T138: 45 | U138: 0.2939797281 | V138: 9.246060242e-05 | W138: 16.875
G139: 45.5 | H139: 1.414118942 | I139: 0.0009815893656 | J139: 34.67009622 | L139: 45.5 | M139: 1.094099199 | N139: 0.0007594524811 | O139: 26.82414003 | T139: 45.5 | U139: 0.2779974238 | V139: 8.092194914e-05 | W139: 16.48957447
G140: 46 | H140: 1.351934846 | I140: 0.0008685321436 | J140: 34.25051837 | L140: 46 | M140: 1.045987568 | N140: 0.0006719804782 | O140: 26.49951402 | T140: 46 | U140: 0.2628840028 | V140: 7.082326614e-05 | W140: 16.11295207
G141: 46.5 | H141: 1.292332513 | I141: 0.0007684057983 | J141: 33.83202062 | L141: 46.5 | M141: 0.9998734379 | N141: 0.0005945130524 | O141: 26.17572368 | T141: 46.5 | U141: 0.2485922278 | V141: 6.198485183e-05 | W141: 15.74493173
G142: 47 | H142: 1.235215018 | I142: 0.0006797436428 | J142: 33.4147725 | L142: 47 | M142: 0.9556818185 | N142: 0.0005259154328 | O142: 25.85290017 | T142: 47 | U142: 0.2350774298 | V142: 5.424943052e-05 | W142: 15.38531699
G143: 47.5 | H143: 1.180488342 | I143: 0.0006012436775 | J143: 32.99893526 | L143: 47.5 | M143: 0.9133399681 | N143: 0.0004651802664 | O143: 25.53116826 | T143: 47.5 | U143: 0.2222973683 | V143: 4.747935383e-05 | W143: 15.03391587
G144: 48 | H144: 1.128061345 | I144: 0.000531750328 | J144: 32.5846621 | L144: 48 | M144: 0.8727773722 | N144: 0.0004114134893 | O144: 25.21064647 | T144: 48 | U144: 0.210212099 | V144: 4.155415123e-05 | W144: 14.69054076
G145: 48.5 | H145: 1.077845732 | I145: 0.0004702381758 | J145: 32.17209851 | L145: 48.5 | M145: 0.8339257166 | N145: 0.0003638217383 | O145: 24.89144737 | T145: 48.5 | U145: 0.1987838493 | V145: 3.636838637e-05 | W145: 14.35500834
G146: 49 | H146: 1.029756009 | I146: 0.0004157974692 | J146: 31.7613825 | L146: 49 | M146: 0.7967188559 | N146: 0.0003217011417 | O146: 24.57367774 | T146: 49 | U146: 0.1879769001 | V146: 3.182978085e-05 | W146: 14.0271395
G147: 49.5 | H147: 0.9837094455 | I147: 0.000367621224 | J147: 31.3526449 | L147: 49.5 | M147: 0.7610927799 | N147: 0.0002844273384 | O147: 24.2574388 | T147: 49.5 | U147: 0.1777574743 | V147: 2.785757219e-05 | W147: 13.70675919
G148: 50 | H148: 0.9396260191 | I148: 0.0003249937419 | J148: 30.9460096 | L148: 50 | M148: 0.7269855772 | N148: 0.000251446595 | O148: 23.94282639 | T148: 50 | U148: 0.168093631 | V148: 2.438107671e-05 | W148: 13.39369638
G149: 50.5 | H149: 0.897428372 | I149: 0.0002872803944 | J149: 30.54159378 | L149: 50.5 | M149: 0.6943373956 | N149: 0.0002222679013 | O149: 23.6299312 | T149: 50.5 | U149: 0.1589551656 | V149: 2.13384317e-05 | W149: 13.08778393
G150: 51 | H150: 0.8570417545 | I150: 0.0002539185343 | J150: 30.13950819 | L150: 51 | M150: 0.6630904018 | N150: 0.0001964559393 | O150: 23.31883889 | T150: 51 | U150: 0.1503135159 | V150: 1.867549464e-05 | W150: 12.78885853
G151: 51.5 | H151: 0.818393971 | I151: 0.000224409414 | J151: 29.73985735 | L151: 51.5 | M151: 0.6331887382 | N151: 0.0001736248295 | O151: 23.00963034 | T151: 51.5 | U151: 0.1421416723 | V151: 1.634487974e-05 | W151: 12.4967606
G152: 52 | H152: 0.7814153234 | I152: 0.0001983109991 | J152: 29.3427398 | L152: 52 | M152: 0.6045784794 | N152: 0.0001534325712 | O152: 22.70238179 | T152: 52 | U152: 0.1344140937 | V152: 1.430511475e-05 | W152: 12.21133419
G153: 52.5 | H153: 0.7460385522 | I153: 0.0001752315807 | J153: 28.9482483 | L153: 52.5 | M153: 0.5772075873 | N153: 0.0001355761007 | O153: 22.39716501 | T153: 52.5 | U153: 0.1271066275 | V153: 1.251990294e-05 | W153: 11.93242693
G154: 53 | H154: 0.7121987781 | I154: 0.0001548240988 | J154: 28.55647006 | L154: 53 | M154: 0.5510258648 | N154: 0.0001197868988 | O154: 22.09404746 | T154: 53 | U154: 0.120196434 | V154: 1.095747726e-05 | W154: 11.65988992
G155: 53.5 | H155: 0.6798334416 | I155: 0.0001367810992 | J155: 28.16748692 | L155: 53.5 | M155: 0.5259849098 | N155: 0.000105827089 | O155: 21.79309248 | T155: 53.5 | U155: 0.1136619154 | V155: 9.59003505e-06 | W155: 11.39357767
G156: 54 | H156: 0.6488822426 | I156: 0.0001208302526 | J156: 27.78137559 | L156: 54 | M156: 0.5020380684 | N156: 9.348597119e-05 | O156: 21.49435941 | T156: 54 | U156: 0.1074826481 | V156: 8.393243265e-06 | W156: 11.133348
G157: 54.5 | H157: 0.6192870796 | I157: 0.0001067303767 | J157: 27.3982078 | L157: 54.5 | M157: 0.4791403876 | N157: 8.25769433e-05 | O157: 21.19790374 | T157: 54.5 | U157: 0.1016393187 | V157: 7.345805531e-06 | W157: 10.87906198
G158: 55 | H158: 0.5909919889 | I158: 9.426790287e-05 | J158: 27.01805051 | L158: 55 | M158: 0.4572485685 | N158: 7.293476807e-05 | O158: 20.90377729 | T158: 55 | U158: 0.09611366386 | V158: 6.429083156e-06 | W158: 10.63058386
G159: 55.5 | H159: 0.563943084 | I159: 8.32537406e-05 | J159: 26.64096608 | L159: 55.5 | M159: 0.4363209193 | N159: 6.441314675e-05 | O159: 20.61202831 | T159: 55.5 | U159: 0.09088841301 | V159: 5.62676347e-06 | W159: 10.38778099
G160: 56 | H160: 0.5380884949 | I160: 7.352049385e-05 | J160: 26.26701247 | L160: 56 | M160: 0.4163173083 | N160: 5.688256558e-05 | O160: 20.32270162 | T160: 56 | U160: 0.08594723464 | V160: 4.924569551e-06 | W160: 10.15052374
G161: 56.5 | H161: 0.5133783084 | I161: 6.491999125e-05 | J161: 25.89624338 | L161: 56.5 | M161: 0.3971991177 | N161: 5.022838486e-05 | O161: 20.03583878 | T161: 56.5 | U161: 0.08127468505 | V161: 4.310006169e-06 | W161: 9.918685459
G162: 57 | H162: 0.4897645082 | I162: 5.732109482e-05 | J162: 25.5287084 | L162: 57 | M162: 0.3789291978 | N162: 4.434914354e-05 | O162: 19.75147818 | T162: 57 | U162: 0.07685616015 | V162: 3.772137439e-06 | W162: 9.69214237
G163: 57.5 | H163: 0.4672009168 | I163: 5.060775615e-05 | J163: 25.16445323 | L163: 57.5 | M163: 0.361471821 | N163: 3.915505538e-05 | O163: 19.46965514 | T163: 57.5 | U163: 0.07267784981 | V163: 3.301392225e-06 | W163: 9.470773533
G164: 58 | H164: 0.445643137 | I164: 4.467729256e-05 | J164: 24.80351977 | L164: 58 | M164: 0.3447926372 | N164: 3.45666751e-05 | O164: 19.1904021 | T164: 58 | U164: 0.06872669468 | V164: 2.889393826e-06 | W164: 9.254460766
G165: 58.5 | H165: 0.4250484949 | I165: 3.943885844e-05 | J165: 24.4459463 | L165: 58.5 | M165: 0.32885863 | N165: 3.051371576e-05 | O165: 18.91374868 | T165: 58.5 | U165: 0.06499034539 | V165: 2.528810911e-06 | W165: 9.04308859
G166: 59 | H166: 0.4053759838 | I166: 3.481208999e-05 | J166: 24.09176764 | L166: 59 | M166: 0.3136380725 | N166: 2.693400015e-05 | O166: 18.63972181 | T166: 59 | U166: 0.06145712395 | V166: 2.213227067e-06 | W166: 8.836544161
G167: 59.5 | H167: 0.3865862091 | I167: 3.07259039e-05 | J167: 23.74101524 | L167: 59.5 | M167: 0.2991004853 | N167: 2.377253133e-05 | O167: 18.36834582 | T167: 59.5 | U167: 0.05811598726 | V167: 1.93702662e-06 | W167: 8.634717214
G168: 60 | H168: 0.3686413342 | I168: 2.711743256e-05 | J168: 23.39371734 | L168: 60 | M168: 0.2852165944 | N168: 2.098066886e-05 | O168: 18.09964258 | T168: 60 | U168: 0.05495649256 | V168: 1.695294704e-06 | W168: 8.4375
G169: 60.5 | H169: 0.3515050275 | I169: 2.393108059e-05 | J169: 23.04989914 | L169: 60.5 | M169: 0.2719582899 | N169: 1.851539876e-05 | O169: 17.83363156 | T169: 60.5 | U169: 0.05196876483 | V169: 1.483729807e-06 | W169: 8.244787234
G170: 61 | H170: 0.3351424104 | I170: 2.111768881e-05 | J170: 22.70958283 | L170: 61 | M170: 0.2592985865 | N170: 1.633868675e-05 | O170: 17.57032995 | T170: 61 | U170: 0.04914346589 | V170: 1.298567226e-06 | W170: 8.056476033
G171: 61.5 | H171: 0.319520007 | I171: 1.863379369e-05 | J171: 22.37278783 | L171: 61.5 | M171: 0.2472115841 | N171: 1.441690522e-05 | O171: 17.30975275 | T171: 61.5 | U171: 0.04647176525 | V171: 1.136512074e-06 | W171: 7.872465866
G172: 62 | H172: 0.3046056946 | I172: 1.644097136e-05 | J172: 22.0395308 | L172: 62 | M172: 0.2356724294 | N172: 1.272032575e-05 | O172: 17.05191288 | T172: 62 | U172: 0.0439453125 | V172: 9.946806515e-07 | W172: 7.692658497
G173: 62.5 | H173: 0.2903686554 | I173: 1.450525663e-05 | J173: 21.70982583 | L173: 62.5 | M173: 0.2246572788 | N173: 1.12226696e-05 | O173: 16.79682122 | T173: 62.5 | U173: 0.04155621118 | V173: 8.705491311e-07 | W173: 7.516957934
G174: 63 | H174: 0.2767793296 | I174: 1.279662859e-05 | J174: 21.3836845 | L174: 63 | M174: 0.2141432619 | N174: 9.900709677e-06 | O174: 16.54448675 | T174: 63 | U174: 0.03929699413 | V174: 7.619086472e-07 | W174: 7.345270378
G175: 63.5 | H175: 0.2638093697 | I175: 1.12885551e-05 | J175: 21.06111603 | L175: 63.5 | M175: 0.2041084463 | N175: 8.733918153e-06 | O175: 16.29491658 | T175: 63.5 | U175: 0.03716060016 | V175: 6.668259906e-07 | W175: 7.177504171
G176: 64 | H176: =C$19* C$8 * $G176* EXP(-C$19 *$G176) -> 0.2514315962 | I176: =C$20* C$9 * $G176* EXP(-C$20 *$G176) -> 9.95758958e-06 | J176: =C$21* C$10 * $G176* EXP(-C$21 *$G176) -> 20.74212735 | L176: =G176 -> 64 | M176: =H176*$C$13 -> 0.1945318035 | N176: =I176*$C$13 -> 7.704154483e-06 | O176: =J176*$C$13 -> 16.04811607 | T176: =G176 -> 64 | U176: =$C$8*EXP(-$C$19*T176) -> 0.03514035195 | V176: =$C$9*EXP(-C$20*T176) -> 5.836092074e-07 | W176: =$C$10*EXP(-$C$21*T176) -> 7.013569749
G177: 64.5 | H177: 0.2396199541 | I177: 8.78301408e-06 | J177: 20.4267232 | L177: 64.5 | M177: 0.1853931746 | N177: 6.795389261e-06 | O177: 15.80408891 | T177: 64.5 | U177: 0.0332299352 | V177: 5.107774919e-07 | W177: 6.853379594
G178: 65 | H178: 0.2283494711 | I178: 7.746523401e-06 | J178: 20.11490624 | L178: 65 | M178: 0.1766732388 | N178: 5.993459814e-06 | O178: 15.56283716 | T178: 65 | U178: 0.03142337888 | V178: 4.470348358e-07 | W178: 6.696848188
G179: 65.5 | H179: 0.217596217 | I179: 6.831945555e-06 | J179: 19.80667716 | L179: 65.5 | M179: 0.1683534813 | N179: 5.285853927e-06 | O179: 15.32436132 | T179: 65.5 | U179: 0.02971503658 | V179: 3.912469668e-07 | W179: 6.543891964
G180: 66 | H180: 0.2073372642 | I180: 6.024994413e-06 | J180: 19.50203471 | L180: 66 | M180: 0.1604161631 | N180: 4.661518467e-06 | O180: 15.08866046 | T180: 66 | U180: 0.02809956888 | V180: 3.424211645e-07 | W180: 6.394429265
G181: 66.5 | H181: 0.1975506491 | I181: 5.313050875e-06 | J181: 19.20097586 | L181: 66.5 | M181: 0.152844291 | N181: 4.110690081e-06 | O181: 14.85573221 | T181: 66.5 | U181: 0.0265719266 | V181: 2.996885953e-07 | W181: 6.248380299
G182: 67 | H182: 0.1882153354 | I182: 4.684969286e-06 | J182: 18.90349583 | L182: 67 | M182: 0.1456215892 | N182: 3.624745411e-06 | O182: 14.62557289 | T182: 67 | U182: 0.0251273351 | V182: 2.62288852e-07 | W182: 6.105667095
G183: 67.5 | H183: 0.1793111779 | I183: 4.130906208e-06 | J183: 18.60958819 | L183: 67.5 | M183: 0.1387324717 | N183: 3.19606862e-06 | O183: 14.39817751 | T183: 67.5 | U183: 0.02376127929 | V183: 2.295564228e-07 | W183: 5.966213466
G184: 68 | H184: 0.1708188882 | I184: 3.642168974e-06 | J184: 18.31924494 | L184: 68 | M184: 0.132162015 | N184: 2.817934221e-06 | O184: 14.17353988 | T184: 68 | U184: 0.02246948955 | V184: 2.009088486e-07 | W184: 5.829944962
G185: 68.5 | H185: 0.1627200005 | I185: 3.211081774e-06 | J185: 18.03245658 | L185: 68.5 | M185: 0.1258959321 | N185: 2.484403464e-06 | O185: 13.95165266 | T185: 68.5 | U185: 0.02124792839 | V185: 1.758363584e-07 | W185: 5.696788835
G186: 69 | H186: 0.1549968399 | I186: 2.83086723e-06 | J186: 17.74921218 | L186: 69 | M186: 0.1199205479 | N186: 2.190232715e-06 | O186: 13.7325074 | T186: 69 | U186: 0.02009277779 | V186: 1.538927985e-07 | W186: 5.566673999
G187: 69.5 | H187: 0.1476324901 | I187: 2.495541699e-06 | J187: 17.46949947 | L187: 69.5 | M187: 0.1142227746 | N187: 1.930792449e-06 | O187: 13.51609459 | T187: 69.5 | U187: 0.01900042734 | V187: 1.346876928e-07 | W187: 5.439530989
G188: 70 | H188: 0.140610764 | I188: 2.199822718e-06 | J188: 17.19330487 | L188: 70 | M188: 0.1087900881 | N188: 1.70199564e-06 | O188: 13.30240373 | T188: 70 | U188: 0.01796746288 | V188: 1.17879295e-07 | W188: 5.315291929
G189: 70.5 | H189: 0.1339161738 | I189: 1.939047179e-06 | J189: 16.92061359 | L189: 70.5 | M189: 0.1036105056 | N189: 1.500234459e-06 | O189: 13.09142338 | T189: 70.5 | U189: 0.01699065587 | V189: 1.03168507e-07 | W189: 5.193890494
G190: 71 | H190: 0.1275339032 | I190: 1.709099015e-06 | J190: 16.65140969 | L190: 71 | M190: 0.09867256367 | N190: 1.322324317e-06 | O190: 12.88314121 | T190: 71 | U190: 0.01606695329 | V190: 9.029355705e-08 | W190: 5.075261871
G191: 71.5 | H191: 0.1214497799 | I191: 1.506345288e-06 | J191: 16.38567612 | L191: 71.5 | M191: 0.09396529738 | N191: 1.165454421e-06 | O191: 12.67754401 | T191: 71.5 | U191: 0.01519346811 | V191: 7.902534096e-08 | W191: 4.95934273
G192: 72 | H192: 0.1156502495 | I192: 1.327579703e-06 | J192: 16.12339478 | L192: 72 | M192: 0.08947821971 | N192: 1.027144073e-06 | O192: 12.47461779 | T192: 72 | U192: 0.01436747023 | V192: 6.916334584e-08 | W192: 4.846071185
G193: 72.5 | H193: 0.1101223503 | I193: 1.169972706e-06 | J193: 15.8645466 | L193: 72.5 | M193: 0.08520130215 | N193: 9.052040554e-07 | O193: 12.27434781 | T193: 72.5 | U193: 0.013586378 | V193: 6.053208186e-08 | W193: 4.735386766
G194: 73 | H194: 0.1048536885 | I194: 1.031027384e-06 | J194: 15.60911158 | L194: 73 | M194: 0.0811249558 | N194: 7.97702514e-07 | O194: 12.07671856 | T194: 73 | U194: 0.01284775011 | V194: 5.29779595e-08 | W194: 4.627230383
G195: 73.5 | H195: 0.09983241545 | I195: 9.085405078e-07 | J195: 15.35706883 | L195: 73.5 | M195: 0.07724001325 | N195: 7.029348187e-07 | O195: 11.88171392 | T195: 73.5 | U195: 0.01214927796 | V195: 4.636655648e-08 | W195: 4.521544295
G196: 74 | H196: 0.0950472043 | I196: 8.005681208e-07 | J196: 15.10839666 | L196: 74 | M196: 0.07353771103 | N196: 6.193969361e-07 | O196: 11.68931707 | T196: 74 | U196: 0.01148877848 | V196: 4.058022581e-08 | W196: 4.418272081
G197: 74.5 | H197: 0.09048722871 | I197: 7.053951372e-07 | J197: 14.86307256 | L197: 74.5 | M197: 0.07000967284 | N197: 5.457619101e-07 | O197: 11.49951062 | T197: 74.5 | U197: 0.01086418728 | V197: 3.551600231e-08 | W197: 4.317358607
G198: 75 | H198: 0.0861421418 | I198: 6.215084938e-07 | J198: 14.62107334 | L198: 75 | M198: 0.06664789331 | N198: 4.808590885e-07 | O198: 11.31227661 | T198: 75 | U198: 0.01027355217 | V198: 3.108377036e-08 | W198: 4.21875
G199: 75.5 | H199: 0.082002056 | I199: 5.475734377e-07 | J199: 14.38237508 | L199: 75.5 | M199: 0.06344472247 | N199: 4.236557775e-07 | O199: 11.12759655 | T199: 75.5 | U199: 0.00971502714 | V199: 2.720466035e-08 | W199: 4.122393617
G200: 76 | H200: 0.07805752368 | I200: 4.824125857e-07 | J200: 14.14695324 | L200: 76 | M200: 0.06039285072 | N200: 3.732410394e-07 | O200: 10.94545144 | T200: 76 | U200: 0.009186866505 | V200: 2.380964523e-08 | W200: 4.028238016
G201: 76.5 | H201: 0.07429951858 | I201: 4.249874337e-07 | J201: 13.91478267 | L201: 76.5 | M201: 0.05748529447 | N201: 3.288113872e-07 | O201: 10.76582183 | T201: 76.5 | U201: 0.008687419495 | V201: 2.083831221e-08 | W201: 3.936232933
G202: 77 | H202: 0.07071941789 | I202: 3.743820301e-07 | J202: 13.68583767 | L202: 77 | M202: 0.05471538228 | N202: 2.89658152e-07 | O202: 10.58868784 | T202: 77 | U202: 0.008215125086 | V202: 1.823778773e-08 | W202: 3.846329249
G203: 77.5 | H203: 0.06730898507 | I203: 3.297885616e-07 | J203: 13.46009201 | L203: 77.5 | M203: 0.05207674156 | N203: 2.551563313e-07 | O203: 10.41402916 | T203: 77.5 | U203: 0.007768507118 | V203: 1.596179662e-08 | W203: 3.758478967
G204: 78 | H204: 0.06406035332 | I204: 2.904946276e-07 | J204: 13.23751898 | L204: 78 | M204: 0.0495632858 | N204: 2.24754743e-07 | O204: 10.24182513 | T204: 78 | U204: 0.007346169681 | V204: 1.396983862e-08 | W204: 3.672635189
G205: 78.5 | H205: 0.06096600974 | I205: 2.558720067e-07 | J205: 13.01809141 | L205: 78.5 | M205: 0.0471692023 | N205: 1.979673346e-07 | O205: 10.07205473 | T205: 78.5 | U205: 0.006946792758 | V205: 1.222646771e-08 | W205: 3.588752085
G206: 79 | H206: 0.05801878011 | I206: 2.253667418e-07 | J206: 12.80178172 | L206: 79 | M206: 0.04488894037 | N206: 1.743655109e-07 | O206: 9.904696639 | T206: 79 | U206: 0.006569128092 | V206: 1.070066139e-08 | W206: 3.506784874
G207: 79.5 | H207: 0.05521181422 | I207: 1.984903875e-07 | J207: 12.58856197 | L207: 79.5 | M207: 0.04271720004 | N207: 1.535713635e-07 | O207: 9.739729214 | T207: 79.5 | U207: 0.00621199529 | V207: 9.365268603e-09 | W207: 3.426689797
G208: 80 | H208: 0.05253857191 | I208: 1.748122868e-07 | J208: 12.37840384 | L208: 80 | M208: 0.04064892122 | N208: 1.352516944e-07 | O208: 9.577130557 | T208: 80 | U208: 0.005874278129 | V208: 8.196526626e-09 | W208: 3.348424094
G209: 80.5 | H209: 0.04999280957 | I209: 1.539527545e-07 | J209: 12.17127871 | L209: 80.5 | M209: 0.03867927322 | N209: 1.191127425e-07 | O209: 9.416878522 | T209: 80.5 | U209: 0.005554921073 | V209: 7.173638214e-09 | W209: 3.271945982
G210: 81 | H210: 0.04756856722 | I210: 1.35577062e-07 | J210: 11.96715766 | L210: 81 | M210: 0.03680364484 | N210: 1.048955294e-07 | O210: 9.258950736 | T210: 81 | U210: 0.005252925968 | V210: 6.278401519e-09 | W210: 3.197214632
G211: 81.5 | H211: 0.04526015614 | I211: 1.193901298e-07 | J211: 11.76601152 | L211: 81.5 | M211: 0.03501763474 | N211: 9.237175289e-08 | O211: 9.103324626 | T211: 81.5 | U211: 0.004967348925 | V211: 5.494886202e-09 | W211: 3.124190149
... 568 more rows

Sheet D01a
A1: Accidental Dermal Exposure Assessment Using First-Order Absorption, Child, Surface Area, Whole body, for 60 minute(s)
A2: Short Title | B2: Child direct spray, 1 hour | E2: DrmFOA
A3: Receptor | B3: Child
A4: Duration | B4: Acute
A5: Surface Contaminated | B5: Surface Area, Whole body
A6: Parameter/Assumption | B6: Code / Range | C6: Equation/ Value | D6: Units | E6: Reference/Designation
A7: Surface Area | B7: SA | C7: ='A02'!$C$60 -> 6030 | D7: cm2 | E7: U.S. EPA/ORD 1996
A8: Duration of Exposure | C8: 60 | D8: minutes | E8: Scenario parameter
B9: T | C9: =C8/60 -> 1 | D9: hours | E9: Eq
A10: Body weight | B10: BW | C10: ='A02'!$C$59 -> 13.3 | D10: kg | E10: U.S. EPA/ORD 1996
A11: Liquid adhering to skin | B11: L | C11: ='A02'!$C$126 -> 0.008 | D11: mL/cm2 | E11: Mason and Johnson 1987
A12: Concentration in solution | B12: Conc
B13: Central | C13: ='A01'!FldConc_C -> 4.8 | D13: mg/mL | E13: Worksheet A01
B14: Lower | C14: ='A01'!FldConc_L -> 3 | E14: Worksheet A01
B15: Upper | C15: ='A01'!FldConc_U -> 24 | E15: Worksheet A01
A16: First-order dermal absorption rates | B16: ka
B17: Central | C17: ='B01'!$C$10 -> 0.012 | D17: hour-1 | E17: Section 3.2.2.2
B18: Lower | C18: ='B01'!$C$11 -> 0.0041 | E18: Section 3.2.2.2
B19: Upper | C19: ='B01'!$C$12 -> 0.036 | E19: Section 3.2.2.2
A20: Toxic Equivalency Factor for formulation: (See risk assessment if this has a value other than 1.) | B20: TEF
B21: Central | C21: ='A01'!C$35 -> 1 | D21: Unitless | E21: Worksheet A01
B22: Lower | C22: ='A01'!C$36 -> 1 | E22: Worksheet A01
B23: Upper | C23: ='A01'!C$37 -> 1 | E23: Worksheet A01
A24: Amount Deposited on Skin | B24: Amnt | C24: L × SA × Conc x TEF
B25: Central | C25: =$C$11*$C$7*C13*C21 -> 231.552 | D25: mg | E25: Eq
B26: Lower | C26: =$C$11*$C$7*C14*C22 -> 144.72 | E26: Eq
B27: Upper | C27: =$C$11*$C$7*C15*C23 -> 1157.76 | E27: Eq
A28: Skin Loading | B28: Loading
B29: Central | C29: =C25/C$7 -> 0.0384 | D29: mg/cm2 | E29: Eq
B30: Lower | C30: =C26/C$7 -> 0.024 | E30: Eq
B31: Upper | C31: =C27/C$7 -> 0.192 | E31: Eq
A32: Proportion absorbed over period T | B32: Prop | C32: 1-exp(-ka T)
B33: Central | C33: =1-EXP(-C17 *$C$9) -> 0.01192828714 | D33: hour-1 | E33: Eq
B34: Lower | C34: =1-EXP(-C18 *$C$9) -> 0.004091606475 | E34: Eq
B35: Upper | C35: =1-EXP(-C19 *$C$9) -> 0.03535970652 | E35: Eq
A36: Absorbed Dose | B36: Dose | C36: Amnt × Prop ÷ BW
B37: Central | C37: =C25*C33/$C$10 -> 0.2076705822 | D37: mg/kg bw | E37: Eq
B38: Lower | C38: =C26*C34/$C$10 -> 0.04452160068 | E38: Eq
B39: Upper | C39: =C27*C35/$C$10 -> 3.078049159 | E39: Eq

Sheet D01b
A1: Accidental Dermal Exposure Assessment Using First-Order Absorption, Adult Female, Surface Area, Feet and lower Legs, for 60 minute(s)
A2: Short Title | B2: Adult female, lower legs, 1 hour | E2: DrmFOA
A3: Receptor | B3: Adult Female
A4: Duration | B4: Acute
A5: Surface Contaminated | B5: Surface Area, Feet and lower Legs
A6: Parameter/Assumption | B6: Code / Range | C6: Equation/ Value | D6: Units | E6: Reference/Designation
A7: Surface Area | B7: SA | C7: ='A02'!$C$4 -> 2915 | D7: cm2 | E7: U.S. EPA/ORD 1992
A8: Duration of Exposure | C8: 60 | D8: minutes | E8: Scenario parameter
B9: T | C9: =C8/60 -> 1 | D9: hours | E9: Eq
A10: Body weight | B10: BW | C10: ='A02'!$C$3 -> 64 | D10: kg | E10: U.S. EPA/ORD 1985
A11: Liquid adhering to skin | B11: L | C11: ='A02'!$C$126 -> 0.008 | D11: mL/cm2 | E11: Mason and Johnson 1987
A12: Concentration in solution | B12: Conc
B13: Central | C13: ='A01'!FldConc_C -> 4.8 | D13: mg/mL | E13: Worksheet A01
B14: Lower | C14: ='A01'!FldConc_L -> 3 | E14: Worksheet A01
B15: Upper | C15: ='A01'!FldConc_U -> 24 | E15: Worksheet A01
A16: First-order dermal absorption rates | B16: ka
B17: Central | C17: ='B01'!$C$10 -> 0.012 | D17: hour-1 | E17: Section 3.2.2.2
B18: Lower | C18: ='B01'!$C$11 -> 0.0041 | E18: Section 3.2.2.2
B19: Upper | C19: ='B01'!$C$12 -> 0.036 | E19: Section 3.2.2.2
A20: Toxic Equivalency Factor for formulation: (See risk assessment if this has a value other than 1.) | B20: TEF
B21: Central | C21: ='A01'!C$35 -> 1 | D21: Unitless | E21: Worksheet A01
B22: Lower | C22: ='A01'!C$36 -> 1 | E22: Worksheet A01
B23: Upper | C23: ='A01'!C$37 -> 1 | E23: Worksheet A01
A24: Amount Deposited on Skin | B24: Amnt | C24: L × SA × Conc x TEF
B25: Central | C25: =$C$11*$C$7*C13*C21 -> 111.936 | D25: mg | E25: Eq
B26: Lower | C26: =$C$11*$C$7*C14*C22 -> 69.96 | E26: Eq
B27: Upper | C27: =$C$11*$C$7*C15*C23 -> 559.68 | E27: Eq
A28: Skin Loading | B28: Loading
B29: Central | C29: =C25/C$7 -> 0.0384 | D29: mg/cm2 | E29: Eq
B30: Lower | C30: =C26/C$7 -> 0.024 | E30: Eq
B31: Upper | C31: =C27/C$7 -> 0.192 | E31: Eq
A32: Proportion absorbed over period T | B32: Prop | C32: 1-exp(-ka T)
B33: Central | C33: =1-EXP(-C17 *$C$9) -> 0.01192828714 | D33: hour-1 | E33: Eq
B34: Lower | C34: =1-EXP(-C18 *$C$9) -> 0.004091606475 | E34: Eq
B35: Upper | C35: =1-EXP(-C19 *$C$9) -> 0.03535970652 | E35: Eq
A36: Absorbed Dose | B36: Dose | C36: Amnt × Prop ÷ BW
B37: Central | C37: =C25*C33/$C$10 -> 0.0208625742 | D37: mg/kg bw | E37: Eq
B38: Lower | C38: =C26*C34/$C$10 -> 0.004472637328 | E38: Eq
B39: Upper | C39: =C27*C35/$C$10 -> 0.3092206335 | E39: Eq

Sheet D02
A1: Dermal Contact with Contaminated Vegetation, Adult Female, Surface Area, Wearing shorts and T-shirt, for 1 minute(s)
A2: Short Title | B2: Vegetation Contact, shorts and T-shirt | E2: DrmVegC
A3: Receptor | B3: Adult Female
A4: Surface Contaminated | B4: Surface Area, Wearing shorts and T-shirt
A5: Duration | B5: Acute
A6: Parameter/Assumption | B6: Code / Range | C6: Equation/ Value | D6: Units | E6: Reference/Designation
A7: Application Rate (lbs/acre) | B7: ApRt | C7: ='A01'!ApRt_C -> 1 | D7: lb/acre | E7: Worksheet A01
A8: Conversion Factor | B8: CnvF | C8: 11.21 | D8: ug/cm2/lb/acre
A9: Metric Application Rate (ug/cm2) | B9: ApR_m | C9: ApR × CnvF
C10: =C7*C$8 -> 11.21 | D10: ug/cm2 | E10: Eq
A11: Surface Area | B11: SA | C11: ='A02'!$C$5 -> 5300 | D11: cm2 | E11: U.S. EPA/ORD 1992
A12: Contact Time | B12: Tc | C12: 1 | D12: hours | E12: Scenario parameter
A13: Exposure Time | B13: Te | C13: 24 | D13: hours | E13: Scenario parameter
A14: Body weight (W) | B14: BW | C14: ='A02'!$C$3 -> 64 | D14: kg | E14: U.S. EPA/ORD 1985
A15: Proportion Dislodgeable | B15: PropDr
B16: Central | C16: ='A01'!C$47 -> 0.1 | D16: proportion | E16: Worksheet A01
B17: Lower | C17: ='A01'!C$48 -> 0.1 | E17: Worksheet A01
B18: Upper | C18: ='A01'!C$49 -> 0.1 | E18: Worksheet A01
A19: Dislodgeable Residue | B19: Dr | C19: ApR_m × PropDr
B20: Central | C20: =C$10*C16 -> 1.121 | D20: ug/cm2 | E20: Eq
B21: Lower | C21: =C$10*C17 -> 1.121 | E21: Eq
B22: Upper | C22: =C$10*C18 -> 1.121 | E22: Eq
A23: Transfer Rate | B23: Tr | C23: 10 (1.09×Log10(Dr)+0.05) / 1000 µg/mg)
B24: Central | C24: =(10^( (1.09 * LOG(C20)) + 0.05)) / 1000 -> 0.001270779259 | D24: mg/(cm2 hr) | E24: Eq
B25: Lower | C25: =(10^( (1.09 * LOG(C21)) + 0.05)) / 1000 -> 0.001270779259 | E25: Eq
B26: Upper | C26: =(10^( (1.09 * LOG(C22)) + 0.05)) / 1000 -> 0.001270779259 | E26: Eq
A27: Toxic Equivalency Factor for formulation: (See risk assessment if this has a value other than 1.) | B27: TEF
B28: Central | C28: ='A01'!C$35 -> 1 | D28: Unitless | E28: Worksheet A01
B29: Lower | C29: ='A01'!C$36 -> 1 | E29: Worksheet A01
B30: Upper | C30: ='A01'!C$37 -> 1 | E30: Worksheet A01
A31: Amount Transferred to Skin Surface | B31: Amnt | C31: SA × Tr × Tc x TEF
B32: Central | C32: =C$11 * C$12 * C24 * C28 -> 6.73513007 | D32: mg | E32: Eq
B33: Lower | C33: =C$11 * C$12 * C25 * C29 -> 6.73513007 | E33: Eq
B34: Upper | C34: =C$11 * C$12 * C26 * C30 -> 6.73513007 | E34: Eq
A35: First-order dermal absorption rates | B35: ka
B36: Central | C36: ='B01'!$C$10 -> 0.012 | D36: hour-1 | E36: Section 3.2.2.2
B37: Lower | C37: ='B01'!$C$11 -> 0.0041 | E37: Section 3.2.2.2
B38: Upper | C38: ='B01'!$C$12 -> 0.036 | E38: Section 3.2.2.2
A39: Skin Loading | B39: Loading
B40: Central | C40: =C36/C$11 -> 2.264150943e-06 | D40: mg/cm2 | E40: Eq
B41: Lower | C41: =C37/C$11 -> 7.735849057e-07 | E41: Eq
B42: Upper | C42: =C38/C$11 -> 6.79245283e-06 | E42: Eq
A43: Proportion absorbed over period T | B43: Prop | C43: 1-exp(-ka Amnt)
B44: Central | C44: =1-EXP(-C36 *$C$13) -> 0.2502384078 | D44: hour-1 | E44: Eq
B45: Lower | C45: =1-EXP(-C37 *$C$13) -> 0.09371368329 | E45: Eq
B46: Upper | C46: =1-EXP(-C38 *$C$13) -> 0.5785271852 | E46: Eq
A47: Absorbed Dose | B47: Dose | C47: Amnt × Prop ÷ BW
B48: Central | C48: =C32*C44/$C$14 -> 0.02633419101 | D48: mg/kg bw | E48: Eq
B49: Lower | C49: =C33*C45/$C$14 -> 0.009862091348 | E49: Eq
B50: Upper | C50: =C34*C46/$C$14 -> 0.06088212253 | E50: Eq
A52: Note 1: The method of Durkin et al. (1995, p. 68, equation 4) is used to calculate the transfer rate (Tr) in units of µg/(cm2 hr) based on the dislodgeable residue (Dr) in units of μg/cm2. This is converted to units of mg/(cm2 hr)) by dividing by 1000 µg/mg.

Sheet D03a
A1: Consumption of Fruit by a Adult Female, after Acute exposure.
A2: Short Title | B2: Contaminated Fruit | E2: FdPropBwV6
A3: Receptor | B3: Adult Female
A4: Duration | B4: Acute | E4: Scenario parameter
A5: Material consumed | B5: Fruit
A6: Parameter/Assumption | B6: Code / Range | C6: Equation/ Value | D6: Units | E6: Reference/Designation
A7: Commodity
A8: Concentration on vegetation | B8: Conc
B9: Central | C9: =B05a!Acute_C -> 1.992365664 | D9: mg/kg food | E9: ='B05a'!Acute_C
B10: Lower | C10: =B05a!Acute_L -> 0.9107762257 | E10: ='B05a'!Acute_L
B11: Upper | C11: =B05a!Acute_U -> 4.269406511 | E11: ='B05a'!Acute_U
A12: Receptor
A13: Amount consumed per day per unit body weight | B13: Amnt
B14: Central | C14: ='A03'!$E$5 -> 0.00168 | D14: kg food/kg BW per day | E14: U.S. EPA/ORD 1996
B15: Lower | C15: ='A03'!$E$6 -> 0.00168 | E15: U.S. EPA/ORD 1996
B16: Upper | C16: ='A03'!$E$7 -> 0.01244 | E16: U.S. EPA/ORD 1996
A17: Estimate
A18: Dose | B18: Dose | C18: Conc × Amnt
B19: Central | C19: =C14*C9 -> 0.003347174315 | D19: mg/kg bw | E19: Eq
B20: Lower | C20: =C15*C10 -> 0.001530104059 | E20: Eq
B21: Upper | C21: =C16*C11 -> 0.053111417 | E21: Eq

Sheet D03b
A1: Consumption of Vegetation by a Adult Female, after Acute exposure.
A2: Short Title | B2: Contaminated Vegetation | E2: FdPropBwV6
A3: Receptor | B3: Adult Female
A4: Duration | B4: Acute | E4: Scenario parameter
A5: Material consumed | B5: Vegetation
A6: Parameter/Assumption | B6: Code / Range | C6: Equation/ Value | D6: Units | E6: Reference/Designation
A7: Commodity
A8: Concentration on vegetation | B8: Conc
B9: Central | C9: =B05b!Acute_C -> 12.80797672 | D9: mg/kg food | E9: ='B05b'!Acute_C
B10: Lower | C10: =B05b!Acute_L -> 4.260406649 | E10: ='B05b'!Acute_L
B11: Upper | C11: =B05b!Acute_U -> 38.42384873 | E11: ='B05b'!Acute_U
A12: Receptor
A13: Amount consumed per day per unit body weight | B13: Amnt
B14: Central | C14: ='A03'!$E$12 -> 0.0036 | D14: kg food/kg BW per day | E14: U.S. EPA/ORD 1996
B15: Lower | C15: ='A03'!$E$13 -> 0.00075 | E15: U.S. EPA/ORD 1996
B16: Upper | C16: ='A03'!$E$14 -> 0.01 | E16: U.S. EPA/ORD 1996
A17: Estimate
A18: Dose | B18: Dose | C18: Conc × Amnt
B19: Central | C19: =C14*C9 -> 0.04610871618 | D19: mg/kg bw | E19: Eq
B20: Lower | C20: =C15*C10 -> 0.003195304987 | E20: Eq
B21: Upper | C21: =C16*C11 -> 0.3842384873 | E21: Eq

Sheet D04a
A1: Consumption of Fruit by a Adult Female, after Chronic exposure.
A2: Short Title | B2: Contaminated Fruit | E2: FdPropBwV6
A3: Receptor | B3: Adult Female
A4: Duration | B4: Chronic | E4: Scenario parameter
A5: Material consumed | B5: Fruit
A6: Parameter/Assumption | B6: Code / Range | C6: Equation/ Value | D6: Units | E6: Reference/Designation
A7: Commodity
A8: Concentration on vegetation | B8: Conc
B9: Central | C9: =B05a!Chronic_C -> 1.631799302 | D9: mg/kg food | E9: ='B05a'!Chronic_C
B10: Lower | C10: =B05a!Chronic_L -> 0.5837218751 | E10: ='B05a'!Chronic_L
B11: Upper | C11: =B05a!Chronic_U -> 4.142691359 | E11: ='B05a'!Chronic_U
A12: Receptor
A13: Amount consumed per day per unit body weight | B13: Amnt
B14: Central | C14: ='A03'!$E$5 -> 0.00168 | D14: kg food/kg BW per day | E14: U.S. EPA/ORD 1996
B15: Lower | C15: ='A03'!$E$6 -> 0.00168 | E15: U.S. EPA/ORD 1996
B16: Upper | C16: ='A03'!$E$7 -> 0.01244 | E16: U.S. EPA/ORD 1996
A17: Estimate
A18: Dose | B18: Dose | C18: Conc × Amnt
B19: Central | C19: =C14*C9 -> 0.002741422827 | D19: mg/kg bw | E19: Eq
B20: Lower | C20: =C15*C10 -> 0.0009806527501 | E20: Eq
B21: Upper | C21: =C16*C11 -> 0.05153508051 | E21: Eq

Sheet D04b
A1: Consumption of Vegetation by a Adult Female, after Chronic exposure.
A2: Short Title | B2: Contaminated Vegetation | E2: FdPropBwV6
A3: Receptor | B3: Adult Female
A4: Duration | B4: Chronic | E4: Scenario parameter
A5: Material consumed | B5: Vegetation
A6: Parameter/Assumption | B6: Code / Range | C6: Equation/ Value | D6: Units | E6: Reference/Designation
A7: Commodity
A8: Concentration on vegetation | B8: Conc
B9: Central | C9: =B05b!Chronic_C -> 3.438727798 | D9: mg/kg food | E9: ='B05b'!Chronic_C
B10: Lower | C10: =B05b!Chronic_L -> 0.4803063943 | E10: ='B05b'!Chronic_L
B11: Upper | C11: =B05b!Chronic_U -> 23.05040019 | E11: ='B05b'!Chronic_U
A12: Receptor
A13: Amount consumed per day per unit body weight | B13: Amnt
B14: Central | C14: ='A03'!$E$12 -> 0.0036 | D14: kg food/kg BW per day | E14: U.S. EPA/ORD 1996
B15: Lower | C15: ='A03'!$E$13 -> 0.00075 | E15: U.S. EPA/ORD 1996
B16: Upper | C16: ='A03'!$E$14 -> 0.01 | E16: U.S. EPA/ORD 1996
A17: Estimate
A18: Dose | B18: Dose | C18: Conc × Amnt
B19: Central | C19: =C14*C9 -> 0.01237942007 | D19: mg/kg bw | E19: Eq
B20: Lower | C20: =C15*C10 -> 0.0003602297957 | E20: Eq
B21: Upper | C21: =C16*C11 -> 0.2305040019 | E21: Eq

Sheet D05
A1: Acute exposure of Child after an accidental spill of the pesticide into a pond
A2: Short Title | B2: Water consumption, accidental spill | E2: WatSpillAmntV6
A3: Receptor | B3: Child
A4: Duration | B4: Acute
A5: Parameter/Assumption | B5: Code / Range | C5: Equation/ Value | D5: Units | E5: Reference/Designation
A6: Concentration in pond water | B6: ConcWat
B7: Central | C7: =B04b!Water_C -> 0.00773106383 | D7: mg/L | E7: ='B04b'!Water_C
B8: Lower | C8: =B04b!Water_L -> 0.0003875426621 | E8: ='B04b'!Water_L
B9: Upper | C9: =B04b!Water_U -> 0.1326131387 | E9: ='B04b'!Water_U
A10: Amount of water consumed in one day | B10: Amnt
B11: Central | C11: ='A03'!$E$38 -> 1 | D11: liters/day | E11: U.S. EPA/ORD 1996
B12: Lower | C12: ='A03'!$E$39 -> 0.61 | E12: U.S. EPA/ORD 1996
B13: Upper | C13: ='A03'!$E$40 -> 1.5 | E13: U.S. EPA/ORD 1996
A14: Body weight | B14: BW | C14: ='A02'!$C$59 -> 13.3 | D14: kg | E14: U.S. EPA/ORD 1996
A15: Dose | B15: Dose | C15: ConcWat × Amnt ÷ BW
B16: Central | C16: =C7*C11/C$14 -> 0.0005812829947 | D16: mg/kg | E16: Eq
B17: Lower | C17: =C8*C12/C$14 -> 1.777451307e-05 | D17: mg/kg | E17: Eq
B18: Upper | C18: =C9*C13/C$14 -> 0.01495636902 | D18: mg/kg | E18: Eq

Sheet D06
A1: Consumption of contaminated water, Child, acute exposure
A2: Short Title | B2: Water consumption, ambient | E2: WatAmbAmntV6
A3: Receptor | B3: Child
A4: Duration | B4: acute
A5: Parameter/Assumption | B5: Code / Range | C5: Equation/ Value | D5: Units | E5: Reference/Designation
A6: Concentration in water | B6: ConcWat | C6: ApR × WCR ×TEF
B7: Central | C7: =B04a!Acute_C -> 0.0009 | D7: mg/L | E7: ='B04a'!Acute_C
B8: Lower | C8: =B04a!Acute_L -> 1e-08 | E8: ='B04a'!Acute_L
B9: Upper | C9: =B04a!Acute_U -> 0.028 | E9: ='B04a'!Acute_U
A10: Toxic Equivalency Factor for formulation: (See risk assessment if this has a value other than 1.) | B10: TEF
B11: Central | C11: ='A01'!C$35 -> 1 | D11: unitless | E11: Worksheet A01
B12: Lower | C12: ='A01'!C$36 -> 1 | E12: Worksheet A01
B13: Upper | C13: ='A01'!C$37 -> 1 | E13: Worksheet A01
A14: Amount of water consumed in one day | B14: Amnt
B15: Central | C15: ='A03'!$E$38 -> 1 | D15: L/day | E15: U.S. EPA/ORD 1996
B16: Lower | C16: ='A03'!$E$39 -> 0.61 | E16: U.S. EPA/ORD 1996
B17: Upper | C17: ='A03'!$E$40 -> 1.5 | E17: U.S. EPA/ORD 1996
A18: Body weight | B18: BW | C18: ='A02'!$C$59 -> 13.3 | D18: kg | E18: U.S. EPA/ORD 1996
A19: Dose | B19: Dose | C19: ConcWat × Amnt ×TEF ÷ BW
B20: Central | C20: =C7*C15/C$18 -> 6.766917293e-05 | D20: mg/kg | E20: Eq
B21: Lower | C21: =C8*C16/C$18 -> 4.586466165e-10 | D21: mg/kg | E21: Eq
B22: Upper | C22: =C9*C17/C$18 -> 0.003157894737 | D22: mg/kg | E22: Eq

Sheet D07
A1: Consumption of contaminated water, Child, chronic exposure
A2: Short Title | B2: Water consumption, ambient | E2: WatAmbAmntV6
A3: Receptor | B3: Child
A4: Duration | B4: chronic
A5: Parameter/Assumption | B5: Code / Range | C5: Equation/ Value | D5: Units | E5: Reference/Designation
A6: Concentration in water | B6: ConcWat | C6: ApR × WCR ×TEF
B7: Central | C7: =B04a!Chronic_C -> 5e-05 | D7: mg/L | E7: ='B04a'!Chronic_C
B8: Lower | C8: =B04a!Chronic_L -> 3e-12 | E8: ='B04a'!Chronic_L
B9: Upper | C9: =B04a!Chronic_U -> 0.002 | E9: ='B04a'!Chronic_U
A10: Toxic Equivalency Factor for formulation: (See risk assessment if this has a value other than 1.) | B10: TEF
B11: Central | C11: ='A01'!C$35 -> 1 | D11: unitless | E11: Worksheet A01
B12: Lower | C12: ='A01'!C$36 -> 1 | E12: Worksheet A01
B13: Upper | C13: ='A01'!C$37 -> 1 | E13: Worksheet A01
A14: Amount of water consumed in one day | B14: Amnt
B15: Central | C15: ='A03'!$E$38 -> 1 | D15: L/day | E15: U.S. EPA/ORD 1996
B16: Lower | C16: ='A03'!$E$39 -> 0.61 | E16: U.S. EPA/ORD 1996
B17: Upper | C17: ='A03'!$E$40 -> 1.5 | E17: U.S. EPA/ORD 1996
A18: Body weight | B18: BW | C18: ='A02'!$C$59 -> 13.3 | D18: kg | E18: U.S. EPA/ORD 1996
A19: Dose | B19: Dose | C19: ConcWat × Amnt ×TEF ÷ BW
B20: Central | C20: =C7*C15/C$18 -> 3.759398496e-06 | D20: mg/kg | E20: Eq
B21: Lower | C21: =C8*C16/C$18 -> 1.37593985e-13 | D21: mg/kg | E21: Eq
B22: Upper | C22: =C9*C17/C$18 -> 0.0002255639098 | D22: mg/kg | E22: Eq

Sheet D08a
A1: Acute scenario for the consumption of contaminated fish by Adult Male after an accidental spill of the pesticide into a pond
A2: Short Title | B2: Fish consumption, accidental spill | E2: FishAmntSpill
A3: Receptor | B3: Adult Male
A4: Duration | B4: Acute
A5: Parameter/Assumption | B5: Code / Range | C5: Equation/ Value | D5: Units | E5: Reference/Designation
A6: Surface Area of Pond | B6: SA | C6: ='A01'!C$23 -> 1000 | D6: m2 | E6: Worksheet A01
A7: Depth of Pond | B7: Depth | C7: ='A01'!C$24 -> 1 | D7: meter | E7: Worksheet A01
A8: Volume of Pond | B8: VPM | C8: =C6*C7 -> 1000 | D8: m3 | E8: Eq
B9: VPL | C9: =1000*C8 -> 1000000 | D9: liters | E9: Eq
A10: Concentration in field solution | B10: Conc
B11: Central | C11: ='A01'!FldConc_C -> 4.8 | D11: mg/mL | E11: Worksheet A01
B12: Lower | C12: ='A01'!FldConc_L -> 3 | E12: Worksheet A01
B13: Upper | C13: ='A01'!FldConc_U -> 24 | E13: Worksheet A01
A14: Volume of Spill (gallons) | B14: VSGal
B15: Central | C15: ='A01'!C$43 -> 100 | D15: gallons | E15: Worksheet A01
B16: Lower | C16: ='A01'!C$44 -> 20 | E16: Worksheet A01
B17: Upper | C17: ='A01'!C$45 -> 200 | E17: Worksheet A01
A18: Conversion factor for gallons to liters | B18: Conv | C18: 3.785 | D18: liters/gal
A19: Volume of Spill (liters) | B19: VSLit | C19: VSGal x Conv
B20: Central | C20: =C15*C$18 -> 378.5 | D20: liters | E20: Eq
B21: Lower | C21: =C16*C$18 -> 75.7 | D21: liters | E21: Eq
B22: Upper | C22: =C17*C$18 -> 757 | D22: liters | E22: Eq
A23: Concentration in pond water | B23: ConcWat | C23: Conc × 1000 mL/L × VSLit ÷ VPL
B24: Central | C24: =C11*1000*C20/C$9 -> 1.8168 | D24: mg/L | E24: Eq
B25: Lower | C25: =C12*1000*C21/C$9 -> 0.2271 | E25: Eq
B26: Upper | C26: =C13*1000*C22/C$9 -> 18.168 | E26: Eq
A27: Bioconcentration factor | B27: BCF
B28: Central | C28: ='B01'!$C$3 -> 0.06 | D28: L/kg | E28: Section 3.2.3.5.
B29: Lower | C29: ='B01'!$C$3 -> 0.06 | E29: Section 3.2.3.5.
B30: Upper | C30: ='B01'!$C$3 -> 0.06 | E30: Section 3.2.3.5.
A31: Concentration in fish | B31: ConcFish | C31: ConcWat × BCF
B32: Central | C32: =C24*C28 -> 0.109008 | D32: mg/kg | E32: Eq
B33: Lower | C33: =C25*C29 -> 0.013626 | E33: Eq
B34: Upper | C34: =C26*C30 -> 1.09008 | E34: Eq
A35: Amount of fish consumed | B35: Amnt
B36: Central | C36: ='A03'!$E$19 -> 0.158 | D36: kg/day | E36: Ruffle et al. 1994
B37: Lower | C37: ='A03'!$E$19 -> 0.158 | E37: Ruffle et al. 1994
B38: Upper | C38: ='A03'!$E$19 -> 0.158 | E38: Ruffle et al. 1994
A39: Toxic Equivalency Factor for formulation: (See risk assessment if this has a value other than 1.) | B39: TEF
B40: Central | C40: ='A01'!C$35 -> 1 | D40: Unitless | E40: Worksheet A01
B41: Lower | C41: ='A01'!C$36 -> 1 | E41: Worksheet A01
B42: Upper | C42: ='A01'!C$37 -> 1 | E42: Worksheet A01
A43: Body weight | B43: BW | C43: ='A02'!$C$7 -> 70 | D43: kg | E43: ICRP 1975
A44: Dose | B44: Dose | C44: ConcFish × Amnt × TEF ÷ BW
B45: Central | C45: =C32*C36*C40/C$43 -> 0.0002460466286 | D45: mg/kg | E45: Eq
B46: Lower | C46: =C33*C37*C41/C$43 -> 3.075582857e-05 | D46: mg/kg | E46: Eq
B47: Upper | C47: =C34*C38*C42/C$43 -> 0.002460466286 | D47: mg/kg | E47: Eq

Sheet D08b
A1: Acute scenario for the consumption of contaminated fish by Subsistence Populations after an accidental spill of the pesticide into a pond
A2: Short Title | B2: Fish consumption, accidental spill | E2: FishAmntSpill
A3: Receptor | B3: Subsistence Populations
A4: Duration | B4: Acute
A5: Parameter/Assumption | B5: Code / Range | C5: Equation/ Value | D5: Units | E5: Reference/Designation
A6: Surface Area of Pond | B6: SA | C6: ='A01'!C$23 -> 1000 | D6: m2 | E6: Worksheet A01
A7: Depth of Pond | B7: Depth | C7: ='A01'!C$24 -> 1 | D7: meter | E7: Worksheet A01
A8: Volume of Pond | B8: VPM | C8: =C6*C7 -> 1000 | D8: m3 | E8: Eq
B9: VPL | C9: =1000*C8 -> 1000000 | D9: liters | E9: Eq
A10: Concentration in field solution | B10: Conc
B11: Central | C11: ='A01'!FldConc_C -> 4.8 | D11: mg/mL | E11: Worksheet A01
B12: Lower | C12: ='A01'!FldConc_L -> 3 | E12: Worksheet A01
B13: Upper | C13: ='A01'!FldConc_U -> 24 | E13: Worksheet A01
A14: Volume of Spill (gallons) | B14: VSGal
B15: Central | C15: ='A01'!C$43 -> 100 | D15: gallons | E15: Worksheet A01
B16: Lower | C16: ='A01'!C$44 -> 20 | E16: Worksheet A01
B17: Upper | C17: ='A01'!C$45 -> 200 | E17: Worksheet A01
A18: Conversion factor for gallons to liters | B18: Conv | C18: 3.785 | D18: liters/gal
A19: Volume of Spill (liters) | B19: VSLit | C19: VSGal x Conv
B20: Central | C20: =C15*C$18 -> 378.5 | D20: liters | E20: Eq
B21: Lower | C21: =C16*C$18 -> 75.7 | D21: liters | E21: Eq
B22: Upper | C22: =C17*C$18 -> 757 | D22: liters | E22: Eq
A23: Concentration in pond water | B23: ConcWat | C23: Conc × 1000 mL/L × VSLit ÷ VPL
B24: Central | C24: =C11*1000*C20/C$9 -> 1.8168 | D24: mg/L | E24: Eq
B25: Lower | C25: =C12*1000*C21/C$9 -> 0.2271 | E25: Eq
B26: Upper | C26: =C13*1000*C22/C$9 -> 18.168 | E26: Eq
A27: Bioconcentration factor | B27: BCF
B28: Central | C28: ='B01'!$C$3 -> 0.06 | D28: L/kg | E28: Section 3.2.3.5.
B29: Lower | C29: ='B01'!$C$3 -> 0.06 | E29: Section 3.2.3.5.
B30: Upper | C30: ='B01'!$C$3 -> 0.06 | E30: Section 3.2.3.5.
A31: Concentration in fish | B31: ConcFish | C31: ConcWat × BCF
B32: Central | C32: =C24*C28 -> 0.109008 | D32: mg/kg | E32: Eq
B33: Lower | C33: =C25*C29 -> 0.013626 | E33: Eq
B34: Upper | C34: =C26*C30 -> 1.09008 | E34: Eq
A35: Amount of fish consumed | B35: Amnt
B36: Central | C36: ='A03'!$E$34 -> 0.77 | D36: kg/day | E36: U.S. EPA/ORD 1996
B37: Lower | C37: ='A03'!$E$34 -> 0.77 | E37: U.S. EPA/ORD 1996
B38: Upper | C38: ='A03'!$E$34 -> 0.77 | E38: U.S. EPA/ORD 1996
A39: Toxic Equivalency Factor for formulation: (See risk assessment if this has a value other than 1.) | B39: TEF
B40: Central | C40: ='A01'!C$35 -> 1 | D40: Unitless | E40: Worksheet A01
B41: Lower | C41: ='A01'!C$36 -> 1 | E41: Worksheet A01
B42: Upper | C42: ='A01'!C$37 -> 1 | E42: Worksheet A01
A43: Body weight | B43: BW | C43: ='A02'!$C$8 -> 70 | D43: kg | E43: ICRP 1975
A44: Dose | B44: Dose | C44: ConcFish × Amnt × TEF ÷ BW
B45: Central | C45: =C32*C36*C40/C$43 -> 0.001199088 | D45: mg/kg | E45: Eq
B46: Lower | C46: =C33*C37*C41/C$43 -> 0.000149886 | D46: mg/kg | E46: Eq
B47: Upper | C47: =C34*C38*C42/C$43 -> 0.01199088 | D47: mg/kg | E47: Eq

Sheet D09a
A1: Consumption of contaminated fish, Adult Male, chronic exposure
A2: Short Title | B2: Fish consumption, chronic | E2: FishAmntAmb
A3: Receptor | B3: Adult Male
A4: Duration | B4: chronic
A5: Parameter/Assumption | B5: Code / Range | C5: Equation/ Value | D5: Units | E5: Reference/Designation
A6: Application Rate | B6: ApRt
B7: Central | C7: ='A01'!ApRt_C -> 1 | D7: lb/acre | E7: Worksheet A01
A8: Water contamination rate | B8: WCR
B9: Central | C9: =B04Rt!$C$8 -> 5e-05 | D9: mg/L per lb/acre | E9: Table 26
B10: Lower | C10: =B04Rt!$C$9 -> 3e-12 | E10: Table 26
B11: Upper | C11: =B04Rt!$C$10 -> 0.002 | E11: Table 26
A12: Concentration in water | B12: ConcWat | C12: ApR × WCR
B13: Central | C13: =C$7*C9 -> 5e-05 | D13: mg/L | E13: Eq
B14: Lower | C14: =C$7*C10 -> 3e-12 | E14: Eq
B15: Upper | C15: =C$7*C11 -> 0.002 | E15: Eq
A16: Bioconcentration factor | B16: BCF
B17: Central | C17: ='B01'!$C$4 -> 0.06 | D17: L/kg | E17: Section 3.2.3.5.
B18: Lower | C18: ='B01'!$C$4 -> 0.06 | E18: Section 3.2.3.5.
B19: Upper | C19: ='B01'!$C$4 -> 0.06 | E19: Section 3.2.3.5.
A20: Concentration in fish | B20: ConcFish | C20: ConcWat × BCF
B21: Central | C21: =C13*C17 -> 3e-06 | D21: mg/kg | E21: Eq
B22: Lower | C22: =C14*C18 -> 1.8e-13 | E22: Eq
B23: Upper | C23: =C15*C19 -> 0.00012 | E23: Eq
A24: Amount of fish consumed | B24: Amnt
B25: Central | C25: ='A03'!$E$18 -> 0.01 | D25: kg/day | E25: U.S. EPA/ORD 1996
B26: Lower | C26: ='A03'!$E$18 -> 0.01 | E26: U.S. EPA/ORD 1996
B27: Upper | C27: ='A03'!$E$18 -> 0.01 | E27: U.S. EPA/ORD 1996
A28: Toxic Equivalency Factor for formulation: (See risk assessment if this has a value other than 1.) | B28: TEF
B29: Central | C29: ='A01'!C$35 -> 1 | D29: Unitless | E29: Worksheet A01
B30: Lower | C30: ='A01'!C$36 -> 1 | E30: Worksheet A01
B31: Upper | C31: ='A01'!C$37 -> 1 | E31: Worksheet A01
A32: Body weight | B32: BW | C32: ='A02'!$C$7 -> 70 | D32: kg | E32: ICRP 1975
A33: Dose | B33: Dose | C33: ConcFish× Amnt x TEF ÷ BW
B34: Central | C34: =C21*C25*C29/C$32 -> 4.285714286e-10 | D34: mg/kg | E34: Eq
B35: Lower | C35: =C22*C26*C30/C$32 -> 2.571428571e-17 | D35: mg/kg | E35: Eq
B36: Upper | C36: =C23*C27*C31/C$32 -> 1.714285714e-08 | D36: mg/kg | E36: Eq

Sheet D09b
A1: Consumption of contaminated fish, Subsistence Populations, chronic exposure
A2: Short Title | B2: Fish consumption, chronic | E2: FishAmntAmb
A3: Receptor | B3: Subsistence Populations
A4: Duration | B4: chronic
A5: Parameter/Assumption | B5: Code / Range | C5: Equation/ Value | D5: Units | E5: Reference/Designation
A6: Application Rate | B6: ApRt
B7: Central | C7: ='A01'!ApRt_C -> 1 | D7: lb/acre | E7: Worksheet A01
A8: Water contamination rate | B8: WCR
B9: Central | C9: =B04Rt!$C$8 -> 5e-05 | D9: mg/L per lb/acre | E9: Table 26
B10: Lower | C10: =B04Rt!$C$9 -> 3e-12 | E10: Table 26
B11: Upper | C11: =B04Rt!$C$10 -> 0.002 | E11: Table 26
A12: Concentration in water | B12: ConcWat | C12: ApR × WCR
B13: Central | C13: =C$7*C9 -> 5e-05 | D13: mg/L | E13: Eq
B14: Lower | C14: =C$7*C10 -> 3e-12 | E14: Eq
B15: Upper | C15: =C$7*C11 -> 0.002 | E15: Eq
A16: Bioconcentration factor | B16: BCF
B17: Central | C17: ='B01'!$C$4 -> 0.06 | D17: L/kg | E17: Section 3.2.3.5.
B18: Lower | C18: ='B01'!$C$4 -> 0.06 | E18: Section 3.2.3.5.
B19: Upper | C19: ='B01'!$C$4 -> 0.06 | E19: Section 3.2.3.5.
A20: Concentration in fish | B20: ConcFish | C20: ConcWat × BCF
B21: Central | C21: =C13*C17 -> 3e-06 | D21: mg/kg | E21: Eq
B22: Lower | C22: =C14*C18 -> 1.8e-13 | E22: Eq
B23: Upper | C23: =C15*C19 -> 0.00012 | E23: Eq
A24: Amount of fish consumed | B24: Amnt
B25: Central | C25: ='A03'!$E$33 -> 0.081 | D25: kg/day | E25: U.S. EPA/ORD 1996
B26: Lower | C26: ='A03'!$E$33 -> 0.081 | E26: U.S. EPA/ORD 1996
B27: Upper | C27: ='A03'!$E$33 -> 0.081 | E27: U.S. EPA/ORD 1996
A28: Toxic Equivalency Factor for formulation: (See risk assessment if this has a value other than 1.) | B28: TEF
B29: Central | C29: ='A01'!C$35 -> 1 | D29: Unitless | E29: Worksheet A01
B30: Lower | C30: ='A01'!C$36 -> 1 | E30: Worksheet A01
B31: Upper | C31: ='A01'!C$37 -> 1 | E31: Worksheet A01
A32: Body weight | B32: BW | C32: ='A02'!$C$8 -> 70 | D32: kg | E32: ICRP 1975
A33: Dose | B33: Dose | C33: ConcFish× Amnt x TEF ÷ BW
B34: Central | C34: =C21*C25*C29/C$32 -> 3.471428571e-09 | D34: mg/kg | E34: Eq
B35: Lower | C35: =C22*C26*C30/C$32 -> 2.082857143e-16 | D35: mg/kg | E35: Eq
B36: Upper | C36: =C23*C27*C31/C$32 -> 1.388571429e-07 | D36: mg/kg | E36: Eq

Sheet D09c
A1: Consumption of contaminated fish, Adult Male, acute exposure
A2: Short Title | B2: Fish consumption, acute | E2: FishAmntAmb
A3: Receptor | B3: Adult Male
A4: Duration | B4: acute
A5: Parameter/Assumption | B5: Code / Range | C5: Equation/ Value | D5: Units | E5: Reference/Designation
A6: Application Rate | B6: ApRt
B7: Central | C7: ='A01'!ApRt_C -> 1 | D7: lb/acre | E7: Worksheet A01
A8: Water contamination rate | B8: WCR
B9: Central | C9: =B04Rt!$C$4 -> 0.0009 | D9: mg/L per lb/acre | E9: Table 26
B10: Lower | C10: =B04Rt!$C$5 -> 1e-08 | E10: Table 26
B11: Upper | C11: =B04Rt!$C$6 -> 0.028 | E11: Table 26
A12: Concentration in water | B12: ConcWat | C12: ApR × WCR
B13: Central | C13: =C$7*C9 -> 0.0009 | D13: mg/L | E13: Eq
B14: Lower | C14: =C$7*C10 -> 1e-08 | E14: Eq
B15: Upper | C15: =C$7*C11 -> 0.028 | E15: Eq
A16: Bioconcentration factor | B16: BCF
B17: Central | C17: ='B01'!$C$3 -> 0.06 | D17: L/kg | E17: Section 3.2.3.5.
B18: Lower | C18: ='B01'!$C$3 -> 0.06 | E18: Section 3.2.3.5.
B19: Upper | C19: ='B01'!$C$3 -> 0.06 | E19: Section 3.2.3.5.
A20: Concentration in fish | B20: ConcFish | C20: ConcWat × BCF
B21: Central | C21: =C13*C17 -> 5.4e-05 | D21: mg/kg | E21: Eq
B22: Lower | C22: =C14*C18 -> 6e-10 | E22: Eq
B23: Upper | C23: =C15*C19 -> 0.00168 | E23: Eq
A24: Amount of fish consumed | B24: Amnt
B25: Central | C25: ='A03'!$E$19 -> 0.158 | D25: kg/day | E25: Ruffle et al. 1994
B26: Lower | C26: ='A03'!$E$19 -> 0.158 | E26: Ruffle et al. 1994
B27: Upper | C27: ='A03'!$E$19 -> 0.158 | E27: Ruffle et al. 1994
A28: Toxic Equivalency Factor for formulation: (See risk assessment if this has a value other than 1.) | B28: TEF
B29: Central | C29: ='A01'!C$35 -> 1 | D29: Unitless | E29: Worksheet A01
B30: Lower | C30: ='A01'!C$36 -> 1 | E30: Worksheet A01
B31: Upper | C31: ='A01'!C$37 -> 1 | E31: Worksheet A01
A32: Body weight | B32: BW | C32: ='A02'!$C$7 -> 70 | D32: kg | E32: ICRP 1975
A33: Dose | B33: Dose | C33: ConcFish× Amnt x TEF ÷ BW
B34: Central | C34: =C21*C25*C29/C$32 -> 1.218857143e-07 | D34: mg/kg | E34: Eq
B35: Lower | C35: =C22*C26*C30/C$32 -> 1.354285714e-12 | D35: mg/kg | E35: Eq
B36: Upper | C36: =C23*C27*C31/C$32 -> 3.792e-06 | D36: mg/kg | E36: Eq

Sheet D09d
A1: Consumption of contaminated fish, Subsistence Populations, acute exposure
A2: Short Title | B2: Fish consumption, acute | E2: FishAmntAmb
A3: Receptor | B3: Subsistence Populations
A4: Duration | B4: acute
A5: Parameter/Assumption | B5: Code / Range | C5: Equation/ Value | D5: Units | E5: Reference/Designation
A6: Application Rate | B6: ApRt
B7: Central | C7: ='A01'!ApRt_C -> 1 | D7: lb/acre | E7: Worksheet A01
A8: Water contamination rate | B8: WCR
B9: Central | C9: =B04Rt!$C$4 -> 0.0009 | D9: mg/L per lb/acre | E9: Table 26
B10: Lower | C10: =B04Rt!$C$5 -> 1e-08 | E10: Table 26
B11: Upper | C11: =B04Rt!$C$6 -> 0.028 | E11: Table 26
A12: Concentration in water | B12: ConcWat | C12: ApR × WCR
B13: Central | C13: =C$7*C9 -> 0.0009 | D13: mg/L | E13: Eq
B14: Lower | C14: =C$7*C10 -> 1e-08 | E14: Eq
B15: Upper | C15: =C$7*C11 -> 0.028 | E15: Eq
A16: Bioconcentration factor | B16: BCF
B17: Central | C17: ='B01'!$C$3 -> 0.06 | D17: L/kg | E17: Section 3.2.3.5.
B18: Lower | C18: ='B01'!$C$3 -> 0.06 | E18: Section 3.2.3.5.
B19: Upper | C19: ='B01'!$C$3 -> 0.06 | E19: Section 3.2.3.5.
A20: Concentration in fish | B20: ConcFish | C20: ConcWat × BCF
B21: Central | C21: =C13*C17 -> 5.4e-05 | D21: mg/kg | E21: Eq
B22: Lower | C22: =C14*C18 -> 6e-10 | E22: Eq
B23: Upper | C23: =C15*C19 -> 0.00168 | E23: Eq
A24: Amount of fish consumed | B24: Amnt
B25: Central | C25: ='A03'!$E$34 -> 0.77 | D25: kg/day | E25: U.S. EPA/ORD 1996
B26: Lower | C26: ='A03'!$E$34 -> 0.77 | E26: U.S. EPA/ORD 1996
B27: Upper | C27: ='A03'!$E$34 -> 0.77 | E27: U.S. EPA/ORD 1996
A28: Toxic Equivalency Factor for formulation: (See risk assessment if this has a value other than 1.) | B28: TEF
B29: Central | C29: ='A01'!C$35 -> 1 | D29: Unitless | E29: Worksheet A01
B30: Lower | C30: ='A01'!C$36 -> 1 | E30: Worksheet A01
B31: Upper | C31: ='A01'!C$37 -> 1 | E31: Worksheet A01
A32: Body weight | B32: BW | C32: ='A02'!$C$8 -> 70 | D32: kg | E32: ICRP 1975
A33: Dose | B33: Dose | C33: ConcFish× Amnt x TEF ÷ BW
B34: Central | C34: =C21*C25*C29/C$32 -> 5.94e-07 | D34: mg/kg | E34: Eq
B35: Lower | C35: =C22*C26*C30/C$32 -> 6.6e-12 | D35: mg/kg | E35: Eq
B36: Upper | C36: =C23*C27*C31/C$32 -> 1.848e-05 | D36: mg/kg | E36: Eq

Sheet D10a
A1: Concentration in pond water after direct spray or after drift at distances downwind in feet from the application site
A2: Short Title | B2: Pond, Drift | E2: PondDrift3Apps
A3: Receptor | B3: Pond
A4: Duration | B4: Acute
A5: Parameter/Assumption | B5: Code / Range | C5: Equation/ Value | D5: Units | E5: Reference/Designation
A6: Application rate | B6: ApRt | C6: ='A01'!ApRt_C -> 1 | D6: lb/acre | E6: Worksheet A01
A7: Surface Area of Water Column | B7: SA | C7: 1 | D7: m2
A8: Depth of Pond | B8: Depth | C8: ='A01'!C$24 -> 1 | D8: meter | E8: Worksheet A01
A9: Volume of Water Column | B9: V | C9: = SA × Depth
B10: VPM | C10: =C7*C8 -> 1 | D10: m3 | E10: Eq
B11: VPL | C11: =1000*C10 -> 1000 | D11: liters | E11: Eq
A12: Proportion of Drift at distances downwind in feet [0 feet = direct spray] | B12: Prop | C12: Aerial | D12: High Boom Ground Broadcast | E12: Low Boom Ground Broadcast | F12: Backpack
A13: 0 | C13: 1 | D13: 1 | E13: 1 | F13: 1
A14: 25 | C14: 0.223 | D14: 0.104 | E14: 0.035 | F14: 0.00832
A15: 50 | C15: 0.171 | D15: 0.05 | E15: 0.0177 | F15: 0.00433
A16: 100 | C16: 0.0979 | D16: 0.0248 | E16: 0.00948 | F16: 0.00241
A17: 300 | C17: 0.0312 | D17: 0.00753 | E17: 0.0035 | F17: 0.000941
A18: 500 | C18: 0.0192 | D18: 0.00391 | E18: 0.00209 | F18: 0.000579
A19: 900 | C19: 0.0124 | D19: 0.00166 | E19: 0.00109 | F19: 0.000312
A20: Converstion Factor | B20: Conv | C20: 112.1 | D20: mg/m2 per lb/acre
A21: Concentration in water at distances downwind in feet | B21: Conc = | C21: SA × Prop × ApR × Conv / VPL
A22: =A13 -> 0 | C22: =$C$7*C13*$C$6*$C$20/$C$11 -> 0.1121 | D22: =$C$7*D13*$C$6*$C$20/$C$11 -> 0.1121 | E22: =$C$7*E13*$C$6*$C$20/$C$11 -> 0.1121 | F22: =$C$7*F13*$C$6*$C$20/$C$11 -> 0.1121 | G22: mg/L
A23: 25 | C23: =$C$7*C14*$C$6*$C$20/$C$11 -> 0.0249983 | D23: 0.0116584 | E23: 0.0039235 | F23: 0.000932672 | G23: mg/L
A24: 50 | C24: 0.0191691 | D24: 0.005605 | E24: 0.00198417 | F24: 0.000485393 | G24: mg/L
A25: 100 | C25: 0.01097459 | D25: 0.00278008 | E25: 0.001062708 | F25: 0.000270161 | G25: mg/L
A26: 300 | C26: 0.00349752 | D26: 0.000844113 | E26: 0.00039235 | F26: 0.0001054861 | G26: mg/L
A27: 500 | C27: 0.00215232 | D27: 0.000438311 | E27: 0.000234289 | F27: 6.49059e-05 | G27: mg/L
A28: 900 | C28: 0.00139004 | D28: 0.000186086 | E28: 0.000122189 | F28: 3.49752e-05 | G28: mg/L

Sheet D10b
A1: Concentration in stream water after direct spray or after drift from Backpack Directed Foliar application at distances downwind in feet from the application site
A2: Short Title | B2: Stream, Drift | E2: StreamDrift
A3: Receptor | B3: Stream
A4: Duration | B4: Acute
A5: Parameter/Assumption | B5: Code / Range | C5: Equation/ Value | D5: Units | E5: Reference/Designation
A6: Application rate, lbs/acre | B6: ApRt | C6: ='A01'!ApRt_C -> 1 | D6: lb/acre | E6: Worksheet A01
A7: Flow rate of stream | B7: Flow | C7: ='A01'!C$25 -> 710000 | D7: L/day | E7: Worksheet A01
A8: Converstion Factor, lb/acre to mg/m2 | B8: Conv1 | C8: 112.1 | D8: mg/m2 per lb/acre
A9: Deposition rate, nominal | C9: Dep = ApR × Conv1
B10: Dep | C10: =C6*C8 -> 112.1 | D10: mg/m2 | E10: Eq
A11: Length of steam segment | B11: L | C11: ='A01'!C$26 -> 1038 | D11: feet | E11: Worksheet A01
A12: Width of steam segment | B12: W | C12: ='A01'!C$27 -> 6 | D12: feet | E12: Worksheet A01
A13: Surface Area of Stream Sprayed, square feet | B13: SA_ft | C13: =C11*C12 -> 6228 | D13: ft2 | E13: Eq
A14: Converstion Factor, square feet to square meters | B14: Conv2 | C14: 0.0929 | D14: m2/ft2
A15: Surface Area of Stream Sprayed, square meters | B15: SA_msq | C15: =C13*C14 -> 578.5812 | E15: Eq
A16: Amount deposited on stream surface on spray day | B16: Amnt | C16: =C10*C15 -> 64858.95252 | D16: mg/day | E16: Eq
A17: Proportion of Drift at distances downwind in feet [0 feet = direct spray] | B17: Prop
A18: 0 | C18: 1 | D18: unitless
A19: 25 | C19: 0.00832
A20: 50 | C20: 0.00433
A21: 100 | C21: 0.00241
A22: 300 | C22: 0.000941
A23: 500 | C23: 0.000579
A24: 900 | C24: 0.000312
A25: Concentration in water at distances downwind in feet | B25: Conc | C25: Amnt × Prop / Flow
A26: =A18 -> 0 | C26: =C$16 * C18 /C$7 -> 0.09135063735 | D26: mg/L
A27: 25 | C27: 0.0007600373028
A28: 50 | C28: 0.0003955482597
A29: 100 | C29: 0.000220155036
A30: 300 | C30: 8.596094975e-05
A31: 500 | C31: 5.289201903e-05
A32: 900 | C32: 2.850139885e-05

Sheet D11
A1: Swimming Exposure Assessment Using Zero-Order Absorption, Adult Female, Surface Area, Whole body, for 60 minute(s)
A2: Short Title | B2: Swimming | E2: DrmZrSwm
A3: Receptor | B3: Adult Female
A4: Duration | B4: Acute
A5: Surface Contaminated | B5: Surface Area, Whole body
A6: Parameter/Assumption | B6: Code / Range | C6: Equation/ Value | D6: Units | E6: Reference/Designation
A7: Application Rate | B7: ApRt | C7: ='A01'!ApRt_C -> 1 | D7: lb/acre | E7: Worksheet A01
A8: Surface Area | B8: SA | C8: ='A02'!$C$6 -> 16900 | D8: cm2 | E8: U.S. EPA/ORD 1997
A9: Duration of Exposure | B9: T_min | C9: ='A01'!C$29 -> 60 | D9: minutes | E9: Worksheet A01
B10: T_hr | C10: =C9/60 -> 1 | D10: hours | E10: Eq
A11: Body weight | B11: BW | C11: ='A02'!$C$3 -> 64 | D11: kg | E11: U.S. EPA/ORD 1985
A12: Water contamination rate | B12: WCR
B13: Central | C13: =B04Rt!$C$4 -> 0.0009 | D13: mg/L per lb/acre | E13: Table 26
B14: Lower | C14: =B04Rt!$C$5 -> 1e-08 | E14: Table 26
B15: Upper | C15: =B04Rt!$C$6 -> 0.028 | E15: Table 26
A16: Concentration in water in mg/mL | B16: ConcWat | C16: ApR × WCR / 1000
B17: Central | C17: =C$7*C13/1000 -> 9e-07 | D17: mg/mL | E17: Eq
B18: Lower | C18: =C$7*C14/1000 -> 1e-11 | E18: Eq
B19: Upper | C19: =C$7*C15/1000 -> 2.8e-05 | E19: Eq
A20: Toxic Equivalency Factor for formulation: (See risk assessment if this has a value other than 1.) | B20: TEF
B21: Central | C21: ='A01'!C$35 -> 1 | D21: Unitless | E21: Worksheet A01
B22: Lower | C22: ='A01'!C$36 -> 1 | E22: Worksheet A01
B23: Upper | C23: ='A01'!C$37 -> 1 | E23: Worksheet A01
A24: Dermal permeability | B24: Kp
B25: Central | C25: ='B01'!$C$13 -> 0.015 | D25: cm/hour | E25: Section 3.2.2.2
B26: Lower | C26: ='B01'!$C$14 -> 0.0094 | E26: Section 3.2.2.2
B27: Upper | C27: ='B01'!$C$15 -> 0.024 | E27: Section 3.2.2.2
A28: Absorbed Dose | B28: Dose | C28: Kp × Conc × T_hr × SA × TEF ÷ BW
B29: Central | C29: =C25*C17*C$10*C$8*C21/C$11 -> 3.56484375e-06 | D29: mg/kg
B30: Lower | C30: =C26*C18*C$10*C$8*C22/C$11 -> 2.4821875e-11 | D30: mg/kg
B31: Upper | C31: =C27*C19*C$10*C$8*C23/C$11 -> 0.00017745 | D31: mg/kg

Sheet E03
A1: Worksheet E03: Summary of Exposure Assessments for the General Public
A2: Application Rate: | B2: ='A01'!ApRt_C -> 1 | C2: lb a.e./acre | F2: E03aV6
A3: Scenario | B3: Receptor | C3: mg/kg/day or mg/kg/event | F3: Detail Worksheet
C4: Central | D4: Lower | E4: Upper
A5: Accidental Acute Exposures (dose in mg/kg/event)
A6: Direct Spray of Child, whole body | B6: Child | C6: No exposure assessment. | F6: D01a | I6: Spray: Child
A7: Direct Spray of Woman, feet and lower legs | B7: Adult Female | C7: No exposure assessment. | F7: D01b | I7: Spray: Woman
A8: Water consumption (spill) | B8: Child | C8: ='D05'!Dose_C -> 0.0005812829947 | D8: ='D05'!Dose_L -> 1.777451307e-05 | E8: ='D05'!Dose_U -> 0.01495636902 | F8: D05 | I8: Water: Child
A9: Fish consumption (spill) | B9: Adult Male | C9: =D08a!Dose_C -> 0.0002460466286 | D9: =D08a!Dose_L -> 3.075582857e-05 | E9: =D08a!Dose_U -> 0.002460466286 | F9: D08a | I9: Fish: Man
A10: Fish consumption (spill) | B10: Subsistence Populations | C10: =D08b!Dose_C -> 0.001199088 | D10: =D08b!Dose_L -> 0.000149886 | E10: =D08b!Dose_U -> 0.01199088 | F10: D08b | I10: Fish: Subsist
A11: Non-Accidental Acute Exposures (dose in mg/kg/event)
A12: Vegetation Contact, shorts and T-shirt | B12: Adult Female | C12: No exposure assessment. | F12: D02 | I12: Contact: Female
A13: Contaminated Fruit | B13: Adult Female | C13: =D03a!Dose_C -> 0.003347174315 | D13: =D03a!Dose_L -> 0.001530104059 | E13: =D03a!Dose_U -> 0.053111417 | F13: D03a | I13: Fruit: Female
A14: Contaminated Vegetation | B14: Adult Female | C14: =D03b!Dose_C -> 0.04610871618 | D14: =D03b!Dose_L -> 0.003195304987 | E14: =D03b!Dose_U -> 0.3842384873 | F14: D03b | I14: Veg: Female
A15: Swimming, one hour | B15: Adult Female | C15: ='D11'!Dose_C -> 3.56484375e-06 | D15: ='D11'!Dose_L -> 2.4821875e-11 | E15: ='D11'!Dose_U -> 0.00017745 | F15: D11 | I15: Swim: Female
A16: Water consumption | B16: Child | C16: ='D06'!Dose_C -> 6.766917293e-05 | D16: ='D06'!Dose_L -> 4.586466165e-10 | E16: ='D06'!Dose_U -> 0.003157894737 | F16: D06 | I16: Water: Child
A17: Fish consumption | B17: Adult Male | C17: =D09c!Dose_C -> 1.218857143e-07 | D17: =D09c!Dose_L -> 1.354285714e-12 | E17: =D09c!Dose_U -> 3.792e-06 | F17: D09c | I17: Fish: Male
A18: Fish consumption | B18: Subsistence Populations | C18: =D09d!Dose_C -> 5.94e-07 | D18: =D09d!Dose_L -> 6.6e-12 | E18: =D09d!Dose_U -> 1.848e-05 | F18: D09d | I18: Fish: Subsist
A19: Chronic/Longer Term Exposures (dose in mg/kg/day)
A20: Contaminated Fruit | B20: Adult Female | C20: =D04a!Dose_C -> 0.002741422827 | D20: =D04a!Dose_L -> 0.0009806527501 | E20: =D04a!Dose_U -> 0.05153508051 | F20: D04a | I20: Fruit: Female
A21: Contaminated Vegetation | B21: Adult Female | C21: =D04b!Dose_C -> 0.01237942007 | D21: =D04b!Dose_L -> 0.0003602297957 | E21: =D04b!Dose_U -> 0.2305040019 | F21: D04b | I21: Veg: Female
A22: Water consumption | B22: Adult Male | C22: ='D07'!Dose_C -> 3.759398496e-06 | D22: ='D07'!Dose_L -> 1.37593985e-13 | E22: ='D07'!Dose_U -> 0.0002255639098 | F22: D07 | I22: Water: Male
A23: Fish consumption | B23: Adult Male | C23: =D09a!Dose_C -> 4.285714286e-10 | D23: =D09a!Dose_L -> 2.571428571e-17 | E23: =D09a!Dose_U -> 1.714285714e-08 | F23: D09a | I23: Fish: Male
A24: Fish consumption | B24: Subsistence Populations | C24: =D09b!Dose_C -> 3.471428571e-09 | D24: =D09b!Dose_L -> 2.082857143e-16 | E24: =D09b!Dose_U -> 1.388571429e-07 | F24: D09b | I24: Fish: Subsist

Sheet E04
A1: Worksheet E03: Summary of Hazard Quotients (Toxicity) for the General Public
A2: Application Rate: | B2: ='A01'!ApRt_C -> 1 | C2: lb a.e./acre | F2: E03aV6
A3: Scenario | B3: Receptor | C3: Hazard Quotients | F3: Toxicity Value
C4: Central | D4: Lower | E4: Upper
A5: Accidental Acute Exposures (dose in mg/kg/event)
A6: Direct Spray of Child, whole body | B6: Child | C6: No exposure assessment. | F6: ='B02'!$E$4 -> 0.025 | I6: Spray: Child
A7: Direct Spray of Woman, feet and lower legs | B7: Adult Female | C7: No exposure assessment. | F7: ='B02'!$E$4 -> 0.025 | I7: Spray: Woman
A8: Water consumption (spill) | B8: Child | C8: ='D05'!$C$16/$F$8 -> 0.02325131979 | D8: ='D05'!$C$17/$F$8 -> 0.000710980523 | E8: ='D05'!$C$18/$F$8 -> 0.598254761 | F8: ='B02'!$E$4 -> 0.025 | I8: Water: Child
A9: Fish consumption (spill) | B9: Adult Male | C9: =D08a!$C$45/$F$9 -> 0.009841865143 | D9: =D08a!$C$46/$F$9 -> 0.001230233143 | E9: =D08a!$C$47/$F$9 -> 0.09841865143 | F9: ='B02'!$E$4 -> 0.025 | I9: Fish: Man
A10: Fish consumption (spill) | B10: Subsistence Populations | C10: =D08b!$C$45/$F$10 -> 0.04796352 | D10: =D08b!$C$46/$F$10 -> 0.00599544 | E10: =D08b!$C$47/$F$10 -> 0.4796352 | F10: ='B02'!$E$4 -> 0.025 | I10: Fish: Subsist
A11: Non-Accidental Acute Exposures (dose in mg/kg/event)
A12: Vegetation Contact, shorts and T-shirt | B12: Adult Female | C12: No exposure assessment. | F12: ='B02'!$E$4 -> 0.025 | I12: Contact: Female
A13: Contaminated Fruit | B13: Adult Female | C13: =D03a!$C$19/$F$13 -> 0.1338869726 | D13: =D03a!$C$20/$F$13 -> 0.06120416237 | E13: =D03a!$C$21/$F$13 -> 2.12445668 | F13: ='B02'!$E$4 -> 0.025 | I13: Fruit: Female
A14: Contaminated Vegetation | B14: Adult Female | C14: =D03b!$C$19/$F$14 -> 1.844348647 | D14: =D03b!$C$20/$F$14 -> 0.1278121995 | E14: =D03b!$C$21/$F$14 -> 15.36953949 | F14: ='B02'!$E$4 -> 0.025 | I14: Veg: Female
A15: Swimming, one hour | B15: Adult Female | C15: ='D11'!$C$29/$F$15 -> 0.00014259375 | D15: ='D11'!$C$30/$F$15 -> 9.92875e-10 | E15: ='D11'!$C$31/$F$15 -> 0.007098 | F15: ='B02'!$E$4 -> 0.025 | I15: Swim: Female
A16: Water consumption | B16: Child | C16: ='D06'!$C$20/$F$16 -> 0.002706766917 | D16: ='D06'!$C$21/$F$16 -> 1.834586466e-08 | E16: ='D06'!$C$22/$F$16 -> 0.1263157895 | F16: ='B02'!$E$4 -> 0.025 | I16: Water: Child
A17: Fish consumption | B17: Adult Male | C17: =D09c!$C$34/$F$17 -> 4.875428571e-06 | D17: =D09c!$C$35/$F$17 -> 5.417142857e-11 | E17: =D09c!$C$36/$F$17 -> 0.00015168 | F17: ='B02'!$E$4 -> 0.025 | I17: Fish: Male
A18: Fish consumption | B18: Subsistence Populations | C18: =D09d!$C$34/$F$18 -> 2.376e-05 | D18: =D09d!$C$35/$F$18 -> 2.64e-10 | E18: =D09d!$C$36/$F$18 -> 0.0007392 | F18: ='B02'!$E$4 -> 0.025 | I18: Fish: Subsist
A19: Chronic/Longer Term Exposures (dose in mg/kg/day)
A20: Contaminated Fruit | B20: Adult Female | C20: =D04a!$C$19/$F$20 -> 0.2284519022 | D20: =D04a!$C$20/$F$20 -> 0.08172106251 | E20: =D04a!$C$21/$F$20 -> 4.294590042 | F20: ='B02'!$E$3 -> 0.012 | I20: Fruit: Female
A21: Contaminated Vegetation | B21: Adult Female | C21: =D04b!$C$19/$F$21 -> 1.031618339 | D21: =D04b!$C$20/$F$21 -> 0.03001914964 | E21: =D04b!$C$21/$F$21 -> 19.20866682 | F21: ='B02'!$E$3 -> 0.012 | I21: Veg: Female
A22: Water consumption | B22: Adult Male | C22: ='D07'!$C$20/$F$22 -> 0.000313283208 | D22: ='D07'!$C$21/$F$22 -> 1.146616541e-11 | E22: ='D07'!$C$22/$F$22 -> 0.01879699248 | F22: ='B02'!$E$3 -> 0.012 | I22: Water: Male
A23: Fish consumption | B23: Adult Male | C23: =D09a!$C$34/$F$23 -> 3.571428571e-08 | D23: =D09a!$C$35/$F$23 -> 2.142857143e-15 | E23: =D09a!$C$36/$F$23 -> 1.428571429e-06 | F23: ='B02'!$E$3 -> 0.012 | I23: Fish: Male
A24: Fish consumption | B24: Subsistence Populations | C24: =D09b!$C$34/$F$24 -> 2.892857143e-07 | D24: =D09b!$C$35/$F$24 -> 1.735714286e-14 | E24: =D09b!$C$36/$F$24 -> 1.157142857e-05 | F24: ='B02'!$E$3 -> 0.012 | I24: Fish: Subsist

Sheet F01a
A1: Direct spray of Small Mammal assuming first-order absorption kinetics with spray of 0.5 of the body surface
A2: Short Title | B2: Direct spray, first-order absorption | E2: DrmFOA_Allo
A3: Receptor | B3: Small Mammal
A4: Duration | B4: Acute
A5: Parameter/Assumption | B5: Code / Range | C5: Equation/ Value | D5: Units | E5: Reference/Designation
A6: Application rate, lb/acre | B6: ApRt | C6: ='A01'!ApRt_C -> 1 | D6: lb/acre | E6: Worksheet A01
A7: Duration of Exposure | B7: T | C7: 24 | D7: hours | E7: Scenario parameter
A8: Body weight | B8: BW | C8: ='A02'!$C$116 -> 0.02 | D8: kg | E8: Default
A9: Allometric coefficients for surface area
B10: alpha | C10: ='A02'!$C$122 -> 0.11 | E10: U.S. EPA/ORD 1993
B11: beta | C11: ='A02'!$C$123 -> 0.65 | E11: U.S. EPA/ORD 1993
A12: Surface Area | C12: =C10 * C8^C11 -> 0.008650917739 | D12: meters
B13: SA | C13: =C12*10000 -> 86.50917739 | D13: cm2 | E13: 10,000 cm2/m2
A14: Conversion Factor for lbs/acre to mg/cm2 | B14: CnvF | C14: 0.01121 | D14: mg/cm2/lb/acre
A15: Application rate, mg/cm2 | B15: ApRmgcm | C15: ApRlb/a × CnvF
C16: =C6*C$14 -> 0.01121 | D16: lb/acre | E16: Eq
A17: First-order dermal absorption rates | B17: ka
B18: Central | C18: ='B01'!$C$10 -> 0.012 | D18: hour-1 | E18: Section 3.2.2.2
B19: Lower | C19: ='B01'!$C$11 -> 0.0041 | E19: Section 3.2.2.2
B20: Upper | C20: ='B01'!$C$12 -> 0.036 | E20: Section 3.2.2.2
A21: Proportion of body surface sprayed | B21: PrpSA | C21: 0.5 | D21: unitless | E21: Scenario parameter
A22: Toxic Equivalency Factor for formulation: (See risk assessment if this has a value other than 1.) | B22: TEF
B23: Central | C23: ='A01'!C$35 -> 1 | D23: Unitless | E23: Worksheet A01
B24: Lower | C24: ='A01'!C$36 -> 1 | E24: Worksheet A01
B25: Upper | C25: ='A01'!C$37 -> 1 | E25: Worksheet A01
A26: Amount Deposited on Skin | B26: Amnt | C26: ApRmgcm × SA × PrpSAx TEF
B27: Central | C27: =C$13*C$16*C$21*C23 -> 0.4848839392 | D27: mg | E27: Eq
B28: Lower | C28: =C$13*C$16*C$21*C24 -> 0.4848839392 | E28: Eq
B29: Upper | C29: =C$13*C$16*C$21*C25 -> 0.4848839392 | E29: Eq
A30: Skin Loading | B30: Loading
B31: Central | C31: =C27/C$13 -> 0.005605 | D31: mg/cm2 | E31: Eq
B32: Lower | C32: =C28/C$13 -> 0.005605 | E32: Eq
B33: Upper | C33: =C29/C$13 -> 0.005605 | E33: Eq
A35: Proportion absorbed over period T | B35: Prop | C35: 1-exp(-ka T)
B36: Central | C36: =1-EXP(-C18 *C$7) -> 0.2502384078 | D36: hour-1 | E36: Eq
B37: Lower | C37: =1-EXP(-C19 *C$7) -> 0.09371368329 | E37: Eq
B38: Upper | C38: =1-EXP(-C20 *C$7) -> 0.5785271852 | E38: Eq
A39: Absorbed Dose | B39: Dose | C39: Amnt × Prop ÷ BW
B40: Central | C40: =C27*C36/C$8 -> 6.066829245 | D40: mg/kg bw | E40: Eq
B41: Lower | C41: =C28*C37/C$8 -> 2.272012996 | E41: Eq
B42: Upper | C42: =C29*C38/C$8 -> 14.02592703 | E42: Eq

Sheet F01b
A1: Direct spray of Small Mammal assuming 100% absorption with spray of 0.5 of the body surface
A2: Short Title | B2: Direct spray, 100% absorption | E2: Drm100_Allo
A3: Receptor | B3: Small Mammal
A4: Duration | B4: Acute
A5: Parameter/Assumption | B5: Code / Range | C5: Equation/ Value | D5: Units | E5: Reference/Designation
A6: Application rate, lb/acre | B6: ApRlb/ac | C6: ='A01'!ApRt_C -> 1 | D6: lb/acre | E6: Worksheet A01
A7: Conversion Factor for lbs/acre to mg/cm2 | B7: CnvF | C7: 0.01121 | D7: mg/cm2/lb/acre
A8: Application rate, mg/cm2 | B8: ApRmgcm | C8: ApRlb/a × CnvF
C9: =C6*C7 -> 0.01121 | D9: lb/acre | E9: Eq
A10: Body weight | B10: BW | C10: ='A02'!$C$116 -> 0.02 | D10: kg | E10: Default
A11: Allometric coefficients for surface area
B12: alpha | C12: ='A02'!$C$122 -> 0.11 | E12: U.S. EPA/ORD 1993
B13: beta | C13: ='A02'!$C$123 -> 0.65 | E13: U.S. EPA/ORD 1993
A14: Surface Area | C14: =C12 * C10^C13 -> 0.008650917739 | D14: meters
B15: SA | C15: =C14*10000 -> 86.50917739 | D15: cm2[10000 cm2/m2] | E15: Eq
A16: Proportion of body surface sprayed | B16: PrpSA | C16: 0.5 | D16: unitless | E16: Scenario parameter
A17: Toxic Equivalency Factor for formulation: (See risk assessment if this has a value other than 1.) | B17: TEF
B18: Central | C18: ='A01'!C$35 -> 1 | D18: Unitless | E18: Worksheet A01
B19: Lower | C19: ='A01'!C$36 -> 1 | E19: Worksheet A01
B20: Upper | C20: ='A01'!C$37 -> 1 | E20: Worksheet A01
A21: Amount Deposited on Skin | B21: Amnt | C21: ApRmgcm× SA × PrpSA× TEF
B22: Central | C22: =C$9*C$15*C$16*C18 -> 0.4848839392 | D22: mg | E22: Eq
B23: Lower | C23: =C$9*C$15*C$16*C19 -> 0.4848839392 | E23: Eq
B24: Upper | C24: =C$9*C$15*C$16*C20 -> 0.4848839392 | E24: Eq
A25: Absorbed Dose | B25: Dose | C25: Amnt ÷ BW
B26: Central | C26: =C22/C$10 -> 24.24419696 | D26: mg/kg bw | E26: Eq
B27: Lower | C27: =C23/C$10 -> 24.24419696 | E27: Eq
B28: Upper | C28: =C24/C$10 -> 24.24419696 | E28: Eq

Sheet F02a
A1: Acute exposure of Small Mammal after an accidental spill of the pesticide into a pond
A2: Short Title | B2: Water consumption, accidental spill | E2: WatSpillAlloV6
A3: Receptor | B3: Small Mammal
A4: Duration | B4: Acute
A5: Parameter/Assumption | B5: Code / Range | C5: Equation/ Value | D5: Units | E5: Reference/Designation
A6: Concentration in pond water | B6: ConcWat
B7: Central | C7: =B04b!Water_C -> 0.00773106383 | D7: mg/L | E7: ='B04b'!Water_C
B8: Lower | C8: =B04b!Water_L -> 0.0003875426621 | E8: ='B04b'!Water_L
B9: Upper | C9: =B04b!Water_U -> 0.1326131387 | E9: ='B04b'!Water_U
A10: Receptor
A11: Body weight | B11: BW | C11: ='A02'!$C$116 -> 0.02 | D11: kg | E11: Default
A12: Allometric coefficients forwater consumption per day in liters and BW in kilograms
B13: alpha | C13: ='A02'!$C$124 -> 0.099 | E13: U.S. EPA/ORD 1993
B14: beta | C14: ='A02'!$C$125 -> 0.9 | E14: U.S. EPA/ORD 1993
A15: Amount of water consumed per day | C15: Amnt = alpha BW beta
B16: Amnt | C16: =C13*(C11^C14) -> 0.002927940121 | D16: liters | E16: Eq
A17: Toxic Equivalency Factor for formulation: (See risk assessment if this has a value other than 1.) | B17: TEF
B18: Central | C18: ='A01'!C$35 -> 1 | D18: unitless | E18: Worksheet A01
B19: Lower | C19: ='A01'!C$36 -> 1 | E19: Worksheet A01
B20: Upper | C20: ='A01'!C$37 -> 1 | E20: Worksheet A01
A21: Absorbed Dose | B21: Dose | C21: ConcWat × Amnt ÷ BW
B22: Central | C22: =C7*C$16/C$11 -> 0.001131804598 | D22: mg/kg | E22: Eq
B23: Lower | C23: =C8*C$16/C$11 -> 5.673508544e-05 | D23: mg/kg | E23: Eq
B24: Upper | C24: =C9*C$16/C$11 -> 0.01941416646 | D24: mg/kg | E24: Eq

Sheet F02b
A1: Acute exposure of 400 gram mammal (e.g., squirrel) after an accidental spill of the pesticide into a pond
A2: Short Title | B2: Water consumption, accidental spill | E2: WatSpillAlloV6
A3: Receptor | B3: 400 gram mammal (e.g., squirrel)
A4: Duration | B4: Acute
A5: Parameter/Assumption | B5: Code / Range | C5: Equation/ Value | D5: Units | E5: Reference/Designation
A6: Concentration in pond water | B6: ConcWat
B7: Central | C7: =B04b!Water_C -> 0.00773106383 | D7: mg/L | E7: ='B04b'!Water_C
B8: Lower | C8: =B04b!Water_L -> 0.0003875426621 | E8: ='B04b'!Water_L
B9: Upper | C9: =B04b!Water_U -> 0.1326131387 | E9: ='B04b'!Water_U
A10: Receptor
A11: Body weight | B11: BW | C11: ='A02'!$C$85 -> 0.4 | D11: kg | E11: Default
A12: Allometric coefficients forwater consumption per day in liters and BW in kilograms
B13: alpha | C13: ='A02'!$C$90 -> 0.099 | E13: U.S. EPA/ORD 1993
B14: beta | C14: ='A02'!$C$91 -> 0.9 | E14: U.S. EPA/ORD 1993
A15: Amount of water consumed per day | C15: Amnt = alpha BW beta
B16: Amnt | C16: =C13*(C11^C14) -> 0.04339994576 | D16: liters | E16: Eq
A17: Toxic Equivalency Factor for formulation: (See risk assessment if this has a value other than 1.) | B17: TEF
B18: Central | C18: ='A01'!C$35 -> 1 | D18: unitless | E18: Worksheet A01
B19: Lower | C19: ='A01'!C$36 -> 1 | E19: Worksheet A01
B20: Upper | C20: ='A01'!C$37 -> 1 | E20: Worksheet A01
A21: Absorbed Dose | B21: Dose | C21: ConcWat × Amnt ÷ BW
B22: Central | C22: =C7*C$16/C$11 -> 0.0008388193773 | D22: mg/kg | E22: Eq
B23: Lower | C23: =C8*C$16/C$11 -> 4.204832629e-05 | D23: mg/kg | E23: Eq
B24: Upper | C24: =C9*C$16/C$11 -> 0.01438850757 | D24: mg/kg | E24: Eq

Sheet F02c
A1: Acute exposure of Carnivorous mammal after an accidental spill of the pesticide into a pond
A2: Short Title | B2: Water consumption, accidental spill | E2: WatSpillAlloV6
A3: Receptor | B3: Carnivorous mammal
A4: Duration | B4: Acute
A5: Parameter/Assumption | B5: Code / Range | C5: Equation/ Value | D5: Units | E5: Reference/Designation
A6: Concentration in pond water | B6: ConcWat
B7: Central | C7: =B04b!Water_C -> 0.00773106383 | D7: mg/L | E7: ='B04b'!Water_C
B8: Lower | C8: =B04b!Water_L -> 0.0003875426621 | E8: ='B04b'!Water_L
B9: Upper | C9: =B04b!Water_U -> 0.1326131387 | E9: ='B04b'!Water_U
A10: Receptor
A11: Body weight | B11: BW | C11: ='A02'!$C$92 -> 5 | D11: kg | E11: U.S. EPA/ORD 1993
A12: Allometric coefficients forwater consumption per day in liters and BW in kilograms
B13: alpha | C13: ='A02'!$C$95 -> 0.099 | E13: U.S. EPA/ORD 1993
B14: beta | C14: ='A02'!$C$96 -> 0.9 | E14: U.S. EPA/ORD 1993
A15: Amount of water consumed per day | C15: Amnt = alpha BW beta
B16: Amnt | C16: =C13*(C11^C14) -> 0.4214132616 | D16: liters | E16: Eq
A17: Toxic Equivalency Factor for formulation: (See risk assessment if this has a value other than 1.) | B17: TEF
B18: Central | C18: ='A01'!C$35 -> 1 | D18: unitless | E18: Worksheet A01
B19: Lower | C19: ='A01'!C$36 -> 1 | E19: Worksheet A01
B20: Upper | C20: ='A01'!C$37 -> 1 | E20: Worksheet A01
A21: Absorbed Dose | B21: Dose | C21: ConcWat × Amnt ÷ BW
B22: Central | C22: =C7*C$16/C$11 -> 0.0006515945649 | D22: mg/kg | E22: Eq
B23: Lower | C23: =C8*C$16/C$11 -> 3.266312345e-05 | D23: mg/kg | E23: Eq
B24: Upper | C24: =C9*C$16/C$11 -> 0.01117698706 | D24: mg/kg | E24: Eq

Sheet F02d
A1: Acute exposure of Large Mammal after an accidental spill of the pesticide into a pond
A2: Short Title | B2: Water consumption, accidental spill | E2: WatSpillAlloV6
A3: Receptor | B3: Large Mammal
A4: Duration | B4: Acute
A5: Parameter/Assumption | B5: Code / Range | C5: Equation/ Value | D5: Units | E5: Reference/Designation
A6: Concentration in pond water | B6: ConcWat
B7: Central | C7: =B04b!Water_C -> 0.00773106383 | D7: mg/L | E7: ='B04b'!Water_C
B8: Lower | C8: =B04b!Water_L -> 0.0003875426621 | E8: ='B04b'!Water_L
B9: Upper | C9: =B04b!Water_U -> 0.1326131387 | E9: ='B04b'!Water_U
A10: Receptor
A11: Body weight | B11: BW | C11: ='A02'!$C$106 -> 70 | D11: kg | E11: Default
A12: Allometric coefficients forwater consumption per day in liters and BW in kilograms
B13: alpha | C13: ='A02'!$C$109 -> 0.099 | E13: U.S. EPA/ORD 1993
B14: beta | C14: ='A02'!$C$110 -> 0.9 | E14: U.S. EPA/ORD 1993
A15: Amount of water consumed per day | C15: Amnt = alpha BW beta
B16: Amnt | C16: =C13*(C11^C14) -> 4.531306412 | D16: liters | E16: Eq
A17: Toxic Equivalency Factor for formulation: (See risk assessment if this has a value other than 1.) | B17: TEF
B18: Central | C18: ='A01'!C$35 -> 1 | D18: unitless | E18: Worksheet A01
B19: Lower | C19: ='A01'!C$36 -> 1 | E19: Worksheet A01
B20: Upper | C20: ='A01'!C$37 -> 1 | E20: Worksheet A01
A21: Absorbed Dose | B21: Dose | C21: ConcWat × Amnt ÷ BW
B22: Central | C22: =C7*C$16/C$11 -> 0.0005004545586 | D22: mg/kg | E22: Eq
B23: Lower | C23: =C8*C$16/C$11 -> 2.508677928e-05 | D23: mg/kg | E23: Eq
B24: Upper | C24: =C9*C$16/C$11 -> 0.008584439508 | D24: mg/kg | E24: Eq

Sheet F02e
A1: Acute exposure of Small Bird after an accidental spill of the pesticide into a pond
A2: Short Title | B2: Water consumption, accidental spill | E2: WatSpillAlloV6
A3: Receptor | B3: Small Bird
A4: Duration | B4: Acute
A5: Parameter/Assumption | B5: Code / Range | C5: Equation/ Value | D5: Units | E5: Reference/Designation
A6: Concentration in pond water | B6: ConcWat
B7: Central | C7: =B04b!Water_C -> 0.00773106383 | D7: mg/L | E7: ='B04b'!Water_C
B8: Lower | C8: =B04b!Water_L -> 0.0003875426621 | E8: ='B04b'!Water_L
B9: Upper | C9: =B04b!Water_U -> 0.1326131387 | E9: ='B04b'!Water_U
A10: Receptor
A11: Body weight | B11: BW | C11: ='A02'!$C$54 -> 0.01 | D11: kg | E11: Default
A12: Allometric coefficients forwater consumption per day in liters and BW in kilograms
B13: alpha | C13: ='A02'!$C$57 -> 0.059 | E13: U.S. EPA/ORD 1993
B14: beta | C14: ='A02'!$C$58 -> 0.67 | E14: U.S. EPA/ORD 1993
A15: Amount of water consumed per day | C15: Amnt = alpha BW beta
B16: Amnt | C16: =C13*(C11^C14) -> 0.002696820319 | D16: liters | E16: Eq
A17: Toxic Equivalency Factor for formulation: (See risk assessment if this has a value other than 1.) | B17: TEF
B18: Central | C18: ='A01'!C$35 -> 1 | D18: unitless | E18: Worksheet A01
B19: Lower | C19: ='A01'!C$36 -> 1 | E19: Worksheet A01
B20: Upper | C20: ='A01'!C$37 -> 1 | E20: Worksheet A01
A21: Absorbed Dose | B21: Dose | C21: ConcWat × Amnt ÷ BW
B22: Central | C22: =C7*C$16/C$11 -> 0.002084929002 | D22: mg/kg | E22: Eq
B23: Lower | C23: =C8*C$16/C$11 -> 0.0001045132926 | D23: mg/kg | E23: Eq
B24: Upper | C24: =C9*C$16/C$11 -> 0.03576338069 | D24: mg/kg | E24: Eq

Sheet F02f
A1: Acute exposure of Large Bird after an accidental spill of the pesticide into a pond
A2: Short Title | B2: Water consumption, accidental spill | E2: WatSpillAlloV6
A3: Receptor | B3: Large Bird
A4: Duration | B4: Acute
A5: Parameter/Assumption | B5: Code / Range | C5: Equation/ Value | D5: Units | E5: Reference/Designation
A6: Concentration in pond water | B6: ConcWat
B7: Central | C7: =B04b!Water_C -> 0.00773106383 | D7: mg/L | E7: ='B04b'!Water_C
B8: Lower | C8: =B04b!Water_L -> 0.0003875426621 | E8: ='B04b'!Water_L
B9: Upper | C9: =B04b!Water_U -> 0.1326131387 | E9: ='B04b'!Water_U
A10: Receptor
A11: Body weight | B11: BW | C11: ='A02'!$C$38 -> 4 | D11: kg | E11: Default
A12: Allometric coefficients forwater consumption per day in liters and BW in kilograms
B13: alpha | C13: ='A02'!$C$41 -> 0.059 | E13: U.S. EPA/ORD 1993
B14: beta | C14: ='A02'!$C$42 -> 0.67 | E14: U.S. EPA/ORD 1993
A15: Amount of water consumed per day | C15: Amnt = alpha BW beta
B16: Amnt | C16: =C13*(C11^C14) -> 0.1493592781 | D16: liters | E16: Eq
A17: Toxic Equivalency Factor for formulation: (See risk assessment if this has a value other than 1.) | B17: TEF
B18: Central | C18: ='A01'!C$35 -> 1 | D18: unitless | E18: Worksheet A01
B19: Lower | C19: ='A01'!C$36 -> 1 | E19: Worksheet A01
B20: Upper | C20: ='A01'!C$37 -> 1 | E20: Worksheet A01
A21: Absorbed Dose | B21: Dose | C21: ConcWat × Amnt ÷ BW
B22: Central | C22: =C7*C$16/C$11 -> 0.0002886765281 | D22: mg/kg | E22: Eq
B23: Lower | C23: =C8*C$16/C$11 -> 1.447077306e-05 | D23: mg/kg | E23: Eq
B24: Upper | C24: =C9*C$16/C$11 -> 0.004951750665 | D24: mg/kg | E24: Eq

Sheet F03a
A1: Acute scenario for the consumption of contaminated Fish by Large Carnivorous Mammal after an accidental spill of the pesticide into a pond
A2: Short Title | B2: Fish consumption, accidental spill | E2: FishKcalPondSpillAcV6
A3: Predator | B3: Large Carnivorous Mammal
A4: Food Item (Prey) | B4: Fish
A5: Duration | B5: Acute
A6: Parameter/Assumption | B6: Code / Range | C6: Equation/ Value | D6: Units | E6: Reference/Designation
A7: Pond
A8: Concentration in pond water | B8: ConcWat
B9: Central | C9: =B04b!Water_C -> 0.00773106383 | D9: mg/L | E9: ='B04b'!Water_C
B10: Lower | C10: =B04b!Water_L -> 0.0003875426621 | E10: ='B04b'!Water_L
B11: Upper | C11: =B04b!Water_U -> 0.1326131387 | E11: ='B04b'!Water_U
A12: Fish
A13: Bioconcentration factor | B13: BCF
B14: Central | C14: ='B01'!$C$5 -> 0.83 | D14: L/kg | E14: Section 3.2.3.5.
B15: Lower | C15: ='B01'!$C$5 -> 0.83 | E15: Section 3.2.3.5.
B16: Upper | C16: ='B01'!$C$5 -> 0.83 | E16: Section 3.2.3.5.
A17: Concentration in fish | B17: ConcFish | C17: ConcWat × BCF
B18: Central | C18: =C9*C14 -> 0.006416782979 | D18: mg/kg | E18: Eq
B19: Lower | C19: =C10*C15 -> 0.0003216604096 | E19: Eq
B20: Upper | C20: =C11*C16 -> 0.1100689051 | E20: Eq
A21: Receptor
A22: Body weight | B22: BW | C22: ='A02'!$C$97 -> 70 | D22: kg | E22: Reid 2006
A23: Allometric coefficients for caloric requirement per day in kilocalories and BW in grams
B24: alpha | C24: ='A02'!$C$98 -> 0.6167 | E24: U.S. EPA/ORD 1993
B25: beta | C25: ='A02'!$C$99 -> 0.862 | E25: U.S. EPA/ORD 1993
A26: Caloric requirement per day | B26: KR | C26: =C24*(C22*1000)^C25 -> 9258.666883 | D26: kcal/day | E26: Eq
A27: Caloric content of commodity (dry weight) | B27: KCD | C27: 4.47 | D27: kcal/gdw [Note 1] | E27: WkMk Documentation
A28: Food consumed per day (dry weight) | B28: AmntDry | C28: = KR ÷ KCD
C29: =C26/C27 -> 2071.29013 | D29: gdry/day | E29: Eq
A30: Water content of vegetation as a proportion | B30: PropWater | C30: 0.7 | D30: gwater/gfood | E30: WkMk Documentation
A31: Dry weight content of vegetation as a proportion | B31: PropDry | C31: = 1-PropWater
C32: =1-C30 -> 0.3 | D32: gdry/gfood | E32: Eq
A33: Amount of fish consumed per day, wet weight | B33: AmntFish | C33: = (AmntDry ÷ PropDry) ÷ (1000g/kg)
B34: Central | C34: =(C29/C32)/1000 -> 6.904300435 | D34: kgfood/day | E34: Eq
B35: Lower | C35: =C34*0.3 -> 2.07129013 | D35: Note 1 | E35: Eq
B36: Upper | C36: =C34*1.7 -> 11.73731074 | D36: Note 1 | E36: Eq
A37: Proportion of diet that is contaminated | B37: Prop
B38: Central | C38: 0.3 | D38: Unitless | E38: Scenario parameter
B39: Lower | C39: 0.1 | E39: Scenario parameter
B40: Upper | C40: 1 | E40: Scenario parameter
A41: Dose
A42: Toxic Equivalency Factor for formulation: (See risk assessment if this has a value other than 1.) | B42: TEF
B43: Central | C43: ='A01'!C$35 -> 1 | D43: Unitless | E43: Worksheet A01
B44: Lower | C44: ='A01'!C$36 -> 1 | D44: Note 2 | E44: Worksheet A01
B45: Upper | C45: ='A01'!C$37 -> 1 | D45: Note 2 | E45: Worksheet A01
A46: Dose | B46: Dose | C46: = ConcFish × AmntFish × Prop ÷ BW
B47: Central | C47: =C18*C34*C38/C$22 -> 0.0001898717036 | D47: mg/kg | E47: Eq
B48: Lower | C48: =C19*C35*C39/C$22 -> 9.517886166e-07 | D48: mg/kg | E48: Eq
B49: Upper | C49: 0.01845589917 | D49: mg/kg | E49: Eq

Sheet F03b
A1: Acute scenario for the consumption of contaminated Fish by Carnivorous mammal after an accidental spill of the pesticide into a pond
A2: Short Title | B2: Fish consumption, accidental spill | E2: FishKcalPondSpillAcV6
A3: Predator | B3: Carnivorous mammal
A4: Food Item (Prey) | B4: Fish
A5: Duration | B5: Acute
A6: Parameter/Assumption | B6: Code / Range | C6: Equation/ Value | D6: Units | E6: Reference/Designation
A7: Pond
A8: Concentration in pond water | B8: ConcWat
B9: Central | C9: =B04b!Water_C -> 0.00773106383 | D9: mg/L | E9: ='B04b'!Water_C
B10: Lower | C10: =B04b!Water_L -> 0.0003875426621 | E10: ='B04b'!Water_L
B11: Upper | C11: =B04b!Water_U -> 0.1326131387 | E11: ='B04b'!Water_U
A12: Fish
A13: Bioconcentration factor | B13: BCF
B14: Central | C14: ='B01'!$C$5 -> 0.83 | D14: L/kg | E14: Section 3.2.3.5.
B15: Lower | C15: ='B01'!$C$5 -> 0.83 | E15: Section 3.2.3.5.
B16: Upper | C16: ='B01'!$C$5 -> 0.83 | E16: Section 3.2.3.5.
A17: Concentration in fish | B17: ConcFish | C17: ConcWat × BCF
B18: Central | C18: =C9*C14 -> 0.006416782979 | D18: mg/kg | E18: Eq
B19: Lower | C19: =C10*C15 -> 0.0003216604096 | E19: Eq
B20: Upper | C20: =C11*C16 -> 0.1100689051 | E20: Eq
A21: Receptor
A22: Body weight | B22: BW | C22: ='A02'!$C$92 -> 5 | D22: kg | E22: U.S. EPA/ORD 1993
A23: Allometric coefficients for caloric requirement per day in kilocalories and BW in grams
B24: alpha | C24: ='A02'!$C$93 -> 0.6167 | E24: U.S. EPA/ORD 1993
B25: beta | C25: ='A02'!$C$94 -> 0.862 | E25: U.S. EPA/ORD 1993
A26: Caloric requirement per day | B26: KR | C26: =C24*(C22*1000)^C25 -> 951.8885266 | D26: kcal/day | E26: Eq
A27: Caloric content of commodity (dry weight) | B27: KCD | C27: 4.47 | D27: kcal/gdw [Note 1] | E27: WkMk Documentation
A28: Food consumed per day (dry weight) | B28: AmntDry | C28: = KR ÷ KCD
C29: =C26/C27 -> 212.9504534 | D29: gdry/day | E29: Eq
A30: Water content of vegetation as a proportion | B30: PropWater | C30: 0.7 | D30: gwater/gfood | E30: WkMk Documentation
A31: Dry weight content of vegetation as a proportion | B31: PropDry | C31: = 1-PropWater
C32: =1-C30 -> 0.3 | D32: gdry/gfood | E32: Eq
A33: Amount of fish consumed per day, wet weight | B33: AmntFish | C33: = (AmntDry ÷ PropDry) ÷ (1000g/kg)
B34: Central | C34: =(C29/C32)/1000 -> 0.7098348446 | D34: kgfood/day | E34: Eq
B35: Lower | C35: =C34*0.3 -> 0.2129504534 | D35: Note 1 | E35: Eq
B36: Upper | C36: =C34*1.7 -> 1.206719236 | D36: Note 1 | E36: Eq
A37: Proportion of diet that is contaminated | B37: Prop
B38: Central | C38: 0.3 | D38: Unitless | E38: Scenario parameter
B39: Lower | C39: 0.1 | E39: Scenario parameter
B40: Upper | C40: 1 | E40: Scenario parameter
A41: Dose
A42: Toxic Equivalency Factor for formulation: (See risk assessment if this has a value other than 1.) | B42: TEF
B43: Central | C43: ='A01'!C$35 -> 1 | D43: Unitless | E43: Worksheet A01
B44: Lower | C44: ='A01'!C$36 -> 1 | D44: Note 2 | E44: Worksheet A01
B45: Upper | C45: ='A01'!C$37 -> 1 | D45: Note 2 | E45: Worksheet A01
A46: Dose | B46: Dose | C46: = ConcFish × AmntFish × Prop ÷ BW
B47: Central | C47: =C18*C34*C38/C$22 -> 0.0002732913689 | D47: mg/kg | E47: Eq
B48: Lower | C48: =C19*C35*C39/C$22 -> 1.369954601e-06 | D48: mg/kg | E48: Eq
B49: Upper | C49: 0.02656445301 | D49: mg/kg | E49: Eq

Sheet F03c
A1: Acute scenario for the consumption of contaminated Fish by Bird (piscivorous) after an accidental spill of the pesticide into a pond
A2: Short Title | B2: Fish consumption, accidental spill | E2: FishKcalPondSpillAcV6
A3: Predator | B3: Bird (piscivorous)
A4: Food Item (Prey) | B4: Fish
A5: Duration | B5: Acute
A6: Parameter/Assumption | B6: Code / Range | C6: Equation/ Value | D6: Units | E6: Reference/Designation
A7: Pond
A8: Concentration in pond water | B8: ConcWat
B9: Central | C9: =B04b!Water_C -> 0.00773106383 | D9: mg/L | E9: ='B04b'!Water_C
B10: Lower | C10: =B04b!Water_L -> 0.0003875426621 | E10: ='B04b'!Water_L
B11: Upper | C11: =B04b!Water_U -> 0.1326131387 | E11: ='B04b'!Water_U
A12: Fish
A13: Bioconcentration factor | B13: BCF
B14: Central | C14: ='B01'!$C$5 -> 0.83 | D14: L/kg | E14: Section 3.2.3.5.
B15: Lower | C15: ='B01'!$C$5 -> 0.83 | E15: Section 3.2.3.5.
B16: Upper | C16: ='B01'!$C$5 -> 0.83 | E16: Section 3.2.3.5.
A17: Concentration in fish | B17: ConcFish | C17: ConcWat × BCF
B18: Central | C18: =C9*C14 -> 0.006416782979 | D18: mg/kg | E18: Eq
B19: Lower | C19: =C10*C15 -> 0.0003216604096 | E19: Eq
B20: Upper | C20: =C11*C16 -> 0.1100689051 | E20: Eq
A21: Receptor
A22: Body weight | B22: BW | C22: ='A02'!$C$47 -> 2.4 | D22: kg | E22: Sibley 2000
A23: Allometric coefficients for caloric requirement per day in kilocalories and BW in grams
B24: alpha | C24: ='A02'!$C$50 -> 1.916 | E24: U.S. EPA/ORD 1993
B25: beta | C25: ='A02'!$C$51 -> 0.704 | E25: U.S. EPA/ORD 1993
A26: Caloric requirement per day | B26: KR | C26: =C24*(C22*1000)^C25 -> 459.2659192 | D26: kcal/day | E26: Eq
A27: Caloric content of commodity (dry weight) | B27: KCD | C27: 3.87 | D27: kcal/gdw [Note 1] | E27: WkMk Documentation
A28: Food consumed per day (dry weight) | B28: AmntDry | C28: = KR ÷ KCD
C29: =C26/C27 -> 118.6733641 | D29: gdry/day | E29: Eq
A30: Water content of vegetation as a proportion | B30: PropWater | C30: 0.7 | D30: gwater/gfood | E30: WkMk Documentation
A31: Dry weight content of vegetation as a proportion | B31: PropDry | C31: = 1-PropWater
C32: =1-C30 -> 0.3 | D32: gdry/gfood | E32: Eq
A33: Amount of fish consumed per day, wet weight | B33: AmntFish | C33: = (AmntDry ÷ PropDry) ÷ (1000g/kg)
B34: Central | C34: =(C29/C32)/1000 -> 0.3955778805 | D34: kgfood/day | E34: Eq
B35: Lower | C35: =C34*0.3 -> 0.1186733641 | D35: Note 1 | E35: Eq
B36: Upper | C36: =C34*1.7 -> 0.6724823968 | D36: Note 1 | E36: Eq
A37: Proportion of diet that is contaminated | B37: Prop
B38: Central | C38: 0.3 | D38: Unitless | E38: Scenario parameter
B39: Lower | C39: 0.1 | E39: Scenario parameter
B40: Upper | C40: 1 | E40: Scenario parameter
A41: Dose
A42: Toxic Equivalency Factor for formulation: (See risk assessment if this has a value other than 1.) | B42: TEF
B43: Central | C43: ='A01'!C$35 -> 1 | D43: Unitless | E43: Worksheet A01
B44: Lower | C44: ='A01'!C$36 -> 1 | D44: Note 2 | E44: Worksheet A01
B45: Upper | C45: ='A01'!C$37 -> 1 | D45: Note 2 | E45: Worksheet A01
A46: Dose | B46: Dose | C46: = ConcFish × AmntFish × Prop ÷ BW
B47: Central | C47: =C18*C34*C38/C$22 -> 0.0003172921763 | D47: mg/kg | E47: Eq
B48: Lower | C48: =C19*C35*C39/C$22 -> 1.590521788e-06 | D48: mg/kg | E48: Eq
B49: Upper | C49: 0.03084141713 | D49: mg/kg | E49: Eq

Sheet F04a
A1: Consumption of Fruit by a Small Mammal after Acute exposure.
A2: Short Title | B2: Fruit | E2: FdKcalV6
A3: Receptor | B3: Small Mammal
A4: Duration | B4: Acute | E4: Scenario parameter
A5: Material consumed | B5: Fruit
A6: Parameter/Assumption | B6: Code / Range | C6: Equation/ Value | D6: Units | E6: Reference/Designation
A7: Commodity
A8: Concentration on consumed commodity | B8: Conc
B9: Central | C9: =B05a!Acute_C -> 1.992365664 | D9: mg/kg food wet weight | E9: ='B05a'!Acute_C
B10: Lower | C10: =B05a!Acute_L -> 0.9107762257 | E10: ='B05a'!Acute_L
B11: Upper | C11: =B05a!Acute_U -> 4.269406511 | E11: ='B05a'!Acute_U
A12: Receptor
A13: Body weight | B13: BW | C13: ='A02'!$C$116 -> 0.02 | D13: kg | E13: Default
A14: Allometric coefficients for caloric requirement per day in kilocalories and BW in grams
B15: alpha | C15: ='A02'!$C$120 -> 2.514 | E15: U.S. EPA/ORD 1993
B16: beta | C16: ='A02'!$C$121 -> 0.507 | E16: U.S. EPA/ORD 1993
A17: Caloric requirement per day | B17: KR | C17: = alpha x (BW x 1kg/1000g)beta
C18: =C15*((C13*1000)^C16) -> 11.48120526 | D18: kcal/day | E18: Eq
A19: Caloric content of commodity (dry weight) | B19: KCD | C19: 1.1 | D19: kcal/gdw [Note 1] | E19: WkMk Documentation
A20: Food consumed per day (dry weight) | B20: AmntDry | C20: = KR ÷ KCD
C21: =C18/C19 -> 10.43745932 | D21: gdry/day | E21: Eq
A22: Water content of vegetation as a proportion | B22: PropWater | C22: 0.77 | D22: gwater/gfood | E22: WkMk Documentation
A23: Dry weight content of vegetation as a proportion | B23: PropDry | C23: = 1-PropWater
C24: =1-C22 -> 0.23 | D24: gdry/gfood | E24: Eq
A25: Variability in caloric requirements not accounted for by allometric equation | B25: Error
B26: Central | C26: 1 | D26: Note 2
B27: Lower | C27: 0.3
B28: Upper | C28: 1.7
